Workbook

Sheet Navigation Pane
C2: Fraser Coast Regional Council - Schedule of Works Model (SOW)
B6: Version No | D6: 4 | F6: Date | G6: 2017-07-01 | J6: Author | K6: P. Orr
B8: Comments | D8: This document was adopted by Council at its Ordinary Meeting No 7 on Wednesday 24 May 2017 as part of amendments to the Fraser Coast Planning Scheme. The amendments commence on 3 July 2017.
D10: Inputs | I10: Calculation | N10: Outputs
C12: General Input Sheet | H12: Calculation Function | M12: Summary Cost Schedule
C13: l Financial Inputs l Other "generic" inputs | H13: l Catchment based summary of demand, infrastructure (existing and new) and cost allocation l Infrastructure Cost calculation for each catchment ("Average Cost" approach) | M13: l Summary of demand and cost allocation by catchment l Final costs by catchment
C15: Unit Rates | M15: Summary Cash Flow Projections
C16: l Unit Cost of Passive Assets l Unit Cost of Land | M16: l Summary of forecast Cap X and anticipated IC revenues
C18: Demand Forecast
C19: l Estimates of current and future demand (per cost catchment)
C21: Asset Inputs
C22: Existing Trunk Infrastructure
C23: Future Trunk Infrastructure

Sheet General Input Sheet
B2: ='Navigation Pane'!C2 -> Fraser Coast Regional Council - Schedule of Works Model (SOW)
A3: Return To Navigation
B4: General Input Sheet
B6: General Inputs | E6: Reference | G6: Value | I6: Comments
C8: Base Year | E8: YEAR | G8: 2011
C10: Term (between 15 and 30 years) | E10: TERM | G10: 20
B12: Application of Discounted Cash flow
C14: Calculate charges using Discounted Cash flow? (Y/N) | E14: DCFTRIGGER | G14: Yes
B16: General Financial Inputs
B18: Discount Rate (WACC):
C19: Average 10 Year Bond Rate | E19: TenYr | G19: 0.04
B21: Option 1 | C21: Basic Margin on 10 Yr. Bond Rate | E21: Margin | G21: 0.035 | I21: 3.5% is the baseline figure quoted in LG Bulletin 06/01
C23: WACC: | E23: WACC1 | G23: =G19+G21 -> 0.075
B25: Option 2 | C25: Capital Structure (% Debt) | E25: Capstr
C26: Market Risk Premium | E26: Risk | G26: 0.06
C27: Asset Beta | E27: AssetBeta
C28: Cost of Debt | E28: Debt
C30: WACC: | E30: WACC2 | G30: =(G25*G28)+(G19+(G27*G26)*(1-G25)) -> 0.04
C32: WACC Option to be applied in the calculation? | E32: WACC1 | G32: =IF(G14="No",0,IF(E32="WACC1",WACC1,IF(E32="WACC2",WACC2,"Error"))) -> 0.075
B34: Escalation Rates
C35: Capital Escalation - Future Cap X | E35: PPI | G35: 0.02 | I35: Five (5) yr. average Road and Bridge Const Index (ABS 6427, Table 17, Index 3101)
C37: Capital Indexation Rates - Historical (June Qtr.)
E38: =YEAR -> 2011 | I38: Not Used
E39: =E38-1 -> 2010
E40: =E39-1 -> 2009
E41: 2008
E42: 2007
E43: 2006
E44: 2005
C46: Land Escalation | E46: LandInd | G46: 0.03 | I46: local 10 year average UCV increase. (DNRM)
C48: Charges Escalation Rate | E48: Chargeind | G48: 0.0295 | I48: CPI + potential reductions in existing discount
C50: Current Year (for indexing) | E50: YEARC | G50: 2015 | I50: Current year for indexing infrastructure charges.

Sheet Unit Rates
A2: ='Navigation Pane'!C2 -> Fraser Coast Regional Council - Schedule of Works Model (SOW)
A3: Return to Navigation
B4: Unit Rates
B6: Land Cost | D6: Transportation
B8: Water Supply | D8: Sewerage
B10: Stormwater | D10: Parks & Community Facilities

Sheet Catchment Demand
A2: ='Navigation Pane'!C2 -> Fraser Coast Regional Council - Schedule of Works Model (SOW)
A3: Return to Navigation
B4: Demand Forecast
B6: Anticpated Growth Residential | D6: Anticpated Growth - NON Residential
B8: Water Supply | D8: Transportation
B10: Sewerage | D10: Parks & Community Facilities
B12: Stormwater

Sheet Existing Trunk Assets
A2: ='Navigation Pane'!C2 -> Fraser Coast Regional Council - Schedule of Works Model (SOW)
A3: Return to Navigation
B4: Existing Trunk Assets
B6: Water Supply | D6: Transportation
B8: Sewerage | D8: Parks & Community Facilities
B10: Stormwater

Sheet Existing Trunk Assets - Water
B2: ='Navigation Pane'!C2 -> Fraser Coast Regional Council - Schedule of Works Model (SOW)
B3: Water Supply
A4: Return to "Existing Trunk Assets"
B5: EXISTING TRUNK ASSETS
B8: Land Valuation Type | E8: Location
I10: Asset Data | W10: Catchment Asset Allocation | BP10: Asset Usage | CV10: Cost Allocation
B11: Basic Asset Data | H11: Asset Attributes | K11: Baseline Asset Valuation | P11: Land Attributes | T11: Refined Asset Value | W11: ='Catchment Demand - Water Supply'!$C8 -> Northern Water Service Area | X11: ='Catchment Demand - Water Supply'!$C9 -> Maryborough Water Service Area | Y11: ='Catchment Demand - Water Supply'!$C10 -> Tiaro Water Service Area | Z11: ='Catchment Demand - Water Supply'!$C11 -> 0 | AA11: ='Catchment Demand - Water Supply'!$C12 -> 0 | AB11: ='Catchment Demand - Water Supply'!$C13 -> 0 | AC11: ='Catchment Demand - Water Supply'!$C14 -> 0 | AD11: ='Catchment Demand - Water Supply'!$C15 -> 0 | AE11: ='Catchment Demand - Water Supply'!$C16 -> 0 | AF11: ='Catchment Demand - Water Supply'!$C17 -> 0 | AG11: ='Catchment Demand - Water Supply'!$C18 -> 0 | AH11: ='Catchment Demand - Water Supply'!$C19 -> 0 | AI11: ='Catchment Demand - Water Supply'!$C20 -> 0 | AJ11: ='Catchment Demand - Water Supply'!$C21 -> 0 | AK11: ='Catchment Demand - Water Supply'!$C22 -> 0 | AL11: ='Catchment Demand - Water Supply'!$C23 -> 0 | AM11: ='Catchment Demand - Water Supply'!$C24 -> 0 | AN11: ='Catchment Demand - Water Supply'!$C25 -> 0 | AO11: ='Catchment Demand - Water Supply'!$C26 -> 0 | AP11: ='Catchment Demand - Water Supply'!$C27 -> 0 | AQ11: ='Catchment Demand - Water Supply'!$C28 -> 0 | AR11: ='Catchment Demand - Water Supply'!$C29 -> 0 | AS11: ='Catchment Demand - Water Supply'!$C30 -> 0 | AT11: ='Catchment Demand - Water Supply'!$C31 -> 0 | AU11: ='Catchment Demand - Water Supply'!$C32 -> 0 | AV11: ='Catchment Demand - Water Supply'!$C33 -> 0 | AW11: ='Catchment Demand - Water Supply'!$C34 -> 0 | AX11: ='Catchment Demand - Water Supply'!$C35 -> 0 | AY11: ='Catchment Demand - Water Supply'!$C36 -> 0 | AZ11: ='Catchment Demand - Water Supply'!$C37 -> 0 | BB11: ='Catchment Demand - Water Supply'!$C8 -> Northern Water Service Area | BC11: ='Catchment Demand - Water Supply'!$C9 -> Maryborough Water Service Area | BD11: ='Catchment Demand - Water Supply'!$C10 -> Tiaro Water Service Area | BE11: ='Catchment Demand - Water Supply'!$C11 -> 0 | BF11: ='Catchment Demand - Water Supply'!$C12 -> 0 | BG11: ='Catchment Demand - Water Supply'!$C13 -> 0 | BH11: ='Catchment Demand - Water Supply'!$C14 -> 0 | BI11: ='Catchment Demand - Water Supply'!$C15 -> 0 | BJ11: ='Catchment Demand - Water Supply'!$C16 -> 0 | BK11: ='Catchment Demand - Water Supply'!$C17 -> 0 | BL11: ='Catchment Demand - Water Supply'!$C18 -> 0 | BM11: ='Catchment Demand - Water Supply'!$C19 -> 0 | BN11: ='Catchment Demand - Water Supply'!$C20 -> 0 | BO11: ='Catchment Demand - Water Supply'!$C21 -> 0 | BP11: ='Catchment Demand - Water Supply'!$C22 -> 0 | BQ11: ='Catchment Demand - Water Supply'!$C23 -> 0 | BR11: ='Catchment Demand - Water Supply'!$C24 -> 0 | BS11: ='Catchment Demand - Water Supply'!$C25 -> 0 | BT11: ='Catchment Demand - Water Supply'!$C26 -> 0 | BU11: ='Catchment Demand - Water Supply'!$C27 -> 0 | BV11: ='Catchment Demand - Water Supply'!$C28 -> 0 | BW11: ='Catchment Demand - Water Supply'!$C29 -> 0 | BX11: ='Catchment Demand - Water Supply'!$C30 -> 0 | BY11: ='Catchment Demand - Water Supply'!$C31 -> 0 | BZ11: ='Catchment Demand - Water Supply'!$C32 -> 0 | CA11: ='Catchment Demand - Water Supply'!$C33 -> 0 | CB11: ='Catchment Demand - Water Supply'!$C34 -> 0 | CC11: ='Catchment Demand - Water Supply'!$C35 -> 0 | CD11: ='Catchment Demand - Water Supply'!$C36 -> 0 | CE11: ='Catchment Demand - Water Supply'!$C37 -> 0 | CF11: TOTALS | CH11: ='Catchment Demand - Water Supply'!$C8 -> Northern Water Service Area | CI11: ='Catchment Demand - Water Supply'!$C9 -> Maryborough Water Service Area | CJ11: ='Catchment Demand - Water Supply'!$C10 -> Tiaro Water Service Area | CK11: ='Catchment Demand - Water Supply'!$C11 -> 0 | CL11: ='Catchment Demand - Water Supply'!$C12 -> 0 | CM11: ='Catchment Demand - Water Supply'!$C13 -> 0 | CN11: ='Catchment Demand - Water Supply'!$C14 -> 0 | CO11: ='Catchment Demand - Water Supply'!$C15 -> 0 | CP11: ='Catchment Demand - Water Supply'!$C16 -> 0 | CQ11: ='Catchment Demand - Water Supply'!$C17 -> 0 | CR11: ='Catchment Demand - Water Supply'!$C18 -> 0 | CS11: ='Catchment Demand - Water Supply'!$C19 -> 0 | CT11: ='Catchment Demand - Water Supply'!$C20 -> 0 | CU11: ='Catchment Demand - Water Supply'!$C21 -> 0 | CV11: ='Catchment Demand - Water Supply'!$C22 -> 0 | CW11: ='Catchment Demand - Water Supply'!$C23 -> 0 | CX11: ='Catchment Demand - Water Supply'!$C24 -> 0 | CY11: ='Catchment Demand - Water Supply'!$C25 -> 0 | CZ11: ='Catchment Demand - Water Supply'!$C26 -> 0 | DA11: ='Catchment Demand - Water Supply'!$C27 -> 0 | DB11: ='Catchment Demand - Water Supply'!$C28 -> 0 | DC11: ='Catchment Demand - Water Supply'!$C29 -> 0 | DD11: ='Catchment Demand - Water Supply'!$C30 -> 0 | DE11: ='Catchment Demand - Water Supply'!$C31 -> 0 | DF11: ='Catchment Demand - Water Supply'!$C32 -> 0 | DG11: ='Catchment Demand - Water Supply'!$C33 -> 0 | DH11: ='Catchment Demand - Water Supply'!$C34 -> 0 | DI11: ='Catchment Demand - Water Supply'!$C35 -> 0 | DJ11: ='Catchment Demand - Water Supply'!$C36 -> 0 | DK11: ='Catchment Demand - Water Supply'!$C37 -> 0 | DL11: Checksum 2
B12: Asset ID | C12: LGIP ID | D12: Asset Type (*) | E12: Asset Class | F12: Asset Name | G12: Description | H12: Unit Rate Type (*) | I12: Length/unit (*) | J12: Diameter (*) | K12: Unit Rate | L12: Baseline Valuation | M12: Site/Condition | N12: Multiplier | O12: Gross Value | P12: Land Location/Type | Q12: Size of land (ha) (*) | R12: Unit Cost | S12: Land Value | T12: Valuation Year | U12: Escalation | V12: Current Replacement Cost
W13: 1 | X13: =W13+1 -> 2 | Y13: =X13+1 -> 3 | Z13: 4 | AA13: 5 | AB13: 6 | AC13: 7 | AD13: 8 | AE13: 9 | AF13: 10 | AG13: 11 | AH13: 12 | AI13: 13 | AJ13: 14 | AK13: 15 | AL13: 16 | AM13: 17 | AN13: 18 | AO13: 19 | AP13: 20 | AQ13: 21 | AR13: 22 | AS13: 23 | AT13: 24 | AU13: 25 | AV13: 26 | AW13: 27 | AX13: 28 | AY13: 29 | AZ13: 30
B14: Councils ID (from GIS, FAR, AMA etc.) | E14: Reservoir, Trunk Main, etc. | L14: May be calculated from unit rates OR unique values can be direct entered | V14: CRC | W14: =IFERROR(VLOOKUP(W11,watercatch,6,FALSE),"") -> 123336 | X14: 36141 | Y14: 1068 | BB14: =VLOOKUP(BB11,'Catchment Demand - Water Supply'!$C$8:$H$37,6,FALSE) -> 123336 | BC14: =VLOOKUP(BC11,'Catchment Demand - Water Supply'!$C$8:$H$37,6,FALSE) -> 36141 | BD14: =VLOOKUP(BD11,'Catchment Demand - Water Supply'!$C$8:$H$37,6,FALSE) -> 1068 | BE14: =VLOOKUP(BE11,'Catchment Demand - Water Supply'!$C$8:$H$37,6,FALSE) ->  | BF14: =VLOOKUP(BF11,'Catchment Demand - Water Supply'!$C$8:$H$37,6,FALSE) ->  | BG14: =VLOOKUP(BG11,'Catchment Demand - Water Supply'!$C$8:$H$37,6,FALSE) ->  | BH14: =VLOOKUP(BH11,'Catchment Demand - Water Supply'!$C$8:$H$37,6,FALSE) ->  | BI14: =VLOOKUP(BI11,'Catchment Demand - Water Supply'!$C$8:$H$37,6,FALSE) ->  | BJ14: =VLOOKUP(BJ11,'Catchment Demand - Water Supply'!$C$8:$H$37,6,FALSE) ->  | BK14: =VLOOKUP(BK11,'Catchment Demand - Water Supply'!$C$8:$H$37,6,FALSE) ->  | BL14: =VLOOKUP(BL11,'Catchment Demand - Water Supply'!$C$8:$H$37,6,FALSE) ->  | BM14: =VLOOKUP(BM11,'Catchment Demand - Water Supply'!$C$8:$H$37,6,FALSE) ->  | BN14: =VLOOKUP(BN11,'Catchment Demand - Water Supply'!$C$8:$H$37,6,FALSE) ->  | BO14: =VLOOKUP(BO11,'Catchment Demand - Water Supply'!$C$8:$H$37,6,FALSE) ->  | BP14: =VLOOKUP(BP11,'Catchment Demand - Water Supply'!$C$8:$H$37,6,FALSE) ->  | BQ14: =VLOOKUP(BQ11,'Catchment Demand - Water Supply'!$C$8:$H$37,6,FALSE) ->  | BR14: =VLOOKUP(BR11,'Catchment Demand - Water Supply'!$C$8:$H$37,6,FALSE) ->  | BS14: =VLOOKUP(BS11,'Catchment Demand - Water Supply'!$C$8:$H$37,6,FALSE) ->  | BT14: =VLOOKUP(BT11,'Catchment Demand - Water Supply'!$C$8:$H$37,6,FALSE) ->  | BU14: =VLOOKUP(BU11,'Catchment Demand - Water Supply'!$C$8:$H$37,6,FALSE) ->  | BV14: =VLOOKUP(BV11,'Catchment Demand - Water Supply'!$C$8:$H$37,6,FALSE) ->  | BW14: =VLOOKUP(BW11,'Catchment Demand - Water Supply'!$C$8:$H$37,6,FALSE) ->  | BX14: =VLOOKUP(BX11,'Catchment Demand - Water Supply'!$C$8:$H$37,6,FALSE) ->  | BY14: =VLOOKUP(BY11,'Catchment Demand - Water Supply'!$C$8:$H$37,6,FALSE) ->  | BZ14: =VLOOKUP(BZ11,'Catchment Demand - Water Supply'!$C$8:$H$37,6,FALSE) ->  | CA14: =VLOOKUP(CA11,'Catchment Demand - Water Supply'!$C$8:$H$37,6,FALSE) ->  | CB14: =VLOOKUP(CB11,'Catchment Demand - Water Supply'!$C$8:$H$37,6,FALSE) ->  | CC14: =VLOOKUP(CC11,'Catchment Demand - Water Supply'!$C$8:$H$37,6,FALSE) ->  | CD14: =VLOOKUP(CD11,'Catchment Demand - Water Supply'!$C$8:$H$37,6,FALSE) ->  | CE14: =VLOOKUP(CE11,'Catchment Demand - Water Supply'!$C$8:$H$37,6,FALSE) ->  | CH14: =SUM(CH15:CH404) -> 290139431.6 | CI14: 120869564.5 | CJ14: 6649740.21 | CK14: 0 | CL14: 0 | CM14: 0 | CN14: 0 | CO14: 0 | CP14: 0 | CQ14: 0 | CR14: 0 | CS14: 0 | CT14: 0 | CU14: 0 | CV14: 0 | CW14: 0 | CX14: 0 | CY14: 0 | CZ14: 0 | DA14: 0 | DB14: 0 | DC14: 0 | DD14: 0 | DE14: 0 | DF14: 0 | DG14: 0 | DH14: 0 | DI14: 0 | DJ14: 0 | DK14: 0 | DL14: 0
B15: Bell Hilltop DMA | C15: Bell Hilltop DMA | D15: Water Active | E15: Water Active | K15: =IF(H15=TYPE1,VLOOKUP(J15,WaterUnitrates1,2,FALSE),IF(H15=TYPE2,VLOOKUP(J15,Unitrates2,2,FALSE),0)) -> 0 | L15: =VLOOKUP($B15,ExistingWater!$A$2:$D$44,3,FALSE) -> 0 | N15: =IF(M15="",1,VLOOKUP(M15,'Unit Rates - Water'!$H$12:$I$23,2,FALSE)) -> 1 | O15: =L15*N15 -> 0 | R15: =IF(P15="",'Unit Rates - Land'!landcst,IF($E$8="Landuse",VLOOKUP(P15,LAndcost3,2,FALSE),IF($E$8="Location",VLOOKUP(P15,Landcost2,2,FALSE),"Error"))) -> 0 | S15: =IF(R15="",0,R15*10000*Q15) -> 0 | T15: =VLOOKUP($B15,ExistingWater!$A$2:$G$44,5,FALSE) -> 0 | U15: =IFERROR(('General Input Sheet'!$G$38/(VLOOKUP('Existing Trunk Assets - Water'!T15,Histindex,3,FALSE))),1) -> 1 | V15: =IFERROR((O15+S15)*U15,0) -> 0 | W15: =IF(VLOOKUP($B15,ExistingWater!$A$2:$J$45,8,FALSE)="Y","Y","") ->  | X15: =IF(VLOOKUP($B15,ExistingWater!$A$2:$J$45,9,FALSE)="Y","Y","") -> Y | Y15: =IF(VLOOKUP($B15,ExistingWater!$A$2:$J$45,10,FALSE)="Y","Y","") ->  | BB15: =IF(W15="y",BB$14,IF(AND(W15>0,W15<=1),W15*BB$14,"")) ->  | BC15: =IF(X15="y",BC$14,IF(AND(X15>0,X15<=1),X15*BC$14,"")) -> 36141 | CF15: =SUM(BB15:CE15) -> 36141 | CH15: =IF(BB15="","",(BB15/$CF15)*$V15) ->  | CI15: 0 | CX15: =IF(BR15="","",(BR15/$CF15)*$V15) ->  | DL15: =IF(SUM(CH15:DK15)=V15,"","ERROR") -> 
B16: Booral East DMA | C16: Booral East DMA | D16: Water Active | E16: Water Active | K16: 0 | L16: =VLOOKUP($B16,ExistingWater!$A$2:$D$44,3,FALSE) -> 0 | N16: =IF(M16="",1,VLOOKUP(M16,'Unit Rates - Water'!$H$12:$I$23,2,FALSE)) -> 1 | O16: =L16*N16 -> 0 | R16: =IF(P16="",'Unit Rates - Land'!landcst,IF($E$10="Landuse",VLOOKUP(P16,LAndcost3,2,FALSE),IF($E$10="Location",VLOOKUP(P16,Landcost2,2,FALSE),"Error"))) -> 0 | S16: =IF(R16="",0,R16*10000*Q16) -> 0 | T16: =VLOOKUP($B16,ExistingWater!$A$2:$G$44,5,FALSE) -> 0 | U16: =IFERROR(('General Input Sheet'!$G$38/(VLOOKUP('Existing Trunk Assets - Water'!T16,'General Input Sheet'!$E$38:$G$44,3,FALSE))),1) -> 1 | V16: =IFERROR((O16+S16)*U16,0) -> 0 | W16: =IF(VLOOKUP($B16,ExistingWater!$A$2:$J$45,8,FALSE)="Y","Y","") -> Y | X16: =IF(VLOOKUP($B16,ExistingWater!$A$2:$J$45,9,FALSE)="Y","Y","") ->  | Y16: =IF(VLOOKUP($B16,ExistingWater!$A$2:$J$45,10,FALSE)="Y","Y","") ->  | BB16: =IF(W16="y",BB$14,IF(AND(W16>0,W16<=1),W16*BB$14,"")) -> 123336 | BC16: =IF(X16="y",BC$14,IF(AND(X16>0,X16<=1),X16*BC$14,"")) ->  | BD16: =IF(Y16="y",BD$14,IF(AND(Y16>0,Y16<=1),Y16*BD$14,"")) ->  | BE16: =IF(Z16="y",BE$14,IF(AND(Z16>0,Z16<=1),Z16*BE$14,"")) ->  | BF16: =IF(AA16="y",BF$14,IF(AND(AA16>0,AA16<=1),AA16*BF$14,"")) ->  | BG16: =IF(AB16="y",BG$14,IF(AND(AB16>0,AB16<=1),AB16*BG$14,"")) ->  | BH16: =IF(AC16="y",BH$14,IF(AND(AC16>0,AC16<=1),AC16*BH$14,"")) ->  | BI16: =IF(AD16="y",BI$14,IF(AND(AD16>0,AD16<=1),AD16*BI$14,"")) ->  | BJ16: =IF(AE16="y",BJ$14,IF(AND(AE16>0,AE16<=1),AE16*BJ$14,"")) ->  | BK16: =IF(AF16="y",BK$14,IF(AND(AF16>0,AF16<=1),AF16*BK$14,"")) ->  | BL16: =IF(AG16="y",BL$14,IF(AND(AG16>0,AG16<=1),AG16*BL$14,"")) ->  | BM16: =IF(AH16="y",BM$14,IF(AND(AH16>0,AH16<=1),AH16*BM$14,"")) ->  | BN16: =IF(AI16="y",BN$14,IF(AND(AI16>0,AI16<=1),AI16*BN$14,"")) ->  | BO16: =IF(AJ16="y",BO$14,IF(AND(AJ16>0,AJ16<=1),AJ16*BO$14,"")) ->  | BP16: =IF(AK16="y",BP$14,IF(AND(AK16>0,AK16<=1),AK16*BP$14,"")) ->  | BQ16: =IF(AL16="y",BQ$14,IF(AND(AL16>0,AL16<=1),AL16*BQ$14,"")) ->  | BR16: =IF(AM16="y",BR$14,IF(AND(AM16>0,AM16<=1),AM16*BR$14,"")) ->  | BS16: =IF(AN16="y",BS$14,IF(AND(AN16>0,AN16<=1),AN16*BS$14,"")) ->  | BT16: =IF(AO16="y",BT$14,IF(AND(AO16>0,AO16<=1),AO16*BT$14,"")) ->  | BU16: =IF(AP16="y",BU$14,IF(AND(AP16>0,AP16<=1),AP16*BU$14,"")) ->  | BV16: =IF(AQ16="y",BV$14,IF(AND(AQ16>0,AQ16<=1),AQ16*BV$14,"")) ->  | BW16: =IF(AR16="y",BW$14,IF(AND(AR16>0,AR16<=1),AR16*BW$14,"")) ->  | BX16: =IF(AS16="y",BX$14,IF(AND(AS16>0,AS16<=1),AS16*BX$14,"")) ->  | BY16: =IF(AT16="y",BY$14,IF(AND(AT16>0,AT16<=1),AT16*BY$14,"")) ->  | BZ16: =IF(AU16="y",BZ$14,IF(AND(AU16>0,AU16<=1),AU16*BZ$14,"")) ->  | CA16: =IF(AV16="y",CA$14,IF(AND(AV16>0,AV16<=1),AV16*CA$14,"")) ->  | CB16: =IF(AW16="y",CB$14,IF(AND(AW16>0,AW16<=1),AW16*CB$14,"")) ->  | CC16: =IF(AX16="y",CC$14,IF(AND(AX16>0,AX16<=1),AX16*CC$14,"")) ->  | CD16: =IF(AY16="y",CD$14,IF(AND(AY16>0,AY16<=1),AY16*CD$14,"")) ->  | CE16: =IF(AZ16="y",CE$14,IF(AND(AZ16>0,AZ16<=1),AZ16*CE$14,"")) ->  | CF16: =SUM(BB16:CE16) -> 123336 | CH16: 0 | DL16: =IF(SUM(CH16:DK16)=V16,"","ERROR") -> 
B17: Booral to River Heads Trunk | C17: Booral to River Heads Trunk | D17: Water Active | E17: Water Active | K17: 0 | L17: =VLOOKUP($B17,ExistingWater!$A$2:$D$44,3,FALSE) -> 291909.37 | N17: =IF(M17="",1,VLOOKUP(M17,'Unit Rates - Water'!$H$12:$I$23,2,FALSE)) -> 1 | O17: 291909.37 | R17: =IF(P17="",'Unit Rates - Land'!landcst,IF($E$10="Landuse",VLOOKUP(P17,LAndcost3,2,FALSE),IF($E$10="Location",VLOOKUP(P17,Landcost2,2,FALSE),"Error"))) -> 0 | S17: 0 | T17: =VLOOKUP($B17,ExistingWater!$A$2:$G$44,5,FALSE) -> 0 | U17: =IFERROR(('General Input Sheet'!$G$38/(VLOOKUP('Existing Trunk Assets - Water'!T17,'General Input Sheet'!$E$38:$G$44,3,FALSE))),1) -> 1 | V17: 291909.37 | W17: =IF(VLOOKUP($B17,ExistingWater!$A$2:$J$45,8,FALSE)="Y","Y","") -> Y | X17: =IF(VLOOKUP($B17,ExistingWater!$A$2:$J$45,9,FALSE)="Y","Y","") ->  | Y17: =IF(VLOOKUP($B17,ExistingWater!$A$2:$J$45,10,FALSE)="Y","Y","") ->  | BB17: 123336 | CF17: =SUM(BB17:CE17) -> 123336 | CH17: 291909.37 | DL17: =IF(SUM(CH17:DK17)=V17,"","ERROR") -> 
B18: Booral Trunk | C18: Booral Trunk | D18: Water Active | E18: Water Active | K18: 0 | L18: =VLOOKUP($B18,ExistingWater!$A$2:$D$44,3,FALSE) -> 0 | N18: =IF(M18="",1,VLOOKUP(M18,'Unit Rates - Water'!$H$12:$I$23,2,FALSE)) -> 1 | O18: 0 | R18: =IF(P18="",'Unit Rates - Land'!landcst,IF($E$10="Landuse",VLOOKUP(P18,LAndcost3,2,FALSE),IF($E$10="Location",VLOOKUP(P18,Landcost2,2,FALSE),"Error"))) -> 0 | S18: 0 | T18: =VLOOKUP($B18,ExistingWater!$A$2:$G$44,5,FALSE) -> 0 | U18: =IFERROR(('General Input Sheet'!$G$38/(VLOOKUP('Existing Trunk Assets - Water'!T18,'General Input Sheet'!$E$38:$G$44,3,FALSE))),1) -> 1 | V18: 0 | W18: =IF(VLOOKUP($B18,ExistingWater!$A$2:$J$45,8,FALSE)="Y","Y","") -> Y | X18: =IF(VLOOKUP($B18,ExistingWater!$A$2:$J$45,9,FALSE)="Y","Y","") ->  | Y18: =IF(VLOOKUP($B18,ExistingWater!$A$2:$J$45,10,FALSE)="Y","Y","") ->  | BB18: 123336 | CF18: =SUM(BB18:CE18) -> 123336 | CH18: 0 | DL18: =IF(SUM(CH18:DK18)=V18,"","ERROR") -> 
B19: Boundary Road to Booral Trunk | C19: Boundary Road to Booral Trunk | D19: Water Active | E19: Water Active | K19: 0 | L19: =VLOOKUP($B19,ExistingWater!$A$2:$D$44,3,FALSE) -> 0 | N19: =IF(M19="",1,VLOOKUP(M19,'Unit Rates - Water'!$H$12:$I$23,2,FALSE)) -> 1 | O19: 0 | R19: =IF(P19="",'Unit Rates - Land'!landcst,IF($E$10="Landuse",VLOOKUP(P19,LAndcost3,2,FALSE),IF($E$10="Location",VLOOKUP(P19,Landcost2,2,FALSE),"Error"))) -> 0 | S19: 0 | T19: =VLOOKUP($B19,ExistingWater!$A$2:$G$44,5,FALSE) -> 0 | U19: =IFERROR(('General Input Sheet'!$G$38/(VLOOKUP('Existing Trunk Assets - Water'!T19,'General Input Sheet'!$E$38:$G$44,3,FALSE))),1) -> 1 | V19: 0 | W19: =IF(VLOOKUP($B19,ExistingWater!$A$2:$J$45,8,FALSE)="Y","Y","") -> Y | X19: =IF(VLOOKUP($B19,ExistingWater!$A$2:$J$45,9,FALSE)="Y","Y","") ->  | Y19: =IF(VLOOKUP($B19,ExistingWater!$A$2:$J$45,10,FALSE)="Y","Y","") ->  | BB19: 123336 | CF19: 123336 | CH19: 0
B20: Burrum Heads DMA | C20: Burrum Heads DMA | D20: Water Active | E20: Water Active | K20: 0 | L20: =VLOOKUP($B20,ExistingWater!$A$2:$D$44,3,FALSE) -> 656041.11 | N20: =IF(M20="",1,VLOOKUP(M20,'Unit Rates - Water'!$H$12:$I$23,2,FALSE)) -> 1 | O20: 656041.11 | R20: =IF(P20="",'Unit Rates - Land'!landcst,IF($E$10="Landuse",VLOOKUP(P20,LAndcost3,2,FALSE),IF($E$10="Location",VLOOKUP(P20,Landcost2,2,FALSE),"Error"))) -> 0 | S20: 0 | T20: =VLOOKUP($B20,ExistingWater!$A$2:$G$44,5,FALSE) -> 0 | U20: =IFERROR(('General Input Sheet'!$G$38/(VLOOKUP('Existing Trunk Assets - Water'!T20,'General Input Sheet'!$E$38:$G$44,3,FALSE))),1) -> 1 | V20: 656041.11 | W20: =IF(VLOOKUP($B20,ExistingWater!$A$2:$J$45,8,FALSE)="Y","Y","") -> Y | X20: =IF(VLOOKUP($B20,ExistingWater!$A$2:$J$45,9,FALSE)="Y","Y","") ->  | Y20: =IF(VLOOKUP($B20,ExistingWater!$A$2:$J$45,10,FALSE)="Y","Y","") ->  | BB20: =IF(W20="y",BB$14,IF(AND(W20>0,W20<=1),W20*BB$14,"")) -> 123336 | BC20: =IF(X20="y",BC$14,IF(AND(X20>0,X20<=1),X20*BC$14,"")) ->  | BD20: =IF(Y20="y",BD$14,IF(AND(Y20>0,Y20<=1),Y20*BD$14,"")) ->  | BE20: =IF(Z20="y",BE$14,IF(AND(Z20>0,Z20<=1),Z20*BE$14,"")) ->  | BF20: =IF(AA20="y",BF$14,IF(AND(AA20>0,AA20<=1),AA20*BF$14,"")) ->  | BG20: =IF(AB20="y",BG$14,IF(AND(AB20>0,AB20<=1),AB20*BG$14,"")) ->  | BH20: =IF(AC20="y",BH$14,IF(AND(AC20>0,AC20<=1),AC20*BH$14,"")) ->  | BI20: =IF(AD20="y",BI$14,IF(AND(AD20>0,AD20<=1),AD20*BI$14,"")) ->  | BJ20: =IF(AE20="y",BJ$14,IF(AND(AE20>0,AE20<=1),AE20*BJ$14,"")) ->  | BK20: =IF(AF20="y",BK$14,IF(AND(AF20>0,AF20<=1),AF20*BK$14,"")) ->  | BL20: =IF(AG20="y",BL$14,IF(AND(AG20>0,AG20<=1),AG20*BL$14,"")) ->  | BM20: =IF(AH20="y",BM$14,IF(AND(AH20>0,AH20<=1),AH20*BM$14,"")) ->  | BN20: =IF(AI20="y",BN$14,IF(AND(AI20>0,AI20<=1),AI20*BN$14,"")) ->  | BO20: =IF(AJ20="y",BO$14,IF(AND(AJ20>0,AJ20<=1),AJ20*BO$14,"")) ->  | BP20: =IF(AK20="y",BP$14,IF(AND(AK20>0,AK20<=1),AK20*BP$14,"")) ->  | BQ20: =IF(AL20="y",BQ$14,IF(AND(AL20>0,AL20<=1),AL20*BQ$14,"")) ->  | BR20: =IF(AM20="y",BR$14,IF(AND(AM20>0,AM20<=1),AM20*BR$14,"")) ->  | BS20: =IF(AN20="y",BS$14,IF(AND(AN20>0,AN20<=1),AN20*BS$14,"")) ->  | BT20: =IF(AO20="y",BT$14,IF(AND(AO20>0,AO20<=1),AO20*BT$14,"")) ->  | BU20: =IF(AP20="y",BU$14,IF(AND(AP20>0,AP20<=1),AP20*BU$14,"")) ->  | BV20: =IF(AQ20="y",BV$14,IF(AND(AQ20>0,AQ20<=1),AQ20*BV$14,"")) ->  | BW20: =IF(AR20="y",BW$14,IF(AND(AR20>0,AR20<=1),AR20*BW$14,"")) ->  | BX20: =IF(AS20="y",BX$14,IF(AND(AS20>0,AS20<=1),AS20*BX$14,"")) ->  | BY20: =IF(AT20="y",BY$14,IF(AND(AT20>0,AT20<=1),AT20*BY$14,"")) ->  | BZ20: =IF(AU20="y",BZ$14,IF(AND(AU20>0,AU20<=1),AU20*BZ$14,"")) ->  | CA20: =IF(AV20="y",CA$14,IF(AND(AV20>0,AV20<=1),AV20*CA$14,"")) ->  | CB20: =IF(AW20="y",CB$14,IF(AND(AW20>0,AW20<=1),AW20*CB$14,"")) ->  | CC20: =IF(AX20="y",CC$14,IF(AND(AX20>0,AX20<=1),AX20*CC$14,"")) ->  | CD20: =IF(AY20="y",CD$14,IF(AND(AY20>0,AY20<=1),AY20*CD$14,"")) ->  | CE20: =IF(AZ20="y",CE$14,IF(AND(AZ20>0,AZ20<=1),AZ20*CE$14,"")) ->  | CF20: 123336 | CH20: 656041.11
B21: DCP2 DMA | C21: DCP2 DMA | D21: Water Active | E21: Water Active | K21: 0 | L21: =VLOOKUP($B21,ExistingWater!$A$2:$D$44,3,FALSE) -> 22206 | N21: =IF(M21="",1,VLOOKUP(M21,'Unit Rates - Water'!$H$12:$I$23,2,FALSE)) -> 1 | O21: 22206 | R21: =IF(P21="",'Unit Rates - Land'!landcst,IF($E$10="Landuse",VLOOKUP(P21,LAndcost3,2,FALSE),IF($E$10="Location",VLOOKUP(P21,Landcost2,2,FALSE),"Error"))) -> 0 | S21: 0 | T21: =VLOOKUP($B21,ExistingWater!$A$2:$G$44,5,FALSE) -> 0 | U21: =IFERROR(('General Input Sheet'!$G$38/(VLOOKUP('Existing Trunk Assets - Water'!T21,'General Input Sheet'!$E$38:$G$44,3,FALSE))),1) -> 1 | V21: 22206 | W21: =IF(VLOOKUP($B21,ExistingWater!$A$2:$J$45,8,FALSE)="Y","Y","") -> Y | X21: =IF(VLOOKUP($B21,ExistingWater!$A$2:$J$45,9,FALSE)="Y","Y","") ->  | Y21: =IF(VLOOKUP($B21,ExistingWater!$A$2:$J$45,10,FALSE)="Y","Y","") ->  | BB21: 123336 | CF21: 123336 | CH21: 22206
B22: Dundowran Bayrise DMA | C22: Dundowran Bayrise DMA | D22: Water Active | E22: Water Active | K22: 0 | L22: =VLOOKUP($B22,ExistingWater!$A$2:$D$44,3,FALSE) -> 0 | N22: =IF(M22="",1,VLOOKUP(M22,'Unit Rates - Water'!$H$12:$I$23,2,FALSE)) -> 1 | O22: 0 | R22: =IF(P22="",'Unit Rates - Land'!landcst,IF($E$10="Landuse",VLOOKUP(P22,LAndcost3,2,FALSE),IF($E$10="Location",VLOOKUP(P22,Landcost2,2,FALSE),"Error"))) -> 0 | S22: 0 | T22: =VLOOKUP($B22,ExistingWater!$A$2:$G$44,5,FALSE) -> 0 | U22: =IFERROR(('General Input Sheet'!$G$38/(VLOOKUP('Existing Trunk Assets - Water'!T22,'General Input Sheet'!$E$38:$G$44,3,FALSE))),1) -> 1 | V22: 0 | W22: =IF(VLOOKUP($B22,ExistingWater!$A$2:$J$45,8,FALSE)="Y","Y","") -> Y | X22: =IF(VLOOKUP($B22,ExistingWater!$A$2:$J$45,9,FALSE)="Y","Y","") ->  | Y22: =IF(VLOOKUP($B22,ExistingWater!$A$2:$J$45,10,FALSE)="Y","Y","") ->  | BB22: 123336 | CF22: 123336 | CH22: 0
B23: Dundowran High DMA | C23: Dundowran High DMA | D23: Water Active | E23: Water Active | K23: 0 | L23: =VLOOKUP($B23,ExistingWater!$A$2:$D$44,3,FALSE) -> 356770.63 | N23: =IF(M23="",1,VLOOKUP(M23,'Unit Rates - Water'!$H$12:$I$23,2,FALSE)) -> 1 | O23: 356770.63 | R23: =IF(P23="",'Unit Rates - Land'!landcst,IF($E$10="Landuse",VLOOKUP(P23,LAndcost3,2,FALSE),IF($E$10="Location",VLOOKUP(P23,Landcost2,2,FALSE),"Error"))) -> 0 | S23: 0 | T23: =VLOOKUP($B23,ExistingWater!$A$2:$G$44,5,FALSE) -> 0 | U23: =IFERROR(('General Input Sheet'!$G$38/(VLOOKUP('Existing Trunk Assets - Water'!T23,'General Input Sheet'!$E$38:$G$44,3,FALSE))),1) -> 1 | V23: 356770.63 | W23: =IF(VLOOKUP($B23,ExistingWater!$A$2:$J$45,8,FALSE)="Y","Y","") -> Y | X23: =IF(VLOOKUP($B23,ExistingWater!$A$2:$J$45,9,FALSE)="Y","Y","") ->  | Y23: =IF(VLOOKUP($B23,ExistingWater!$A$2:$J$45,10,FALSE)="Y","Y","") ->  | BB23: 123336 | CF23: 123336 | CH23: 356770.63
B24: Dundowran Low DMA | C24: Dundowran Low DMA | D24: Water Active | E24: Water Active | K24: 0 | L24: =VLOOKUP($B24,ExistingWater!$A$2:$D$44,3,FALSE) -> 16242 | N24: =IF(M24="",1,VLOOKUP(M24,'Unit Rates - Water'!$H$12:$I$23,2,FALSE)) -> 1 | O24: 16242 | R24: =IF(P24="",'Unit Rates - Land'!landcst,IF($E$10="Landuse",VLOOKUP(P24,LAndcost3,2,FALSE),IF($E$10="Location",VLOOKUP(P24,Landcost2,2,FALSE),"Error"))) -> 0 | S24: 0 | T24: =VLOOKUP($B24,ExistingWater!$A$2:$G$44,5,FALSE) -> 0 | U24: =IFERROR(('General Input Sheet'!$G$38/(VLOOKUP('Existing Trunk Assets - Water'!T24,'General Input Sheet'!$E$38:$G$44,3,FALSE))),1) -> 1 | V24: 16242 | W24: =IF(VLOOKUP($B24,ExistingWater!$A$2:$J$45,8,FALSE)="Y","Y","") -> Y | X24: =IF(VLOOKUP($B24,ExistingWater!$A$2:$J$45,9,FALSE)="Y","Y","") ->  | Y24: =IF(VLOOKUP($B24,ExistingWater!$A$2:$J$45,10,FALSE)="Y","Y","") ->  | BB24: 123336 | CF24: 123336 | CH24: 16242
B25: Dundowran PRV DMA | C25: Dundowran PRV DMA | D25: Water Active | E25: Water Active | K25: 0 | L25: =VLOOKUP($B25,ExistingWater!$A$2:$D$44,3,FALSE) -> 0 | N25: =IF(M25="",1,VLOOKUP(M25,'Unit Rates - Water'!$H$12:$I$23,2,FALSE)) -> 1 | O25: 0 | R25: =IF(P25="",'Unit Rates - Land'!landcst,IF($E$10="Landuse",VLOOKUP(P25,LAndcost3,2,FALSE),IF($E$10="Location",VLOOKUP(P25,Landcost2,2,FALSE),"Error"))) -> 0 | S25: 0 | T25: =VLOOKUP($B25,ExistingWater!$A$2:$G$44,5,FALSE) -> 0 | U25: =IFERROR(('General Input Sheet'!$G$38/(VLOOKUP('Existing Trunk Assets - Water'!T25,'General Input Sheet'!$E$38:$G$44,3,FALSE))),1) -> 1 | V25: 0 | W25: =IF(VLOOKUP($B25,ExistingWater!$A$2:$J$45,8,FALSE)="Y","Y","") -> Y | X25: =IF(VLOOKUP($B25,ExistingWater!$A$2:$J$45,9,FALSE)="Y","Y","") ->  | Y25: =IF(VLOOKUP($B25,ExistingWater!$A$2:$J$45,10,FALSE)="Y","Y","") ->  | BB25: 123336 | CF25: 123336 | CH25: 0
B26: Eli Waters DMA | C26: Eli Waters DMA | D26: Water Active | E26: Water Active | K26: 0 | L26: =VLOOKUP($B26,ExistingWater!$A$2:$D$44,3,FALSE) -> 0 | N26: =IF(M26="",1,VLOOKUP(M26,'Unit Rates - Water'!$H$12:$I$23,2,FALSE)) -> 1 | O26: 0 | R26: =IF(P26="",'Unit Rates - Land'!landcst,IF($E$10="Landuse",VLOOKUP(P26,LAndcost3,2,FALSE),IF($E$10="Location",VLOOKUP(P26,Landcost2,2,FALSE),"Error"))) -> 0 | S26: 0 | T26: =VLOOKUP($B26,ExistingWater!$A$2:$G$44,5,FALSE) -> 0 | U26: =IFERROR(('General Input Sheet'!$G$38/(VLOOKUP('Existing Trunk Assets - Water'!T26,'General Input Sheet'!$E$38:$G$44,3,FALSE))),1) -> 1 | V26: 0 | W26: =IF(VLOOKUP($B26,ExistingWater!$A$2:$J$45,8,FALSE)="Y","Y","") -> Y | X26: =IF(VLOOKUP($B26,ExistingWater!$A$2:$J$45,9,FALSE)="Y","Y","") ->  | Y26: =IF(VLOOKUP($B26,ExistingWater!$A$2:$J$45,10,FALSE)="Y","Y","") ->  | BB26: 123336 | CF26: 123336 | CH26: 0
B27: Ghost Hill Low DMA | C27: Ghost Hill Low DMA | D27: Water Active | E27: Water Active | K27: =IF(H27=TYPE1,VLOOKUP(J27,WaterUnitrates1,2,FALSE),IF(H27=TYPE2,VLOOKUP(J27,Unitrates2,2,FALSE),0)) -> 0 | L27: =VLOOKUP($B27,ExistingWater!$A$2:$D$44,3,FALSE) -> 4279304.3 | N27: =IF(M27="",1,VLOOKUP(M27,'Unit Rates - Water'!$H$12:$I$23,2,FALSE)) -> 1 | O27: =L27*N27 -> 4279304.3 | R27: =IF(P27="",'Unit Rates - Land'!landcst,IF($E$10="Landuse",VLOOKUP(P27,LAndcost3,2,FALSE),IF($E$10="Location",VLOOKUP(P27,Landcost2,2,FALSE),"Error"))) -> 0 | S27: =IF(R27="",0,R27*10000*Q27) -> 0 | T27: =VLOOKUP($B27,ExistingWater!$A$2:$G$44,5,FALSE) -> 0 | U27: =IFERROR(('General Input Sheet'!$G$38/(VLOOKUP('Existing Trunk Assets - Water'!T27,'General Input Sheet'!$E$38:$G$44,3,FALSE))),1) -> 1 | V27: =IFERROR((O27+S27)*U27,0) -> 4279304.3 | W27: =IF(VLOOKUP($B27,ExistingWater!$A$2:$J$45,8,FALSE)="Y","Y","") -> Y | X27: =IF(VLOOKUP($B27,ExistingWater!$A$2:$J$45,9,FALSE)="Y","Y","") ->  | Y27: =IF(VLOOKUP($B27,ExistingWater!$A$2:$J$45,10,FALSE)="Y","Y","") ->  | BB27: 123336 | CF27: 123336 | CH27: =IF(BB27="","",(BB27/$CF27)*$V27) -> 4279304.3
B28: Ghost Hill High DMA | C28: Ghost Hill High DMA | D28: Water Active | E28: Water Active | K28: 0 | L28: =VLOOKUP($B28,ExistingWater!$A$2:$D$44,3,FALSE) -> 4800654.29 | N28: =IF(M28="",1,VLOOKUP(M28,'Unit Rates - Water'!$H$12:$I$23,2,FALSE)) -> 1 | O28: 4800654.29 | R28: =IF(P28="",'Unit Rates - Land'!landcst,IF($E$10="Landuse",VLOOKUP(P28,LAndcost3,2,FALSE),IF($E$10="Location",VLOOKUP(P28,Landcost2,2,FALSE),"Error"))) -> 0 | S28: 0 | T28: =VLOOKUP($B28,ExistingWater!$A$2:$G$44,5,FALSE) -> 0 | U28: =IFERROR(('General Input Sheet'!$G$38/(VLOOKUP('Existing Trunk Assets - Water'!T28,'General Input Sheet'!$E$38:$G$44,3,FALSE))),1) -> 1 | V28: 4800654.29 | W28: =IF(VLOOKUP($B28,ExistingWater!$A$2:$J$45,8,FALSE)="Y","Y","") -> Y | X28: =IF(VLOOKUP($B28,ExistingWater!$A$2:$J$45,9,FALSE)="Y","Y","") ->  | Y28: =IF(VLOOKUP($B28,ExistingWater!$A$2:$J$45,10,FALSE)="Y","Y","") ->  | BB28: 123336 | CF28: 123336 | CH28: 4800654.29
B29: Granville DMA | C29: Granville DMA | D29: Water Active | E29: Water Active | K29: 0 | L29: =VLOOKUP($B29,ExistingWater!$A$2:$D$44,3,FALSE) -> 25704.31 | N29: =IF(M29="",1,VLOOKUP(M29,'Unit Rates - Water'!$H$12:$I$23,2,FALSE)) -> 1 | O29: 25704.31 | R29: =IF(P29="",'Unit Rates - Land'!landcst,IF($E$10="Landuse",VLOOKUP(P29,LAndcost3,2,FALSE),IF($E$10="Location",VLOOKUP(P29,Landcost2,2,FALSE),"Error"))) -> 0 | S29: 0 | T29: =VLOOKUP($B29,ExistingWater!$A$2:$G$44,5,FALSE) -> 0 | U29: =IFERROR(('General Input Sheet'!$G$38/(VLOOKUP('Existing Trunk Assets - Water'!T29,'General Input Sheet'!$E$38:$G$44,3,FALSE))),1) -> 1 | V29: 25704.31 | W29: =IF(VLOOKUP($B29,ExistingWater!$A$2:$J$45,8,FALSE)="Y","Y","") ->  | X29: =IF(VLOOKUP($B29,ExistingWater!$A$2:$J$45,9,FALSE)="Y","Y","") -> Y | Y29: =IF(VLOOKUP($B29,ExistingWater!$A$2:$J$45,10,FALSE)="Y","Y","") ->  | BB29: =IF(W29="y",BB$14,IF(AND(W29>0,W29<=1),W29*BB$14,"")) ->  | BC29: =IF(X29="y",BC$14,IF(AND(X29>0,X29<=1),X29*BC$14,"")) -> 36141 | BD29: =IF(Y29="y",BD$14,IF(AND(Y29>0,Y29<=1),Y29*BD$14,"")) ->  | BE29: =IF(Z29="y",BE$14,IF(AND(Z29>0,Z29<=1),Z29*BE$14,"")) ->  | BF29: =IF(AA29="y",BF$14,IF(AND(AA29>0,AA29<=1),AA29*BF$14,"")) ->  | BG29: =IF(AB29="y",BG$14,IF(AND(AB29>0,AB29<=1),AB29*BG$14,"")) ->  | BH29: =IF(AC29="y",BH$14,IF(AND(AC29>0,AC29<=1),AC29*BH$14,"")) ->  | BI29: =IF(AD29="y",BI$14,IF(AND(AD29>0,AD29<=1),AD29*BI$14,"")) ->  | BJ29: =IF(AE29="y",BJ$14,IF(AND(AE29>0,AE29<=1),AE29*BJ$14,"")) ->  | BK29: =IF(AF29="y",BK$14,IF(AND(AF29>0,AF29<=1),AF29*BK$14,"")) ->  | BL29: =IF(AG29="y",BL$14,IF(AND(AG29>0,AG29<=1),AG29*BL$14,"")) ->  | BM29: =IF(AH29="y",BM$14,IF(AND(AH29>0,AH29<=1),AH29*BM$14,"")) ->  | BN29: =IF(AI29="y",BN$14,IF(AND(AI29>0,AI29<=1),AI29*BN$14,"")) ->  | BO29: =IF(AJ29="y",BO$14,IF(AND(AJ29>0,AJ29<=1),AJ29*BO$14,"")) ->  | BP29: =IF(AK29="y",BP$14,IF(AND(AK29>0,AK29<=1),AK29*BP$14,"")) ->  | BQ29: =IF(AL29="y",BQ$14,IF(AND(AL29>0,AL29<=1),AL29*BQ$14,"")) ->  | BR29: =IF(AM29="y",BR$14,IF(AND(AM29>0,AM29<=1),AM29*BR$14,"")) ->  | BS29: =IF(AN29="y",BS$14,IF(AND(AN29>0,AN29<=1),AN29*BS$14,"")) ->  | BT29: =IF(AO29="y",BT$14,IF(AND(AO29>0,AO29<=1),AO29*BT$14,"")) ->  | BU29: =IF(AP29="y",BU$14,IF(AND(AP29>0,AP29<=1),AP29*BU$14,"")) ->  | BV29: =IF(AQ29="y",BV$14,IF(AND(AQ29>0,AQ29<=1),AQ29*BV$14,"")) ->  | BW29: =IF(AR29="y",BW$14,IF(AND(AR29>0,AR29<=1),AR29*BW$14,"")) ->  | BX29: =IF(AS29="y",BX$14,IF(AND(AS29>0,AS29<=1),AS29*BX$14,"")) ->  | BY29: =IF(AT29="y",BY$14,IF(AND(AT29>0,AT29<=1),AT29*BY$14,"")) ->  | BZ29: =IF(AU29="y",BZ$14,IF(AND(AU29>0,AU29<=1),AU29*BZ$14,"")) ->  | CA29: =IF(AV29="y",CA$14,IF(AND(AV29>0,AV29<=1),AV29*CA$14,"")) ->  | CB29: =IF(AW29="y",CB$14,IF(AND(AW29>0,AW29<=1),AW29*CB$14,"")) ->  | CC29: =IF(AX29="y",CC$14,IF(AND(AX29>0,AX29<=1),AX29*CC$14,"")) ->  | CD29: =IF(AY29="y",CD$14,IF(AND(AY29>0,AY29<=1),AY29*CD$14,"")) ->  | CE29: =IF(AZ29="y",CE$14,IF(AND(AZ29>0,AZ29<=1),AZ29*CE$14,"")) ->  | CF29: =SUM(BB29:CE29) -> 36141 | CH29: =IF(BB29="","",(BB29/$CF29)*$V29) ->  | CI29: 25704.31 | CX29: =IF(BR29="","",(BR29/$CF29)*$V29) ->  | CY29: =IF(BS29="","",(BS29/$CF29)*$V29) ->  | CZ29: =IF(BT29="","",(BT29/$CF29)*$V29) ->  | DA29: =IF(BU29="","",(BU29/$CF29)*$V29) ->  | DB29: =IF(BV29="","",(BV29/$CF29)*$V29) ->  | DC29: =IF(BW29="","",(BW29/$CF29)*$V29) ->  | DD29: =IF(BX29="","",(BX29/$CF29)*$V29) ->  | DE29: =IF(BY29="","",(BY29/$CF29)*$V29) ->  | DF29: =IF(BZ29="","",(BZ29/$CF29)*$V29) ->  | DG29: =IF(CA29="","",(CA29/$CF29)*$V29) ->  | DH29: =IF(CB29="","",(CB29/$CF29)*$V29) ->  | DI29: =IF(CC29="","",(CC29/$CF29)*$V29) ->  | DJ29: =IF(CD29="","",(CD29/$CF29)*$V29) ->  | DK29: =IF(CE29="","",(CE29/$CF29)*$V29) ->  | DL29: =IF(SUM(CH29:DK29)=V29,"","ERROR") -> 
B30: Howard DMA | C30: Howard DMA | D30: Water Active | E30: Water Active | K30: 0 | L30: =VLOOKUP($B30,ExistingWater!$A$2:$D$44,3,FALSE) -> 2015115.17 | N30: =IF(M30="",1,VLOOKUP(M30,'Unit Rates - Water'!$H$12:$I$23,2,FALSE)) -> 1 | O30: 2015115.17 | R30: =IF(P30="",'Unit Rates - Land'!landcst,IF($E$10="Landuse",VLOOKUP(P30,LAndcost3,2,FALSE),IF($E$10="Location",VLOOKUP(P30,Landcost2,2,FALSE),"Error"))) -> 0 | S30: 0 | T30: =VLOOKUP($B30,ExistingWater!$A$2:$G$44,5,FALSE) -> 0 | U30: =IFERROR(('General Input Sheet'!$G$38/(VLOOKUP('Existing Trunk Assets - Water'!T30,'General Input Sheet'!$E$38:$G$44,3,FALSE))),1) -> 1 | V30: 2015115.17 | W30: =IF(VLOOKUP($B30,ExistingWater!$A$2:$J$45,8,FALSE)="Y","Y","") -> Y | X30: =IF(VLOOKUP($B30,ExistingWater!$A$2:$J$45,9,FALSE)="Y","Y","") ->  | Y30: =IF(VLOOKUP($B30,ExistingWater!$A$2:$J$45,10,FALSE)="Y","Y","") ->  | BB30: 123336 | CF30: 123336 | CH30: 2015115.17
B31: Howard to Takura Trunk | C31: Howard to Takura Trunk | D31: Water Active | E31: Water Active | K31: 0 | L31: =VLOOKUP($B31,ExistingWater!$A$2:$D$44,3,FALSE) -> 0 | N31: =IF(M31="",1,VLOOKUP(M31,'Unit Rates - Water'!$H$12:$I$23,2,FALSE)) -> 1 | O31: 0 | R31: =IF(P31="",'Unit Rates - Land'!landcst,IF($E$10="Landuse",VLOOKUP(P31,LAndcost3,2,FALSE),IF($E$10="Location",VLOOKUP(P31,Landcost2,2,FALSE),"Error"))) -> 0 | S31: 0 | T31: =VLOOKUP($B31,ExistingWater!$A$2:$G$44,5,FALSE) -> 0 | U31: =IFERROR(('General Input Sheet'!$G$38/(VLOOKUP('Existing Trunk Assets - Water'!T31,'General Input Sheet'!$E$38:$G$44,3,FALSE))),1) -> 1 | V31: 0 | W31: =IF(VLOOKUP($B31,ExistingWater!$A$2:$J$45,8,FALSE)="Y","Y","") -> Y | X31: =IF(VLOOKUP($B31,ExistingWater!$A$2:$J$45,9,FALSE)="Y","Y","") ->  | Y31: =IF(VLOOKUP($B31,ExistingWater!$A$2:$J$45,10,FALSE)="Y","Y","") ->  | BB31: 123336 | CF31: 123336 | CH31: 0
B32: Kawungan DMA | C32: Kawungan DMA | D32: Water Active | E32: Water Active | K32: 0 | L32: =VLOOKUP($B32,ExistingWater!$A$2:$D$44,3,FALSE) -> 299000.17 | N32: =IF(M32="",1,VLOOKUP(M32,'Unit Rates - Water'!$H$12:$I$23,2,FALSE)) -> 1 | O32: 299000.17 | R32: =IF(P32="",'Unit Rates - Land'!landcst,IF($E$10="Landuse",VLOOKUP(P32,LAndcost3,2,FALSE),IF($E$10="Location",VLOOKUP(P32,Landcost2,2,FALSE),"Error"))) -> 0 | S32: 0 | T32: =VLOOKUP($B32,ExistingWater!$A$2:$G$44,5,FALSE) -> 0 | U32: =IFERROR(('General Input Sheet'!$G$38/(VLOOKUP('Existing Trunk Assets - Water'!T32,'General Input Sheet'!$E$38:$G$44,3,FALSE))),1) -> 1 | V32: 299000.17 | W32: =IF(VLOOKUP($B32,ExistingWater!$A$2:$J$45,8,FALSE)="Y","Y","") -> Y | X32: =IF(VLOOKUP($B32,ExistingWater!$A$2:$J$45,9,FALSE)="Y","Y","") ->  | Y32: =IF(VLOOKUP($B32,ExistingWater!$A$2:$J$45,10,FALSE)="Y","Y","") ->  | BB32: 123336 | CF32: 123336 | CH32: 299000.17
B33: Lower Mountain Road DMA | C33: Lower Mountain Road DMA | D33: Water Active | E33: Water Active | K33: 0 | L33: =VLOOKUP($B33,ExistingWater!$A$2:$D$44,3,FALSE) -> 24456 | N33: =IF(M33="",1,VLOOKUP(M33,'Unit Rates - Water'!$H$12:$I$23,2,FALSE)) -> 1 | O33: 24456 | R33: =IF(P33="",'Unit Rates - Land'!landcst,IF($E$10="Landuse",VLOOKUP(P33,LAndcost3,2,FALSE),IF($E$10="Location",VLOOKUP(P33,Landcost2,2,FALSE),"Error"))) -> 0 | S33: 0 | T33: =VLOOKUP($B33,ExistingWater!$A$2:$G$44,5,FALSE) -> 0 | U33: =IFERROR(('General Input Sheet'!$G$38/(VLOOKUP('Existing Trunk Assets - Water'!T33,'General Input Sheet'!$E$38:$G$44,3,FALSE))),1) -> 1 | V33: 24456 | W33: =IF(VLOOKUP($B33,ExistingWater!$A$2:$J$45,8,FALSE)="Y","Y","") -> Y | X33: =IF(VLOOKUP($B33,ExistingWater!$A$2:$J$45,9,FALSE)="Y","Y","") ->  | Y33: =IF(VLOOKUP($B33,ExistingWater!$A$2:$J$45,10,FALSE)="Y","Y","") ->  | BB33: 123336 | CF33: 123336 | CH33: 24456
B34: Maryborough CBD DMA | C34: Maryborough CBD DMA | D34: Water Active | E34: Water Active | K34: 0 | L34: =VLOOKUP($B34,ExistingWater!$A$2:$D$44,3,FALSE) -> 0 | N34: =IF(M34="",1,VLOOKUP(M34,'Unit Rates - Water'!$H$12:$I$23,2,FALSE)) -> 1 | O34: 0 | R34: =IF(P34="",'Unit Rates - Land'!landcst,IF($E$10="Landuse",VLOOKUP(P34,LAndcost3,2,FALSE),IF($E$10="Location",VLOOKUP(P34,Landcost2,2,FALSE),"Error"))) -> 0 | S34: 0 | T34: =VLOOKUP($B34,ExistingWater!$A$2:$G$44,5,FALSE) -> 0 | U34: =IFERROR(('General Input Sheet'!$G$38/(VLOOKUP('Existing Trunk Assets - Water'!T34,'General Input Sheet'!$E$38:$G$44,3,FALSE))),1) -> 1 | V34: 0 | W34: =IF(VLOOKUP($B34,ExistingWater!$A$2:$J$45,8,FALSE)="Y","Y","") ->  | X34: =IF(VLOOKUP($B34,ExistingWater!$A$2:$J$45,9,FALSE)="Y","Y","") -> Y | Y34: =IF(VLOOKUP($B34,ExistingWater!$A$2:$J$45,10,FALSE)="Y","Y","") ->  | BC34: 36141 | CF34: 36141 | CI34: 0
B35: Maryborough West DMA | C35: Maryborough West DMA | D35: Water Active | E35: Water Active | K35: 0 | L35: =VLOOKUP($B35,ExistingWater!$A$2:$D$44,3,FALSE) -> 25704.32 | N35: =IF(M35="",1,VLOOKUP(M35,'Unit Rates - Water'!$H$12:$I$23,2,FALSE)) -> 1 | O35: 25704.32 | R35: =IF(P35="",'Unit Rates - Land'!landcst,IF($E$10="Landuse",VLOOKUP(P35,LAndcost3,2,FALSE),IF($E$10="Location",VLOOKUP(P35,Landcost2,2,FALSE),"Error"))) -> 0 | S35: 0 | T35: =VLOOKUP($B35,ExistingWater!$A$2:$G$44,5,FALSE) -> 0 | U35: =IFERROR(('General Input Sheet'!$G$38/(VLOOKUP('Existing Trunk Assets - Water'!T35,'General Input Sheet'!$E$38:$G$44,3,FALSE))),1) -> 1 | V35: 25704.32 | W35: =IF(VLOOKUP($B35,ExistingWater!$A$2:$J$45,8,FALSE)="Y","Y","") ->  | X35: =IF(VLOOKUP($B35,ExistingWater!$A$2:$J$45,9,FALSE)="Y","Y","") -> Y | Y35: =IF(VLOOKUP($B35,ExistingWater!$A$2:$J$45,10,FALSE)="Y","Y","") ->  | BC35: 36141 | CF35: 36141 | CI35: 25704.32
B36: Newtown Central DMA | C36: Newtown Central DMA | D36: Water Active | E36: Water Active | K36: 0 | L36: =VLOOKUP($B36,ExistingWater!$A$2:$D$44,3,FALSE) -> 0 | N36: =IF(M36="",1,VLOOKUP(M36,'Unit Rates - Water'!$H$12:$I$23,2,FALSE)) -> 1 | O36: 0 | R36: =IF(P36="",'Unit Rates - Land'!landcst,IF($E$10="Landuse",VLOOKUP(P36,LAndcost3,2,FALSE),IF($E$10="Location",VLOOKUP(P36,Landcost2,2,FALSE),"Error"))) -> 0 | S36: 0 | T36: =VLOOKUP($B36,ExistingWater!$A$2:$G$44,5,FALSE) -> 0 | U36: =IFERROR(('General Input Sheet'!$G$38/(VLOOKUP('Existing Trunk Assets - Water'!T36,'General Input Sheet'!$E$38:$G$44,3,FALSE))),1) -> 1 | V36: 0 | W36: =IF(VLOOKUP($B36,ExistingWater!$A$2:$J$45,8,FALSE)="Y","Y","") ->  | X36: =IF(VLOOKUP($B36,ExistingWater!$A$2:$J$45,9,FALSE)="Y","Y","") -> Y | Y36: =IF(VLOOKUP($B36,ExistingWater!$A$2:$J$45,10,FALSE)="Y","Y","") ->  | BC36: 36141 | CF36: 36141 | CI36: 0
B37: Northern bulk Water Supply | C37: Northern Bulk Water Supply | D37: Water Active | E37: Water Active | K37: 0 | L37: =VLOOKUP($B37,ExistingWater!$A$2:$D$44,3,FALSE) -> 118233088.8 | N37: =IF(M37="",1,VLOOKUP(M37,'Unit Rates - Water'!$H$12:$I$23,2,FALSE)) -> 1 | O37: 118233088.8 | R37: =IF(P37="",'Unit Rates - Land'!landcst,IF($E$10="Landuse",VLOOKUP(P37,LAndcost3,2,FALSE),IF($E$10="Location",VLOOKUP(P37,Landcost2,2,FALSE),"Error"))) -> 0 | S37: 0 | T37: =VLOOKUP($B37,ExistingWater!$A$2:$G$44,5,FALSE) -> 0 | U37: =IFERROR(('General Input Sheet'!$G$38/(VLOOKUP('Existing Trunk Assets - Water'!T37,'General Input Sheet'!$E$38:$G$44,3,FALSE))),1) -> 1 | V37: 118233088.8 | W37: =IF(VLOOKUP($B37,ExistingWater!$A$2:$J$45,8,FALSE)="Y","Y","") -> Y | X37: =IF(VLOOKUP($B37,ExistingWater!$A$2:$J$45,9,FALSE)="Y","Y","") ->  | Y37: =IF(VLOOKUP($B37,ExistingWater!$A$2:$J$45,10,FALSE)="Y","Y","") ->  | BB37: 123336 | CF37: 123336 | CH37: 118233088.8
B38: Pialba DMA | C38: Pialba DMA | D38: Water Active | E38: Water Active | K38: 0 | L38: =VLOOKUP($B38,ExistingWater!$A$2:$D$44,3,FALSE) -> 27907 | N38: =IF(M38="",1,VLOOKUP(M38,'Unit Rates - Water'!$H$12:$I$23,2,FALSE)) -> 1 | O38: 27907 | R38: =IF(P38="",'Unit Rates - Land'!landcst,IF($E$10="Landuse",VLOOKUP(P38,LAndcost3,2,FALSE),IF($E$10="Location",VLOOKUP(P38,Landcost2,2,FALSE),"Error"))) -> 0 | S38: 0 | T38: =VLOOKUP($B38,ExistingWater!$A$2:$G$44,5,FALSE) -> 0 | U38: =IFERROR(('General Input Sheet'!$G$38/(VLOOKUP('Existing Trunk Assets - Water'!T38,'General Input Sheet'!$E$38:$G$44,3,FALSE))),1) -> 1 | V38: 27907 | W38: =IF(VLOOKUP($B38,ExistingWater!$A$2:$J$45,8,FALSE)="Y","Y","") -> Y | X38: =IF(VLOOKUP($B38,ExistingWater!$A$2:$J$45,9,FALSE)="Y","Y","") ->  | Y38: =IF(VLOOKUP($B38,ExistingWater!$A$2:$J$45,10,FALSE)="Y","Y","") ->  | BB38: 123336 | CF38: 123336 | CH38: 27907
B39: Point Vernon DMA | C39: Point Vernon DMA | D39: Water Active | E39: Water Active | K39: 0 | L39: =VLOOKUP($B39,ExistingWater!$A$2:$D$44,3,FALSE) -> 22686 | N39: =IF(M39="",1,VLOOKUP(M39,'Unit Rates - Water'!$H$12:$I$23,2,FALSE)) -> 1 | O39: 22686 | R39: =IF(P39="",'Unit Rates - Land'!landcst,IF($E$10="Landuse",VLOOKUP(P39,LAndcost3,2,FALSE),IF($E$10="Location",VLOOKUP(P39,Landcost2,2,FALSE),"Error"))) -> 0 | S39: 0 | T39: =VLOOKUP($B39,ExistingWater!$A$2:$G$44,5,FALSE) -> 0 | U39: =IFERROR(('General Input Sheet'!$G$38/(VLOOKUP('Existing Trunk Assets - Water'!T39,'General Input Sheet'!$E$38:$G$44,3,FALSE))),1) -> 1 | V39: 22686 | W39: =IF(VLOOKUP($B39,ExistingWater!$A$2:$J$45,8,FALSE)="Y","Y","") -> Y | X39: =IF(VLOOKUP($B39,ExistingWater!$A$2:$J$45,9,FALSE)="Y","Y","") ->  | Y39: =IF(VLOOKUP($B39,ExistingWater!$A$2:$J$45,10,FALSE)="Y","Y","") ->  | BB39: 123336 | CF39: 123336 | CH39: 22686
B40: River Heads High DMA | C40: River Heads High DMA | D40: Water Active | E40: Water Active | K40: 0 | L40: =VLOOKUP($B40,ExistingWater!$A$2:$D$44,3,FALSE) -> 931694.48 | N40: =IF(M40="",1,VLOOKUP(M40,'Unit Rates - Water'!$H$12:$I$23,2,FALSE)) -> 1 | O40: 931694.48 | R40: =IF(P40="",'Unit Rates - Land'!landcst,IF($E$10="Landuse",VLOOKUP(P40,LAndcost3,2,FALSE),IF($E$10="Location",VLOOKUP(P40,Landcost2,2,FALSE),"Error"))) -> 0 | S40: 0 | T40: =VLOOKUP($B40,ExistingWater!$A$2:$G$44,5,FALSE) -> 0 | U40: =IFERROR(('General Input Sheet'!$G$38/(VLOOKUP('Existing Trunk Assets - Water'!T40,'General Input Sheet'!$E$38:$G$44,3,FALSE))),1) -> 1 | V40: 931694.48 | W40: =IF(VLOOKUP($B40,ExistingWater!$A$2:$J$45,8,FALSE)="Y","Y","") -> Y | X40: =IF(VLOOKUP($B40,ExistingWater!$A$2:$J$45,9,FALSE)="Y","Y","") ->  | Y40: =IF(VLOOKUP($B40,ExistingWater!$A$2:$J$45,10,FALSE)="Y","Y","") ->  | BB40: 123336 | CF40: 123336 | CH40: 931694.48
B41: Sanctuary Hills DMA | C41: Sanctuary Hills DMA | D41: Water Active | E41: Water Active | K41: 0 | L41: =VLOOKUP($B41,ExistingWater!$A$2:$D$44,3,FALSE) -> 0 | N41: =IF(M41="",1,VLOOKUP(M41,'Unit Rates - Water'!$H$12:$I$23,2,FALSE)) -> 1 | O41: 0 | R41: =IF(P41="",'Unit Rates - Land'!landcst,IF($E$10="Landuse",VLOOKUP(P41,LAndcost3,2,FALSE),IF($E$10="Location",VLOOKUP(P41,Landcost2,2,FALSE),"Error"))) -> 0 | S41: 0 | T41: =VLOOKUP($B41,ExistingWater!$A$2:$G$44,5,FALSE) -> 0 | U41: =IFERROR(('General Input Sheet'!$G$38/(VLOOKUP('Existing Trunk Assets - Water'!T41,'General Input Sheet'!$E$38:$G$44,3,FALSE))),1) -> 1 | V41: 0 | W41: =IF(VLOOKUP($B41,ExistingWater!$A$2:$J$45,8,FALSE)="Y","Y","") -> Y | X41: =IF(VLOOKUP($B41,ExistingWater!$A$2:$J$45,9,FALSE)="Y","Y","") ->  | Y41: =IF(VLOOKUP($B41,ExistingWater!$A$2:$J$45,10,FALSE)="Y","Y","") ->  | BB41: 123336 | CF41: 123336 | CH41: 0
B42: Scarness High DMA | C42: Scarness High DMA | D42: Water Active | E42: Water Active | K42: 0 | L42: =VLOOKUP($B42,ExistingWater!$A$2:$D$44,3,FALSE) -> 12426 | N42: =IF(M42="",1,VLOOKUP(M42,'Unit Rates - Water'!$H$12:$I$23,2,FALSE)) -> 1 | O42: 12426 | R42: =IF(P42="",'Unit Rates - Land'!landcst,IF($E$10="Landuse",VLOOKUP(P42,LAndcost3,2,FALSE),IF($E$10="Location",VLOOKUP(P42,Landcost2,2,FALSE),"Error"))) -> 0 | S42: 0 | T42: =VLOOKUP($B42,ExistingWater!$A$2:$G$44,5,FALSE) -> 0 | U42: =IFERROR(('General Input Sheet'!$G$38/(VLOOKUP('Existing Trunk Assets - Water'!T42,'General Input Sheet'!$E$38:$G$44,3,FALSE))),1) -> 1 | V42: 12426 | W42: =IF(VLOOKUP($B42,ExistingWater!$A$2:$J$45,8,FALSE)="Y","Y","") -> Y | X42: =IF(VLOOKUP($B42,ExistingWater!$A$2:$J$45,9,FALSE)="Y","Y","") ->  | Y42: =IF(VLOOKUP($B42,ExistingWater!$A$2:$J$45,10,FALSE)="Y","Y","") ->  | BB42: 123336 | CF42: 123336 | CH42: 12426
B43: Scarness Low DMA | C43: Scarness Low DMA | D43: Water Active | E43: Water Active | K43: 0 | L43: =VLOOKUP($B43,ExistingWater!$A$2:$D$44,3,FALSE) -> 10522 | N43: =IF(M43="",1,VLOOKUP(M43,'Unit Rates - Water'!$H$12:$I$23,2,FALSE)) -> 1 | O43: 10522 | R43: =IF(P43="",'Unit Rates - Land'!landcst,IF($E$10="Landuse",VLOOKUP(P43,LAndcost3,2,FALSE),IF($E$10="Location",VLOOKUP(P43,Landcost2,2,FALSE),"Error"))) -> 0 | S43: 0 | T43: =VLOOKUP($B43,ExistingWater!$A$2:$G$44,5,FALSE) -> 0 | U43: =IFERROR(('General Input Sheet'!$G$38/(VLOOKUP('Existing Trunk Assets - Water'!T43,'General Input Sheet'!$E$38:$G$44,3,FALSE))),1) -> 1 | V43: 10522 | W43: =IF(VLOOKUP($B43,ExistingWater!$A$2:$J$45,8,FALSE)="Y","Y","") -> Y | X43: =IF(VLOOKUP($B43,ExistingWater!$A$2:$J$45,9,FALSE)="Y","Y","") ->  | Y43: =IF(VLOOKUP($B43,ExistingWater!$A$2:$J$45,10,FALSE)="Y","Y","") ->  | BB43: 123336 | CF43: 123336 | CH43: 10522
B44: Tiaro DMA | C44: Tiaro DMA | D44: Water Active | E44: Water Active | K44: 0 | L44: =VLOOKUP($B44,ExistingWater!$A$2:$D$44,3,FALSE) -> 6392821.61 | N44: =IF(M44="",1,VLOOKUP(M44,'Unit Rates - Water'!$H$12:$I$23,2,FALSE)) -> 1 | O44: 6392821.61 | R44: =IF(P44="",'Unit Rates - Land'!landcst,IF($E$10="Landuse",VLOOKUP(P44,LAndcost3,2,FALSE),IF($E$10="Location",VLOOKUP(P44,Landcost2,2,FALSE),"Error"))) -> 0 | S44: 0 | T44: =VLOOKUP($B44,ExistingWater!$A$2:$G$44,5,FALSE) -> 0 | U44: =IFERROR(('General Input Sheet'!$G$38/(VLOOKUP('Existing Trunk Assets - Water'!T44,'General Input Sheet'!$E$38:$G$44,3,FALSE))),1) -> 1 | V44: 6392821.61 | W44: =IF(VLOOKUP($B44,ExistingWater!$A$2:$J$45,8,FALSE)="Y","Y","") ->  | X44: =IF(VLOOKUP($B44,ExistingWater!$A$2:$J$45,9,FALSE)="Y","Y","") ->  | Y44: =IF(VLOOKUP($B44,ExistingWater!$A$2:$J$45,10,FALSE)="Y","Y","") -> Y | BD44: 1068 | CF44: 1068 | CJ44: 6392821.61 | CW44: =IF(BQ44="","",(BQ44/$CF44)*$V44) -> 
B45: Tinana DMA | C45: Tinana DMA | D45: Water Active | E45: Water Active | K45: 0 | L45: =VLOOKUP($B45,ExistingWater!$A$2:$D$44,3,FALSE) -> 25704.32 | N45: =IF(M45="",1,VLOOKUP(M45,'Unit Rates - Water'!$H$12:$I$23,2,FALSE)) -> 1 | O45: 25704.32 | R45: =IF(P45="",'Unit Rates - Land'!landcst,IF($E$10="Landuse",VLOOKUP(P45,LAndcost3,2,FALSE),IF($E$10="Location",VLOOKUP(P45,Landcost2,2,FALSE),"Error"))) -> 0 | S45: 0 | T45: =VLOOKUP($B45,ExistingWater!$A$2:$G$44,5,FALSE) -> 0 | U45: =IFERROR(('General Input Sheet'!$G$38/(VLOOKUP('Existing Trunk Assets - Water'!T45,'General Input Sheet'!$E$38:$G$44,3,FALSE))),1) -> 1 | V45: 25704.32 | W45: =IF(VLOOKUP($B45,ExistingWater!$A$2:$J$45,8,FALSE)="Y","Y","") ->  | X45: =IF(VLOOKUP($B45,ExistingWater!$A$2:$J$45,9,FALSE)="Y","Y","") -> Y | Y45: =IF(VLOOKUP($B45,ExistingWater!$A$2:$J$45,10,FALSE)="Y","Y","") ->  | BC45: 36141 | CF45: 36141 | CI45: 25704.32
B46: Toogoom DMA | C46: Toogoom DMA | D46: Water Active | E46: Water Active | K46: 0 | L46: =VLOOKUP($B46,ExistingWater!$A$2:$D$44,3,FALSE) -> 223213.37 | N46: =IF(M46="",1,VLOOKUP(M46,'Unit Rates - Water'!$H$12:$I$23,2,FALSE)) -> 1 | O46: 223213.37 | R46: =IF(P46="",'Unit Rates - Land'!landcst,IF($E$10="Landuse",VLOOKUP(P46,LAndcost3,2,FALSE),IF($E$10="Location",VLOOKUP(P46,Landcost2,2,FALSE),"Error"))) -> 0 | S46: 0 | T46: =VLOOKUP($B46,ExistingWater!$A$2:$G$44,5,FALSE) -> 0 | U46: =IFERROR(('General Input Sheet'!$G$38/(VLOOKUP('Existing Trunk Assets - Water'!T46,'General Input Sheet'!$E$38:$G$44,3,FALSE))),1) -> 1 | V46: 223213.37 | W46: =IF(VLOOKUP($B46,ExistingWater!$A$2:$J$45,8,FALSE)="Y","Y","") -> Y | X46: =IF(VLOOKUP($B46,ExistingWater!$A$2:$J$45,9,FALSE)="Y","Y","") ->  | Y46: =IF(VLOOKUP($B46,ExistingWater!$A$2:$J$45,10,FALSE)="Y","Y","") ->  | BB46: 123336 | CF46: 123336 | CH46: 223213.37
B47: Toogoom Res to Toogoom Tk | C47: Toogoom Res to Toogoom Tk | D47: Water Active | E47: Water Active | K47: 0 | L47: =VLOOKUP($B47,ExistingWater!$A$2:$D$44,3,FALSE) -> 0 | N47: =IF(M47="",1,VLOOKUP(M47,'Unit Rates - Water'!$H$12:$I$23,2,FALSE)) -> 1 | O47: 0 | R47: =IF(P47="",'Unit Rates - Land'!landcst,IF($E$10="Landuse",VLOOKUP(P47,LAndcost3,2,FALSE),IF($E$10="Location",VLOOKUP(P47,Landcost2,2,FALSE),"Error"))) -> 0 | S47: 0 | T47: =VLOOKUP($B47,ExistingWater!$A$2:$G$44,5,FALSE) -> 0 | U47: =IFERROR(('General Input Sheet'!$G$38/(VLOOKUP('Existing Trunk Assets - Water'!T47,'General Input Sheet'!$E$38:$G$44,3,FALSE))),1) -> 1 | V47: 0 | W47: =IF(VLOOKUP($B47,ExistingWater!$A$2:$J$45,8,FALSE)="Y","Y","") -> Y | X47: =IF(VLOOKUP($B47,ExistingWater!$A$2:$J$45,9,FALSE)="Y","Y","") ->  | Y47: =IF(VLOOKUP($B47,ExistingWater!$A$2:$J$45,10,FALSE)="Y","Y","") ->  | BB47: 123336 | CF47: 123336 | CH47: 0
B48: Torbanlea DMA | C48: Torbanlea DMA | D48: Water Active | E48: Water Active | K48: 0 | L48: =VLOOKUP($B48,ExistingWater!$A$2:$D$44,3,FALSE) -> 12720 | N48: =IF(M48="",1,VLOOKUP(M48,'Unit Rates - Water'!$H$12:$I$23,2,FALSE)) -> 1 | O48: 12720 | R48: =IF(P48="",'Unit Rates - Land'!landcst,IF($E$10="Landuse",VLOOKUP(P48,LAndcost3,2,FALSE),IF($E$10="Location",VLOOKUP(P48,Landcost2,2,FALSE),"Error"))) -> 0 | S48: 0 | T48: =VLOOKUP($B48,ExistingWater!$A$2:$G$44,5,FALSE) -> 0 | U48: =IFERROR(('General Input Sheet'!$G$38/(VLOOKUP('Existing Trunk Assets - Water'!T48,'General Input Sheet'!$E$38:$G$44,3,FALSE))),1) -> 1 | V48: 12720 | W48: =IF(VLOOKUP($B48,ExistingWater!$A$2:$J$45,8,FALSE)="Y","Y","") -> Y | X48: =IF(VLOOKUP($B48,ExistingWater!$A$2:$J$45,9,FALSE)="Y","Y","") ->  | Y48: =IF(VLOOKUP($B48,ExistingWater!$A$2:$J$45,10,FALSE)="Y","Y","") ->  | BB48: 123336 | CF48: 123336 | CH48: 12720
B49: Torquay High DMA | C49: Torquay High DMA | D49: Water Active | E49: Water Active | K49: 0 | L49: =VLOOKUP($B49,ExistingWater!$A$2:$D$44,3,FALSE) -> 18715 | N49: =IF(M49="",1,VLOOKUP(M49,'Unit Rates - Water'!$H$12:$I$23,2,FALSE)) -> 1 | O49: 18715 | R49: =IF(P49="",'Unit Rates - Land'!landcst,IF($E$10="Landuse",VLOOKUP(P49,LAndcost3,2,FALSE),IF($E$10="Location",VLOOKUP(P49,Landcost2,2,FALSE),"Error"))) -> 0 | S49: 0 | T49: =VLOOKUP($B49,ExistingWater!$A$2:$G$44,5,FALSE) -> 0 | U49: =IFERROR(('General Input Sheet'!$G$38/(VLOOKUP('Existing Trunk Assets - Water'!T49,'General Input Sheet'!$E$38:$G$44,3,FALSE))),1) -> 1 | V49: 18715 | W49: =IF(VLOOKUP($B49,ExistingWater!$A$2:$J$45,8,FALSE)="Y","Y","") -> Y | X49: =IF(VLOOKUP($B49,ExistingWater!$A$2:$J$45,9,FALSE)="Y","Y","") ->  | Y49: =IF(VLOOKUP($B49,ExistingWater!$A$2:$J$45,10,FALSE)="Y","Y","") ->  | BB49: 123336 | CF49: 123336 | CH49: 18715
B50: Torquay Low DMA | C50: Torquay Low DMA | D50: Water Active | E50: Water Active | K50: 0 | L50: =VLOOKUP($B50,ExistingWater!$A$2:$D$44,3,FALSE) -> 7275.43 | N50: =IF(M50="",1,VLOOKUP(M50,'Unit Rates - Water'!$H$12:$I$23,2,FALSE)) -> 1 | O50: 7275.43 | R50: =IF(P50="",'Unit Rates - Land'!landcst,IF($E$10="Landuse",VLOOKUP(P50,LAndcost3,2,FALSE),IF($E$10="Location",VLOOKUP(P50,Landcost2,2,FALSE),"Error"))) -> 0 | S50: 0 | T50: =VLOOKUP($B50,ExistingWater!$A$2:$G$44,5,FALSE) -> 0 | U50: =IFERROR(('General Input Sheet'!$G$38/(VLOOKUP('Existing Trunk Assets - Water'!T50,'General Input Sheet'!$E$38:$G$44,3,FALSE))),1) -> 1 | V50: 7275.43 | W50: =IF(VLOOKUP($B50,ExistingWater!$A$2:$J$45,8,FALSE)="Y","Y","") -> Y | X50: =IF(VLOOKUP($B50,ExistingWater!$A$2:$J$45,9,FALSE)="Y","Y","") ->  | Y50: =IF(VLOOKUP($B50,ExistingWater!$A$2:$J$45,10,FALSE)="Y","Y","") ->  | BB50: 123336 | CF50: 123336 | CH50: 7275.43
B51: Maryborough Bulk Water Supply | C51: Maryborough Bulk Water Supply | D51: Water Active | E51: Water Active | K51: 0 | L51: =VLOOKUP($B51,ExistingWater!$A$2:$D$44,3,FALSE) -> 45812861.02 | N51: =IF(M51="",1,VLOOKUP(M51,'Unit Rates - Water'!$H$12:$I$23,2,FALSE)) -> 1 | O51: 45812861.02 | R51: =IF(P51="",'Unit Rates - Land'!landcst,IF($E$10="Landuse",VLOOKUP(P51,LAndcost3,2,FALSE),IF($E$10="Location",VLOOKUP(P51,Landcost2,2,FALSE),"Error"))) -> 0 | S51: 0 | T51: =VLOOKUP($B51,ExistingWater!$A$2:$G$44,5,FALSE) -> 0 | U51: =IFERROR(('General Input Sheet'!$G$38/(VLOOKUP('Existing Trunk Assets - Water'!T51,'General Input Sheet'!$E$38:$G$44,3,FALSE))),1) -> 1 | V51: 45812861.02 | W51: =IF(VLOOKUP($B51,ExistingWater!$A$2:$J$45,8,FALSE)="Y","Y","") ->  | X51: =IF(VLOOKUP($B51,ExistingWater!$A$2:$J$45,9,FALSE)="Y","Y","") -> Y | Y51: =IF(VLOOKUP($B51,ExistingWater!$A$2:$J$45,10,FALSE)="Y","Y","") ->  | BC51: 36141 | CF51: 36141 | CI51: 45812861.02
B52: Urangan DMA | C52: Urangan DMA | D52: Water Active | E52: Water Active | K52: 0 | L52: =VLOOKUP($B52,ExistingWater!$A$2:$D$44,3,FALSE) -> 0 | N52: =IF(M52="",1,VLOOKUP(M52,'Unit Rates - Water'!$H$12:$I$23,2,FALSE)) -> 1 | O52: 0 | R52: =IF(P52="",'Unit Rates - Land'!landcst,IF($E$10="Landuse",VLOOKUP(P52,LAndcost3,2,FALSE),IF($E$10="Location",VLOOKUP(P52,Landcost2,2,FALSE),"Error"))) -> 0 | S52: 0 | T52: =VLOOKUP($B52,ExistingWater!$A$2:$G$44,5,FALSE) -> 0 | U52: =IFERROR(('General Input Sheet'!$G$38/(VLOOKUP('Existing Trunk Assets - Water'!T52,'General Input Sheet'!$E$38:$G$44,3,FALSE))),1) -> 1 | V52: 0 | W52: =IF(VLOOKUP($B52,ExistingWater!$A$2:$J$45,8,FALSE)="Y","Y","") -> Y | X52: =IF(VLOOKUP($B52,ExistingWater!$A$2:$J$45,9,FALSE)="Y","Y","") ->  | Y52: =IF(VLOOKUP($B52,ExistingWater!$A$2:$J$45,10,FALSE)="Y","Y","") ->  | BB52: 123336 | CF52: 123336 | CH52: 0
B53: Urangan High DMA | C53: Urangan High DMA | D53: Water Active | E53: Water Active | K53: 0 | L53: =VLOOKUP($B53,ExistingWater!$A$2:$D$44,3,FALSE) -> 12106 | N53: =IF(M53="",1,VLOOKUP(M53,'Unit Rates - Water'!$H$12:$I$23,2,FALSE)) -> 1 | O53: 12106 | R53: =IF(P53="",'Unit Rates - Land'!landcst,IF($E$10="Landuse",VLOOKUP(P53,LAndcost3,2,FALSE),IF($E$10="Location",VLOOKUP(P53,Landcost2,2,FALSE),"Error"))) -> 0 | S53: 0 | T53: =VLOOKUP($B53,ExistingWater!$A$2:$G$44,5,FALSE) -> 0 | U53: =IFERROR(('General Input Sheet'!$G$38/(VLOOKUP('Existing Trunk Assets - Water'!T53,'General Input Sheet'!$E$38:$G$44,3,FALSE))),1) -> 1 | V53: 12106 | W53: =IF(VLOOKUP($B53,ExistingWater!$A$2:$J$45,8,FALSE)="Y","Y","") -> Y | X53: =IF(VLOOKUP($B53,ExistingWater!$A$2:$J$45,9,FALSE)="Y","Y","") ->  | Y53: =IF(VLOOKUP($B53,ExistingWater!$A$2:$J$45,10,FALSE)="Y","Y","") ->  | BB53: 123336 | CF53: 123336 | CH53: 12106
B54: Urangan Industrial DMA | C54: Urangan Industrial DMA | D54: Water Active | E54: Water Active | K54: 0 | L54: =VLOOKUP($B54,ExistingWater!$A$2:$D$44,3,FALSE) -> 9452 | N54: =IF(M54="",1,VLOOKUP(M54,'Unit Rates - Water'!$H$12:$I$23,2,FALSE)) -> 1 | O54: 9452 | R54: =IF(P54="",'Unit Rates - Land'!landcst,IF($E$10="Landuse",VLOOKUP(P54,LAndcost3,2,FALSE),IF($E$10="Location",VLOOKUP(P54,Landcost2,2,FALSE),"Error"))) -> 0 | S54: 0 | T54: =VLOOKUP($B54,ExistingWater!$A$2:$G$44,5,FALSE) -> 0 | U54: =IFERROR(('General Input Sheet'!$G$38/(VLOOKUP('Existing Trunk Assets - Water'!T54,'General Input Sheet'!$E$38:$G$44,3,FALSE))),1) -> 1 | V54: 9452 | W54: =IF(VLOOKUP($B54,ExistingWater!$A$2:$J$45,8,FALSE)="Y","Y","") -> Y | X54: =IF(VLOOKUP($B54,ExistingWater!$A$2:$J$45,9,FALSE)="Y","Y","") ->  | Y54: =IF(VLOOKUP($B54,ExistingWater!$A$2:$J$45,10,FALSE)="Y","Y","") ->  | BB54: 123336 | CF54: 123336 | CH54: 9452
B55: Urangan Low DMA | C55: Urangan Low DMA | D55: Water Active | E55: Water Active | K55: 0 | L55: =VLOOKUP($B55,ExistingWater!$A$2:$D$44,3,FALSE) -> 819647.18 | N55: =IF(M55="",1,VLOOKUP(M55,'Unit Rates - Water'!$H$12:$I$23,2,FALSE)) -> 1 | O55: 819647.18 | R55: =IF(P55="",'Unit Rates - Land'!landcst,IF($E$10="Landuse",VLOOKUP(P55,LAndcost3,2,FALSE),IF($E$10="Location",VLOOKUP(P55,Landcost2,2,FALSE),"Error"))) -> 0 | S55: 0 | T55: =VLOOKUP($B55,ExistingWater!$A$2:$G$44,5,FALSE) -> 0 | U55: =IFERROR(('General Input Sheet'!$G$38/(VLOOKUP('Existing Trunk Assets - Water'!T55,'General Input Sheet'!$E$38:$G$44,3,FALSE))),1) -> 1 | V55: 819647.18 | W55: =IF(VLOOKUP($B55,ExistingWater!$A$2:$J$45,8,FALSE)="Y","Y","") -> Y | X55: =IF(VLOOKUP($B55,ExistingWater!$A$2:$J$45,9,FALSE)="Y","Y","") ->  | Y55: =IF(VLOOKUP($B55,ExistingWater!$A$2:$J$45,10,FALSE)="Y","Y","") ->  | BB55: 123336 | CF55: 123336 | CH55: 819647.18
B56: Wondunna DMA | C56: Wondunna DMA | D56: Water Active | E56: Water Active | K56: 0 | L56: =VLOOKUP($B56,ExistingWater!$A$2:$D$44,3,FALSE) -> 12352 | N56: =IF(M56="",1,VLOOKUP(M56,'Unit Rates - Water'!$H$12:$I$23,2,FALSE)) -> 1 | O56: 12352 | R56: =IF(P56="",'Unit Rates - Land'!landcst,IF($E$10="Landuse",VLOOKUP(P56,LAndcost3,2,FALSE),IF($E$10="Location",VLOOKUP(P56,Landcost2,2,FALSE),"Error"))) -> 0 | S56: 0 | T56: =VLOOKUP($B56,ExistingWater!$A$2:$G$44,5,FALSE) -> 0 | U56: =IFERROR(('General Input Sheet'!$G$38/(VLOOKUP('Existing Trunk Assets - Water'!T56,'General Input Sheet'!$E$38:$G$44,3,FALSE))),1) -> 1 | V56: 12352 | W56: =IF(VLOOKUP($B56,ExistingWater!$A$2:$J$45,8,FALSE)="Y","Y","") -> Y | X56: =IF(VLOOKUP($B56,ExistingWater!$A$2:$J$45,9,FALSE)="Y","Y","") ->  | Y56: =IF(VLOOKUP($B56,ExistingWater!$A$2:$J$45,10,FALSE)="Y","Y","") ->  | BB56: 123336 | CF56: 123336 | CH56: 12352
B57: Bell Hilltop DMA | C57: Bell Hilltop DMA | D57: Water Main | E57: Water Main | K57: 0 | L57: =VLOOKUP($B57,ExistingWater!$A$45:$F$87,6,FALSE) -> 1613928.7 | N57: =IF(M57="",1,VLOOKUP(M57,'Unit Rates - Water'!$H$12:$I$23,2,FALSE)) -> 1 | O57: 1613928.7 | R57: =IF(P57="",'Unit Rates - Land'!landcst,IF($E$10="Landuse",VLOOKUP(P57,LAndcost3,2,FALSE),IF($E$10="Location",VLOOKUP(P57,Landcost2,2,FALSE),"Error"))) -> 0 | S57: 0 | T57: =VLOOKUP($B57,ExistingWater!$A$45:$G$87,5,FALSE) -> 375900 | U57: =IFERROR(('General Input Sheet'!$G$38/(VLOOKUP('Existing Trunk Assets - Water'!T57,'General Input Sheet'!$E$38:$G$44,3,FALSE))),1) -> 1 | V57: 1613928.7 | W57: =IF(VLOOKUP($B57,ExistingWater!$A$2:$J$45,8,FALSE)="Y","Y","") ->  | X57: =IF(VLOOKUP($B57,ExistingWater!$A$2:$J$45,9,FALSE)="Y","Y","") -> Y | Y57: =IF(VLOOKUP($B57,ExistingWater!$A$2:$J$45,10,FALSE)="Y","Y","") ->  | BC57: 36141 | CF57: 36141 | CI57: 1613928.7
B58: Booral East DMA | C58: Booral East DMA | D58: Water Main | E58: Water Main | K58: 0 | L58: =VLOOKUP($B58,ExistingWater!$A$45:$F$87,6,FALSE) -> 342481.8 | N58: =IF(M58="",1,VLOOKUP(M58,'Unit Rates - Water'!$H$12:$I$23,2,FALSE)) -> 1 | O58: 342481.8 | R58: =IF(P58="",'Unit Rates - Land'!landcst,IF($E$10="Landuse",VLOOKUP(P58,LAndcost3,2,FALSE),IF($E$10="Location",VLOOKUP(P58,Landcost2,2,FALSE),"Error"))) -> 0 | S58: 0 | T58: =VLOOKUP($B58,ExistingWater!$A$45:$G$87,5,FALSE) -> 21821 | U58: =IFERROR(('General Input Sheet'!$G$38/(VLOOKUP('Existing Trunk Assets - Water'!T58,'General Input Sheet'!$E$38:$G$44,3,FALSE))),1) -> 1 | V58: 342481.8 | W58: =IF(VLOOKUP($B58,ExistingWater!$A$2:$J$45,8,FALSE)="Y","Y","") -> Y | X58: =IF(VLOOKUP($B58,ExistingWater!$A$2:$J$45,9,FALSE)="Y","Y","") ->  | Y58: =IF(VLOOKUP($B58,ExistingWater!$A$2:$J$45,10,FALSE)="Y","Y","") ->  | BB58: 123336 | CF58: 123336 | CH58: 342481.8
B59: Booral to River Heads Trunk | C59: Booral to River Heads Trunk | D59: Water Main | E59: Water Main | K59: 0 | L59: =VLOOKUP($B59,ExistingWater!$A$45:$F$87,6,FALSE) -> 1192915.05 | N59: =IF(M59="",1,VLOOKUP(M59,'Unit Rates - Water'!$H$12:$I$23,2,FALSE)) -> 1 | O59: 1192915.05 | R59: =IF(P59="",'Unit Rates - Land'!landcst,IF($E$10="Landuse",VLOOKUP(P59,LAndcost3,2,FALSE),IF($E$10="Location",VLOOKUP(P59,Landcost2,2,FALSE),"Error"))) -> 0 | S59: 0 | T59: =VLOOKUP($B59,ExistingWater!$A$45:$G$87,5,FALSE) -> 43637.05 | U59: =IFERROR(('General Input Sheet'!$G$38/(VLOOKUP('Existing Trunk Assets - Water'!T59,'General Input Sheet'!$E$38:$G$44,3,FALSE))),1) -> 1 | V59: 1192915.05 | W59: =IF(VLOOKUP($B59,ExistingWater!$A$2:$J$45,8,FALSE)="Y","Y","") -> Y | X59: =IF(VLOOKUP($B59,ExistingWater!$A$2:$J$45,9,FALSE)="Y","Y","") ->  | Y59: =IF(VLOOKUP($B59,ExistingWater!$A$2:$J$45,10,FALSE)="Y","Y","") ->  | BB59: 123336 | CF59: 123336 | CH59: 1192915.05
B60: Booral Trunk | C60: Booral Trunk | D60: Water Main | E60: Water Main | K60: 0 | L60: =VLOOKUP($B60,ExistingWater!$A$45:$F$87,6,FALSE) -> 470768.46 | N60: =IF(M60="",1,VLOOKUP(M60,'Unit Rates - Water'!$H$12:$I$23,2,FALSE)) -> 1 | O60: 470768.46 | R60: =IF(P60="",'Unit Rates - Land'!landcst,IF($E$10="Landuse",VLOOKUP(P60,LAndcost3,2,FALSE),IF($E$10="Location",VLOOKUP(P60,Landcost2,2,FALSE),"Error"))) -> 0 | S60: 0 | T60: =VLOOKUP($B60,ExistingWater!$A$45:$G$87,5,FALSE) -> 16579.66 | U60: =IFERROR(('General Input Sheet'!$G$38/(VLOOKUP('Existing Trunk Assets - Water'!T60,'General Input Sheet'!$E$38:$G$44,3,FALSE))),1) -> 1 | V60: 470768.46 | W60: =IF(VLOOKUP($B60,ExistingWater!$A$2:$J$45,8,FALSE)="Y","Y","") -> Y | X60: =IF(VLOOKUP($B60,ExistingWater!$A$2:$J$45,9,FALSE)="Y","Y","") ->  | Y60: =IF(VLOOKUP($B60,ExistingWater!$A$2:$J$45,10,FALSE)="Y","Y","") ->  | BB60: 123336 | CF60: 123336 | CH60: 470768.46 | CV60: =IF(BP60="","",(BP60/$CF60)*$V60) -> 
B61: Boundary Road to Booral Trunk | C61: Boundary Road to Booral Trunk | D61: Water Main | E61: Water Main | K61: 0 | L61: =VLOOKUP($B61,ExistingWater!$A$45:$F$87,6,FALSE) -> 6050175.3 | N61: =IF(M61="",1,VLOOKUP(M61,'Unit Rates - Water'!$H$12:$I$23,2,FALSE)) -> 1 | O61: 6050175.3 | R61: =IF(P61="",'Unit Rates - Land'!landcst,IF($E$10="Landuse",VLOOKUP(P61,LAndcost3,2,FALSE),IF($E$10="Location",VLOOKUP(P61,Landcost2,2,FALSE),"Error"))) -> 0 | S61: 0 | T61: =VLOOKUP($B61,ExistingWater!$A$45:$G$87,5,FALSE) -> 43224 | U61: =IFERROR(('General Input Sheet'!$G$38/(VLOOKUP('Existing Trunk Assets - Water'!T61,'General Input Sheet'!$E$38:$G$44,3,FALSE))),1) -> 1 | V61: 6050175.3 | W61: =IF(VLOOKUP($B61,ExistingWater!$A$2:$J$45,8,FALSE)="Y","Y","") -> Y | X61: =IF(VLOOKUP($B61,ExistingWater!$A$2:$J$45,9,FALSE)="Y","Y","") ->  | Y61: =IF(VLOOKUP($B61,ExistingWater!$A$2:$J$45,10,FALSE)="Y","Y","") ->  | BB61: 123336 | CF61: 123336 | CH61: 6050175.3
B62: Burrum Heads DMA | C62: Burrum Heads DMA | D62: Water Main | E62: Water Main | K62: 0 | L62: =VLOOKUP($B62,ExistingWater!$A$45:$F$87,6,FALSE) -> 5810006.12 | N62: =IF(M62="",1,VLOOKUP(M62,'Unit Rates - Water'!$H$12:$I$23,2,FALSE)) -> 1 | O62: 5810006.12 | R62: =IF(P62="",'Unit Rates - Land'!landcst,IF($E$10="Landuse",VLOOKUP(P62,LAndcost3,2,FALSE),IF($E$10="Location",VLOOKUP(P62,Landcost2,2,FALSE),"Error"))) -> 0 | S62: 0 | T62: =VLOOKUP($B62,ExistingWater!$A$45:$G$87,5,FALSE) -> 168784.47 | U62: =IFERROR(('General Input Sheet'!$G$38/(VLOOKUP('Existing Trunk Assets - Water'!T62,'General Input Sheet'!$E$38:$G$44,3,FALSE))),1) -> 1 | V62: 5810006.12 | W62: =IF(VLOOKUP($B62,ExistingWater!$A$2:$J$45,8,FALSE)="Y","Y","") -> Y | X62: =IF(VLOOKUP($B62,ExistingWater!$A$2:$J$45,9,FALSE)="Y","Y","") ->  | Y62: =IF(VLOOKUP($B62,ExistingWater!$A$2:$J$45,10,FALSE)="Y","Y","") ->  | BB62: 123336 | CF62: 123336 | CH62: 5810006.12
B63: DCP2 DMA | C63: DCP2 DMA | D63: Water Main | E63: Water Main | K63: 0 | L63: =VLOOKUP($B63,ExistingWater!$A$45:$F$87,6,FALSE) -> 3447755.83 | N63: =IF(M63="",1,VLOOKUP(M63,'Unit Rates - Water'!$H$12:$I$23,2,FALSE)) -> 1 | O63: 3447755.83 | R63: =IF(P63="",'Unit Rates - Land'!landcst,IF($E$10="Landuse",VLOOKUP(P63,LAndcost3,2,FALSE),IF($E$10="Location",VLOOKUP(P63,Landcost2,2,FALSE),"Error"))) -> 0 | S63: 0 | T63: =VLOOKUP($B63,ExistingWater!$A$45:$G$87,5,FALSE) -> 287251.57 | U63: =IFERROR(('General Input Sheet'!$G$38/(VLOOKUP('Existing Trunk Assets - Water'!T63,'General Input Sheet'!$E$38:$G$44,3,FALSE))),1) -> 1 | V63: 3447755.83 | W63: =IF(VLOOKUP($B63,ExistingWater!$A$2:$J$45,8,FALSE)="Y","Y","") -> Y | X63: =IF(VLOOKUP($B63,ExistingWater!$A$2:$J$45,9,FALSE)="Y","Y","") ->  | Y63: =IF(VLOOKUP($B63,ExistingWater!$A$2:$J$45,10,FALSE)="Y","Y","") ->  | BB63: 123336 | CF63: 123336 | CH63: 3447755.83
B64: Dundowran Bayrise DMA | C64: Dundowran Bayrise DMA | D64: Water Main | E64: Water Main | K64: 0 | L64: =VLOOKUP($B64,ExistingWater!$A$45:$F$87,6,FALSE) -> 31838.4 | N64: =IF(M64="",1,VLOOKUP(M64,'Unit Rates - Water'!$H$12:$I$23,2,FALSE)) -> 1 | O64: 31838.4 | R64: =IF(P64="",'Unit Rates - Land'!landcst,IF($E$10="Landuse",VLOOKUP(P64,LAndcost3,2,FALSE),IF($E$10="Location",VLOOKUP(P64,Landcost2,2,FALSE),"Error"))) -> 0 | S64: 0 | T64: =VLOOKUP($B64,ExistingWater!$A$45:$G$87,5,FALSE) -> 0 | U64: =IFERROR(('General Input Sheet'!$G$38/(VLOOKUP('Existing Trunk Assets - Water'!T64,'General Input Sheet'!$E$38:$G$44,3,FALSE))),1) -> 1 | V64: 31838.4 | W64: =IF(VLOOKUP($B64,ExistingWater!$A$2:$J$45,8,FALSE)="Y","Y","") -> Y | X64: =IF(VLOOKUP($B64,ExistingWater!$A$2:$J$45,9,FALSE)="Y","Y","") ->  | Y64: =IF(VLOOKUP($B64,ExistingWater!$A$2:$J$45,10,FALSE)="Y","Y","") ->  | BB64: 123336 | CF64: 123336 | CH64: 31838.4
B65: Dundowran High DMA | C65: Dundowran High DMA | D65: Water Main | E65: Water Main | K65: 0 | L65: =VLOOKUP($B65,ExistingWater!$A$45:$F$87,6,FALSE) -> 2876128.42 | N65: =IF(M65="",1,VLOOKUP(M65,'Unit Rates - Water'!$H$12:$I$23,2,FALSE)) -> 1 | O65: 2876128.42 | R65: =IF(P65="",'Unit Rates - Land'!landcst,IF($E$10="Landuse",VLOOKUP(P65,LAndcost3,2,FALSE),IF($E$10="Location",VLOOKUP(P65,Landcost2,2,FALSE),"Error"))) -> 0 | S65: 0 | T65: =VLOOKUP($B65,ExistingWater!$A$45:$G$87,5,FALSE) -> 186443.022 | U65: =IFERROR(('General Input Sheet'!$G$38/(VLOOKUP('Existing Trunk Assets - Water'!T65,'General Input Sheet'!$E$38:$G$44,3,FALSE))),1) -> 1 | V65: 2876128.42 | W65: =IF(VLOOKUP($B65,ExistingWater!$A$2:$J$45,8,FALSE)="Y","Y","") -> Y | X65: =IF(VLOOKUP($B65,ExistingWater!$A$2:$J$45,9,FALSE)="Y","Y","") ->  | Y65: =IF(VLOOKUP($B65,ExistingWater!$A$2:$J$45,10,FALSE)="Y","Y","") ->  | BB65: 123336 | CF65: 123336 | CH65: 2876128.42
B66: Dundowran Low DMA | C66: Dundowran Low DMA | D66: Water Main | E66: Water Main | K66: 0 | L66: =VLOOKUP($B66,ExistingWater!$A$45:$F$87,6,FALSE) -> 212154.7 | N66: =IF(M66="",1,VLOOKUP(M66,'Unit Rates - Water'!$H$12:$I$23,2,FALSE)) -> 1 | O66: 212154.7 | R66: =IF(P66="",'Unit Rates - Land'!landcst,IF($E$10="Landuse",VLOOKUP(P66,LAndcost3,2,FALSE),IF($E$10="Location",VLOOKUP(P66,Landcost2,2,FALSE),"Error"))) -> 0 | S66: 0 | T66: =VLOOKUP($B66,ExistingWater!$A$45:$G$87,5,FALSE) -> 4457 | U66: =IFERROR(('General Input Sheet'!$G$38/(VLOOKUP('Existing Trunk Assets - Water'!T66,'General Input Sheet'!$E$38:$G$44,3,FALSE))),1) -> 1 | V66: 212154.7 | W66: =IF(VLOOKUP($B66,ExistingWater!$A$2:$J$45,8,FALSE)="Y","Y","") -> Y | X66: =IF(VLOOKUP($B66,ExistingWater!$A$2:$J$45,9,FALSE)="Y","Y","") ->  | Y66: =IF(VLOOKUP($B66,ExistingWater!$A$2:$J$45,10,FALSE)="Y","Y","") ->  | BB66: 123336 | CF66: 123336 | CH66: 212154.7
B67: Dundowran PRV DMA | C67: Dundowran PRV DMA | D67: Water Main | E67: Water Main | K67: 0 | L67: =VLOOKUP($B67,ExistingWater!$A$45:$F$87,6,FALSE) -> 6554.6664 | N67: =IF(M67="",1,VLOOKUP(M67,'Unit Rates - Water'!$H$12:$I$23,2,FALSE)) -> 1 | O67: 6554.6664 | R67: =IF(P67="",'Unit Rates - Land'!landcst,IF($E$10="Landuse",VLOOKUP(P67,LAndcost3,2,FALSE),IF($E$10="Location",VLOOKUP(P67,Landcost2,2,FALSE),"Error"))) -> 0 | S67: 0 | T67: =VLOOKUP($B67,ExistingWater!$A$45:$G$87,5,FALSE) -> 4064.464 | U67: =IFERROR(('General Input Sheet'!$G$38/(VLOOKUP('Existing Trunk Assets - Water'!T67,'General Input Sheet'!$E$38:$G$44,3,FALSE))),1) -> 1 | V67: 6554.6664 | W67: =IF(VLOOKUP($B67,ExistingWater!$A$2:$J$45,8,FALSE)="Y","Y","") -> Y | X67: =IF(VLOOKUP($B67,ExistingWater!$A$2:$J$45,9,FALSE)="Y","Y","") ->  | Y67: =IF(VLOOKUP($B67,ExistingWater!$A$2:$J$45,10,FALSE)="Y","Y","") ->  | BB67: 123336 | CF67: 123336 | CH67: 6554.6664
B68: Eli Waters DMA | C68: Eli Waters DMA | D68: Water Main | E68: Water Main | K68: 0 | L68: =VLOOKUP($B68,ExistingWater!$A$45:$F$87,6,FALSE) -> 982319.83 | N68: =IF(M68="",1,VLOOKUP(M68,'Unit Rates - Water'!$H$12:$I$23,2,FALSE)) -> 1 | O68: 982319.83 | R68: =IF(P68="",'Unit Rates - Land'!landcst,IF($E$10="Landuse",VLOOKUP(P68,LAndcost3,2,FALSE),IF($E$10="Location",VLOOKUP(P68,Landcost2,2,FALSE),"Error"))) -> 0 | S68: 0 | T68: =VLOOKUP($B68,ExistingWater!$A$45:$G$87,5,FALSE) -> 82938.52 | U68: =IFERROR(('General Input Sheet'!$G$38/(VLOOKUP('Existing Trunk Assets - Water'!T68,'General Input Sheet'!$E$38:$G$44,3,FALSE))),1) -> 1 | V68: 982319.83 | W68: =IF(VLOOKUP($B68,ExistingWater!$A$2:$J$45,8,FALSE)="Y","Y","") -> Y | X68: =IF(VLOOKUP($B68,ExistingWater!$A$2:$J$45,9,FALSE)="Y","Y","") ->  | Y68: =IF(VLOOKUP($B68,ExistingWater!$A$2:$J$45,10,FALSE)="Y","Y","") ->  | BB68: 123336 | CF68: 123336 | CH68: 982319.83
B69: Ghost Hill Low DMA | C69: Ghost Hill Low DMA | D69: Water Main | E69: Water Main | K69: =IF(H69=TYPE1,VLOOKUP(J69,WaterUnitrates1,2,FALSE),IF(H69=TYPE2,VLOOKUP(J69,Unitrates2,2,FALSE),0)) -> 0 | L69: =VLOOKUP($B69,ExistingWater!$A$45:$F$87,6,FALSE) -> 130995.2146 | N69: =IF(M69="",1,VLOOKUP(M69,'Unit Rates - Water'!$H$12:$I$23,2,FALSE)) -> 1 | O69: =L69*N69 -> 130995.2146 | R69: =IF(P69="",'Unit Rates - Land'!landcst,IF($E$10="Landuse",VLOOKUP(P69,LAndcost3,2,FALSE),IF($E$10="Location",VLOOKUP(P69,Landcost2,2,FALSE),"Error"))) -> 0 | S69: =IF(R69="",0,R69*10000*Q69) -> 0 | T69: =VLOOKUP($B69,ExistingWater!$A$45:$G$87,5,FALSE) -> 91960 | U69: =IFERROR(('General Input Sheet'!$G$38/(VLOOKUP('Existing Trunk Assets - Water'!T69,'General Input Sheet'!$E$38:$G$44,3,FALSE))),1) -> 1 | V69: =IFERROR((O69+S69)*U69,0) -> 130995.2146 | W69: =IF(VLOOKUP($B69,ExistingWater!$A$2:$J$45,8,FALSE)="Y","Y","") -> Y | X69: =IF(VLOOKUP($B69,ExistingWater!$A$2:$J$45,9,FALSE)="Y","Y","") ->  | Y69: =IF(VLOOKUP($B69,ExistingWater!$A$2:$J$45,10,FALSE)="Y","Y","") ->  | BB69: 123336 | CF69: 123336 | CH69: 130995.2146
B70: Ghost Hill High DMA | C70: Ghost Hill High DMA | D70: Water Main | E70: Water Main | K70: 0 | L70: =VLOOKUP($B70,ExistingWater!$A$45:$F$87,6,FALSE) -> 1939871.679 | N70: =IF(M70="",1,VLOOKUP(M70,'Unit Rates - Water'!$H$12:$I$23,2,FALSE)) -> 1 | O70: 1939871.679 | R70: =IF(P70="",'Unit Rates - Land'!landcst,IF($E$10="Landuse",VLOOKUP(P70,LAndcost3,2,FALSE),IF($E$10="Location",VLOOKUP(P70,Landcost2,2,FALSE),"Error"))) -> 0 | S70: 0 | T70: =VLOOKUP($B70,ExistingWater!$A$45:$G$87,5,FALSE) -> 305992.564 | U70: =IFERROR(('General Input Sheet'!$G$38/(VLOOKUP('Existing Trunk Assets - Water'!T70,'General Input Sheet'!$E$38:$G$44,3,FALSE))),1) -> 1 | V70: 1939871.679 | W70: =IF(VLOOKUP($B70,ExistingWater!$A$2:$J$45,8,FALSE)="Y","Y","") -> Y | X70: =IF(VLOOKUP($B70,ExistingWater!$A$2:$J$45,9,FALSE)="Y","Y","") ->  | Y70: =IF(VLOOKUP($B70,ExistingWater!$A$2:$J$45,10,FALSE)="Y","Y","") ->  | BB70: 123336 | CF70: 123336 | CH70: 1939871.679
B71: Granville DMA | C71: Granville DMA | D71: Water Main | E71: Water Main | K71: 0 | L71: =VLOOKUP($B71,ExistingWater!$A$45:$F$87,6,FALSE) -> 1114291.46 | N71: =IF(M71="",1,VLOOKUP(M71,'Unit Rates - Water'!$H$12:$I$23,2,FALSE)) -> 1 | O71: 1114291.46 | R71: =IF(P71="",'Unit Rates - Land'!landcst,IF($E$10="Landuse",VLOOKUP(P71,LAndcost3,2,FALSE),IF($E$10="Location",VLOOKUP(P71,Landcost2,2,FALSE),"Error"))) -> 0 | S71: 0 | T71: =VLOOKUP($B71,ExistingWater!$A$45:$G$87,5,FALSE) -> 82457.15 | U71: =IFERROR(('General Input Sheet'!$G$38/(VLOOKUP('Existing Trunk Assets - Water'!T71,'General Input Sheet'!$E$38:$G$44,3,FALSE))),1) -> 1 | V71: 1114291.46 | W71: =IF(VLOOKUP($B71,ExistingWater!$A$2:$J$45,8,FALSE)="Y","Y","") ->  | X71: =IF(VLOOKUP($B71,ExistingWater!$A$2:$J$45,9,FALSE)="Y","Y","") -> Y | Y71: =IF(VLOOKUP($B71,ExistingWater!$A$2:$J$45,10,FALSE)="Y","Y","") ->  | BC71: 36141 | CF71: 36141 | CI71: 1114291.46
B72: Howard DMA | C72: Howard DMA | D72: Water Main | E72: Water Main | K72: 0 | L72: =VLOOKUP($B72,ExistingWater!$A$45:$F$87,6,FALSE) -> 994129.15 | N72: =IF(M72="",1,VLOOKUP(M72,'Unit Rates - Water'!$H$12:$I$23,2,FALSE)) -> 1 | O72: 994129.15 | R72: =IF(P72="",'Unit Rates - Land'!landcst,IF($E$10="Landuse",VLOOKUP(P72,LAndcost3,2,FALSE),IF($E$10="Location",VLOOKUP(P72,Landcost2,2,FALSE),"Error"))) -> 0 | S72: 0 | T72: =VLOOKUP($B72,ExistingWater!$A$45:$G$87,5,FALSE) -> 167118 | U72: =IFERROR(('General Input Sheet'!$G$38/(VLOOKUP('Existing Trunk Assets - Water'!T72,'General Input Sheet'!$E$38:$G$44,3,FALSE))),1) -> 1 | V72: 994129.15 | W72: =IF(VLOOKUP($B72,ExistingWater!$A$2:$J$45,8,FALSE)="Y","Y","") -> Y | X72: =IF(VLOOKUP($B72,ExistingWater!$A$2:$J$45,9,FALSE)="Y","Y","") ->  | Y72: =IF(VLOOKUP($B72,ExistingWater!$A$2:$J$45,10,FALSE)="Y","Y","") ->  | BB72: 123336 | CF72: 123336 | CH72: 994129.15
B73: Howard to Takura Trunk | C73: Howard to Takura Trunk | D73: Water Main | E73: Water Main | K73: 0 | L73: =VLOOKUP($B73,ExistingWater!$A$45:$F$87,6,FALSE) -> 14436166.6 | N73: =IF(M73="",1,VLOOKUP(M73,'Unit Rates - Water'!$H$12:$I$23,2,FALSE)) -> 1 | O73: 14436166.6 | R73: =IF(P73="",'Unit Rates - Land'!landcst,IF($E$10="Landuse",VLOOKUP(P73,LAndcost3,2,FALSE),IF($E$10="Location",VLOOKUP(P73,Landcost2,2,FALSE),"Error"))) -> 0 | S73: 0 | T73: =VLOOKUP($B73,ExistingWater!$A$45:$G$87,5,FALSE) -> 1300 | U73: =IFERROR(('General Input Sheet'!$G$38/(VLOOKUP('Existing Trunk Assets - Water'!T73,'General Input Sheet'!$E$38:$G$44,3,FALSE))),1) -> 1 | V73: 14436166.6 | W73: =IF(VLOOKUP($B73,ExistingWater!$A$2:$J$45,8,FALSE)="Y","Y","") -> Y | X73: =IF(VLOOKUP($B73,ExistingWater!$A$2:$J$45,9,FALSE)="Y","Y","") ->  | Y73: =IF(VLOOKUP($B73,ExistingWater!$A$2:$J$45,10,FALSE)="Y","Y","") ->  | BB73: 123336 | CF73: 123336 | CH73: 14436166.6
B74: Kawungan DMA | C74: Kawungan DMA | D74: Water Main | E74: Water Main | K74: 0 | L74: =VLOOKUP($B74,ExistingWater!$A$45:$F$87,6,FALSE) -> 4265715.63 | N74: =IF(M74="",1,VLOOKUP(M74,'Unit Rates - Water'!$H$12:$I$23,2,FALSE)) -> 1 | O74: 4265715.63 | R74: =IF(P74="",'Unit Rates - Land'!landcst,IF($E$10="Landuse",VLOOKUP(P74,LAndcost3,2,FALSE),IF($E$10="Location",VLOOKUP(P74,Landcost2,2,FALSE),"Error"))) -> 0 | S74: 0 | T74: =VLOOKUP($B74,ExistingWater!$A$45:$G$87,5,FALSE) -> 180973.88 | U74: =IFERROR(('General Input Sheet'!$G$38/(VLOOKUP('Existing Trunk Assets - Water'!T74,'General Input Sheet'!$E$38:$G$44,3,FALSE))),1) -> 1 | V74: 4265715.63 | W74: =IF(VLOOKUP($B74,ExistingWater!$A$2:$J$45,8,FALSE)="Y","Y","") -> Y | X74: =IF(VLOOKUP($B74,ExistingWater!$A$2:$J$45,9,FALSE)="Y","Y","") ->  | Y74: =IF(VLOOKUP($B74,ExistingWater!$A$2:$J$45,10,FALSE)="Y","Y","") ->  | BB74: 123336 | CF74: 123336 | CH74: 4265715.63
B75: Lower Mountain Road DMA | C75: Lower Mountain Road DMA | D75: Water Main | E75: Water Main | K75: 0 | L75: =VLOOKUP($B75,ExistingWater!$A$45:$F$87,6,FALSE) -> 2862585.993 | N75: =IF(M75="",1,VLOOKUP(M75,'Unit Rates - Water'!$H$12:$I$23,2,FALSE)) -> 1 | O75: 2862585.993 | R75: =IF(P75="",'Unit Rates - Land'!landcst,IF($E$10="Landuse",VLOOKUP(P75,LAndcost3,2,FALSE),IF($E$10="Location",VLOOKUP(P75,Landcost2,2,FALSE),"Error"))) -> 0 | S75: 0 | T75: =VLOOKUP($B75,ExistingWater!$A$45:$G$87,5,FALSE) -> 290359.366 | U75: =IFERROR(('General Input Sheet'!$G$38/(VLOOKUP('Existing Trunk Assets - Water'!T75,'General Input Sheet'!$E$38:$G$44,3,FALSE))),1) -> 1 | V75: 2862585.993 | W75: =IF(VLOOKUP($B75,ExistingWater!$A$2:$J$45,8,FALSE)="Y","Y","") -> Y | X75: =IF(VLOOKUP($B75,ExistingWater!$A$2:$J$45,9,FALSE)="Y","Y","") ->  | Y75: =IF(VLOOKUP($B75,ExistingWater!$A$2:$J$45,10,FALSE)="Y","Y","") ->  | BB75: 123336 | CF75: 123336 | CH75: 2862585.993
B76: Maryborough CBD DMA | C76: Maryborough CBD DMA | D76: Water Main | E76: Water Main | K76: 0 | L76: =VLOOKUP($B76,ExistingWater!$A$45:$F$87,6,FALSE) -> 7410585.38 | N76: =IF(M76="",1,VLOOKUP(M76,'Unit Rates - Water'!$H$12:$I$23,2,FALSE)) -> 1 | O76: 7410585.38 | R76: =IF(P76="",'Unit Rates - Land'!landcst,IF($E$10="Landuse",VLOOKUP(P76,LAndcost3,2,FALSE),IF($E$10="Location",VLOOKUP(P76,Landcost2,2,FALSE),"Error"))) -> 0 | S76: 0 | T76: =VLOOKUP($B76,ExistingWater!$A$45:$G$87,5,FALSE) -> 657543.8 | U76: =IFERROR(('General Input Sheet'!$G$38/(VLOOKUP('Existing Trunk Assets - Water'!T76,'General Input Sheet'!$E$38:$G$44,3,FALSE))),1) -> 1 | V76: 7410585.38 | W76: =IF(VLOOKUP($B76,ExistingWater!$A$2:$J$45,8,FALSE)="Y","Y","") ->  | X76: =IF(VLOOKUP($B76,ExistingWater!$A$2:$J$45,9,FALSE)="Y","Y","") -> Y | Y76: =IF(VLOOKUP($B76,ExistingWater!$A$2:$J$45,10,FALSE)="Y","Y","") ->  | BC76: 36141 | CF76: 36141 | CI76: 7410585.38 | CU76: =IF(BO76="","",(BO76/$CF76)*$V76) -> 
B77: Maryborough West DMA | C77: Maryborough West DMA | D77: Water Main | E77: Water Main | K77: 0 | L77: =VLOOKUP($B77,ExistingWater!$A$45:$F$87,6,FALSE) -> 9197614.49 | N77: =IF(M77="",1,VLOOKUP(M77,'Unit Rates - Water'!$H$12:$I$23,2,FALSE)) -> 1 | O77: 9197614.49 | R77: =IF(P77="",'Unit Rates - Land'!landcst,IF($E$10="Landuse",VLOOKUP(P77,LAndcost3,2,FALSE),IF($E$10="Location",VLOOKUP(P77,Landcost2,2,FALSE),"Error"))) -> 0 | S77: 0 | T77: =VLOOKUP($B77,ExistingWater!$A$45:$G$87,5,FALSE) -> 428973.49 | U77: =IFERROR(('General Input Sheet'!$G$38/(VLOOKUP('Existing Trunk Assets - Water'!T77,'General Input Sheet'!$E$38:$G$44,3,FALSE))),1) -> 1 | V77: 9197614.49 | W77: =IF(VLOOKUP($B77,ExistingWater!$A$2:$J$45,8,FALSE)="Y","Y","") ->  | X77: =IF(VLOOKUP($B77,ExistingWater!$A$2:$J$45,9,FALSE)="Y","Y","") -> Y | Y77: =IF(VLOOKUP($B77,ExistingWater!$A$2:$J$45,10,FALSE)="Y","Y","") ->  | BC77: 36141 | CF77: 36141 | CI77: 9197614.49
B78: Newtown Central DMA | C78: Newtown Central DMA | D78: Water Main | E78: Water Main | K78: 0 | L78: =VLOOKUP($B78,ExistingWater!$A$45:$F$87,6,FALSE) -> 6268209.71 | N78: =IF(M78="",1,VLOOKUP(M78,'Unit Rates - Water'!$H$12:$I$23,2,FALSE)) -> 1 | O78: 6268209.71 | R78: =IF(P78="",'Unit Rates - Land'!landcst,IF($E$10="Landuse",VLOOKUP(P78,LAndcost3,2,FALSE),IF($E$10="Location",VLOOKUP(P78,Landcost2,2,FALSE),"Error"))) -> 0 | S78: 0 | T78: =VLOOKUP($B78,ExistingWater!$A$45:$G$87,5,FALSE) -> 415827.84 | U78: =IFERROR(('General Input Sheet'!$G$38/(VLOOKUP('Existing Trunk Assets - Water'!T78,'General Input Sheet'!$E$38:$G$44,3,FALSE))),1) -> 1 | V78: 6268209.71 | W78: =IF(VLOOKUP($B78,ExistingWater!$A$2:$J$45,8,FALSE)="Y","Y","") ->  | X78: =IF(VLOOKUP($B78,ExistingWater!$A$2:$J$45,9,FALSE)="Y","Y","") -> Y | Y78: =IF(VLOOKUP($B78,ExistingWater!$A$2:$J$45,10,FALSE)="Y","Y","") ->  | BC78: 36141 | CF78: 36141 | CI78: 6268209.71
B79: Northern Bulk Water Supply | C79: Northern Bulk Water Supply | D79: Water Main | E79: Water Main | K79: 0 | L79: =VLOOKUP($B79,ExistingWater!$A$45:$F$87,6,FALSE) -> 92664215.39 | N79: =IF(M79="",1,VLOOKUP(M79,'Unit Rates - Water'!$H$12:$I$23,2,FALSE)) -> 1 | O79: 92664215.39 | R79: =IF(P79="",'Unit Rates - Land'!landcst,IF($E$10="Landuse",VLOOKUP(P79,LAndcost3,2,FALSE),IF($E$10="Location",VLOOKUP(P79,Landcost2,2,FALSE),"Error"))) -> 0 | S79: 0 | T79: =VLOOKUP($B79,ExistingWater!$A$45:$G$87,5,FALSE) -> 1163279.727 | U79: =IFERROR(('General Input Sheet'!$G$38/(VLOOKUP('Existing Trunk Assets - Water'!T79,'General Input Sheet'!$E$38:$G$44,3,FALSE))),1) -> 1 | V79: 92664215.39 | W79: =IF(VLOOKUP($B79,ExistingWater!$A$2:$J$45,8,FALSE)="Y","Y","") -> Y | X79: =IF(VLOOKUP($B79,ExistingWater!$A$2:$J$45,9,FALSE)="Y","Y","") ->  | Y79: =IF(VLOOKUP($B79,ExistingWater!$A$2:$J$45,10,FALSE)="Y","Y","") ->  | BB79: 123336 | CF79: 123336 | CH79: 92664215.39
B80: Pialba DMA | C80: Pialba DMA | D80: Water Main | E80: Water Main | K80: 0 | L80: =VLOOKUP($B80,ExistingWater!$A$45:$F$87,6,FALSE) -> 4288399.142 | N80: =IF(M80="",1,VLOOKUP(M80,'Unit Rates - Water'!$H$12:$I$23,2,FALSE)) -> 1 | O80: 4288399.142 | R80: =IF(P80="",'Unit Rates - Land'!landcst,IF($E$10="Landuse",VLOOKUP(P80,LAndcost3,2,FALSE),IF($E$10="Location",VLOOKUP(P80,Landcost2,2,FALSE),"Error"))) -> 0 | S80: 0 | T80: =VLOOKUP($B80,ExistingWater!$A$45:$G$87,5,FALSE) -> 569465.819 | U80: =IFERROR(('General Input Sheet'!$G$38/(VLOOKUP('Existing Trunk Assets - Water'!T80,'General Input Sheet'!$E$38:$G$44,3,FALSE))),1) -> 1 | V80: 4288399.142 | W80: =IF(VLOOKUP($B80,ExistingWater!$A$2:$J$45,8,FALSE)="Y","Y","") -> Y | X80: =IF(VLOOKUP($B80,ExistingWater!$A$2:$J$45,9,FALSE)="Y","Y","") ->  | Y80: =IF(VLOOKUP($B80,ExistingWater!$A$2:$J$45,10,FALSE)="Y","Y","") ->  | BB80: 123336 | CF80: 123336 | CH80: 4288399.142
B81: Point Vernon DMA | C81: Point Vernon DMA | D81: Water Main | E81: Water Main | K81: =IF(H81=TYPE1,VLOOKUP(J81,WaterUnitrates1,2,FALSE),IF(H81=TYPE2,VLOOKUP(J81,Unitrates2,2,FALSE),0)) -> 0 | L81: =VLOOKUP($B81,ExistingWater!$A$45:$F$87,6,FALSE) -> 3765713.44 | N81: =IF(M81="",1,VLOOKUP(M81,'Unit Rates - Water'!$H$12:$I$23,2,FALSE)) -> 1 | O81: 3765713.44 | R81: =IF(P81="",'Unit Rates - Land'!landcst,IF($E$10="Landuse",VLOOKUP(P81,LAndcost3,2,FALSE),IF($E$10="Location",VLOOKUP(P81,Landcost2,2,FALSE),"Error"))) -> 0 | S81: 0 | T81: =VLOOKUP($B81,ExistingWater!$A$45:$G$87,5,FALSE) -> 236403.38 | U81: =IFERROR(('General Input Sheet'!$G$38/(VLOOKUP('Existing Trunk Assets - Water'!T81,'General Input Sheet'!$E$38:$G$44,3,FALSE))),1) -> 1 | V81: 3765713.44 | W81: =IF(VLOOKUP($B81,ExistingWater!$A$2:$J$45,8,FALSE)="Y","Y","") -> Y | X81: =IF(VLOOKUP($B81,ExistingWater!$A$2:$J$45,9,FALSE)="Y","Y","") ->  | Y81: =IF(VLOOKUP($B81,ExistingWater!$A$2:$J$45,10,FALSE)="Y","Y","") ->  | BB81: 123336 | CF81: 123336 | CH81: 3765713.44
B82: River Heads Low DMA | C82: River Heads Low DMA | D82: Water Main | E82: Water Main | K82: =IF(H82=TYPE1,VLOOKUP(J82,WaterUnitrates1,2,FALSE),IF(H82=TYPE2,VLOOKUP(J82,Unitrates2,2,FALSE),0)) -> 0 | L82: =VLOOKUP($B82,ExistingWater!$A$45:$F$87,6,FALSE) -> 300174.4 | N82: =IF(M82="",1,VLOOKUP(M82,'Unit Rates - Water'!$H$12:$I$23,2,FALSE)) -> 1 | O82: =L82*N82 -> 300174.4 | R82: =IF(P82="",'Unit Rates - Land'!landcst,IF($E$10="Landuse",VLOOKUP(P82,LAndcost3,2,FALSE),IF($E$10="Location",VLOOKUP(P82,Landcost2,2,FALSE),"Error"))) -> 0 | S82: =IF(R82="",0,R82*10000*Q82) -> 0 | T82: =VLOOKUP($B82,ExistingWater!$A$45:$G$87,5,FALSE) -> 1300 | U82: =IFERROR(('General Input Sheet'!$G$38/(VLOOKUP('Existing Trunk Assets - Water'!T82,'General Input Sheet'!$E$38:$G$44,3,FALSE))),1) -> 1 | V82: =IFERROR((O82+S82)*U82,0) -> 300174.4 | W82: =IF(VLOOKUP($B82,ExistingWater!$A$2:$J$45,8,FALSE)="Y","Y","") -> Y | X82: =IF(VLOOKUP($B82,ExistingWater!$A$2:$J$45,9,FALSE)="Y","Y","") ->  | Y82: =IF(VLOOKUP($B82,ExistingWater!$A$2:$J$45,10,FALSE)="Y","Y","") ->  | BB82: 123336 | CF82: 123336 | CH82: 300174.4
B83: River Heads High DMA | C83: River Heads High DMA | D83: Water Main | E83: Water Main | K83: 0 | L83: =VLOOKUP($B83,ExistingWater!$A$45:$F$87,6,FALSE) -> 75639.04 | N83: =IF(M83="",1,VLOOKUP(M83,'Unit Rates - Water'!$H$12:$I$23,2,FALSE)) -> 1 | O83: =L83*N83 -> 75639.04 | R83: =IF(P83="",'Unit Rates - Land'!landcst,IF($E$10="Landuse",VLOOKUP(P83,LAndcost3,2,FALSE),IF($E$10="Location",VLOOKUP(P83,Landcost2,2,FALSE),"Error"))) -> 0 | S83: =IF(R83="",0,R83*10000*Q83) -> 0 | T83: =VLOOKUP($B83,ExistingWater!$A$45:$G$87,5,FALSE) -> 43585.64 | U83: =IFERROR(('General Input Sheet'!$G$38/(VLOOKUP('Existing Trunk Assets - Water'!T83,'General Input Sheet'!$E$38:$G$44,3,FALSE))),1) -> 1 | V83: =IFERROR((O83+S83)*U83,0) -> 75639.04 | W83: =IF(VLOOKUP($B83,ExistingWater!$A$2:$J$45,8,FALSE)="Y","Y","") -> Y | X83: =IF(VLOOKUP($B83,ExistingWater!$A$2:$J$45,9,FALSE)="Y","Y","") ->  | Y83: =IF(VLOOKUP($B83,ExistingWater!$A$2:$J$45,10,FALSE)="Y","Y","") ->  | BB83: 123336 | CF83: 123336 | CH83: 75639.04
B84: Sanctuary Hills DMA | C84: Sanctuary Hills DMA | D84: Water Main | E84: Water Main | K84: 0 | L84: =VLOOKUP($B84,ExistingWater!$A$45:$F$87,6,FALSE) -> 164111.26 | N84: =IF(M84="",1,VLOOKUP(M84,'Unit Rates - Water'!$H$12:$I$23,2,FALSE)) -> 1 | O84: 164111.26 | R84: =IF(P84="",'Unit Rates - Land'!landcst,IF($E$10="Landuse",VLOOKUP(P84,LAndcost3,2,FALSE),IF($E$10="Location",VLOOKUP(P84,Landcost2,2,FALSE),"Error"))) -> 0 | S84: 0 | T84: =VLOOKUP($B84,ExistingWater!$A$45:$G$87,5,FALSE) -> 43765.66 | U84: =IFERROR(('General Input Sheet'!$G$38/(VLOOKUP('Existing Trunk Assets - Water'!T84,'General Input Sheet'!$E$38:$G$44,3,FALSE))),1) -> 1 | V84: 164111.26 | W84: =IF(VLOOKUP($B84,ExistingWater!$A$2:$J$45,8,FALSE)="Y","Y","") -> Y | X84: =IF(VLOOKUP($B84,ExistingWater!$A$2:$J$45,9,FALSE)="Y","Y","") ->  | Y84: =IF(VLOOKUP($B84,ExistingWater!$A$2:$J$45,10,FALSE)="Y","Y","") ->  | BB84: 123336 | CF84: 123336 | CH84: 164111.26
B85: Scarness High DMA | C85: Scarness High DMA | D85: Water Main | E85: Water Main | K85: 0 | L85: =VLOOKUP($B85,ExistingWater!$A$45:$F$87,6,FALSE) -> 1511749.05 | N85: =IF(M85="",1,VLOOKUP(M85,'Unit Rates - Water'!$H$12:$I$23,2,FALSE)) -> 1 | O85: 1511749.05 | R85: =IF(P85="",'Unit Rates - Land'!landcst,IF($E$10="Landuse",VLOOKUP(P85,LAndcost3,2,FALSE),IF($E$10="Location",VLOOKUP(P85,Landcost2,2,FALSE),"Error"))) -> 0 | S85: 0 | T85: =VLOOKUP($B85,ExistingWater!$A$45:$G$87,5,FALSE) -> 127907.75 | U85: =IFERROR(('General Input Sheet'!$G$38/(VLOOKUP('Existing Trunk Assets - Water'!T85,'General Input Sheet'!$E$38:$G$44,3,FALSE))),1) -> 1 | V85: 1511749.05 | W85: =IF(VLOOKUP($B85,ExistingWater!$A$2:$J$45,8,FALSE)="Y","Y","") -> Y | X85: =IF(VLOOKUP($B85,ExistingWater!$A$2:$J$45,9,FALSE)="Y","Y","") ->  | Y85: =IF(VLOOKUP($B85,ExistingWater!$A$2:$J$45,10,FALSE)="Y","Y","") ->  | BB85: 123336 | CF85: 123336 | CH85: 1511749.05
B86: Scarness Low DMA | C86: Scarness Low DMA | D86: Water Main | E86: Water Main | K86: 0 | L86: =VLOOKUP($B86,ExistingWater!$A$45:$F$87,6,FALSE) -> 1578146.07 | N86: =IF(M86="",1,VLOOKUP(M86,'Unit Rates - Water'!$H$12:$I$23,2,FALSE)) -> 1 | O86: 1578146.07 | R86: =IF(P86="",'Unit Rates - Land'!landcst,IF($E$10="Landuse",VLOOKUP(P86,LAndcost3,2,FALSE),IF($E$10="Location",VLOOKUP(P86,Landcost2,2,FALSE),"Error"))) -> 0 | S86: 0 | T86: =VLOOKUP($B86,ExistingWater!$A$45:$G$87,5,FALSE) -> 190150.77 | U86: =IFERROR(('General Input Sheet'!$G$38/(VLOOKUP('Existing Trunk Assets - Water'!T86,'General Input Sheet'!$E$38:$G$44,3,FALSE))),1) -> 1 | V86: 1578146.07 | W86: =IF(VLOOKUP($B86,ExistingWater!$A$2:$J$45,8,FALSE)="Y","Y","") -> Y | X86: =IF(VLOOKUP($B86,ExistingWater!$A$2:$J$45,9,FALSE)="Y","Y","") ->  | Y86: =IF(VLOOKUP($B86,ExistingWater!$A$2:$J$45,10,FALSE)="Y","Y","") ->  | BB86: 123336 | CF86: 123336 | CH86: 1578146.07
B87: Tiaro DMA | C87: Tiaro DMA | D87: Water Main | E87: Water Main | K87: 0 | L87: =VLOOKUP($B87,ExistingWater!$A$45:$F$87,6,FALSE) -> 256918.6 | N87: =IF(M87="",1,VLOOKUP(M87,'Unit Rates - Water'!$H$12:$I$23,2,FALSE)) -> 1 | O87: 256918.6 | R87: =IF(P87="",'Unit Rates - Land'!landcst,IF($E$10="Landuse",VLOOKUP(P87,LAndcost3,2,FALSE),IF($E$10="Location",VLOOKUP(P87,Landcost2,2,FALSE),"Error"))) -> 0 | S87: 0 | T87: =VLOOKUP($B87,ExistingWater!$A$45:$G$87,5,FALSE) -> 13069 | U87: =IFERROR(('General Input Sheet'!$G$38/(VLOOKUP('Existing Trunk Assets - Water'!T87,'General Input Sheet'!$E$38:$G$44,3,FALSE))),1) -> 1 | V87: 256918.6 | W87: =IF(VLOOKUP($B87,ExistingWater!$A$2:$J$45,8,FALSE)="Y","Y","") ->  | X87: =IF(VLOOKUP($B87,ExistingWater!$A$2:$J$45,9,FALSE)="Y","Y","") ->  | Y87: =IF(VLOOKUP($B87,ExistingWater!$A$2:$J$45,10,FALSE)="Y","Y","") -> Y | BD87: 1068 | CF87: 1068 | CJ87: 256918.6
B88: Tinana DMA | C88: Tinana DMA | D88: Water Main | E88: Water Main | K88: 0 | L88: =VLOOKUP($B88,ExistingWater!$A$45:$F$87,6,FALSE) -> 3792850 | N88: =IF(M88="",1,VLOOKUP(M88,'Unit Rates - Water'!$H$12:$I$23,2,FALSE)) -> 1 | O88: 3792850 | R88: =IF(P88="",'Unit Rates - Land'!landcst,IF($E$10="Landuse",VLOOKUP(P88,LAndcost3,2,FALSE),IF($E$10="Location",VLOOKUP(P88,Landcost2,2,FALSE),"Error"))) -> 0 | S88: 0 | T88: =VLOOKUP($B88,ExistingWater!$A$45:$G$87,5,FALSE) -> 385175 | U88: =IFERROR(('General Input Sheet'!$G$38/(VLOOKUP('Existing Trunk Assets - Water'!T88,'General Input Sheet'!$E$38:$G$44,3,FALSE))),1) -> 1 | V88: 3792850 | W88: =IF(VLOOKUP($B88,ExistingWater!$A$2:$J$45,8,FALSE)="Y","Y","") ->  | X88: =IF(VLOOKUP($B88,ExistingWater!$A$2:$J$45,9,FALSE)="Y","Y","") -> Y | Y88: =IF(VLOOKUP($B88,ExistingWater!$A$2:$J$45,10,FALSE)="Y","Y","") ->  | BC88: 36141 | CF88: 36141 | CI88: 3792850
B89: Toogoom DMA | C89: Toogoom DMA | D89: Water Main | E89: Water Main | K89: 0 | L89: =VLOOKUP($B89,ExistingWater!$A$45:$F$87,6,FALSE) -> 1442991.069 | N89: =IF(M89="",1,VLOOKUP(M89,'Unit Rates - Water'!$H$12:$I$23,2,FALSE)) -> 1 | O89: 1442991.069 | R89: =IF(P89="",'Unit Rates - Land'!landcst,IF($E$10="Landuse",VLOOKUP(P89,LAndcost3,2,FALSE),IF($E$10="Location",VLOOKUP(P89,Landcost2,2,FALSE),"Error"))) -> 0 | S89: 0 | T89: =VLOOKUP($B89,ExistingWater!$A$45:$G$87,5,FALSE) -> 69493.652 | U89: =IFERROR(('General Input Sheet'!$G$38/(VLOOKUP('Existing Trunk Assets - Water'!T89,'General Input Sheet'!$E$38:$G$44,3,FALSE))),1) -> 1 | V89: 1442991.069 | W89: =IF(VLOOKUP($B89,ExistingWater!$A$2:$J$45,8,FALSE)="Y","Y","") -> Y | X89: =IF(VLOOKUP($B89,ExistingWater!$A$2:$J$45,9,FALSE)="Y","Y","") ->  | Y89: =IF(VLOOKUP($B89,ExistingWater!$A$2:$J$45,10,FALSE)="Y","Y","") ->  | BB89: 123336 | CF89: 123336 | CH89: 1442991.069
B90: Toogoom Res to Toogoom Tk | C90: Toogoom Res to Toogoom Tk | D90: Water Main | E90: Water Main | K90: 0 | L90: =VLOOKUP($B90,ExistingWater!$A$45:$F$87,6,FALSE) -> 2650 | N90: =IF(M90="",1,VLOOKUP(M90,'Unit Rates - Water'!$H$12:$I$23,2,FALSE)) -> 1 | O90: 2650 | R90: =IF(P90="",'Unit Rates - Land'!landcst,IF($E$10="Landuse",VLOOKUP(P90,LAndcost3,2,FALSE),IF($E$10="Location",VLOOKUP(P90,Landcost2,2,FALSE),"Error"))) -> 0 | S90: 0 | T90: =VLOOKUP($B90,ExistingWater!$A$45:$G$87,5,FALSE) -> 0 | U90: =IFERROR(('General Input Sheet'!$G$38/(VLOOKUP('Existing Trunk Assets - Water'!T90,'General Input Sheet'!$E$38:$G$44,3,FALSE))),1) -> 1 | V90: 2650 | W90: =IF(VLOOKUP($B90,ExistingWater!$A$2:$J$45,8,FALSE)="Y","Y","") -> Y | X90: =IF(VLOOKUP($B90,ExistingWater!$A$2:$J$45,9,FALSE)="Y","Y","") ->  | Y90: =IF(VLOOKUP($B90,ExistingWater!$A$2:$J$45,10,FALSE)="Y","Y","") ->  | BB90: 123336 | CF90: 123336 | CH90: 2650
B91: Torbanlea DMA | C91: Torbanlea DMA | D91: Water Main | E91: Water Main | K91: 0 | L91: =VLOOKUP($B91,ExistingWater!$A$45:$F$87,6,FALSE) -> 644761.6 | N91: =IF(M91="",1,VLOOKUP(M91,'Unit Rates - Water'!$H$12:$I$23,2,FALSE)) -> 1 | O91: 644761.6 | R91: =IF(P91="",'Unit Rates - Land'!landcst,IF($E$10="Landuse",VLOOKUP(P91,LAndcost3,2,FALSE),IF($E$10="Location",VLOOKUP(P91,Landcost2,2,FALSE),"Error"))) -> 0 | S91: 0 | T91: =VLOOKUP($B91,ExistingWater!$A$45:$G$87,5,FALSE) -> 24220 | U91: =IFERROR(('General Input Sheet'!$G$38/(VLOOKUP('Existing Trunk Assets - Water'!T91,'General Input Sheet'!$E$38:$G$44,3,FALSE))),1) -> 1 | V91: 644761.6 | W91: =IF(VLOOKUP($B91,ExistingWater!$A$2:$J$45,8,FALSE)="Y","Y","") -> Y | X91: =IF(VLOOKUP($B91,ExistingWater!$A$2:$J$45,9,FALSE)="Y","Y","") ->  | Y91: =IF(VLOOKUP($B91,ExistingWater!$A$2:$J$45,10,FALSE)="Y","Y","") ->  | BB91: 123336 | CF91: 123336 | CH91: 644761.6
B92: Torquay High DMA | C92: Torquay High DMA | D92: Water Main | E92: Water Main | K92: 0 | L92: =VLOOKUP($B92,ExistingWater!$A$45:$F$87,6,FALSE) -> 981106.6 | N92: =IF(M92="",1,VLOOKUP(M92,'Unit Rates - Water'!$H$12:$I$23,2,FALSE)) -> 1 | O92: 981106.6 | R92: =IF(P92="",'Unit Rates - Land'!landcst,IF($E$10="Landuse",VLOOKUP(P92,LAndcost3,2,FALSE),IF($E$10="Location",VLOOKUP(P92,Landcost2,2,FALSE),"Error"))) -> 0 | S92: 0 | T92: =VLOOKUP($B92,ExistingWater!$A$45:$G$87,5,FALSE) -> 108710.5 | U92: =IFERROR(('General Input Sheet'!$G$38/(VLOOKUP('Existing Trunk Assets - Water'!T92,'General Input Sheet'!$E$38:$G$44,3,FALSE))),1) -> 1 | V92: 981106.6 | W92: =IF(VLOOKUP($B92,ExistingWater!$A$2:$J$45,8,FALSE)="Y","Y","") -> Y | X92: =IF(VLOOKUP($B92,ExistingWater!$A$2:$J$45,9,FALSE)="Y","Y","") ->  | Y92: =IF(VLOOKUP($B92,ExistingWater!$A$2:$J$45,10,FALSE)="Y","Y","") ->  | BB92: 123336 | CF92: 123336 | CH92: 981106.6 | CT92: =IF(BN92="","",(BN92/$CF92)*$V92) -> 
B93: Torquay Low DMA | C93: Torquay Low DMA | D93: Water Main | E93: Water Main | K93: 0 | L93: =VLOOKUP($B93,ExistingWater!$A$45:$F$87,6,FALSE) -> 594614.2 | N93: =IF(M93="",1,VLOOKUP(M93,'Unit Rates - Water'!$H$12:$I$23,2,FALSE)) -> 1 | O93: 594614.2 | R93: =IF(P93="",'Unit Rates - Land'!landcst,IF($E$10="Landuse",VLOOKUP(P93,LAndcost3,2,FALSE),IF($E$10="Location",VLOOKUP(P93,Landcost2,2,FALSE),"Error"))) -> 0 | S93: 0 | T93: =VLOOKUP($B93,ExistingWater!$A$45:$G$87,5,FALSE) -> 66249 | U93: =IFERROR(('General Input Sheet'!$G$38/(VLOOKUP('Existing Trunk Assets - Water'!T93,'General Input Sheet'!$E$38:$G$44,3,FALSE))),1) -> 1 | V93: 594614.2 | W93: =IF(VLOOKUP($B93,ExistingWater!$A$2:$J$45,8,FALSE)="Y","Y","") -> Y | X93: =IF(VLOOKUP($B93,ExistingWater!$A$2:$J$45,9,FALSE)="Y","Y","") ->  | Y93: =IF(VLOOKUP($B93,ExistingWater!$A$2:$J$45,10,FALSE)="Y","Y","") ->  | BB93: =IF(W93="y",BB$14,IF(AND(W93>0,W93<=1),W93*BB$14,"")) -> 123336 | BC93: =IF(X93="y",BC$14,IF(AND(X93>0,X93<=1),X93*BC$14,"")) ->  | BD93: =IF(Y93="y",BD$14,IF(AND(Y93>0,Y93<=1),Y93*BD$14,"")) ->  | BE93: =IF(Z93="y",BE$14,IF(AND(Z93>0,Z93<=1),Z93*BE$14,"")) ->  | BF93: =IF(AA93="y",BF$14,IF(AND(AA93>0,AA93<=1),AA93*BF$14,"")) ->  | BG93: =IF(AB93="y",BG$14,IF(AND(AB93>0,AB93<=1),AB93*BG$14,"")) ->  | BH93: =IF(AC93="y",BH$14,IF(AND(AC93>0,AC93<=1),AC93*BH$14,"")) ->  | BI93: =IF(AD93="y",BI$14,IF(AND(AD93>0,AD93<=1),AD93*BI$14,"")) ->  | BJ93: =IF(AE93="y",BJ$14,IF(AND(AE93>0,AE93<=1),AE93*BJ$14,"")) ->  | BK93: =IF(AF93="y",BK$14,IF(AND(AF93>0,AF93<=1),AF93*BK$14,"")) ->  | BL93: =IF(AG93="y",BL$14,IF(AND(AG93>0,AG93<=1),AG93*BL$14,"")) ->  | BM93: =IF(AH93="y",BM$14,IF(AND(AH93>0,AH93<=1),AH93*BM$14,"")) ->  | BN93: =IF(AI93="y",BN$14,IF(AND(AI93>0,AI93<=1),AI93*BN$14,"")) ->  | BO93: =IF(AJ93="y",BO$14,IF(AND(AJ93>0,AJ93<=1),AJ93*BO$14,"")) ->  | BP93: =IF(AK93="y",BP$14,IF(AND(AK93>0,AK93<=1),AK93*BP$14,"")) ->  | BQ93: =IF(AL93="y",BQ$14,IF(AND(AL93>0,AL93<=1),AL93*BQ$14,"")) ->  | BR93: =IF(AM93="y",BR$14,IF(AND(AM93>0,AM93<=1),AM93*BR$14,"")) ->  | BS93: =IF(AN93="y",BS$14,IF(AND(AN93>0,AN93<=1),AN93*BS$14,"")) ->  | BT93: =IF(AO93="y",BT$14,IF(AND(AO93>0,AO93<=1),AO93*BT$14,"")) ->  | BU93: =IF(AP93="y",BU$14,IF(AND(AP93>0,AP93<=1),AP93*BU$14,"")) ->  | BV93: =IF(AQ93="y",BV$14,IF(AND(AQ93>0,AQ93<=1),AQ93*BV$14,"")) ->  | BW93: =IF(AR93="y",BW$14,IF(AND(AR93>0,AR93<=1),AR93*BW$14,"")) ->  | BX93: =IF(AS93="y",BX$14,IF(AND(AS93>0,AS93<=1),AS93*BX$14,"")) ->  | BY93: =IF(AT93="y",BY$14,IF(AND(AT93>0,AT93<=1),AT93*BY$14,"")) ->  | BZ93: =IF(AU93="y",BZ$14,IF(AND(AU93>0,AU93<=1),AU93*BZ$14,"")) ->  | CA93: =IF(AV93="y",CA$14,IF(AND(AV93>0,AV93<=1),AV93*CA$14,"")) ->  | CB93: =IF(AW93="y",CB$14,IF(AND(AW93>0,AW93<=1),AW93*CB$14,"")) ->  | CC93: =IF(AX93="y",CC$14,IF(AND(AX93>0,AX93<=1),AX93*CC$14,"")) ->  | CD93: =IF(AY93="y",CD$14,IF(AND(AY93>0,AY93<=1),AY93*CD$14,"")) ->  | CE93: =IF(AZ93="y",CE$14,IF(AND(AZ93>0,AZ93<=1),AZ93*CE$14,"")) ->  | CF93: =SUM(BB93:CE93) -> 123336 | CH93: 594614.2 | CX93: =IF(BR93="","",(BR93/$CF93)*$V93) ->  | CY93: =IF(BS93="","",(BS93/$CF93)*$V93) ->  | CZ93: =IF(BT93="","",(BT93/$CF93)*$V93) ->  | DA93: =IF(BU93="","",(BU93/$CF93)*$V93) ->  | DB93: =IF(BV93="","",(BV93/$CF93)*$V93) ->  | DC93: =IF(BW93="","",(BW93/$CF93)*$V93) ->  | DD93: =IF(BX93="","",(BX93/$CF93)*$V93) ->  | DE93: =IF(BY93="","",(BY93/$CF93)*$V93) ->  | DF93: =IF(BZ93="","",(BZ93/$CF93)*$V93) ->  | DG93: =IF(CA93="","",(CA93/$CF93)*$V93) ->  | DH93: =IF(CB93="","",(CB93/$CF93)*$V93) ->  | DI93: =IF(CC93="","",(CC93/$CF93)*$V93) ->  | DJ93: =IF(CD93="","",(CD93/$CF93)*$V93) ->  | DK93: =IF(CE93="","",(CE93/$CF93)*$V93) ->  | DL93: =IF(SUM(CH93:DK93)=V93,"","ERROR") -> 
B94: Maryborough Bulk Water Supply | C94: Maryborough Bulk Water Supply | D94: Water Main | E94: Water Main | K94: 0 | L94: =VLOOKUP($B94,ExistingWater!$A$45:$F$87,6,FALSE) -> 45582110.77 | N94: =IF(M94="",1,VLOOKUP(M94,'Unit Rates - Water'!$H$12:$I$23,2,FALSE)) -> 1 | O94: 45582110.77 | R94: =IF(P94="",'Unit Rates - Land'!landcst,IF($E$10="Landuse",VLOOKUP(P94,LAndcost3,2,FALSE),IF($E$10="Location",VLOOKUP(P94,Landcost2,2,FALSE),"Error"))) -> 0 | S94: 0 | T94: =VLOOKUP($B94,ExistingWater!$A$45:$G$87,5,FALSE) -> 349896.76 | U94: =IFERROR(('General Input Sheet'!$G$38/(VLOOKUP('Existing Trunk Assets - Water'!T94,'General Input Sheet'!$E$38:$G$44,3,FALSE))),1) -> 1 | V94: 45582110.77 | W94: =IF(VLOOKUP($B94,ExistingWater!$A$2:$J$45,8,FALSE)="Y","Y","") ->  | X94: =IF(VLOOKUP($B94,ExistingWater!$A$2:$J$45,9,FALSE)="Y","Y","") -> Y | Y94: =IF(VLOOKUP($B94,ExistingWater!$A$2:$J$45,10,FALSE)="Y","Y","") ->  | BC94: 36141 | CF94: 36141 | CI94: 45582110.77
B95: Urangan DMA | C95: Urangan DMA | D95: Water Main | E95: Water Main | K95: 0 | L95: =VLOOKUP($B95,ExistingWater!$A$45:$F$87,6,FALSE) -> 0 | N95: =IF(M95="",1,VLOOKUP(M95,'Unit Rates - Water'!$H$12:$I$23,2,FALSE)) -> 1 | O95: 0 | R95: =IF(P95="",'Unit Rates - Land'!landcst,IF($E$10="Landuse",VLOOKUP(P95,LAndcost3,2,FALSE),IF($E$10="Location",VLOOKUP(P95,Landcost2,2,FALSE),"Error"))) -> 0 | S95: 0 | T95: =VLOOKUP($B95,ExistingWater!$A$45:$G$87,5,FALSE) -> 0 | U95: =IFERROR(('General Input Sheet'!$G$38/(VLOOKUP('Existing Trunk Assets - Water'!T95,'General Input Sheet'!$E$38:$G$44,3,FALSE))),1) -> 1 | V95: 0 | W95: =IF(VLOOKUP($B95,ExistingWater!$A$2:$J$45,8,FALSE)="Y","Y","") -> Y | X95: =IF(VLOOKUP($B95,ExistingWater!$A$2:$J$45,9,FALSE)="Y","Y","") ->  | Y95: =IF(VLOOKUP($B95,ExistingWater!$A$2:$J$45,10,FALSE)="Y","Y","") ->  | BB95: 123336 | CF95: 123336 | CH95: 0
B96: Urangan High DMA | C96: Urangan High DMA | D96: Water Main | E96: Water Main | K96: 0 | L96: =VLOOKUP($B96,ExistingWater!$A$45:$F$87,6,FALSE) -> 1775998.3 | N96: =IF(M96="",1,VLOOKUP(M96,'Unit Rates - Water'!$H$12:$I$23,2,FALSE)) -> 1 | O96: 1775998.3 | R96: =IF(P96="",'Unit Rates - Land'!landcst,IF($E$10="Landuse",VLOOKUP(P96,LAndcost3,2,FALSE),IF($E$10="Location",VLOOKUP(P96,Landcost2,2,FALSE),"Error"))) -> 0 | S96: 0 | T96: =VLOOKUP($B96,ExistingWater!$A$45:$G$87,5,FALSE) -> 137631 | U96: =IFERROR(('General Input Sheet'!$G$38/(VLOOKUP('Existing Trunk Assets - Water'!T96,'General Input Sheet'!$E$38:$G$44,3,FALSE))),1) -> 1 | V96: 1775998.3 | W96: =IF(VLOOKUP($B96,ExistingWater!$A$2:$J$45,8,FALSE)="Y","Y","") -> Y | X96: =IF(VLOOKUP($B96,ExistingWater!$A$2:$J$45,9,FALSE)="Y","Y","") ->  | Y96: =IF(VLOOKUP($B96,ExistingWater!$A$2:$J$45,10,FALSE)="Y","Y","") ->  | BB96: 123336 | CF96: 123336 | CH96: 1775998.3
B97: Urangan Industrial DMA | C97: Urangan Industrial DMA | D97: Water Main | E97: Water Main | K97: 0 | L97: =VLOOKUP($B97,ExistingWater!$A$45:$F$87,6,FALSE) -> 82263 | N97: =IF(M97="",1,VLOOKUP(M97,'Unit Rates - Water'!$H$12:$I$23,2,FALSE)) -> 1 | O97: 82263 | R97: =IF(P97="",'Unit Rates - Land'!landcst,IF($E$10="Landuse",VLOOKUP(P97,LAndcost3,2,FALSE),IF($E$10="Location",VLOOKUP(P97,Landcost2,2,FALSE),"Error"))) -> 0 | S97: 0 | T97: =VLOOKUP($B97,ExistingWater!$A$45:$G$87,5,FALSE) -> 32789 | U97: =IFERROR(('General Input Sheet'!$G$38/(VLOOKUP('Existing Trunk Assets - Water'!T97,'General Input Sheet'!$E$38:$G$44,3,FALSE))),1) -> 1 | V97: 82263 | W97: =IF(VLOOKUP($B97,ExistingWater!$A$2:$J$45,8,FALSE)="Y","Y","") -> Y | X97: =IF(VLOOKUP($B97,ExistingWater!$A$2:$J$45,9,FALSE)="Y","Y","") ->  | Y97: =IF(VLOOKUP($B97,ExistingWater!$A$2:$J$45,10,FALSE)="Y","Y","") ->  | BB97: 123336 | CF97: 123336 | CH97: 82263
B98: Urangan Low DMA | C98: Urangan Low DMA | D98: Water Main | E98: Water Main | K98: 0 | L98: =VLOOKUP($B98,ExistingWater!$A$45:$F$87,6,FALSE) -> 1049108.811 | N98: =IF(M98="",1,VLOOKUP(M98,'Unit Rates - Water'!$H$12:$I$23,2,FALSE)) -> 1 | O98: 1049108.811 | R98: =IF(P98="",'Unit Rates - Land'!landcst,IF($E$10="Landuse",VLOOKUP(P98,LAndcost3,2,FALSE),IF($E$10="Location",VLOOKUP(P98,Landcost2,2,FALSE),"Error"))) -> 0 | S98: 0 | T98: =VLOOKUP($B98,ExistingWater!$A$45:$G$87,5,FALSE) -> 89203.738 | U98: =IFERROR(('General Input Sheet'!$G$38/(VLOOKUP('Existing Trunk Assets - Water'!T98,'General Input Sheet'!$E$38:$G$44,3,FALSE))),1) -> 1 | V98: 1049108.811 | W98: =IF(VLOOKUP($B98,ExistingWater!$A$2:$J$45,8,FALSE)="Y","Y","") -> Y | X98: =IF(VLOOKUP($B98,ExistingWater!$A$2:$J$45,9,FALSE)="Y","Y","") ->  | Y98: =IF(VLOOKUP($B98,ExistingWater!$A$2:$J$45,10,FALSE)="Y","Y","") ->  | BB98: 123336 | CF98: 123336 | CH98: 1049108.811
B99: Wondunna DMA | C99: Wondunna DMA | D99: Water Main | E99: Water Main | K99: 0 | L99: =VLOOKUP($B99,ExistingWater!$A$45:$F$87,6,FALSE) -> 49723.0795 | N99: =IF(M99="",1,VLOOKUP(M99,'Unit Rates - Water'!$H$12:$I$23,2,FALSE)) -> 1 | O99: 49723.0795 | R99: =IF(P99="",'Unit Rates - Land'!landcst,IF($E$10="Landuse",VLOOKUP(P99,LAndcost3,2,FALSE),IF($E$10="Location",VLOOKUP(P99,Landcost2,2,FALSE),"Error"))) -> 0 | S99: 0 | T99: =VLOOKUP($B99,ExistingWater!$A$45:$G$87,5,FALSE) -> 40102.766 | U99: =IFERROR(('General Input Sheet'!$G$38/(VLOOKUP('Existing Trunk Assets - Water'!T99,'General Input Sheet'!$E$38:$G$44,3,FALSE))),1) -> 1 | V99: 49723.0795 | W99: =IF(VLOOKUP($B99,ExistingWater!$A$2:$J$45,8,FALSE)="Y","Y","") -> Y | X99: =IF(VLOOKUP($B99,ExistingWater!$A$2:$J$45,9,FALSE)="Y","Y","") ->  | Y99: =IF(VLOOKUP($B99,ExistingWater!$A$2:$J$45,10,FALSE)="Y","Y","") ->  | BB99: 123336 | CF99: 123336 | CH99: 49723.0795
K100: 0 | L100: =VLOOKUP($B100,ExistingWater!$A$45:$F$87,6,FALSE) ->  | N100: =IF(M100="",1,VLOOKUP(M100,'Unit Rates - Water'!$H$12:$I$23,2,FALSE)) -> 1 | R100: =IF(P100="",'Unit Rates - Land'!landcst,IF($E$10="Landuse",VLOOKUP(P100,LAndcost3,2,FALSE),IF($E$10="Location",VLOOKUP(P100,Landcost2,2,FALSE),"Error"))) -> 0 | S100: 0 | U100: =IFERROR(('General Input Sheet'!$G$38/(VLOOKUP('Existing Trunk Assets - Water'!T100,'General Input Sheet'!$E$38:$G$44,3,FALSE))),1) -> 1 | V100: 0 | CF100: 0
K101: 0 | L101: =VLOOKUP($B101,ExistingWater!$A$45:$F$87,6,FALSE) ->  | N101: =IF(M101="",1,VLOOKUP(M101,'Unit Rates - Water'!$H$12:$I$23,2,FALSE)) -> 1 | R101: =IF(P101="",'Unit Rates - Land'!landcst,IF($E$10="Landuse",VLOOKUP(P101,LAndcost3,2,FALSE),IF($E$10="Location",VLOOKUP(P101,Landcost2,2,FALSE),"Error"))) -> 0 | S101: 0 | U101: =IFERROR(('General Input Sheet'!$G$38/(VLOOKUP('Existing Trunk Assets - Water'!T101,'General Input Sheet'!$E$38:$G$44,3,FALSE))),1) -> 1 | V101: 0 | CF101: 0
K102: 0 | L102: =VLOOKUP($B102,ExistingWater!$A$45:$F$87,6,FALSE) ->  | N102: =IF(M102="",1,VLOOKUP(M102,'Unit Rates - Water'!$H$12:$I$23,2,FALSE)) -> 1 | R102: =IF(P102="",'Unit Rates - Land'!landcst,IF($E$10="Landuse",VLOOKUP(P102,LAndcost3,2,FALSE),IF($E$10="Location",VLOOKUP(P102,Landcost2,2,FALSE),"Error"))) -> 0 | S102: 0 | U102: =IFERROR(('General Input Sheet'!$G$38/(VLOOKUP('Existing Trunk Assets - Water'!T102,'General Input Sheet'!$E$38:$G$44,3,FALSE))),1) -> 1 | V102: 0 | CF102: 0
K103: 0 | L103: =VLOOKUP($B103,ExistingWater!$A$45:$F$87,6,FALSE) ->  | N103: =IF(M103="",1,VLOOKUP(M103,'Unit Rates - Water'!$H$12:$I$23,2,FALSE)) -> 1 | R103: =IF(P103="",'Unit Rates - Land'!landcst,IF($E$10="Landuse",VLOOKUP(P103,LAndcost3,2,FALSE),IF($E$10="Location",VLOOKUP(P103,Landcost2,2,FALSE),"Error"))) -> 0 | S103: 0 | U103: =IFERROR(('General Input Sheet'!$G$38/(VLOOKUP('Existing Trunk Assets - Water'!T103,'General Input Sheet'!$E$38:$G$44,3,FALSE))),1) -> 1 | V103: 0 | CF103: 0
K104: 0 | L104: =VLOOKUP($B104,ExistingWater!$A$45:$F$87,6,FALSE) ->  | N104: =IF(M104="",1,VLOOKUP(M104,'Unit Rates - Water'!$H$12:$I$23,2,FALSE)) -> 1 | R104: =IF(P104="",'Unit Rates - Land'!landcst,IF($E$10="Landuse",VLOOKUP(P104,LAndcost3,2,FALSE),IF($E$10="Location",VLOOKUP(P104,Landcost2,2,FALSE),"Error"))) -> 0 | S104: 0 | U104: =IFERROR(('General Input Sheet'!$G$38/(VLOOKUP('Existing Trunk Assets - Water'!T104,'General Input Sheet'!$E$38:$G$44,3,FALSE))),1) -> 1 | V104: 0 | CF104: 0
K105: 0 | L105: =VLOOKUP($B105,ExistingWater!$A$45:$F$87,6,FALSE) ->  | N105: =IF(M105="",1,VLOOKUP(M105,'Unit Rates - Water'!$H$12:$I$23,2,FALSE)) -> 1 | R105: =IF(P105="",'Unit Rates - Land'!landcst,IF($E$10="Landuse",VLOOKUP(P105,LAndcost3,2,FALSE),IF($E$10="Location",VLOOKUP(P105,Landcost2,2,FALSE),"Error"))) -> 0 | S105: 0 | U105: =IFERROR(('General Input Sheet'!$G$38/(VLOOKUP('Existing Trunk Assets - Water'!T105,'General Input Sheet'!$E$38:$G$44,3,FALSE))),1) -> 1 | V105: 0 | CF105: 0
K106: 0 | L106: =VLOOKUP($B106,ExistingWater!$A$45:$F$87,6,FALSE) ->  | N106: =IF(M106="",1,VLOOKUP(M106,'Unit Rates - Water'!$H$12:$I$23,2,FALSE)) -> 1 | R106: =IF(P106="",'Unit Rates - Land'!landcst,IF($E$10="Landuse",VLOOKUP(P106,LAndcost3,2,FALSE),IF($E$10="Location",VLOOKUP(P106,Landcost2,2,FALSE),"Error"))) -> 0 | S106: 0 | U106: =IFERROR(('General Input Sheet'!$G$38/(VLOOKUP('Existing Trunk Assets - Water'!T106,'General Input Sheet'!$E$38:$G$44,3,FALSE))),1) -> 1 | V106: 0 | CF106: 0
K107: 0 | L107: =VLOOKUP($B107,ExistingWater!$A$45:$F$87,6,FALSE) ->  | N107: =IF(M107="",1,VLOOKUP(M107,'Unit Rates - Water'!$H$12:$I$23,2,FALSE)) -> 1 | R107: =IF(P107="",'Unit Rates - Land'!landcst,IF($E$10="Landuse",VLOOKUP(P107,LAndcost3,2,FALSE),IF($E$10="Location",VLOOKUP(P107,Landcost2,2,FALSE),"Error"))) -> 0 | S107: 0 | U107: =IFERROR(('General Input Sheet'!$G$38/(VLOOKUP('Existing Trunk Assets - Water'!T107,'General Input Sheet'!$E$38:$G$44,3,FALSE))),1) -> 1 | V107: 0 | CF107: 0
K108: 0 | L108: =VLOOKUP($B108,ExistingWater!$A$45:$F$87,6,FALSE) ->  | N108: =IF(M108="",1,VLOOKUP(M108,'Unit Rates - Water'!$H$12:$I$23,2,FALSE)) -> 1 | R108: =IF(P108="",'Unit Rates - Land'!landcst,IF($E$10="Landuse",VLOOKUP(P108,LAndcost3,2,FALSE),IF($E$10="Location",VLOOKUP(P108,Landcost2,2,FALSE),"Error"))) -> 0 | S108: 0 | U108: =IFERROR(('General Input Sheet'!$G$38/(VLOOKUP('Existing Trunk Assets - Water'!T108,'General Input Sheet'!$E$38:$G$44,3,FALSE))),1) -> 1 | V108: 0 | CF108: 0 | CS108: =IF(BM108="","",(BM108/$CF108)*$V108) -> 
K109: 0 | L109: =VLOOKUP($B109,ExistingWater!$A$45:$F$87,6,FALSE) ->  | N109: =IF(M109="",1,VLOOKUP(M109,'Unit Rates - Water'!$H$12:$I$23,2,FALSE)) -> 1 | R109: =IF(P109="",'Unit Rates - Land'!landcst,IF($E$10="Landuse",VLOOKUP(P109,LAndcost3,2,FALSE),IF($E$10="Location",VLOOKUP(P109,Landcost2,2,FALSE),"Error"))) -> 0 | S109: 0 | U109: =IFERROR(('General Input Sheet'!$G$38/(VLOOKUP('Existing Trunk Assets - Water'!T109,'General Input Sheet'!$E$38:$G$44,3,FALSE))),1) -> 1 | V109: 0 | CF109: 0
K110: 0 | L110: =VLOOKUP($B110,ExistingWater!$A$45:$F$87,6,FALSE) ->  | N110: =IF(M110="",1,VLOOKUP(M110,'Unit Rates - Water'!$H$12:$I$23,2,FALSE)) -> 1 | R110: =IF(P110="",'Unit Rates - Land'!landcst,IF($E$10="Landuse",VLOOKUP(P110,LAndcost3,2,FALSE),IF($E$10="Location",VLOOKUP(P110,Landcost2,2,FALSE),"Error"))) -> 0 | S110: 0 | U110: =IFERROR(('General Input Sheet'!$G$38/(VLOOKUP('Existing Trunk Assets - Water'!T110,'General Input Sheet'!$E$38:$G$44,3,FALSE))),1) -> 1 | V110: 0 | CF110: 0
K111: 0 | L111: =VLOOKUP($B111,ExistingWater!$A$45:$F$87,6,FALSE) ->  | N111: =IF(M111="",1,VLOOKUP(M111,'Unit Rates - Water'!$H$12:$I$23,2,FALSE)) -> 1 | R111: =IF(P111="",'Unit Rates - Land'!landcst,IF($E$10="Landuse",VLOOKUP(P111,LAndcost3,2,FALSE),IF($E$10="Location",VLOOKUP(P111,Landcost2,2,FALSE),"Error"))) -> 0 | S111: 0 | U111: =IFERROR(('General Input Sheet'!$G$38/(VLOOKUP('Existing Trunk Assets - Water'!T111,'General Input Sheet'!$E$38:$G$44,3,FALSE))),1) -> 1 | V111: 0 | CF111: 0
K112: 0 | L112: =VLOOKUP($B112,ExistingWater!$A$45:$F$87,6,FALSE) ->  | N112: =IF(M112="",1,VLOOKUP(M112,'Unit Rates - Water'!$H$12:$I$23,2,FALSE)) -> 1 | R112: =IF(P112="",'Unit Rates - Land'!landcst,IF($E$10="Landuse",VLOOKUP(P112,LAndcost3,2,FALSE),IF($E$10="Location",VLOOKUP(P112,Landcost2,2,FALSE),"Error"))) -> 0 | S112: 0 | U112: =IFERROR(('General Input Sheet'!$G$38/(VLOOKUP('Existing Trunk Assets - Water'!T112,'General Input Sheet'!$E$38:$G$44,3,FALSE))),1) -> 1 | V112: 0 | CF112: 0
K113: 0 | L113: =VLOOKUP($B113,ExistingWater!$A$45:$F$87,6,FALSE) ->  | N113: =IF(M113="",1,VLOOKUP(M113,'Unit Rates - Water'!$H$12:$I$23,2,FALSE)) -> 1 | R113: =IF(P113="",'Unit Rates - Land'!landcst,IF($E$10="Landuse",VLOOKUP(P113,LAndcost3,2,FALSE),IF($E$10="Location",VLOOKUP(P113,Landcost2,2,FALSE),"Error"))) -> 0 | S113: 0 | U113: =IFERROR(('General Input Sheet'!$G$38/(VLOOKUP('Existing Trunk Assets - Water'!T113,'General Input Sheet'!$E$38:$G$44,3,FALSE))),1) -> 1 | V113: 0 | CF113: 0
K114: 0 | L114: =VLOOKUP($B114,ExistingWater!$A$45:$F$87,6,FALSE) ->  | N114: =IF(M114="",1,VLOOKUP(M114,'Unit Rates - Water'!$H$12:$I$23,2,FALSE)) -> 1 | R114: =IF(P114="",'Unit Rates - Land'!landcst,IF($E$10="Landuse",VLOOKUP(P114,LAndcost3,2,FALSE),IF($E$10="Location",VLOOKUP(P114,Landcost2,2,FALSE),"Error"))) -> 0 | S114: 0 | U114: =IFERROR(('General Input Sheet'!$G$38/(VLOOKUP('Existing Trunk Assets - Water'!T114,'General Input Sheet'!$E$38:$G$44,3,FALSE))),1) -> 1 | V114: 0 | CF114: 0
K115: 0 | L115: =VLOOKUP($B115,ExistingWater!$A$45:$F$87,6,FALSE) ->  | N115: =IF(M115="",1,VLOOKUP(M115,'Unit Rates - Water'!$H$12:$I$23,2,FALSE)) -> 1 | R115: =IF(P115="",'Unit Rates - Land'!landcst,IF($E$10="Landuse",VLOOKUP(P115,LAndcost3,2,FALSE),IF($E$10="Location",VLOOKUP(P115,Landcost2,2,FALSE),"Error"))) -> 0 | S115: 0 | U115: =IFERROR(('General Input Sheet'!$G$38/(VLOOKUP('Existing Trunk Assets - Water'!T115,'General Input Sheet'!$E$38:$G$44,3,FALSE))),1) -> 1 | V115: 0 | CF115: 0
K116: 0 | L116: =VLOOKUP($B116,ExistingWater!$A$45:$F$87,6,FALSE) ->  | N116: =IF(M116="",1,VLOOKUP(M116,'Unit Rates - Water'!$H$12:$I$23,2,FALSE)) -> 1 | R116: =IF(P116="",'Unit Rates - Land'!landcst,IF($E$10="Landuse",VLOOKUP(P116,LAndcost3,2,FALSE),IF($E$10="Location",VLOOKUP(P116,Landcost2,2,FALSE),"Error"))) -> 0 | S116: 0 | U116: =IFERROR(('General Input Sheet'!$G$38/(VLOOKUP('Existing Trunk Assets - Water'!T116,'General Input Sheet'!$E$38:$G$44,3,FALSE))),1) -> 1 | V116: 0 | CF116: 0
K117: 0 | L117: =VLOOKUP($B117,ExistingWater!$A$45:$F$87,6,FALSE) ->  | N117: =IF(M117="",1,VLOOKUP(M117,'Unit Rates - Water'!$H$12:$I$23,2,FALSE)) -> 1 | R117: =IF(P117="",'Unit Rates - Land'!landcst,IF($E$10="Landuse",VLOOKUP(P117,LAndcost3,2,FALSE),IF($E$10="Location",VLOOKUP(P117,Landcost2,2,FALSE),"Error"))) -> 0 | S117: 0 | U117: =IFERROR(('General Input Sheet'!$G$38/(VLOOKUP('Existing Trunk Assets - Water'!T117,'General Input Sheet'!$E$38:$G$44,3,FALSE))),1) -> 1 | V117: 0 | CF117: 0
K118: 0 | L118: =VLOOKUP($B118,ExistingWater!$A$45:$F$87,6,FALSE) ->  | N118: =IF(M118="",1,VLOOKUP(M118,'Unit Rates - Water'!$H$12:$I$23,2,FALSE)) -> 1 | R118: =IF(P118="",'Unit Rates - Land'!landcst,IF($E$10="Landuse",VLOOKUP(P118,LAndcost3,2,FALSE),IF($E$10="Location",VLOOKUP(P118,Landcost2,2,FALSE),"Error"))) -> 0 | S118: 0 | U118: =IFERROR(('General Input Sheet'!$G$38/(VLOOKUP('Existing Trunk Assets - Water'!T118,'General Input Sheet'!$E$38:$G$44,3,FALSE))),1) -> 1 | V118: 0 | CF118: 0
K119: 0 | L119: =VLOOKUP($B119,ExistingWater!$A$45:$F$87,6,FALSE) ->  | N119: =IF(M119="",1,VLOOKUP(M119,'Unit Rates - Water'!$H$12:$I$23,2,FALSE)) -> 1 | R119: =IF(P119="",'Unit Rates - Land'!landcst,IF($E$10="Landuse",VLOOKUP(P119,LAndcost3,2,FALSE),IF($E$10="Location",VLOOKUP(P119,Landcost2,2,FALSE),"Error"))) -> 0 | S119: 0 | U119: =IFERROR(('General Input Sheet'!$G$38/(VLOOKUP('Existing Trunk Assets - Water'!T119,'General Input Sheet'!$E$38:$G$44,3,FALSE))),1) -> 1 | V119: 0 | CF119: 0
K120: 0 | L120: =VLOOKUP($B120,ExistingWater!$A$45:$F$87,6,FALSE) ->  | N120: =IF(M120="",1,VLOOKUP(M120,'Unit Rates - Water'!$H$12:$I$23,2,FALSE)) -> 1 | R120: =IF(P120="",'Unit Rates - Land'!landcst,IF($E$10="Landuse",VLOOKUP(P120,LAndcost3,2,FALSE),IF($E$10="Location",VLOOKUP(P120,Landcost2,2,FALSE),"Error"))) -> 0 | S120: 0 | U120: =IFERROR(('General Input Sheet'!$G$38/(VLOOKUP('Existing Trunk Assets - Water'!T120,'General Input Sheet'!$E$38:$G$44,3,FALSE))),1) -> 1 | V120: 0 | CF120: 0
K121: 0 | L121: =VLOOKUP($B121,ExistingWater!$A$45:$F$87,6,FALSE) ->  | N121: =IF(M121="",1,VLOOKUP(M121,'Unit Rates - Water'!$H$12:$I$23,2,FALSE)) -> 1 | R121: =IF(P121="",'Unit Rates - Land'!landcst,IF($E$10="Landuse",VLOOKUP(P121,LAndcost3,2,FALSE),IF($E$10="Location",VLOOKUP(P121,Landcost2,2,FALSE),"Error"))) -> 0 | S121: 0 | U121: =IFERROR(('General Input Sheet'!$G$38/(VLOOKUP('Existing Trunk Assets - Water'!T121,'General Input Sheet'!$E$38:$G$44,3,FALSE))),1) -> 1 | V121: 0 | CF121: 0
K122: 0 | L122: =VLOOKUP($B122,ExistingWater!$A$45:$F$87,6,FALSE) ->  | N122: =IF(M122="",1,VLOOKUP(M122,'Unit Rates - Water'!$H$12:$I$23,2,FALSE)) -> 1 | R122: =IF(P122="",'Unit Rates - Land'!landcst,IF($E$10="Landuse",VLOOKUP(P122,LAndcost3,2,FALSE),IF($E$10="Location",VLOOKUP(P122,Landcost2,2,FALSE),"Error"))) -> 0 | S122: 0 | U122: =IFERROR(('General Input Sheet'!$G$38/(VLOOKUP('Existing Trunk Assets - Water'!T122,'General Input Sheet'!$E$38:$G$44,3,FALSE))),1) -> 1 | V122: 0 | CF122: 0
K123: 0 | L123: =VLOOKUP($B123,ExistingWater!$A$45:$F$87,6,FALSE) ->  | N123: =IF(M123="",1,VLOOKUP(M123,'Unit Rates - Water'!$H$12:$I$23,2,FALSE)) -> 1 | R123: =IF(P123="",'Unit Rates - Land'!landcst,IF($E$10="Landuse",VLOOKUP(P123,LAndcost3,2,FALSE),IF($E$10="Location",VLOOKUP(P123,Landcost2,2,FALSE),"Error"))) -> 0 | S123: 0 | U123: =IFERROR(('General Input Sheet'!$G$38/(VLOOKUP('Existing Trunk Assets - Water'!T123,'General Input Sheet'!$E$38:$G$44,3,FALSE))),1) -> 1 | V123: 0 | CF123: 0
K124: 0 | L124: =VLOOKUP($B124,ExistingWater!$A$45:$F$87,6,FALSE) ->  | N124: =IF(M124="",1,VLOOKUP(M124,'Unit Rates - Water'!$H$12:$I$23,2,FALSE)) -> 1 | R124: =IF(P124="",'Unit Rates - Land'!landcst,IF($E$10="Landuse",VLOOKUP(P124,LAndcost3,2,FALSE),IF($E$10="Location",VLOOKUP(P124,Landcost2,2,FALSE),"Error"))) -> 0 | S124: 0 | U124: =IFERROR(('General Input Sheet'!$G$38/(VLOOKUP('Existing Trunk Assets - Water'!T124,'General Input Sheet'!$E$38:$G$44,3,FALSE))),1) -> 1 | V124: 0 | CF124: 0 | CR124: =IF(BL124="","",(BL124/$CF124)*$V124) -> 
K125: 0 | L125: =VLOOKUP($B125,ExistingWater!$A$45:$F$87,6,FALSE) ->  | N125: =IF(M125="",1,VLOOKUP(M125,'Unit Rates - Water'!$H$12:$I$23,2,FALSE)) -> 1 | R125: =IF(P125="",'Unit Rates - Land'!landcst,IF($E$10="Landuse",VLOOKUP(P125,LAndcost3,2,FALSE),IF($E$10="Location",VLOOKUP(P125,Landcost2,2,FALSE),"Error"))) -> 0 | S125: 0 | U125: =IFERROR(('General Input Sheet'!$G$38/(VLOOKUP('Existing Trunk Assets - Water'!T125,'General Input Sheet'!$E$38:$G$44,3,FALSE))),1) -> 1 | V125: 0 | CF125: 0
K126: 0 | L126: =VLOOKUP($B126,ExistingWater!$A$45:$F$87,6,FALSE) ->  | N126: =IF(M126="",1,VLOOKUP(M126,'Unit Rates - Water'!$H$12:$I$23,2,FALSE)) -> 1 | R126: =IF(P126="",'Unit Rates - Land'!landcst,IF($E$10="Landuse",VLOOKUP(P126,LAndcost3,2,FALSE),IF($E$10="Location",VLOOKUP(P126,Landcost2,2,FALSE),"Error"))) -> 0 | S126: 0 | U126: =IFERROR(('General Input Sheet'!$G$38/(VLOOKUP('Existing Trunk Assets - Water'!T126,'General Input Sheet'!$E$38:$G$44,3,FALSE))),1) -> 1 | V126: 0 | CF126: 0
K127: 0 | L127: =VLOOKUP($B127,ExistingWater!$A$45:$F$87,6,FALSE) ->  | N127: =IF(M127="",1,VLOOKUP(M127,'Unit Rates - Water'!$H$12:$I$23,2,FALSE)) -> 1 | R127: =IF(P127="",'Unit Rates - Land'!landcst,IF($E$10="Landuse",VLOOKUP(P127,LAndcost3,2,FALSE),IF($E$10="Location",VLOOKUP(P127,Landcost2,2,FALSE),"Error"))) -> 0 | S127: 0 | U127: =IFERROR(('General Input Sheet'!$G$38/(VLOOKUP('Existing Trunk Assets - Water'!T127,'General Input Sheet'!$E$38:$G$44,3,FALSE))),1) -> 1 | V127: 0 | CF127: 0
K128: 0 | L128: =VLOOKUP($B128,ExistingWater!$A$45:$F$87,6,FALSE) ->  | N128: =IF(M128="",1,VLOOKUP(M128,'Unit Rates - Water'!$H$12:$I$23,2,FALSE)) -> 1 | R128: =IF(P128="",'Unit Rates - Land'!landcst,IF($E$10="Landuse",VLOOKUP(P128,LAndcost3,2,FALSE),IF($E$10="Location",VLOOKUP(P128,Landcost2,2,FALSE),"Error"))) -> 0 | S128: 0 | U128: =IFERROR(('General Input Sheet'!$G$38/(VLOOKUP('Existing Trunk Assets - Water'!T128,'General Input Sheet'!$E$38:$G$44,3,FALSE))),1) -> 1 | V128: 0 | CF128: 0
K129: 0 | L129: =VLOOKUP($B129,ExistingWater!$A$45:$F$87,6,FALSE) ->  | N129: =IF(M129="",1,VLOOKUP(M129,'Unit Rates - Water'!$H$12:$I$23,2,FALSE)) -> 1 | R129: =IF(P129="",'Unit Rates - Land'!landcst,IF($E$10="Landuse",VLOOKUP(P129,LAndcost3,2,FALSE),IF($E$10="Location",VLOOKUP(P129,Landcost2,2,FALSE),"Error"))) -> 0 | S129: 0 | U129: =IFERROR(('General Input Sheet'!$G$38/(VLOOKUP('Existing Trunk Assets - Water'!T129,'General Input Sheet'!$E$38:$G$44,3,FALSE))),1) -> 1 | V129: 0 | CF129: 0
K130: 0 | L130: =VLOOKUP($B130,ExistingWater!$A$45:$F$87,6,FALSE) ->  | N130: =IF(M130="",1,VLOOKUP(M130,'Unit Rates - Water'!$H$12:$I$23,2,FALSE)) -> 1 | R130: =IF(P130="",'Unit Rates - Land'!landcst,IF($E$10="Landuse",VLOOKUP(P130,LAndcost3,2,FALSE),IF($E$10="Location",VLOOKUP(P130,Landcost2,2,FALSE),"Error"))) -> 0 | S130: 0 | U130: =IFERROR(('General Input Sheet'!$G$38/(VLOOKUP('Existing Trunk Assets - Water'!T130,'General Input Sheet'!$E$38:$G$44,3,FALSE))),1) -> 1 | V130: 0 | CF130: 0
K131: 0 | L131: =VLOOKUP($B131,ExistingWater!$A$45:$F$87,6,FALSE) ->  | N131: =IF(M131="",1,VLOOKUP(M131,'Unit Rates - Water'!$H$12:$I$23,2,FALSE)) -> 1 | R131: =IF(P131="",'Unit Rates - Land'!landcst,IF($E$10="Landuse",VLOOKUP(P131,LAndcost3,2,FALSE),IF($E$10="Location",VLOOKUP(P131,Landcost2,2,FALSE),"Error"))) -> 0 | S131: 0 | U131: =IFERROR(('General Input Sheet'!$G$38/(VLOOKUP('Existing Trunk Assets - Water'!T131,'General Input Sheet'!$E$38:$G$44,3,FALSE))),1) -> 1 | V131: 0 | CF131: 0
K132: 0 | L132: =VLOOKUP($B132,ExistingWater!$A$45:$F$87,6,FALSE) ->  | N132: =IF(M132="",1,VLOOKUP(M132,'Unit Rates - Water'!$H$12:$I$23,2,FALSE)) -> 1 | R132: =IF(P132="",'Unit Rates - Land'!landcst,IF($E$10="Landuse",VLOOKUP(P132,LAndcost3,2,FALSE),IF($E$10="Location",VLOOKUP(P132,Landcost2,2,FALSE),"Error"))) -> 0 | S132: 0 | U132: =IFERROR(('General Input Sheet'!$G$38/(VLOOKUP('Existing Trunk Assets - Water'!T132,'General Input Sheet'!$E$38:$G$44,3,FALSE))),1) -> 1 | V132: 0 | CF132: 0
K133: 0 | L133: =VLOOKUP($B133,ExistingWater!$A$45:$F$87,6,FALSE) ->  | N133: =IF(M133="",1,VLOOKUP(M133,'Unit Rates - Water'!$H$12:$I$23,2,FALSE)) -> 1 | R133: =IF(P133="",'Unit Rates - Land'!landcst,IF($E$10="Landuse",VLOOKUP(P133,LAndcost3,2,FALSE),IF($E$10="Location",VLOOKUP(P133,Landcost2,2,FALSE),"Error"))) -> 0 | S133: 0 | U133: =IFERROR(('General Input Sheet'!$G$38/(VLOOKUP('Existing Trunk Assets - Water'!T133,'General Input Sheet'!$E$38:$G$44,3,FALSE))),1) -> 1 | V133: 0 | CF133: 0
K134: 0 | L134: =VLOOKUP($B134,ExistingWater!$A$45:$F$87,6,FALSE) ->  | N134: =IF(M134="",1,VLOOKUP(M134,'Unit Rates - Water'!$H$12:$I$23,2,FALSE)) -> 1 | R134: =IF(P134="",'Unit Rates - Land'!landcst,IF($E$10="Landuse",VLOOKUP(P134,LAndcost3,2,FALSE),IF($E$10="Location",VLOOKUP(P134,Landcost2,2,FALSE),"Error"))) -> 0 | S134: 0 | U134: =IFERROR(('General Input Sheet'!$G$38/(VLOOKUP('Existing Trunk Assets - Water'!T134,'General Input Sheet'!$E$38:$G$44,3,FALSE))),1) -> 1 | V134: 0 | CF134: 0
K135: 0 | L135: =VLOOKUP($B135,ExistingWater!$A$45:$F$87,6,FALSE) ->  | N135: =IF(M135="",1,VLOOKUP(M135,'Unit Rates - Water'!$H$12:$I$23,2,FALSE)) -> 1 | R135: =IF(P135="",'Unit Rates - Land'!landcst,IF($E$10="Landuse",VLOOKUP(P135,LAndcost3,2,FALSE),IF($E$10="Location",VLOOKUP(P135,Landcost2,2,FALSE),"Error"))) -> 0 | S135: 0 | U135: =IFERROR(('General Input Sheet'!$G$38/(VLOOKUP('Existing Trunk Assets - Water'!T135,'General Input Sheet'!$E$38:$G$44,3,FALSE))),1) -> 1 | V135: 0 | CF135: 0
K136: 0 | L136: =VLOOKUP($B136,ExistingWater!$A$45:$F$87,6,FALSE) ->  | N136: =IF(M136="",1,VLOOKUP(M136,'Unit Rates - Water'!$H$12:$I$23,2,FALSE)) -> 1 | R136: =IF(P136="",'Unit Rates - Land'!landcst,IF($E$10="Landuse",VLOOKUP(P136,LAndcost3,2,FALSE),IF($E$10="Location",VLOOKUP(P136,Landcost2,2,FALSE),"Error"))) -> 0 | S136: 0 | U136: =IFERROR(('General Input Sheet'!$G$38/(VLOOKUP('Existing Trunk Assets - Water'!T136,'General Input Sheet'!$E$38:$G$44,3,FALSE))),1) -> 1 | V136: 0 | CF136: 0
K137: 0 | L137: =VLOOKUP($B137,ExistingWater!$A$45:$F$87,6,FALSE) ->  | N137: =IF(M137="",1,VLOOKUP(M137,'Unit Rates - Water'!$H$12:$I$23,2,FALSE)) -> 1 | R137: =IF(P137="",'Unit Rates - Land'!landcst,IF($E$10="Landuse",VLOOKUP(P137,LAndcost3,2,FALSE),IF($E$10="Location",VLOOKUP(P137,Landcost2,2,FALSE),"Error"))) -> 0 | S137: 0 | U137: =IFERROR(('General Input Sheet'!$G$38/(VLOOKUP('Existing Trunk Assets - Water'!T137,'General Input Sheet'!$E$38:$G$44,3,FALSE))),1) -> 1 | V137: 0 | CF137: 0
K138: 0 | L138: =VLOOKUP($B138,ExistingWater!$A$45:$F$87,6,FALSE) ->  | N138: =IF(M138="",1,VLOOKUP(M138,'Unit Rates - Water'!$H$12:$I$23,2,FALSE)) -> 1 | R138: =IF(P138="",'Unit Rates - Land'!landcst,IF($E$10="Landuse",VLOOKUP(P138,LAndcost3,2,FALSE),IF($E$10="Location",VLOOKUP(P138,Landcost2,2,FALSE),"Error"))) -> 0 | S138: 0 | U138: =IFERROR(('General Input Sheet'!$G$38/(VLOOKUP('Existing Trunk Assets - Water'!T138,'General Input Sheet'!$E$38:$G$44,3,FALSE))),1) -> 1 | V138: 0 | CF138: 0
K139: 0 | L139: =VLOOKUP($B139,ExistingWater!$A$45:$F$87,6,FALSE) ->  | N139: =IF(M139="",1,VLOOKUP(M139,'Unit Rates - Water'!$H$12:$I$23,2,FALSE)) -> 1 | R139: =IF(P139="",'Unit Rates - Land'!landcst,IF($E$10="Landuse",VLOOKUP(P139,LAndcost3,2,FALSE),IF($E$10="Location",VLOOKUP(P139,Landcost2,2,FALSE),"Error"))) -> 0 | S139: 0 | U139: =IFERROR(('General Input Sheet'!$G$38/(VLOOKUP('Existing Trunk Assets - Water'!T139,'General Input Sheet'!$E$38:$G$44,3,FALSE))),1) -> 1 | V139: 0 | CF139: 0
K140: 0 | L140: =VLOOKUP($B140,ExistingWater!$A$45:$F$87,6,FALSE) ->  | N140: =IF(M140="",1,VLOOKUP(M140,'Unit Rates - Water'!$H$12:$I$23,2,FALSE)) -> 1 | R140: =IF(P140="",'Unit Rates - Land'!landcst,IF($E$10="Landuse",VLOOKUP(P140,LAndcost3,2,FALSE),IF($E$10="Location",VLOOKUP(P140,Landcost2,2,FALSE),"Error"))) -> 0 | S140: 0 | U140: =IFERROR(('General Input Sheet'!$G$38/(VLOOKUP('Existing Trunk Assets - Water'!T140,'General Input Sheet'!$E$38:$G$44,3,FALSE))),1) -> 1 | V140: 0 | CF140: 0 | CQ140: =IF(BK140="","",(BK140/$CF140)*$V140) -> 
K141: 0 | L141: =VLOOKUP($B141,ExistingWater!$A$45:$F$87,6,FALSE) ->  | N141: =IF(M141="",1,VLOOKUP(M141,'Unit Rates - Water'!$H$12:$I$23,2,FALSE)) -> 1 | R141: =IF(P141="",'Unit Rates - Land'!landcst,IF($E$10="Landuse",VLOOKUP(P141,LAndcost3,2,FALSE),IF($E$10="Location",VLOOKUP(P141,Landcost2,2,FALSE),"Error"))) -> 0 | S141: 0 | U141: =IFERROR(('General Input Sheet'!$G$38/(VLOOKUP('Existing Trunk Assets - Water'!T141,'General Input Sheet'!$E$38:$G$44,3,FALSE))),1) -> 1 | V141: 0 | CF141: 0
K142: 0 | L142: =VLOOKUP($B142,ExistingWater!$A$45:$F$87,6,FALSE) ->  | N142: =IF(M142="",1,VLOOKUP(M142,'Unit Rates - Water'!$H$12:$I$23,2,FALSE)) -> 1 | R142: =IF(P142="",'Unit Rates - Land'!landcst,IF($E$10="Landuse",VLOOKUP(P142,LAndcost3,2,FALSE),IF($E$10="Location",VLOOKUP(P142,Landcost2,2,FALSE),"Error"))) -> 0 | S142: 0 | U142: =IFERROR(('General Input Sheet'!$G$38/(VLOOKUP('Existing Trunk Assets - Water'!T142,'General Input Sheet'!$E$38:$G$44,3,FALSE))),1) -> 1 | V142: 0 | CF142: 0
K143: 0 | L143: =VLOOKUP($B143,ExistingWater!$A$45:$F$87,6,FALSE) ->  | N143: =IF(M143="",1,VLOOKUP(M143,'Unit Rates - Water'!$H$12:$I$23,2,FALSE)) -> 1 | R143: =IF(P143="",'Unit Rates - Land'!landcst,IF($E$10="Landuse",VLOOKUP(P143,LAndcost3,2,FALSE),IF($E$10="Location",VLOOKUP(P143,Landcost2,2,FALSE),"Error"))) -> 0 | S143: 0 | U143: =IFERROR(('General Input Sheet'!$G$38/(VLOOKUP('Existing Trunk Assets - Water'!T143,'General Input Sheet'!$E$38:$G$44,3,FALSE))),1) -> 1 | V143: 0 | CF143: 0
K144: 0 | L144: =VLOOKUP($B144,ExistingWater!$A$45:$F$87,6,FALSE) ->  | N144: =IF(M144="",1,VLOOKUP(M144,'Unit Rates - Water'!$H$12:$I$23,2,FALSE)) -> 1 | R144: =IF(P144="",'Unit Rates - Land'!landcst,IF($E$10="Landuse",VLOOKUP(P144,LAndcost3,2,FALSE),IF($E$10="Location",VLOOKUP(P144,Landcost2,2,FALSE),"Error"))) -> 0 | S144: 0 | U144: =IFERROR(('General Input Sheet'!$G$38/(VLOOKUP('Existing Trunk Assets - Water'!T144,'General Input Sheet'!$E$38:$G$44,3,FALSE))),1) -> 1 | V144: 0 | CF144: 0
K145: 0 | L145: =VLOOKUP($B145,ExistingWater!$A$45:$F$87,6,FALSE) ->  | N145: =IF(M145="",1,VLOOKUP(M145,'Unit Rates - Water'!$H$12:$I$23,2,FALSE)) -> 1 | R145: =IF(P145="",'Unit Rates - Land'!landcst,IF($E$10="Landuse",VLOOKUP(P145,LAndcost3,2,FALSE),IF($E$10="Location",VLOOKUP(P145,Landcost2,2,FALSE),"Error"))) -> 0 | S145: 0 | U145: =IFERROR(('General Input Sheet'!$G$38/(VLOOKUP('Existing Trunk Assets - Water'!T145,'General Input Sheet'!$E$38:$G$44,3,FALSE))),1) -> 1 | V145: 0 | CF145: 0
K146: =IF(H146=TYPE1,VLOOKUP(J146,WaterUnitrates1,2,FALSE),IF(H146=TYPE2,VLOOKUP(J146,Unitrates2,2,FALSE),0)) -> 0 | L146: =VLOOKUP($B146,ExistingWater!$A$45:$F$87,6,FALSE) ->  | N146: =IF(M146="",1,VLOOKUP(M146,'Unit Rates - Water'!$H$12:$I$23,2,FALSE)) -> 1 | R146: =IF(P146="",'Unit Rates - Land'!landcst,IF($E$10="Landuse",VLOOKUP(P146,LAndcost3,2,FALSE),IF($E$10="Location",VLOOKUP(P146,Landcost2,2,FALSE),"Error"))) -> 0 | S146: 0 | U146: =IFERROR(('General Input Sheet'!$G$38/(VLOOKUP('Existing Trunk Assets - Water'!T146,'General Input Sheet'!$E$38:$G$44,3,FALSE))),1) -> 1 | V146: 0 | CF146: 0
K147: 0 | L147: =VLOOKUP($B147,ExistingWater!$A$45:$F$87,6,FALSE) ->  | N147: =IF(M147="",1,VLOOKUP(M147,'Unit Rates - Water'!$H$12:$I$23,2,FALSE)) -> 1 | O147: =L147*N147 ->  | R147: =IF(P147="",'Unit Rates - Land'!landcst,IF($E$10="Landuse",VLOOKUP(P147,LAndcost3,2,FALSE),IF($E$10="Location",VLOOKUP(P147,Landcost2,2,FALSE),"Error"))) -> 0 | S147: =IF(R147="",0,R147*10000*Q147) -> 0 | U147: =IFERROR(('General Input Sheet'!$G$38/(VLOOKUP('Existing Trunk Assets - Water'!T147,'General Input Sheet'!$E$38:$G$44,3,FALSE))),1) -> 1 | V147: =IFERROR((O147+S147)*U147,0) -> 0 | CF147: 0
K148: 0 | L148: =VLOOKUP($B148,ExistingWater!$A$45:$F$87,6,FALSE) ->  | N148: =IF(M148="",1,VLOOKUP(M148,'Unit Rates - Water'!$H$12:$I$23,2,FALSE)) -> 1 | R148: =IF(P148="",'Unit Rates - Land'!landcst,IF($E$10="Landuse",VLOOKUP(P148,LAndcost3,2,FALSE),IF($E$10="Location",VLOOKUP(P148,Landcost2,2,FALSE),"Error"))) -> 0 | S148: 0 | U148: =IFERROR(('General Input Sheet'!$G$38/(VLOOKUP('Existing Trunk Assets - Water'!T148,'General Input Sheet'!$E$38:$G$44,3,FALSE))),1) -> 1 | V148: 0 | CF148: 0
K149: 0 | L149: =VLOOKUP($B149,ExistingWater!$A$45:$F$87,6,FALSE) ->  | N149: =IF(M149="",1,VLOOKUP(M149,'Unit Rates - Water'!$H$12:$I$23,2,FALSE)) -> 1 | R149: =IF(P149="",'Unit Rates - Land'!landcst,IF($E$10="Landuse",VLOOKUP(P149,LAndcost3,2,FALSE),IF($E$10="Location",VLOOKUP(P149,Landcost2,2,FALSE),"Error"))) -> 0 | S149: 0 | U149: =IFERROR(('General Input Sheet'!$G$38/(VLOOKUP('Existing Trunk Assets - Water'!T149,'General Input Sheet'!$E$38:$G$44,3,FALSE))),1) -> 1 | V149: 0 | CF149: 0
K150: 0 | L150: =VLOOKUP($B150,ExistingWater!$A$45:$F$87,6,FALSE) ->  | N150: =IF(M150="",1,VLOOKUP(M150,'Unit Rates - Water'!$H$12:$I$23,2,FALSE)) -> 1 | R150: =IF(P150="",'Unit Rates - Land'!landcst,IF($E$10="Landuse",VLOOKUP(P150,LAndcost3,2,FALSE),IF($E$10="Location",VLOOKUP(P150,Landcost2,2,FALSE),"Error"))) -> 0 | S150: 0 | U150: =IFERROR(('General Input Sheet'!$G$38/(VLOOKUP('Existing Trunk Assets - Water'!T150,'General Input Sheet'!$E$38:$G$44,3,FALSE))),1) -> 1 | V150: 0 | CF150: 0
K151: 0 | L151: =VLOOKUP($B151,ExistingWater!$A$45:$F$87,6,FALSE) ->  | N151: =IF(M151="",1,VLOOKUP(M151,'Unit Rates - Water'!$H$12:$I$23,2,FALSE)) -> 1 | R151: =IF(P151="",'Unit Rates - Land'!landcst,IF($E$10="Landuse",VLOOKUP(P151,LAndcost3,2,FALSE),IF($E$10="Location",VLOOKUP(P151,Landcost2,2,FALSE),"Error"))) -> 0 | S151: 0 | U151: =IFERROR(('General Input Sheet'!$G$38/(VLOOKUP('Existing Trunk Assets - Water'!T151,'General Input Sheet'!$E$38:$G$44,3,FALSE))),1) -> 1 | V151: 0 | CF151: 0
K152: 0 | L152: =VLOOKUP($B152,ExistingWater!$A$45:$F$87,6,FALSE) ->  | N152: =IF(M152="",1,VLOOKUP(M152,'Unit Rates - Water'!$H$12:$I$23,2,FALSE)) -> 1 | R152: =IF(P152="",'Unit Rates - Land'!landcst,IF($E$10="Landuse",VLOOKUP(P152,LAndcost3,2,FALSE),IF($E$10="Location",VLOOKUP(P152,Landcost2,2,FALSE),"Error"))) -> 0 | S152: 0 | U152: =IFERROR(('General Input Sheet'!$G$38/(VLOOKUP('Existing Trunk Assets - Water'!T152,'General Input Sheet'!$E$38:$G$44,3,FALSE))),1) -> 1 | V152: 0 | CF152: 0
K153: 0 | L153: =VLOOKUP($B153,ExistingWater!$A$45:$F$87,6,FALSE) ->  | N153: =IF(M153="",1,VLOOKUP(M153,'Unit Rates - Water'!$H$12:$I$23,2,FALSE)) -> 1 | R153: =IF(P153="",'Unit Rates - Land'!landcst,IF($E$10="Landuse",VLOOKUP(P153,LAndcost3,2,FALSE),IF($E$10="Location",VLOOKUP(P153,Landcost2,2,FALSE),"Error"))) -> 0 | S153: 0 | U153: =IFERROR(('General Input Sheet'!$G$38/(VLOOKUP('Existing Trunk Assets - Water'!T153,'General Input Sheet'!$E$38:$G$44,3,FALSE))),1) -> 1 | V153: 0 | CF153: 0
K154: 0 | L154: =VLOOKUP($B154,ExistingWater!$A$45:$F$87,6,FALSE) ->  | N154: =IF(M154="",1,VLOOKUP(M154,'Unit Rates - Water'!$H$12:$I$23,2,FALSE)) -> 1 | R154: =IF(P154="",'Unit Rates - Land'!landcst,IF($E$10="Landuse",VLOOKUP(P154,LAndcost3,2,FALSE),IF($E$10="Location",VLOOKUP(P154,Landcost2,2,FALSE),"Error"))) -> 0 | S154: 0 | U154: =IFERROR(('General Input Sheet'!$G$38/(VLOOKUP('Existing Trunk Assets - Water'!T154,'General Input Sheet'!$E$38:$G$44,3,FALSE))),1) -> 1 | V154: 0 | CF154: 0
K155: 0 | L155: =VLOOKUP($B155,ExistingWater!$A$45:$F$87,6,FALSE) ->  | N155: =IF(M155="",1,VLOOKUP(M155,'Unit Rates - Water'!$H$12:$I$23,2,FALSE)) -> 1 | R155: =IF(P155="",'Unit Rates - Land'!landcst,IF($E$10="Landuse",VLOOKUP(P155,LAndcost3,2,FALSE),IF($E$10="Location",VLOOKUP(P155,Landcost2,2,FALSE),"Error"))) -> 0 | S155: 0 | U155: =IFERROR(('General Input Sheet'!$G$38/(VLOOKUP('Existing Trunk Assets - Water'!T155,'General Input Sheet'!$E$38:$G$44,3,FALSE))),1) -> 1 | V155: 0 | CF155: 0
K156: 0 | L156: =VLOOKUP($B156,ExistingWater!$A$45:$F$87,6,FALSE) ->  | N156: =IF(M156="",1,VLOOKUP(M156,'Unit Rates - Water'!$H$12:$I$23,2,FALSE)) -> 1 | R156: =IF(P156="",'Unit Rates - Land'!landcst,IF($E$10="Landuse",VLOOKUP(P156,LAndcost3,2,FALSE),IF($E$10="Location",VLOOKUP(P156,Landcost2,2,FALSE),"Error"))) -> 0 | S156: 0 | U156: =IFERROR(('General Input Sheet'!$G$38/(VLOOKUP('Existing Trunk Assets - Water'!T156,'General Input Sheet'!$E$38:$G$44,3,FALSE))),1) -> 1 | V156: 0 | CF156: 0 | CP156: =IF(BJ156="","",(BJ156/$CF156)*$V156) -> 
K157: 0 | L157: =VLOOKUP($B157,ExistingWater!$A$45:$F$87,6,FALSE) ->  | N157: =IF(M157="",1,VLOOKUP(M157,'Unit Rates - Water'!$H$12:$I$23,2,FALSE)) -> 1 | R157: =IF(P157="",'Unit Rates - Land'!landcst,IF($E$10="Landuse",VLOOKUP(P157,LAndcost3,2,FALSE),IF($E$10="Location",VLOOKUP(P157,Landcost2,2,FALSE),"Error"))) -> 0 | S157: 0 | U157: =IFERROR(('General Input Sheet'!$G$38/(VLOOKUP('Existing Trunk Assets - Water'!T157,'General Input Sheet'!$E$38:$G$44,3,FALSE))),1) -> 1 | V157: 0 | BB157: =IF(W157="y",BB$14,IF(AND(W157>0,W157<=1),W157*BB$14,"")) ->  | BC157: =IF(X157="y",BC$14,IF(AND(X157>0,X157<=1),X157*BC$14,"")) ->  | BD157: =IF(Y157="y",BD$14,IF(AND(Y157>0,Y157<=1),Y157*BD$14,"")) ->  | BE157: =IF(Z157="y",BE$14,IF(AND(Z157>0,Z157<=1),Z157*BE$14,"")) ->  | BF157: =IF(AA157="y",BF$14,IF(AND(AA157>0,AA157<=1),AA157*BF$14,"")) ->  | BG157: =IF(AB157="y",BG$14,IF(AND(AB157>0,AB157<=1),AB157*BG$14,"")) ->  | BH157: =IF(AC157="y",BH$14,IF(AND(AC157>0,AC157<=1),AC157*BH$14,"")) ->  | BI157: =IF(AD157="y",BI$14,IF(AND(AD157>0,AD157<=1),AD157*BI$14,"")) ->  | BJ157: =IF(AE157="y",BJ$14,IF(AND(AE157>0,AE157<=1),AE157*BJ$14,"")) ->  | BK157: =IF(AF157="y",BK$14,IF(AND(AF157>0,AF157<=1),AF157*BK$14,"")) ->  | BL157: =IF(AG157="y",BL$14,IF(AND(AG157>0,AG157<=1),AG157*BL$14,"")) ->  | BM157: =IF(AH157="y",BM$14,IF(AND(AH157>0,AH157<=1),AH157*BM$14,"")) ->  | BN157: =IF(AI157="y",BN$14,IF(AND(AI157>0,AI157<=1),AI157*BN$14,"")) ->  | BO157: =IF(AJ157="y",BO$14,IF(AND(AJ157>0,AJ157<=1),AJ157*BO$14,"")) ->  | BP157: =IF(AK157="y",BP$14,IF(AND(AK157>0,AK157<=1),AK157*BP$14,"")) ->  | BQ157: =IF(AL157="y",BQ$14,IF(AND(AL157>0,AL157<=1),AL157*BQ$14,"")) ->  | BR157: =IF(AM157="y",BR$14,IF(AND(AM157>0,AM157<=1),AM157*BR$14,"")) ->  | BS157: =IF(AN157="y",BS$14,IF(AND(AN157>0,AN157<=1),AN157*BS$14,"")) ->  | BT157: =IF(AO157="y",BT$14,IF(AND(AO157>0,AO157<=1),AO157*BT$14,"")) ->  | BU157: =IF(AP157="y",BU$14,IF(AND(AP157>0,AP157<=1),AP157*BU$14,"")) ->  | BV157: =IF(AQ157="y",BV$14,IF(AND(AQ157>0,AQ157<=1),AQ157*BV$14,"")) ->  | BW157: =IF(AR157="y",BW$14,IF(AND(AR157>0,AR157<=1),AR157*BW$14,"")) ->  | BX157: =IF(AS157="y",BX$14,IF(AND(AS157>0,AS157<=1),AS157*BX$14,"")) ->  | BY157: =IF(AT157="y",BY$14,IF(AND(AT157>0,AT157<=1),AT157*BY$14,"")) ->  | BZ157: =IF(AU157="y",BZ$14,IF(AND(AU157>0,AU157<=1),AU157*BZ$14,"")) ->  | CA157: =IF(AV157="y",CA$14,IF(AND(AV157>0,AV157<=1),AV157*CA$14,"")) ->  | CB157: =IF(AW157="y",CB$14,IF(AND(AW157>0,AW157<=1),AW157*CB$14,"")) ->  | CC157: =IF(AX157="y",CC$14,IF(AND(AX157>0,AX157<=1),AX157*CC$14,"")) ->  | CD157: =IF(AY157="y",CD$14,IF(AND(AY157>0,AY157<=1),AY157*CD$14,"")) ->  | CE157: =IF(AZ157="y",CE$14,IF(AND(AZ157>0,AZ157<=1),AZ157*CE$14,"")) ->  | CF157: =SUM(BB157:CE157) -> 0 | CX157: =IF(BR157="","",(BR157/$CF157)*$V157) ->  | CY157: =IF(BS157="","",(BS157/$CF157)*$V157) ->  | CZ157: =IF(BT157="","",(BT157/$CF157)*$V157) ->  | DA157: =IF(BU157="","",(BU157/$CF157)*$V157) ->  | DB157: =IF(BV157="","",(BV157/$CF157)*$V157) ->  | DC157: =IF(BW157="","",(BW157/$CF157)*$V157) ->  | DD157: =IF(BX157="","",(BX157/$CF157)*$V157) ->  | DE157: =IF(BY157="","",(BY157/$CF157)*$V157) ->  | DF157: =IF(BZ157="","",(BZ157/$CF157)*$V157) ->  | DG157: =IF(CA157="","",(CA157/$CF157)*$V157) ->  | DH157: =IF(CB157="","",(CB157/$CF157)*$V157) ->  | DI157: =IF(CC157="","",(CC157/$CF157)*$V157) ->  | DJ157: =IF(CD157="","",(CD157/$CF157)*$V157) ->  | DK157: =IF(CE157="","",(CE157/$CF157)*$V157) ->  | DL157: =IF(SUM(CH157:DK157)=V157,"","ERROR") -> 
K158: 0 | L158: =VLOOKUP($B158,ExistingWater!$A$45:$F$87,6,FALSE) ->  | N158: =IF(M158="",1,VLOOKUP(M158,'Unit Rates - Water'!$H$12:$I$23,2,FALSE)) -> 1 | R158: =IF(P158="",'Unit Rates - Land'!landcst,IF($E$10="Landuse",VLOOKUP(P158,LAndcost3,2,FALSE),IF($E$10="Location",VLOOKUP(P158,Landcost2,2,FALSE),"Error"))) -> 0 | S158: 0 | U158: =IFERROR(('General Input Sheet'!$G$38/(VLOOKUP('Existing Trunk Assets - Water'!T158,'General Input Sheet'!$E$38:$G$44,3,FALSE))),1) -> 1 | V158: 0 | CF158: 0
K159: 0 | L159: =VLOOKUP($B159,ExistingWater!$A$45:$F$87,6,FALSE) ->  | N159: =IF(M159="",1,VLOOKUP(M159,'Unit Rates - Water'!$H$12:$I$23,2,FALSE)) -> 1 | R159: =IF(P159="",'Unit Rates - Land'!landcst,IF($E$10="Landuse",VLOOKUP(P159,LAndcost3,2,FALSE),IF($E$10="Location",VLOOKUP(P159,Landcost2,2,FALSE),"Error"))) -> 0 | S159: 0 | U159: =IFERROR(('General Input Sheet'!$G$38/(VLOOKUP('Existing Trunk Assets - Water'!T159,'General Input Sheet'!$E$38:$G$44,3,FALSE))),1) -> 1 | V159: 0 | CF159: 0
K160: 0 | L160: =VLOOKUP($B160,ExistingWater!$A$45:$F$87,6,FALSE) ->  | N160: =IF(M160="",1,VLOOKUP(M160,'Unit Rates - Water'!$H$12:$I$23,2,FALSE)) -> 1 | R160: =IF(P160="",'Unit Rates - Land'!landcst,IF($E$10="Landuse",VLOOKUP(P160,LAndcost3,2,FALSE),IF($E$10="Location",VLOOKUP(P160,Landcost2,2,FALSE),"Error"))) -> 0 | S160: 0 | U160: =IFERROR(('General Input Sheet'!$G$38/(VLOOKUP('Existing Trunk Assets - Water'!T160,'General Input Sheet'!$E$38:$G$44,3,FALSE))),1) -> 1 | V160: 0 | CF160: 0
K161: 0 | L161: =VLOOKUP($B161,ExistingWater!$A$45:$F$87,6,FALSE) ->  | N161: =IF(M161="",1,VLOOKUP(M161,'Unit Rates - Water'!$H$12:$I$23,2,FALSE)) -> 1 | R161: =IF(P161="",'Unit Rates - Land'!landcst,IF($E$10="Landuse",VLOOKUP(P161,LAndcost3,2,FALSE),IF($E$10="Location",VLOOKUP(P161,Landcost2,2,FALSE),"Error"))) -> 0 | S161: 0 | U161: =IFERROR(('General Input Sheet'!$G$38/(VLOOKUP('Existing Trunk Assets - Water'!T161,'General Input Sheet'!$E$38:$G$44,3,FALSE))),1) -> 1 | V161: 0 | CF161: 0
K162: 0 | L162: =VLOOKUP($B162,ExistingWater!$A$45:$F$87,6,FALSE) ->  | N162: =IF(M162="",1,VLOOKUP(M162,'Unit Rates - Water'!$H$12:$I$23,2,FALSE)) -> 1 | R162: =IF(P162="",'Unit Rates - Land'!landcst,IF($E$10="Landuse",VLOOKUP(P162,LAndcost3,2,FALSE),IF($E$10="Location",VLOOKUP(P162,Landcost2,2,FALSE),"Error"))) -> 0 | S162: 0 | U162: =IFERROR(('General Input Sheet'!$G$38/(VLOOKUP('Existing Trunk Assets - Water'!T162,'General Input Sheet'!$E$38:$G$44,3,FALSE))),1) -> 1 | V162: 0 | CF162: 0
K163: 0 | L163: =VLOOKUP($B163,ExistingWater!$A$45:$F$87,6,FALSE) ->  | N163: =IF(M163="",1,VLOOKUP(M163,'Unit Rates - Water'!$H$12:$I$23,2,FALSE)) -> 1 | R163: =IF(P163="",'Unit Rates - Land'!landcst,IF($E$10="Landuse",VLOOKUP(P163,LAndcost3,2,FALSE),IF($E$10="Location",VLOOKUP(P163,Landcost2,2,FALSE),"Error"))) -> 0 | S163: 0 | U163: =IFERROR(('General Input Sheet'!$G$38/(VLOOKUP('Existing Trunk Assets - Water'!T163,'General Input Sheet'!$E$38:$G$44,3,FALSE))),1) -> 1 | V163: 0 | CF163: 0
K164: 0 | L164: =VLOOKUP($B164,ExistingWater!$A$45:$F$87,6,FALSE) ->  | N164: =IF(M164="",1,VLOOKUP(M164,'Unit Rates - Water'!$H$12:$I$23,2,FALSE)) -> 1 | R164: =IF(P164="",'Unit Rates - Land'!landcst,IF($E$10="Landuse",VLOOKUP(P164,LAndcost3,2,FALSE),IF($E$10="Location",VLOOKUP(P164,Landcost2,2,FALSE),"Error"))) -> 0 | S164: 0 | U164: =IFERROR(('General Input Sheet'!$G$38/(VLOOKUP('Existing Trunk Assets - Water'!T164,'General Input Sheet'!$E$38:$G$44,3,FALSE))),1) -> 1 | V164: 0 | CF164: 0
K165: 0 | L165: =VLOOKUP($B165,ExistingWater!$A$45:$F$87,6,FALSE) ->  | N165: =IF(M165="",1,VLOOKUP(M165,'Unit Rates - Water'!$H$12:$I$23,2,FALSE)) -> 1 | R165: =IF(P165="",'Unit Rates - Land'!landcst,IF($E$10="Landuse",VLOOKUP(P165,LAndcost3,2,FALSE),IF($E$10="Location",VLOOKUP(P165,Landcost2,2,FALSE),"Error"))) -> 0 | S165: 0 | U165: =IFERROR(('General Input Sheet'!$G$38/(VLOOKUP('Existing Trunk Assets - Water'!T165,'General Input Sheet'!$E$38:$G$44,3,FALSE))),1) -> 1 | V165: 0 | CF165: 0
K166: 0 | L166: =VLOOKUP($B166,ExistingWater!$A$45:$F$87,6,FALSE) ->  | N166: =IF(M166="",1,VLOOKUP(M166,'Unit Rates - Water'!$H$12:$I$23,2,FALSE)) -> 1 | R166: =IF(P166="",'Unit Rates - Land'!landcst,IF($E$10="Landuse",VLOOKUP(P166,LAndcost3,2,FALSE),IF($E$10="Location",VLOOKUP(P166,Landcost2,2,FALSE),"Error"))) -> 0 | S166: 0 | U166: =IFERROR(('General Input Sheet'!$G$38/(VLOOKUP('Existing Trunk Assets - Water'!T166,'General Input Sheet'!$E$38:$G$44,3,FALSE))),1) -> 1 | V166: 0 | CF166: 0
K167: 0 | L167: =VLOOKUP($B167,ExistingWater!$A$45:$F$87,6,FALSE) ->  | N167: =IF(M167="",1,VLOOKUP(M167,'Unit Rates - Water'!$H$12:$I$23,2,FALSE)) -> 1 | R167: =IF(P167="",'Unit Rates - Land'!landcst,IF($E$10="Landuse",VLOOKUP(P167,LAndcost3,2,FALSE),IF($E$10="Location",VLOOKUP(P167,Landcost2,2,FALSE),"Error"))) -> 0 | S167: 0 | U167: =IFERROR(('General Input Sheet'!$G$38/(VLOOKUP('Existing Trunk Assets - Water'!T167,'General Input Sheet'!$E$38:$G$44,3,FALSE))),1) -> 1 | V167: 0 | CF167: 0
K168: 0 | L168: =VLOOKUP($B168,ExistingWater!$A$45:$F$87,6,FALSE) ->  | N168: =IF(M168="",1,VLOOKUP(M168,'Unit Rates - Water'!$H$12:$I$23,2,FALSE)) -> 1 | R168: =IF(P168="",'Unit Rates - Land'!landcst,IF($E$10="Landuse",VLOOKUP(P168,LAndcost3,2,FALSE),IF($E$10="Location",VLOOKUP(P168,Landcost2,2,FALSE),"Error"))) -> 0 | S168: 0 | U168: =IFERROR(('General Input Sheet'!$G$38/(VLOOKUP('Existing Trunk Assets - Water'!T168,'General Input Sheet'!$E$38:$G$44,3,FALSE))),1) -> 1 | V168: 0 | CF168: 0
K169: 0 | L169: =VLOOKUP($B169,ExistingWater!$A$45:$F$87,6,FALSE) ->  | N169: =IF(M169="",1,VLOOKUP(M169,'Unit Rates - Water'!$H$12:$I$23,2,FALSE)) -> 1 | R169: =IF(P169="",'Unit Rates - Land'!landcst,IF($E$10="Landuse",VLOOKUP(P169,LAndcost3,2,FALSE),IF($E$10="Location",VLOOKUP(P169,Landcost2,2,FALSE),"Error"))) -> 0 | S169: 0 | U169: =IFERROR(('General Input Sheet'!$G$38/(VLOOKUP('Existing Trunk Assets - Water'!T169,'General Input Sheet'!$E$38:$G$44,3,FALSE))),1) -> 1 | V169: 0 | CF169: 0
K170: 0 | L170: =VLOOKUP($B170,ExistingWater!$A$45:$F$87,6,FALSE) ->  | N170: =IF(M170="",1,VLOOKUP(M170,'Unit Rates - Water'!$H$12:$I$23,2,FALSE)) -> 1 | R170: =IF(P170="",'Unit Rates - Land'!landcst,IF($E$10="Landuse",VLOOKUP(P170,LAndcost3,2,FALSE),IF($E$10="Location",VLOOKUP(P170,Landcost2,2,FALSE),"Error"))) -> 0 | S170: 0 | U170: =IFERROR(('General Input Sheet'!$G$38/(VLOOKUP('Existing Trunk Assets - Water'!T170,'General Input Sheet'!$E$38:$G$44,3,FALSE))),1) -> 1 | V170: 0 | CF170: 0
K171: 0 | L171: =VLOOKUP($B171,ExistingWater!$A$45:$F$87,6,FALSE) ->  | N171: =IF(M171="",1,VLOOKUP(M171,'Unit Rates - Water'!$H$12:$I$23,2,FALSE)) -> 1 | R171: =IF(P171="",'Unit Rates - Land'!landcst,IF($E$10="Landuse",VLOOKUP(P171,LAndcost3,2,FALSE),IF($E$10="Location",VLOOKUP(P171,Landcost2,2,FALSE),"Error"))) -> 0 | S171: 0 | U171: =IFERROR(('General Input Sheet'!$G$38/(VLOOKUP('Existing Trunk Assets - Water'!T171,'General Input Sheet'!$E$38:$G$44,3,FALSE))),1) -> 1 | V171: 0 | CF171: 0
K172: 0 | L172: =VLOOKUP($B172,ExistingWater!$A$45:$F$87,6,FALSE) ->  | N172: =IF(M172="",1,VLOOKUP(M172,'Unit Rates - Water'!$H$12:$I$23,2,FALSE)) -> 1 | R172: =IF(P172="",'Unit Rates - Land'!landcst,IF($E$10="Landuse",VLOOKUP(P172,LAndcost3,2,FALSE),IF($E$10="Location",VLOOKUP(P172,Landcost2,2,FALSE),"Error"))) -> 0 | S172: 0 | U172: =IFERROR(('General Input Sheet'!$G$38/(VLOOKUP('Existing Trunk Assets - Water'!T172,'General Input Sheet'!$E$38:$G$44,3,FALSE))),1) -> 1 | V172: 0 | CF172: 0 | CO172: =IF(BI172="","",(BI172/$CF172)*$V172) -> 
K173: 0 | L173: =VLOOKUP($B173,ExistingWater!$A$45:$F$87,6,FALSE) ->  | N173: =IF(M173="",1,VLOOKUP(M173,'Unit Rates - Water'!$H$12:$I$23,2,FALSE)) -> 1 | R173: =IF(P173="",'Unit Rates - Land'!landcst,IF($E$10="Landuse",VLOOKUP(P173,LAndcost3,2,FALSE),IF($E$10="Location",VLOOKUP(P173,Landcost2,2,FALSE),"Error"))) -> 0 | S173: 0 | U173: =IFERROR(('General Input Sheet'!$G$38/(VLOOKUP('Existing Trunk Assets - Water'!T173,'General Input Sheet'!$E$38:$G$44,3,FALSE))),1) -> 1 | V173: 0 | CF173: 0
K174: 0 | L174: =VLOOKUP($B174,ExistingWater!$A$45:$F$87,6,FALSE) ->  | N174: =IF(M174="",1,VLOOKUP(M174,'Unit Rates - Water'!$H$12:$I$23,2,FALSE)) -> 1 | R174: =IF(P174="",'Unit Rates - Land'!landcst,IF($E$10="Landuse",VLOOKUP(P174,LAndcost3,2,FALSE),IF($E$10="Location",VLOOKUP(P174,Landcost2,2,FALSE),"Error"))) -> 0 | S174: 0 | U174: =IFERROR(('General Input Sheet'!$G$38/(VLOOKUP('Existing Trunk Assets - Water'!T174,'General Input Sheet'!$E$38:$G$44,3,FALSE))),1) -> 1 | V174: 0 | CF174: 0
K175: 0 | L175: =VLOOKUP($B175,ExistingWater!$A$45:$F$87,6,FALSE) ->  | N175: =IF(M175="",1,VLOOKUP(M175,'Unit Rates - Water'!$H$12:$I$23,2,FALSE)) -> 1 | R175: =IF(P175="",'Unit Rates - Land'!landcst,IF($E$10="Landuse",VLOOKUP(P175,LAndcost3,2,FALSE),IF($E$10="Location",VLOOKUP(P175,Landcost2,2,FALSE),"Error"))) -> 0 | S175: 0 | U175: =IFERROR(('General Input Sheet'!$G$38/(VLOOKUP('Existing Trunk Assets - Water'!T175,'General Input Sheet'!$E$38:$G$44,3,FALSE))),1) -> 1 | V175: 0 | CF175: 0
K176: 0 | L176: =VLOOKUP($B176,ExistingWater!$A$45:$F$87,6,FALSE) ->  | N176: =IF(M176="",1,VLOOKUP(M176,'Unit Rates - Water'!$H$12:$I$23,2,FALSE)) -> 1 | R176: =IF(P176="",'Unit Rates - Land'!landcst,IF($E$10="Landuse",VLOOKUP(P176,LAndcost3,2,FALSE),IF($E$10="Location",VLOOKUP(P176,Landcost2,2,FALSE),"Error"))) -> 0 | S176: 0 | U176: =IFERROR(('General Input Sheet'!$G$38/(VLOOKUP('Existing Trunk Assets - Water'!T176,'General Input Sheet'!$E$38:$G$44,3,FALSE))),1) -> 1 | V176: 0 | CF176: 0
K177: 0 | L177: =VLOOKUP($B177,ExistingWater!$A$45:$F$87,6,FALSE) ->  | N177: =IF(M177="",1,VLOOKUP(M177,'Unit Rates - Water'!$H$12:$I$23,2,FALSE)) -> 1 | R177: =IF(P177="",'Unit Rates - Land'!landcst,IF($E$10="Landuse",VLOOKUP(P177,LAndcost3,2,FALSE),IF($E$10="Location",VLOOKUP(P177,Landcost2,2,FALSE),"Error"))) -> 0 | S177: 0 | U177: =IFERROR(('General Input Sheet'!$G$38/(VLOOKUP('Existing Trunk Assets - Water'!T177,'General Input Sheet'!$E$38:$G$44,3,FALSE))),1) -> 1 | V177: 0 | CF177: 0
K178: 0 | L178: =VLOOKUP($B178,ExistingWater!$A$45:$F$87,6,FALSE) ->  | N178: =IF(M178="",1,VLOOKUP(M178,'Unit Rates - Water'!$H$12:$I$23,2,FALSE)) -> 1 | R178: =IF(P178="",'Unit Rates - Land'!landcst,IF($E$10="Landuse",VLOOKUP(P178,LAndcost3,2,FALSE),IF($E$10="Location",VLOOKUP(P178,Landcost2,2,FALSE),"Error"))) -> 0 | S178: 0 | U178: =IFERROR(('General Input Sheet'!$G$38/(VLOOKUP('Existing Trunk Assets - Water'!T178,'General Input Sheet'!$E$38:$G$44,3,FALSE))),1) -> 1 | V178: 0 | CF178: 0
K179: 0 | L179: =VLOOKUP($B179,ExistingWater!$A$45:$F$87,6,FALSE) ->  | N179: =IF(M179="",1,VLOOKUP(M179,'Unit Rates - Water'!$H$12:$I$23,2,FALSE)) -> 1 | R179: =IF(P179="",'Unit Rates - Land'!landcst,IF($E$10="Landuse",VLOOKUP(P179,LAndcost3,2,FALSE),IF($E$10="Location",VLOOKUP(P179,Landcost2,2,FALSE),"Error"))) -> 0 | S179: 0 | U179: =IFERROR(('General Input Sheet'!$G$38/(VLOOKUP('Existing Trunk Assets - Water'!T179,'General Input Sheet'!$E$38:$G$44,3,FALSE))),1) -> 1 | V179: 0 | CF179: 0
K180: 0 | L180: =VLOOKUP($B180,ExistingWater!$A$45:$F$87,6,FALSE) ->  | N180: =IF(M180="",1,VLOOKUP(M180,'Unit Rates - Water'!$H$12:$I$23,2,FALSE)) -> 1 | R180: =IF(P180="",'Unit Rates - Land'!landcst,IF($E$10="Landuse",VLOOKUP(P180,LAndcost3,2,FALSE),IF($E$10="Location",VLOOKUP(P180,Landcost2,2,FALSE),"Error"))) -> 0 | S180: 0 | U180: =IFERROR(('General Input Sheet'!$G$38/(VLOOKUP('Existing Trunk Assets - Water'!T180,'General Input Sheet'!$E$38:$G$44,3,FALSE))),1) -> 1 | V180: 0 | CF180: 0
K181: 0 | L181: =VLOOKUP($B181,ExistingWater!$A$45:$F$87,6,FALSE) ->  | N181: =IF(M181="",1,VLOOKUP(M181,'Unit Rates - Water'!$H$12:$I$23,2,FALSE)) -> 1 | R181: =IF(P181="",'Unit Rates - Land'!landcst,IF($E$10="Landuse",VLOOKUP(P181,LAndcost3,2,FALSE),IF($E$10="Location",VLOOKUP(P181,Landcost2,2,FALSE),"Error"))) -> 0 | S181: 0 | U181: =IFERROR(('General Input Sheet'!$G$38/(VLOOKUP('Existing Trunk Assets - Water'!T181,'General Input Sheet'!$E$38:$G$44,3,FALSE))),1) -> 1 | V181: 0 | CF181: 0
K182: 0 | L182: =VLOOKUP($B182,ExistingWater!$A$45:$F$87,6,FALSE) ->  | N182: =IF(M182="",1,VLOOKUP(M182,'Unit Rates - Water'!$H$12:$I$23,2,FALSE)) -> 1 | R182: =IF(P182="",'Unit Rates - Land'!landcst,IF($E$10="Landuse",VLOOKUP(P182,LAndcost3,2,FALSE),IF($E$10="Location",VLOOKUP(P182,Landcost2,2,FALSE),"Error"))) -> 0 | S182: 0 | U182: =IFERROR(('General Input Sheet'!$G$38/(VLOOKUP('Existing Trunk Assets - Water'!T182,'General Input Sheet'!$E$38:$G$44,3,FALSE))),1) -> 1 | V182: 0 | CF182: 0
K183: 0 | L183: =VLOOKUP($B183,ExistingWater!$A$45:$F$87,6,FALSE) ->  | N183: =IF(M183="",1,VLOOKUP(M183,'Unit Rates - Water'!$H$12:$I$23,2,FALSE)) -> 1 | R183: =IF(P183="",'Unit Rates - Land'!landcst,IF($E$10="Landuse",VLOOKUP(P183,LAndcost3,2,FALSE),IF($E$10="Location",VLOOKUP(P183,Landcost2,2,FALSE),"Error"))) -> 0 | S183: 0 | U183: =IFERROR(('General Input Sheet'!$G$38/(VLOOKUP('Existing Trunk Assets - Water'!T183,'General Input Sheet'!$E$38:$G$44,3,FALSE))),1) -> 1 | V183: 0 | CF183: 0
K184: 0 | L184: =VLOOKUP($B184,ExistingWater!$A$45:$F$87,6,FALSE) ->  | N184: =IF(M184="",1,VLOOKUP(M184,'Unit Rates - Water'!$H$12:$I$23,2,FALSE)) -> 1 | R184: =IF(P184="",'Unit Rates - Land'!landcst,IF($E$10="Landuse",VLOOKUP(P184,LAndcost3,2,FALSE),IF($E$10="Location",VLOOKUP(P184,Landcost2,2,FALSE),"Error"))) -> 0 | S184: 0 | U184: =IFERROR(('General Input Sheet'!$G$38/(VLOOKUP('Existing Trunk Assets - Water'!T184,'General Input Sheet'!$E$38:$G$44,3,FALSE))),1) -> 1 | V184: 0 | CF184: 0
K185: 0 | L185: =VLOOKUP($B185,ExistingWater!$A$45:$F$87,6,FALSE) ->  | N185: =IF(M185="",1,VLOOKUP(M185,'Unit Rates - Water'!$H$12:$I$23,2,FALSE)) -> 1 | R185: =IF(P185="",'Unit Rates - Land'!landcst,IF($E$10="Landuse",VLOOKUP(P185,LAndcost3,2,FALSE),IF($E$10="Location",VLOOKUP(P185,Landcost2,2,FALSE),"Error"))) -> 0 | S185: 0 | U185: =IFERROR(('General Input Sheet'!$G$38/(VLOOKUP('Existing Trunk Assets - Water'!T185,'General Input Sheet'!$E$38:$G$44,3,FALSE))),1) -> 1 | V185: 0 | CF185: 0
K186: 0 | L186: =VLOOKUP($B186,ExistingWater!$A$45:$F$87,6,FALSE) ->  | N186: =IF(M186="",1,VLOOKUP(M186,'Unit Rates - Water'!$H$12:$I$23,2,FALSE)) -> 1 | R186: =IF(P186="",'Unit Rates - Land'!landcst,IF($E$10="Landuse",VLOOKUP(P186,LAndcost3,2,FALSE),IF($E$10="Location",VLOOKUP(P186,Landcost2,2,FALSE),"Error"))) -> 0 | S186: 0 | U186: =IFERROR(('General Input Sheet'!$G$38/(VLOOKUP('Existing Trunk Assets - Water'!T186,'General Input Sheet'!$E$38:$G$44,3,FALSE))),1) -> 1 | V186: 0 | CF186: 0
K187: 0 | L187: =VLOOKUP($B187,ExistingWater!$A$45:$F$87,6,FALSE) ->  | N187: =IF(M187="",1,VLOOKUP(M187,'Unit Rates - Water'!$H$12:$I$23,2,FALSE)) -> 1 | R187: =IF(P187="",'Unit Rates - Land'!landcst,IF($E$10="Landuse",VLOOKUP(P187,LAndcost3,2,FALSE),IF($E$10="Location",VLOOKUP(P187,Landcost2,2,FALSE),"Error"))) -> 0 | S187: 0 | U187: =IFERROR(('General Input Sheet'!$G$38/(VLOOKUP('Existing Trunk Assets - Water'!T187,'General Input Sheet'!$E$38:$G$44,3,FALSE))),1) -> 1 | V187: 0 | CF187: 0
K188: 0 | L188: =VLOOKUP($B188,ExistingWater!$A$45:$F$87,6,FALSE) ->  | N188: =IF(M188="",1,VLOOKUP(M188,'Unit Rates - Water'!$H$12:$I$23,2,FALSE)) -> 1 | R188: =IF(P188="",'Unit Rates - Land'!landcst,IF($E$10="Landuse",VLOOKUP(P188,LAndcost3,2,FALSE),IF($E$10="Location",VLOOKUP(P188,Landcost2,2,FALSE),"Error"))) -> 0 | S188: 0 | U188: =IFERROR(('General Input Sheet'!$G$38/(VLOOKUP('Existing Trunk Assets - Water'!T188,'General Input Sheet'!$E$38:$G$44,3,FALSE))),1) -> 1 | V188: 0 | CF188: 0 | CN188: =IF(BH188="","",(BH188/$CF188)*$V188) -> 
K189: 0 | L189: =VLOOKUP($B189,ExistingWater!$A$45:$F$87,6,FALSE) ->  | N189: =IF(M189="",1,VLOOKUP(M189,'Unit Rates - Water'!$H$12:$I$23,2,FALSE)) -> 1 | R189: =IF(P189="",'Unit Rates - Land'!landcst,IF($E$10="Landuse",VLOOKUP(P189,LAndcost3,2,FALSE),IF($E$10="Location",VLOOKUP(P189,Landcost2,2,FALSE),"Error"))) -> 0 | S189: 0 | U189: =IFERROR(('General Input Sheet'!$G$38/(VLOOKUP('Existing Trunk Assets - Water'!T189,'General Input Sheet'!$E$38:$G$44,3,FALSE))),1) -> 1 | V189: 0 | CF189: 0
K190: 0 | L190: =VLOOKUP($B190,ExistingWater!$A$45:$F$87,6,FALSE) ->  | N190: =IF(M190="",1,VLOOKUP(M190,'Unit Rates - Water'!$H$12:$I$23,2,FALSE)) -> 1 | R190: =IF(P190="",'Unit Rates - Land'!landcst,IF($E$10="Landuse",VLOOKUP(P190,LAndcost3,2,FALSE),IF($E$10="Location",VLOOKUP(P190,Landcost2,2,FALSE),"Error"))) -> 0 | S190: 0 | U190: =IFERROR(('General Input Sheet'!$G$38/(VLOOKUP('Existing Trunk Assets - Water'!T190,'General Input Sheet'!$E$38:$G$44,3,FALSE))),1) -> 1 | V190: 0 | CF190: 0
K191: 0 | L191: =VLOOKUP($B191,ExistingWater!$A$45:$F$87,6,FALSE) ->  | N191: =IF(M191="",1,VLOOKUP(M191,'Unit Rates - Water'!$H$12:$I$23,2,FALSE)) -> 1 | R191: =IF(P191="",'Unit Rates - Land'!landcst,IF($E$10="Landuse",VLOOKUP(P191,LAndcost3,2,FALSE),IF($E$10="Location",VLOOKUP(P191,Landcost2,2,FALSE),"Error"))) -> 0 | S191: 0 | U191: =IFERROR(('General Input Sheet'!$G$38/(VLOOKUP('Existing Trunk Assets - Water'!T191,'General Input Sheet'!$E$38:$G$44,3,FALSE))),1) -> 1 | V191: 0 | CF191: 0
K192: 0 | L192: =VLOOKUP($B192,ExistingWater!$A$45:$F$87,6,FALSE) ->  | N192: =IF(M192="",1,VLOOKUP(M192,'Unit Rates - Water'!$H$12:$I$23,2,FALSE)) -> 1 | R192: =IF(P192="",'Unit Rates - Land'!landcst,IF($E$10="Landuse",VLOOKUP(P192,LAndcost3,2,FALSE),IF($E$10="Location",VLOOKUP(P192,Landcost2,2,FALSE),"Error"))) -> 0 | S192: 0 | U192: =IFERROR(('General Input Sheet'!$G$38/(VLOOKUP('Existing Trunk Assets - Water'!T192,'General Input Sheet'!$E$38:$G$44,3,FALSE))),1) -> 1 | V192: 0 | CF192: 0
K193: 0 | L193: =VLOOKUP($B193,ExistingWater!$A$45:$F$87,6,FALSE) ->  | N193: =IF(M193="",1,VLOOKUP(M193,'Unit Rates - Water'!$H$12:$I$23,2,FALSE)) -> 1 | R193: =IF(P193="",'Unit Rates - Land'!landcst,IF($E$10="Landuse",VLOOKUP(P193,LAndcost3,2,FALSE),IF($E$10="Location",VLOOKUP(P193,Landcost2,2,FALSE),"Error"))) -> 0 | S193: 0 | U193: =IFERROR(('General Input Sheet'!$G$38/(VLOOKUP('Existing Trunk Assets - Water'!T193,'General Input Sheet'!$E$38:$G$44,3,FALSE))),1) -> 1 | V193: 0 | CF193: 0
K194: 0 | L194: =VLOOKUP($B194,ExistingWater!$A$45:$F$87,6,FALSE) ->  | N194: =IF(M194="",1,VLOOKUP(M194,'Unit Rates - Water'!$H$12:$I$23,2,FALSE)) -> 1 | R194: =IF(P194="",'Unit Rates - Land'!landcst,IF($E$10="Landuse",VLOOKUP(P194,LAndcost3,2,FALSE),IF($E$10="Location",VLOOKUP(P194,Landcost2,2,FALSE),"Error"))) -> 0 | S194: 0 | U194: =IFERROR(('General Input Sheet'!$G$38/(VLOOKUP('Existing Trunk Assets - Water'!T194,'General Input Sheet'!$E$38:$G$44,3,FALSE))),1) -> 1 | V194: 0 | CF194: 0
K195: 0 | L195: =VLOOKUP($B195,ExistingWater!$A$45:$F$87,6,FALSE) ->  | N195: =IF(M195="",1,VLOOKUP(M195,'Unit Rates - Water'!$H$12:$I$23,2,FALSE)) -> 1 | R195: =IF(P195="",'Unit Rates - Land'!landcst,IF($E$10="Landuse",VLOOKUP(P195,LAndcost3,2,FALSE),IF($E$10="Location",VLOOKUP(P195,Landcost2,2,FALSE),"Error"))) -> 0 | S195: 0 | U195: =IFERROR(('General Input Sheet'!$G$38/(VLOOKUP('Existing Trunk Assets - Water'!T195,'General Input Sheet'!$E$38:$G$44,3,FALSE))),1) -> 1 | V195: 0 | CF195: 0
K196: 0 | L196: =VLOOKUP($B196,ExistingWater!$A$45:$F$87,6,FALSE) ->  | N196: =IF(M196="",1,VLOOKUP(M196,'Unit Rates - Water'!$H$12:$I$23,2,FALSE)) -> 1 | R196: =IF(P196="",'Unit Rates - Land'!landcst,IF($E$10="Landuse",VLOOKUP(P196,LAndcost3,2,FALSE),IF($E$10="Location",VLOOKUP(P196,Landcost2,2,FALSE),"Error"))) -> 0 | S196: 0 | U196: =IFERROR(('General Input Sheet'!$G$38/(VLOOKUP('Existing Trunk Assets - Water'!T196,'General Input Sheet'!$E$38:$G$44,3,FALSE))),1) -> 1 | V196: 0 | CF196: 0
K197: 0 | L197: =VLOOKUP($B197,ExistingWater!$A$45:$F$87,6,FALSE) ->  | N197: =IF(M197="",1,VLOOKUP(M197,'Unit Rates - Water'!$H$12:$I$23,2,FALSE)) -> 1 | R197: =IF(P197="",'Unit Rates - Land'!landcst,IF($E$10="Landuse",VLOOKUP(P197,LAndcost3,2,FALSE),IF($E$10="Location",VLOOKUP(P197,Landcost2,2,FALSE),"Error"))) -> 0 | S197: 0 | U197: =IFERROR(('General Input Sheet'!$G$38/(VLOOKUP('Existing Trunk Assets - Water'!T197,'General Input Sheet'!$E$38:$G$44,3,FALSE))),1) -> 1 | V197: 0 | CF197: 0
K198: 0 | L198: =VLOOKUP($B198,ExistingWater!$A$45:$F$87,6,FALSE) ->  | N198: =IF(M198="",1,VLOOKUP(M198,'Unit Rates - Water'!$H$12:$I$23,2,FALSE)) -> 1 | R198: =IF(P198="",'Unit Rates - Land'!landcst,IF($E$10="Landuse",VLOOKUP(P198,LAndcost3,2,FALSE),IF($E$10="Location",VLOOKUP(P198,Landcost2,2,FALSE),"Error"))) -> 0 | S198: 0 | U198: =IFERROR(('General Input Sheet'!$G$38/(VLOOKUP('Existing Trunk Assets - Water'!T198,'General Input Sheet'!$E$38:$G$44,3,FALSE))),1) -> 1 | V198: 0 | CF198: 0
K199: 0 | L199: =VLOOKUP($B199,ExistingWater!$A$45:$F$87,6,FALSE) ->  | N199: =IF(M199="",1,VLOOKUP(M199,'Unit Rates - Water'!$H$12:$I$23,2,FALSE)) -> 1 | R199: =IF(P199="",'Unit Rates - Land'!landcst,IF($E$10="Landuse",VLOOKUP(P199,LAndcost3,2,FALSE),IF($E$10="Location",VLOOKUP(P199,Landcost2,2,FALSE),"Error"))) -> 0 | S199: 0 | U199: =IFERROR(('General Input Sheet'!$G$38/(VLOOKUP('Existing Trunk Assets - Water'!T199,'General Input Sheet'!$E$38:$G$44,3,FALSE))),1) -> 1 | V199: 0 | CF199: 0
K200: 0 | L200: =VLOOKUP($B200,ExistingWater!$A$45:$F$87,6,FALSE) ->  | N200: =IF(M200="",1,VLOOKUP(M200,'Unit Rates - Water'!$H$12:$I$23,2,FALSE)) -> 1 | R200: =IF(P200="",'Unit Rates - Land'!landcst,IF($E$10="Landuse",VLOOKUP(P200,LAndcost3,2,FALSE),IF($E$10="Location",VLOOKUP(P200,Landcost2,2,FALSE),"Error"))) -> 0 | S200: 0 | U200: =IFERROR(('General Input Sheet'!$G$38/(VLOOKUP('Existing Trunk Assets - Water'!T200,'General Input Sheet'!$E$38:$G$44,3,FALSE))),1) -> 1 | V200: 0 | CF200: 0
K201: 0 | L201: =VLOOKUP($B201,ExistingWater!$A$45:$F$87,6,FALSE) ->  | N201: =IF(M201="",1,VLOOKUP(M201,'Unit Rates - Water'!$H$12:$I$23,2,FALSE)) -> 1 | R201: =IF(P201="",'Unit Rates - Land'!landcst,IF($E$10="Landuse",VLOOKUP(P201,LAndcost3,2,FALSE),IF($E$10="Location",VLOOKUP(P201,Landcost2,2,FALSE),"Error"))) -> 0 | S201: 0 | U201: =IFERROR(('General Input Sheet'!$G$38/(VLOOKUP('Existing Trunk Assets - Water'!T201,'General Input Sheet'!$E$38:$G$44,3,FALSE))),1) -> 1 | V201: 0 | CF201: 0
K202: 0 | L202: =VLOOKUP($B202,ExistingWater!$A$45:$F$87,6,FALSE) ->  | N202: =IF(M202="",1,VLOOKUP(M202,'Unit Rates - Water'!$H$12:$I$23,2,FALSE)) -> 1 | R202: =IF(P202="",'Unit Rates - Land'!landcst,IF($E$10="Landuse",VLOOKUP(P202,LAndcost3,2,FALSE),IF($E$10="Location",VLOOKUP(P202,Landcost2,2,FALSE),"Error"))) -> 0 | S202: 0 | U202: =IFERROR(('General Input Sheet'!$G$38/(VLOOKUP('Existing Trunk Assets - Water'!T202,'General Input Sheet'!$E$38:$G$44,3,FALSE))),1) -> 1 | V202: 0 | CF202: 0
K203: 0 | L203: =VLOOKUP($B203,ExistingWater!$A$45:$F$87,6,FALSE) ->  | N203: =IF(M203="",1,VLOOKUP(M203,'Unit Rates - Water'!$H$12:$I$23,2,FALSE)) -> 1 | R203: =IF(P203="",'Unit Rates - Land'!landcst,IF($E$10="Landuse",VLOOKUP(P203,LAndcost3,2,FALSE),IF($E$10="Location",VLOOKUP(P203,Landcost2,2,FALSE),"Error"))) -> 0 | S203: 0 | U203: =IFERROR(('General Input Sheet'!$G$38/(VLOOKUP('Existing Trunk Assets - Water'!T203,'General Input Sheet'!$E$38:$G$44,3,FALSE))),1) -> 1 | V203: 0 | CF203: 0
K204: 0 | L204: =VLOOKUP($B204,ExistingWater!$A$45:$F$87,6,FALSE) ->  | N204: =IF(M204="",1,VLOOKUP(M204,'Unit Rates - Water'!$H$12:$I$23,2,FALSE)) -> 1 | R204: =IF(P204="",'Unit Rates - Land'!landcst,IF($E$10="Landuse",VLOOKUP(P204,LAndcost3,2,FALSE),IF($E$10="Location",VLOOKUP(P204,Landcost2,2,FALSE),"Error"))) -> 0 | S204: 0 | U204: =IFERROR(('General Input Sheet'!$G$38/(VLOOKUP('Existing Trunk Assets - Water'!T204,'General Input Sheet'!$E$38:$G$44,3,FALSE))),1) -> 1 | V204: 0 | CF204: 0 | CM204: =IF(BG204="","",(BG204/$CF204)*$V204) -> 
... 227 more rows

Sheet Existing Trunk Assets - Sewer
B2: ='Navigation Pane'!C2 -> Fraser Coast Regional Council - Schedule of Works Model (SOW)
B3: Wastewater
A4: Return to "Existing Trunk Assets"
B5: EXISTING TRUNK ASSETS
B8: Land Valuation Type | E8: Location | R8: =IF(H15=TYPE2,VLOOKUP((J15&"_"&K15),Sewerrates2,2,FALSE),"") -> 
I10: Asset Data | X10: Catchment Asset Allocation | BQ10: Asset Usage | CW10: Cost Allocation
B11: Basic Asset Data | H11: Asset Attributes | L11: Basic Asset Valuation | Q11: Land Attributes | U11: Refined Asset Value | X11: ='Catchment Demand- Sewer'!C8 -> Burrum Heads Sewerage Service Area | Y11: ='Catchment Demand- Sewer'!$C9 -> Howard Sewerage Service Area | Z11: ='Catchment Demand- Sewer'!$C10 -> Torbanlea Sewerage Service Area | AA11: ='Catchment Demand- Sewer'!$C11 -> Toogoom Sewerage Service Area | AB11: ='Catchment Demand- Sewer'!$C12 -> Hervey Bay Sewerage Service Area | AC11: ='Catchment Demand- Sewer'!$C13 -> Maryborough Sewerage Service Area | AD11: ='Catchment Demand- Sewer'!$C14 -> 0 | AE11: ='Catchment Demand- Sewer'!$C15 -> 0 | AF11: ='Catchment Demand- Sewer'!$C16 -> 0 | AG11: ='Catchment Demand- Sewer'!$C17 -> 0 | AH11: ='Catchment Demand- Sewer'!$C18 -> 0 | AI11: ='Catchment Demand- Sewer'!$C19 -> 0 | AJ11: ='Catchment Demand- Sewer'!$C20 -> 0 | AK11: ='Catchment Demand- Sewer'!$C21 -> 0 | AL11: ='Catchment Demand- Sewer'!$C22 -> 0 | AM11: ='Catchment Demand- Sewer'!$C23 -> 0 | AN11: ='Catchment Demand- Sewer'!$C24 -> 0 | AO11: ='Catchment Demand- Sewer'!$C25 -> 0 | AP11: ='Catchment Demand- Sewer'!$C26 -> 0 | AQ11: ='Catchment Demand- Sewer'!$C27 -> 0 | AR11: ='Catchment Demand- Sewer'!$C28 -> 0 | AS11: ='Catchment Demand- Sewer'!$C29 -> 0 | AT11: ='Catchment Demand- Sewer'!$C30 -> 0 | AU11: ='Catchment Demand- Sewer'!$C31 -> 0 | AV11: ='Catchment Demand- Sewer'!$C32 -> 0 | AW11: ='Catchment Demand- Sewer'!$C33 -> 0 | AX11: ='Catchment Demand- Sewer'!$C34 -> 0 | AY11: ='Catchment Demand- Sewer'!$C35 -> 0 | AZ11: ='Catchment Demand- Sewer'!$C36 -> 0 | BA11: ='Catchment Demand- Sewer'!$C37 -> 0 | BC11: =X11 -> Burrum Heads Sewerage Service Area | BD11: =Y11 -> Howard Sewerage Service Area | BE11: Torbanlea Sewerage Service Area | BF11: Toogoom Sewerage Service Area | BG11: Hervey Bay Sewerage Service Area | BH11: Maryborough Sewerage Service Area | BI11: 0 | BJ11: 0 | BK11: 0 | BL11: 0 | BM11: 0 | BN11: 0 | BO11: 0 | BP11: 0 | BQ11: 0 | BR11: 0 | BS11: 0 | BT11: 0 | BU11: 0 | BV11: 0 | BW11: 0 | BX11: 0 | BY11: 0 | BZ11: 0 | CA11: 0 | CB11: 0 | CC11: 0 | CD11: 0 | CE11: 0 | CF11: 0 | CG11: TOTALS | CI11: =BC11 -> Burrum Heads Sewerage Service Area | CJ11: =BD11 -> Howard Sewerage Service Area | CK11: Torbanlea Sewerage Service Area | CL11: Toogoom Sewerage Service Area | CM11: Hervey Bay Sewerage Service Area | CN11: Maryborough Sewerage Service Area | CO11: 0 | CP11: 0 | CQ11: 0 | CR11: 0 | CS11: 0 | CT11: 0 | CU11: 0 | CV11: 0 | CW11: 0 | CX11: 0 | CY11: 0 | CZ11: 0 | DA11: 0 | DB11: 0 | DC11: 0 | DD11: 0 | DE11: 0 | DF11: 0 | DG11: 0 | DH11: 0 | DI11: 0 | DJ11: 0 | DK11: 0 | DL11: 0 | DM11: Checksum 2
B12: Asset ID | C12: LGIP ID | D12: Asset Type (*) | E12: Asset Class | F12: Asset Name | G12: Description | H12: Unit Rate Type (*) | I12: Length/unit (*) | J12: Diameter (*) | K12: Depth (*) | L12: Unit Rate | M12: Baseline Valuation | N12: Site/Condition | O12: Multiplier | P12: Gross Value | Q12: Land Location/Type | R12: Size of land (ha) (*) | S12: Unit Cost | T12: Land Value | U12: Valuation Year | V12: Escalation | W12: Current Replaceement Costs
X13: 1 | Y13: =X13+1 -> 2 | Z13: =Y13+1 -> 3 | AA13: 4 | AB13: 5 | AC13: 6 | AD13: 7 | AE13: 8 | AF13: 9 | AG13: 10 | AH13: 11 | AI13: 12 | AJ13: 13 | AK13: 14 | AL13: 15 | AM13: 16 | AN13: 17 | AO13: 18 | AP13: 19 | AQ13: 20 | AR13: 21 | AS13: 22 | AT13: 23 | AU13: 24 | AV13: 25 | AW13: 26 | AX13: 27 | AY13: 28 | AZ13: 29 | BA13: 30
B14: Councils ID (from GIS, FAR, AMA etc.) | E14: Pump Station, Gravity Main, Rising Main etc | M14: May be calculated from unit rates OR unique values can be direct entered | W14: CRC | X14: =IFERROR(VLOOKUP(X11,Sewcatch,6,FALSE),"") -> 3633 | Y14: 100 | Z14: 336 | AA14: 2286 | AB14: 86180 | AC14: 31134 | BC14: =X14 -> 3633 | BD14: =Y14 -> 100 | BE14: 336 | BF14: 2286 | BG14: 86180 | BH14: 31134 | CI14: =SUM(CI15:CI508) -> 9095575.138 | CJ14: 689523.552 | CK14: 1253771.688 | CL14: 4132028.369 | CM14: 174240951.1 | CN14: 79994514.01 | CO14: 0 | CP14: 0 | CQ14: 0 | CR14: 0 | CS14: 0 | CT14: 0 | CU14: 0 | CV14: 0 | CW14: 0 | CX14: 0 | CY14: 0 | CZ14: 0 | DA14: 0 | DB14: 0 | DC14: 0 | DD14: 0 | DE14: 0 | DF14: 0 | DG14: 0 | DH14: 0 | DI14: 0 | DJ14: 0 | DK14: 0 | DL14: 0 | DM14: 0
B15: Effluent Burrum Heads | C15: Effluent Burrum Heads | D15: Active | E15: =RawEffluentActive!E2 -> Effluent Reuse Facility | F15: =RawEffluentActive!F2 -> Effluent Reuse Facility Bunya | L15: =IF(H15=SewerTYPE1,VLOOKUP(J15,SewerUnitrates1,2,FALSE),IF(H15=SEWERTYPE2,VLOOKUP((J15&"_"&K15),Sewerrates2,2,FALSE),0)) -> 0 | M15: =ExistingEffluent!I2 -> 1643787.308 | O15: =IF(N15="",1,VLOOKUP(N15,Sewersitecond,2,FALSE)) -> 1 | P15: =IF(M15="","",M15*O15) -> 1643787.308 | S15: =IF(Q15="",'Unit Rates - Land'!landcst,IF($E$8="Landuse",VLOOKUP(Q15,LAndcost3,2,FALSE),IF($E$8="Location",VLOOKUP(Q15,Landcost2,2,FALSE),"Error"))) -> 0 | T15: =IF(S15="",0,S15*10000*R15) -> 0 | U15: =RawEffluentActive!I2 -> 2015 | V15: =IFERROR(('General Input Sheet'!$G$38/(VLOOKUP(U15,'General Input Sheet'!$E$38:$G$44,3,FALSE))),1) -> 1 | W15: =IFERROR((P15+T15)*V15,0) -> 1643787.308 | X15: =IF(ExistingEffluent!P2="Y","Y","") -> Y | Y15: =IF(ExistingEffluent!Q2="Y","Y","") ->  | Z15: =IF(ExistingEffluent!R2="Y","Y","") ->  | AA15: =IF(ExistingEffluent!S2="Y","Y","") ->  | AB15: =IF(ExistingEffluent!T2="Y","Y","") ->  | AC15: =IF(ExistingEffluent!U2="Y","Y","") ->  | BC15: =IF(X15="y",BC$14,IF(AND(X15>0,X15<=1),X15*BC$14,"")) -> 3633 | BD15: =IF(Y15="y",BD$14,IF(AND(Y15>0,Y15<=1),Y15*BD$14,"")) ->  | CG15: =SUM(BC15:CF15) -> 3633 | CI15: =IF(BC15="","",(BC15/$CG15)*$W15) -> 1643787.308 | CY15: =IF(BS15="","",(BS15/$CG15)*$W15) ->  | DM15: =IF(SUM(CI15:DL15)=W15,"","ERROR") -> 
B16: Effluent Howard | C16: Effluent Howard | D16: Active | E16: =RawEffluentActive!E3 -> Effluent Reuse Facility | F16: =RawEffluentActive!F3 -> Effluent Reuse Fac Dreamtime | L16: 0 | M16: =ExistingEffluent!I3 -> 174309.6 | O16: 1 | P16: =IF(M16="","",M16*O16) -> 174309.6 | S16: =IF(Q16="",'Unit Rates - Land'!landcst,IF($E$8="Landuse",VLOOKUP(Q16,LAndcost3,2,FALSE),IF($E$8="Location",VLOOKUP(Q16,Landcost2,2,FALSE),"Error"))) -> 0 | T16: =IF(S16="",0,S16*10000*R16) -> 0 | U16: =RawEffluentActive!I3 -> 2015 | V16: =IFERROR(('General Input Sheet'!$G$38/(VLOOKUP(U16,'General Input Sheet'!$E$38:$G$44,3,FALSE))),1) -> 1 | W16: =IFERROR((P16+T16)*V16,0) -> 174309.6 | X16: =IF(ExistingEffluent!P3="Y","Y","") ->  | Y16: =IF(ExistingEffluent!Q3="Y","Y","") -> Y | Z16: =IF(ExistingEffluent!R3="Y","Y","") ->  | AA16: =IF(ExistingEffluent!S3="Y","Y","") ->  | AB16: =IF(ExistingEffluent!T3="Y","Y","") ->  | AC16: =IF(ExistingEffluent!U3="Y","Y","") ->  | BC16: =IF(X16="y",BC$14,IF(AND(X16>0,X16<=1),X16*BC$14,"")) ->  | BD16: 100 | CG16: =SUM(BC16:CF16) -> 100 | CJ16: 174309.6 | DM16: =IF(SUM(CI16:DL16)=W16,"","ERROR") -> 
B17: Effluent Torbanlea | C17: Effluent Torbanlea | D17: Active | E17: =RawEffluentActive!E4 -> Effluent Reuse Facility | F17: =RawEffluentActive!F4 -> Effluent Reuse Fac Nikenbah | L17: 0 | M17: =ExistingEffluent!I4 -> 123150.8 | O17: 1 | P17: 123150.8 | S17: =IF(Q17="",'Unit Rates - Land'!landcst,IF($E$8="Landuse",VLOOKUP(Q17,LAndcost3,2,FALSE),IF($E$8="Location",VLOOKUP(Q17,Landcost2,2,FALSE),"Error"))) -> 0 | T17: 0 | U17: =RawEffluentActive!I4 -> 2015 | V17: =IFERROR(('General Input Sheet'!$G$38/(VLOOKUP(U17,'General Input Sheet'!$E$38:$G$44,3,FALSE))),1) -> 1 | W17: 123150.8 | X17: =IF(ExistingEffluent!P4="Y","Y","") ->  | Y17: =IF(ExistingEffluent!Q4="Y","Y","") ->  | Z17: =IF(ExistingEffluent!R4="Y","Y","") -> Y | AA17: =IF(ExistingEffluent!S4="Y","Y","") ->  | AB17: =IF(ExistingEffluent!T4="Y","Y","") ->  | AC17: =IF(ExistingEffluent!U4="Y","Y","") ->  | BE17: 336 | CG17: =SUM(BC17:CF17) -> 336 | CK17: 123150.8 | DM17: =IF(SUM(CI17:DL17)=W17,"","ERROR") -> 
B18: Effluent Toogoom | C18: Effluent Toogoom | D18: Active | E18: =RawEffluentActive!E5 -> Effluent Reuse Facility | F18: =RawEffluentActive!F5 -> Effluent Reuse Fac Hebblewhite | L18: 0 | M18: =ExistingEffluent!I5 -> 592865.764 | O18: 1 | P18: 592865.764 | S18: =IF(Q18="",'Unit Rates - Land'!landcst,IF($E$8="Landuse",VLOOKUP(Q18,LAndcost3,2,FALSE),IF($E$8="Location",VLOOKUP(Q18,Landcost2,2,FALSE),"Error"))) -> 0 | T18: 0 | U18: =RawEffluentActive!I5 -> 2015 | V18: =IFERROR(('General Input Sheet'!$G$38/(VLOOKUP(U18,'General Input Sheet'!$E$38:$G$44,3,FALSE))),1) -> 1 | W18: 592865.764 | X18: =IF(ExistingEffluent!P5="Y","Y","") ->  | Y18: =IF(ExistingEffluent!Q5="Y","Y","") ->  | Z18: =IF(ExistingEffluent!R5="Y","Y","") ->  | AA18: =IF(ExistingEffluent!S5="Y","Y","") -> Y | AB18: =IF(ExistingEffluent!T5="Y","Y","") ->  | AC18: =IF(ExistingEffluent!U5="Y","Y","") ->  | BF18: 2286 | CG18: =SUM(BC18:CF18) -> 2286 | CL18: 592865.764 | DM18: =IF(SUM(CI18:DL18)=W18,"","ERROR") -> 
B19: Effluent Hervey Bay | C19: Effluent Hervey Bay | D19: Active | E19: =RawEffluentActive!E6 -> Effluent Reuse Facility | F19: =RawEffluentActive!F6 -> Effluent Reuse Fac St Helens | L19: 0 | M19: =ExistingEffluent!I6 -> 49660216.67 | O19: 1 | P19: 49660216.67 | S19: =IF(Q19="",'Unit Rates - Land'!landcst,IF($E$8="Landuse",VLOOKUP(Q19,LAndcost3,2,FALSE),IF($E$8="Location",VLOOKUP(Q19,Landcost2,2,FALSE),"Error"))) -> 0 | T19: 0 | U19: =RawEffluentActive!I6 -> 2015 | V19: =IFERROR(('General Input Sheet'!$G$38/(VLOOKUP(U19,'General Input Sheet'!$E$38:$G$44,3,FALSE))),1) -> 1 | W19: 49660216.67 | X19: =IF(ExistingEffluent!P6="Y","Y","") ->  | Y19: =IF(ExistingEffluent!Q6="Y","Y","") ->  | Z19: =IF(ExistingEffluent!R6="Y","Y","") ->  | AA19: =IF(ExistingEffluent!S6="Y","Y","") ->  | AB19: =IF(ExistingEffluent!T6="Y","Y","") -> Y | AC19: =IF(ExistingEffluent!U6="Y","Y","") ->  | BG19: 86180 | CG19: 86180 | CM19: 49660216.67
B20: Effluent Maryborough | C20: Effluent Maryborough | D20: Active | E20: =RawEffluentActive!E7 -> Effluent Reuse Facility | F20: =RawEffluentActive!F7 -> Effluent Reuse Facility Pulgul | L20: 0 | M20: =ExistingEffluent!I7 -> 17377221.83 | O20: 1 | P20: 17377221.83 | S20: =IF(Q20="",'Unit Rates - Land'!landcst,IF($E$8="Landuse",VLOOKUP(Q20,LAndcost3,2,FALSE),IF($E$8="Location",VLOOKUP(Q20,Landcost2,2,FALSE),"Error"))) -> 0 | T20: 0 | U20: =RawEffluentActive!I7 -> 2015 | V20: =IFERROR(('General Input Sheet'!$G$38/(VLOOKUP(U20,'General Input Sheet'!$E$38:$G$44,3,FALSE))),1) -> 1 | W20: 17377221.83 | X20: =IF(ExistingEffluent!P7="Y","Y","") ->  | Y20: =IF(ExistingEffluent!Q7="Y","Y","") ->  | Z20: =IF(ExistingEffluent!R7="Y","Y","") ->  | AA20: =IF(ExistingEffluent!S7="Y","Y","") ->  | AB20: =IF(ExistingEffluent!T7="Y","Y","") ->  | AC20: =IF(ExistingEffluent!U7="Y","Y","") -> Y | BH20: 31134 | CG20: 31134 | CN20: 17377221.83
L21: 0 | O21: 1 | S21: =IF(Q21="",'Unit Rates - Land'!landcst,IF($E$8="Landuse",VLOOKUP(Q21,LAndcost3,2,FALSE),IF($E$8="Location",VLOOKUP(Q21,Landcost2,2,FALSE),"Error"))) -> 0 | T21: 0 | U21: =RawEffluentActive!I8 -> 2015 | V21: =IFERROR(('General Input Sheet'!$G$38/(VLOOKUP(U21,'General Input Sheet'!$E$38:$G$44,3,FALSE))),1) -> 1 | W21: 0 | CG21: 0
L22: 0 | O22: 1 | S22: =IF(Q22="",'Unit Rates - Land'!landcst,IF($E$8="Landuse",VLOOKUP(Q22,LAndcost3,2,FALSE),IF($E$8="Location",VLOOKUP(Q22,Landcost2,2,FALSE),"Error"))) -> 0 | T22: 0 | U22: =RawEffluentActive!I9 -> 2015 | V22: =IFERROR(('General Input Sheet'!$G$38/(VLOOKUP(U22,'General Input Sheet'!$E$38:$G$44,3,FALSE))),1) -> 1 | W22: 0 | CG22: 0
L23: 0 | O23: 1 | S23: =IF(Q23="",'Unit Rates - Land'!landcst,IF($E$8="Landuse",VLOOKUP(Q23,LAndcost3,2,FALSE),IF($E$8="Location",VLOOKUP(Q23,Landcost2,2,FALSE),"Error"))) -> 0 | T23: 0 | U23: =RawEffluentActive!I10 -> 2015 | V23: =IFERROR(('General Input Sheet'!$G$38/(VLOOKUP(U23,'General Input Sheet'!$E$38:$G$44,3,FALSE))),1) -> 1 | W23: 0 | BC23: =IF(X23="y",BC$14,IF(AND(X23>0,X23<=1),X23*BC$14,"")) ->  | BS23: =IF(AN23="y",BS$14,IF(AND(AN23>0,AN23<=1),AN23*BS$14,"")) ->  | CG23: =SUM(BC23:CF23) -> 0 | CI23: =IF(BC23="","",(BC23/$CG23)*$W23) ->  | CY23: =IF(BS23="","",(BS23/$CG23)*$W23) ->  | CZ23: =IF(BT23="","",(BT23/$CG23)*$W23) ->  | DA23: =IF(BU23="","",(BU23/$CG23)*$W23) ->  | DB23: =IF(BV23="","",(BV23/$CG23)*$W23) ->  | DC23: =IF(BW23="","",(BW23/$CG23)*$W23) ->  | DD23: =IF(BX23="","",(BX23/$CG23)*$W23) ->  | DE23: =IF(BY23="","",(BY23/$CG23)*$W23) ->  | DF23: =IF(BZ23="","",(BZ23/$CG23)*$W23) ->  | DG23: =IF(CA23="","",(CA23/$CG23)*$W23) ->  | DH23: =IF(CB23="","",(CB23/$CG23)*$W23) ->  | DI23: =IF(CC23="","",(CC23/$CG23)*$W23) ->  | DJ23: =IF(CD23="","",(CD23/$CG23)*$W23) ->  | DK23: =IF(CE23="","",(CE23/$CG23)*$W23) ->  | DL23: =IF(CF23="","",(CF23/$CG23)*$W23) ->  | DM23: =IF(SUM(CI23:DL23)=W23,"","ERROR") -> 
B24: =ExistingSewer!A2 -> Aubinville WWTP | C24: =ExistingSewer!A2 -> Aubinville WWTP | D24: Active | E24: Treatment Plant | F24: =C24 -> Aubinville WWTP | L24: 0 | M24: =VLOOKUP(B24,ExistingSewer!$A$2:$H$122,8,FALSE) -> 16751165.36 | O24: 1 | P24: 16751165.36 | S24: =IF(Q24="",'Unit Rates - Land'!landcst,IF($E$8="Landuse",VLOOKUP(Q24,LAndcost3,2,FALSE),IF($E$8="Location",VLOOKUP(Q24,Landcost2,2,FALSE),"Error"))) -> 0 | T24: 0 | U24: 2015 | V24: =IFERROR(('General Input Sheet'!$G$38/(VLOOKUP(U24,'General Input Sheet'!$E$38:$G$44,3,FALSE))),1) -> 1 | W24: 16751165.36 | X24: =IF(VLOOKUP($C24,ExistingSewer!$A$2:$Q$125,12,FALSE)="Y","Y","") ->  | Y24: =IF(VLOOKUP($C24,ExistingSewer!$A$2:$Q$125,13,FALSE)="Y","Y","") ->  | Z24: =IF(VLOOKUP($C24,ExistingSewer!$A$2:$Q$125,14,FALSE)="Y","Y","") ->  | AA24: =IF(VLOOKUP($C24,ExistingSewer!$A$2:$Q$125,15,FALSE)="Y","Y","") ->  | AB24: =IF(VLOOKUP($C24,ExistingSewer!$A$2:$Q$125,16,FALSE)="Y","Y","") ->  | AC24: =IF(VLOOKUP($C24,ExistingSewer!$A$2:$Q$125,17,FALSE)="Y","Y","") -> Y | BH24: 31134 | CG24: 31134 | CN24: 16751165.36
B25: =ExistingSewer!A3 -> Burrum Heads WWTP | C25: =ExistingSewer!A3 -> Burrum Heads WWTP | D25: Active | E25: Treatment Plant | F25: =C25 -> Burrum Heads WWTP | L25: 0 | M25: =VLOOKUP(B25,ExistingSewer!$A$2:$H$122,8,FALSE) -> 2108571.728 | O25: 1 | P25: 2108571.728 | S25: =IF(Q25="",'Unit Rates - Land'!landcst,IF($E$8="Landuse",VLOOKUP(Q25,LAndcost3,2,FALSE),IF($E$8="Location",VLOOKUP(Q25,Landcost2,2,FALSE),"Error"))) -> 0 | T25: 0 | U25: 2015 | V25: =IFERROR(('General Input Sheet'!$G$38/(VLOOKUP(U25,'General Input Sheet'!$E$38:$G$44,3,FALSE))),1) -> 1 | W25: 2108571.728 | X25: =IF(VLOOKUP($C25,ExistingSewer!$A$2:$Q$125,12,FALSE)="Y","Y","") -> Y | Y25: =IF(VLOOKUP($C25,ExistingSewer!$A$2:$Q$125,13,FALSE)="Y","Y","") ->  | Z25: =IF(VLOOKUP($C25,ExistingSewer!$A$2:$Q$125,14,FALSE)="Y","Y","") ->  | AA25: =IF(VLOOKUP($C25,ExistingSewer!$A$2:$Q$125,15,FALSE)="Y","Y","") ->  | AB25: =IF(VLOOKUP($C25,ExistingSewer!$A$2:$Q$125,16,FALSE)="Y","Y","") ->  | AC25: =IF(VLOOKUP($C25,ExistingSewer!$A$2:$Q$125,17,FALSE)="Y","Y","") ->  | BC25: 3633 | CG25: 3633 | CI25: 2108571.728
B26: =ExistingSewer!A4 -> Eli Creek WWTP | C26: =ExistingSewer!A4 -> Eli Creek WWTP | D26: Active | E26: Treatment Plant | F26: Eli Creek WWTP | L26: 0 | M26: =VLOOKUP(B26,ExistingSewer!$A$2:$H$122,8,FALSE) -> 8787671.457 | O26: 1 | P26: 8787671.457 | S26: =IF(Q26="",'Unit Rates - Land'!landcst,IF($E$8="Landuse",VLOOKUP(Q26,LAndcost3,2,FALSE),IF($E$8="Location",VLOOKUP(Q26,Landcost2,2,FALSE),"Error"))) -> 0 | T26: 0 | U26: 2015 | V26: =IFERROR(('General Input Sheet'!$G$38/(VLOOKUP(U26,'General Input Sheet'!$E$38:$G$44,3,FALSE))),1) -> 1 | W26: 8787671.457 | X26: =IF(VLOOKUP($C26,ExistingSewer!$A$2:$Q$125,12,FALSE)="Y","Y","") ->  | Y26: =IF(VLOOKUP($C26,ExistingSewer!$A$2:$Q$125,13,FALSE)="Y","Y","") ->  | Z26: =IF(VLOOKUP($C26,ExistingSewer!$A$2:$Q$125,14,FALSE)="Y","Y","") ->  | AA26: =IF(VLOOKUP($C26,ExistingSewer!$A$2:$Q$125,15,FALSE)="Y","Y","") ->  | AB26: =IF(VLOOKUP($C26,ExistingSewer!$A$2:$Q$125,16,FALSE)="Y","Y","") -> Y | AC26: =IF(VLOOKUP($C26,ExistingSewer!$A$2:$Q$125,17,FALSE)="Y","Y","") ->  | BG26: 86180 | CG26: 86180 | CM26: 8787671.457
B27: =ExistingSewer!A5 -> Howard WWTP | C27: =ExistingSewer!A5 -> Howard WWTP | D27: Active | E27: Treatment Plant | F27: Howard WWTP | L27: 0 | M27: =VLOOKUP(B27,ExistingSewer!$A$2:$H$122,8,FALSE) -> 515213.952 | O27: 1 | P27: 515213.952 | S27: =IF(Q27="",'Unit Rates - Land'!landcst,IF($E$8="Landuse",VLOOKUP(Q27,LAndcost3,2,FALSE),IF($E$8="Location",VLOOKUP(Q27,Landcost2,2,FALSE),"Error"))) -> 0 | T27: 0 | U27: 2015 | V27: =IFERROR(('General Input Sheet'!$G$38/(VLOOKUP(U27,'General Input Sheet'!$E$38:$G$44,3,FALSE))),1) -> 1 | W27: 515213.952 | X27: =IF(VLOOKUP($C27,ExistingSewer!$A$2:$Q$125,12,FALSE)="Y","Y","") ->  | Y27: =IF(VLOOKUP($C27,ExistingSewer!$A$2:$Q$125,13,FALSE)="Y","Y","") -> Y | Z27: =IF(VLOOKUP($C27,ExistingSewer!$A$2:$Q$125,14,FALSE)="Y","Y","") ->  | AA27: =IF(VLOOKUP($C27,ExistingSewer!$A$2:$Q$125,15,FALSE)="Y","Y","") ->  | AB27: =IF(VLOOKUP($C27,ExistingSewer!$A$2:$Q$125,16,FALSE)="Y","Y","") ->  | AC27: =IF(VLOOKUP($C27,ExistingSewer!$A$2:$Q$125,17,FALSE)="Y","Y","") ->  | BD27: 100 | CG27: 100 | CJ27: 515213.952
B28: =ExistingSewer!A6 -> Nikenbah WWTP | C28: =ExistingSewer!A6 -> Nikenbah WWTP | D28: Active | E28: Treatment Plant | F28: Nikenbah WWTP | L28: 0 | M28: =VLOOKUP(B28,ExistingSewer!$A$2:$H$122,8,FALSE) -> 28490816.65 | O28: 1 | P28: 28490816.65 | S28: =IF(Q28="",'Unit Rates - Land'!landcst,IF($E$8="Landuse",VLOOKUP(Q28,LAndcost3,2,FALSE),IF($E$8="Location",VLOOKUP(Q28,Landcost2,2,FALSE),"Error"))) -> 0 | T28: 0 | U28: 2015 | V28: =IFERROR(('General Input Sheet'!$G$38/(VLOOKUP(U28,'General Input Sheet'!$E$38:$G$44,3,FALSE))),1) -> 1 | W28: 28490816.65 | X28: =IF(VLOOKUP($C28,ExistingSewer!$A$2:$Q$125,12,FALSE)="Y","Y","") ->  | Y28: =IF(VLOOKUP($C28,ExistingSewer!$A$2:$Q$125,13,FALSE)="Y","Y","") ->  | Z28: =IF(VLOOKUP($C28,ExistingSewer!$A$2:$Q$125,14,FALSE)="Y","Y","") ->  | AA28: =IF(VLOOKUP($C28,ExistingSewer!$A$2:$Q$125,15,FALSE)="Y","Y","") ->  | AB28: =IF(VLOOKUP($C28,ExistingSewer!$A$2:$Q$125,16,FALSE)="Y","Y","") -> Y | AC28: =IF(VLOOKUP($C28,ExistingSewer!$A$2:$Q$125,17,FALSE)="Y","Y","") ->  | BG28: 86180 | CG28: 86180 | CM28: 28490816.65
B29: =ExistingSewer!A7 -> PRSPS5001 E-one | C29: =ExistingSewer!A7 -> PRSPS5001 E-one | D29: Active | E29: Treatment Plant | F29: PRSPS5001 E-one | L29: 0 | M29: =VLOOKUP(B29,ExistingSewer!$A$2:$H$122,8,FALSE) -> 112708.5 | O29: 1 | P29: 112708.5 | S29: =IF(Q29="",'Unit Rates - Land'!landcst,IF($E$8="Landuse",VLOOKUP(Q29,LAndcost3,2,FALSE),IF($E$8="Location",VLOOKUP(Q29,Landcost2,2,FALSE),"Error"))) -> 0 | T29: 0 | U29: 2015 | V29: =IFERROR(('General Input Sheet'!$G$38/(VLOOKUP(U29,'General Input Sheet'!$E$38:$G$44,3,FALSE))),1) -> 1 | W29: 112708.5 | X29: =IF(VLOOKUP($C29,ExistingSewer!$A$2:$Q$125,12,FALSE)="Y","Y","") ->  | Y29: =IF(VLOOKUP($C29,ExistingSewer!$A$2:$Q$125,13,FALSE)="Y","Y","") ->  | Z29: =IF(VLOOKUP($C29,ExistingSewer!$A$2:$Q$125,14,FALSE)="Y","Y","") ->  | AA29: =IF(VLOOKUP($C29,ExistingSewer!$A$2:$Q$125,15,FALSE)="Y","Y","") ->  | AB29: =IF(VLOOKUP($C29,ExistingSewer!$A$2:$Q$125,16,FALSE)="Y","Y","") ->  | AC29: =IF(VLOOKUP($C29,ExistingSewer!$A$2:$Q$125,17,FALSE)="Y","Y","") -> Y | BH29: 31134 | CG29: 31134 | CN29: 112708.5
B30: =ExistingSewer!A8 -> Pulgul WWTP | C30: =ExistingSewer!A8 -> Pulgul WWTP | D30: Active | E30: Treatment Plant | F30: Pulgul WWTP | L30: 0 | M30: =VLOOKUP(B30,ExistingSewer!$A$2:$H$122,8,FALSE) -> 15407029.87 | O30: 1 | P30: 15407029.87 | S30: =IF(Q30="",'Unit Rates - Land'!landcst,IF($E$8="Landuse",VLOOKUP(Q30,LAndcost3,2,FALSE),IF($E$8="Location",VLOOKUP(Q30,Landcost2,2,FALSE),"Error"))) -> 0 | T30: 0 | U30: 2015 | V30: =IFERROR(('General Input Sheet'!$G$38/(VLOOKUP(U30,'General Input Sheet'!$E$38:$G$44,3,FALSE))),1) -> 1 | W30: 15407029.87 | X30: =IF(VLOOKUP($C30,ExistingSewer!$A$2:$Q$125,12,FALSE)="Y","Y","") ->  | Y30: =IF(VLOOKUP($C30,ExistingSewer!$A$2:$Q$125,13,FALSE)="Y","Y","") ->  | Z30: =IF(VLOOKUP($C30,ExistingSewer!$A$2:$Q$125,14,FALSE)="Y","Y","") ->  | AA30: =IF(VLOOKUP($C30,ExistingSewer!$A$2:$Q$125,15,FALSE)="Y","Y","") ->  | AB30: =IF(VLOOKUP($C30,ExistingSewer!$A$2:$Q$125,16,FALSE)="Y","Y","") -> Y | AC30: =IF(VLOOKUP($C30,ExistingSewer!$A$2:$Q$125,17,FALSE)="Y","Y","") ->  | BG30: 86180 | CG30: 86180 | CM30: 15407029.87
B31: =ExistingSewer!A9 -> Toogoom WWTP | C31: =ExistingSewer!A9 -> Toogoom WWTP | D31: Active | E31: Pump Station Network | F31: Toogoom WWTP | L31: 0 | M31: =VLOOKUP(B31,ExistingSewer!$A$2:$H$122,8,FALSE) -> 1893881.523 | O31: 1 | P31: 1893881.523 | S31: =IF(Q31="",'Unit Rates - Land'!landcst,IF($E$8="Landuse",VLOOKUP(Q31,LAndcost3,2,FALSE),IF($E$8="Location",VLOOKUP(Q31,Landcost2,2,FALSE),"Error"))) -> 0 | T31: 0 | U31: 2015 | V31: =IFERROR(('General Input Sheet'!$G$38/(VLOOKUP(U31,'General Input Sheet'!$E$38:$G$44,3,FALSE))),1) -> 1 | W31: 1893881.523 | X31: =IF(VLOOKUP($C31,ExistingSewer!$A$2:$Q$125,12,FALSE)="Y","Y","") ->  | Y31: =IF(VLOOKUP($C31,ExistingSewer!$A$2:$Q$125,13,FALSE)="Y","Y","") ->  | Z31: =IF(VLOOKUP($C31,ExistingSewer!$A$2:$Q$125,14,FALSE)="Y","Y","") ->  | AA31: =IF(VLOOKUP($C31,ExistingSewer!$A$2:$Q$125,15,FALSE)="Y","Y","") ->  | AB31: =IF(VLOOKUP($C31,ExistingSewer!$A$2:$Q$125,16,FALSE)="Y","Y","") -> Y | AC31: =IF(VLOOKUP($C31,ExistingSewer!$A$2:$Q$125,17,FALSE)="Y","Y","") ->  | BG31: 86180 | CG31: 86180 | CM31: 1893881.523
B32: =ExistingSewer!A10 -> Torbanlea WWTP | C32: =ExistingSewer!A10 -> Torbanlea WWTP | D32: Active | E32: Pump Station Network | F32: Torbanlea WWTP | L32: 0 | M32: =VLOOKUP(B32,ExistingSewer!$A$2:$H$122,8,FALSE) -> 531793 | O32: 1 | P32: 531793 | S32: =IF(Q32="",'Unit Rates - Land'!landcst,IF($E$8="Landuse",VLOOKUP(Q32,LAndcost3,2,FALSE),IF($E$8="Location",VLOOKUP(Q32,Landcost2,2,FALSE),"Error"))) -> 0 | T32: 0 | U32: 2015 | V32: =IFERROR(('General Input Sheet'!$G$38/(VLOOKUP(U32,'General Input Sheet'!$E$38:$G$44,3,FALSE))),1) -> 1 | W32: 531793 | X32: =IF(VLOOKUP($C32,ExistingSewer!$A$2:$Q$125,12,FALSE)="Y","Y","") ->  | Y32: =IF(VLOOKUP($C32,ExistingSewer!$A$2:$Q$125,13,FALSE)="Y","Y","") ->  | Z32: =IF(VLOOKUP($C32,ExistingSewer!$A$2:$Q$125,14,FALSE)="Y","Y","") -> Y | AA32: =IF(VLOOKUP($C32,ExistingSewer!$A$2:$Q$125,15,FALSE)="Y","Y","") ->  | AB32: =IF(VLOOKUP($C32,ExistingSewer!$A$2:$Q$125,16,FALSE)="Y","Y","") ->  | AC32: =IF(VLOOKUP($C32,ExistingSewer!$A$2:$Q$125,17,FALSE)="Y","Y","") ->  | BE32: 336 | CG32: 336 | CK32: 531793
B33: =ExistingSewer!A11 -> SPS01 Bazaar St | C33: =ExistingSewer!A11 -> SPS01 Bazaar St | D33: Active | E33: Pump Station Network | F33: =C33 -> SPS01 Bazaar St | L33: 0 | M33: =VLOOKUP(B33,ExistingSewer!$A$2:$H$122,8,FALSE) -> 1106311.06 | O33: 1 | P33: 1106311.06 | S33: =IF(Q33="",'Unit Rates - Land'!landcst,IF($E$8="Landuse",VLOOKUP(Q33,LAndcost3,2,FALSE),IF($E$8="Location",VLOOKUP(Q33,Landcost2,2,FALSE),"Error"))) -> 0 | T33: 0 | U33: 2015 | V33: =IFERROR(('General Input Sheet'!$G$38/(VLOOKUP(U33,'General Input Sheet'!$E$38:$G$44,3,FALSE))),1) -> 1 | W33: 1106311.06 | X33: =IF(VLOOKUP($C33,ExistingSewer!$A$2:$Q$125,12,FALSE)="Y","Y","") ->  | Y33: =IF(VLOOKUP($C33,ExistingSewer!$A$2:$Q$125,13,FALSE)="Y","Y","") ->  | Z33: =IF(VLOOKUP($C33,ExistingSewer!$A$2:$Q$125,14,FALSE)="Y","Y","") ->  | AA33: =IF(VLOOKUP($C33,ExistingSewer!$A$2:$Q$125,15,FALSE)="Y","Y","") ->  | AB33: =IF(VLOOKUP($C33,ExistingSewer!$A$2:$Q$125,16,FALSE)="Y","Y","") ->  | AC33: =IF(VLOOKUP($C33,ExistingSewer!$A$2:$Q$125,17,FALSE)="Y","Y","") -> Y | BH33: 31134 | CG33: 31134 | CN33: 1106311.06
B34: =ExistingSewer!A12 -> SPS01 Esplanade | C34: =ExistingSewer!A12 -> SPS01 Esplanade | D34: Active | E34: Pump Station Network | F34: =C34 -> SPS01 Esplanade | L34: 0 | M34: =VLOOKUP(B34,ExistingSewer!$A$2:$H$122,8,FALSE) -> 208296.232 | O34: 1 | P34: 208296.232 | S34: =IF(Q34="",'Unit Rates - Land'!landcst,IF($E$8="Landuse",VLOOKUP(Q34,LAndcost3,2,FALSE),IF($E$8="Location",VLOOKUP(Q34,Landcost2,2,FALSE),"Error"))) -> 0 | T34: 0 | U34: 2015 | V34: =IFERROR(('General Input Sheet'!$G$38/(VLOOKUP(U34,'General Input Sheet'!$E$38:$G$44,3,FALSE))),1) -> 1 | W34: 208296.232 | X34: =IF(VLOOKUP($C34,ExistingSewer!$A$2:$Q$125,12,FALSE)="Y","Y","") ->  | Y34: =IF(VLOOKUP($C34,ExistingSewer!$A$2:$Q$125,13,FALSE)="Y","Y","") ->  | Z34: =IF(VLOOKUP($C34,ExistingSewer!$A$2:$Q$125,14,FALSE)="Y","Y","") ->  | AA34: =IF(VLOOKUP($C34,ExistingSewer!$A$2:$Q$125,15,FALSE)="Y","Y","") ->  | AB34: =IF(VLOOKUP($C34,ExistingSewer!$A$2:$Q$125,16,FALSE)="Y","Y","") -> Y | AC34: =IF(VLOOKUP($C34,ExistingSewer!$A$2:$Q$125,17,FALSE)="Y","Y","") ->  | BG34: 86180 | CG34: 86180 | CM34: 208296.232
B35: =ExistingSewer!A13 -> SPS02 Queens Park | C35: =ExistingSewer!A13 -> SPS02 Queens Park | D35: Active | E35: Pump Station Network | F35: SPS02 Queens Park | L35: 0 | M35: =VLOOKUP(B35,ExistingSewer!$A$2:$H$122,8,FALSE) -> 1337264.092 | O35: 1 | P35: 1337264.092 | S35: =IF(Q35="",'Unit Rates - Land'!landcst,IF($E$8="Landuse",VLOOKUP(Q35,LAndcost3,2,FALSE),IF($E$8="Location",VLOOKUP(Q35,Landcost2,2,FALSE),"Error"))) -> 0 | T35: 0 | U35: 2015 | V35: =IFERROR(('General Input Sheet'!$G$38/(VLOOKUP(U35,'General Input Sheet'!$E$38:$G$44,3,FALSE))),1) -> 1 | W35: 1337264.092 | X35: =IF(VLOOKUP($C35,ExistingSewer!$A$2:$Q$125,12,FALSE)="Y","Y","") ->  | Y35: =IF(VLOOKUP($C35,ExistingSewer!$A$2:$Q$125,13,FALSE)="Y","Y","") ->  | Z35: =IF(VLOOKUP($C35,ExistingSewer!$A$2:$Q$125,14,FALSE)="Y","Y","") ->  | AA35: =IF(VLOOKUP($C35,ExistingSewer!$A$2:$Q$125,15,FALSE)="Y","Y","") ->  | AB35: =IF(VLOOKUP($C35,ExistingSewer!$A$2:$Q$125,16,FALSE)="Y","Y","") ->  | AC35: =IF(VLOOKUP($C35,ExistingSewer!$A$2:$Q$125,17,FALSE)="Y","Y","") -> Y | BH35: 31134 | CG35: 31134 | CN35: 1337264.092
B36: =ExistingSewer!A14 -> SPS02 The Gables | C36: =ExistingSewer!A14 -> SPS02 The Gables | D36: Active | E36: Pump Station Network | F36: SPS02 The Gables | L36: 0 | M36: =VLOOKUP(B36,ExistingSewer!$A$2:$H$122,8,FALSE) -> 542397.596 | O36: 1 | P36: 542397.596 | S36: =IF(Q36="",'Unit Rates - Land'!landcst,IF($E$8="Landuse",VLOOKUP(Q36,LAndcost3,2,FALSE),IF($E$8="Location",VLOOKUP(Q36,Landcost2,2,FALSE),"Error"))) -> 0 | T36: 0 | U36: 2015 | V36: =IFERROR(('General Input Sheet'!$G$38/(VLOOKUP(U36,'General Input Sheet'!$E$38:$G$44,3,FALSE))),1) -> 1 | W36: 542397.596 | X36: =IF(VLOOKUP($C36,ExistingSewer!$A$2:$Q$125,12,FALSE)="Y","Y","") ->  | Y36: =IF(VLOOKUP($C36,ExistingSewer!$A$2:$Q$125,13,FALSE)="Y","Y","") ->  | Z36: =IF(VLOOKUP($C36,ExistingSewer!$A$2:$Q$125,14,FALSE)="Y","Y","") ->  | AA36: =IF(VLOOKUP($C36,ExistingSewer!$A$2:$Q$125,15,FALSE)="Y","Y","") ->  | AB36: =IF(VLOOKUP($C36,ExistingSewer!$A$2:$Q$125,16,FALSE)="Y","Y","") -> Y | AC36: =IF(VLOOKUP($C36,ExistingSewer!$A$2:$Q$125,17,FALSE)="Y","Y","") ->  | BG36: 86180 | CG36: 86180 | CM36: 542397.596
B37: =ExistingSewer!A15 -> SPS03 Airport | C37: =ExistingSewer!A15 -> SPS03 Airport | D37: Active | E37: Pump Station Network | F37: =C37 -> SPS03 Airport | L37: 0 | M37: =VLOOKUP(B37,ExistingSewer!$A$2:$H$122,8,FALSE) -> 1640335.454 | O37: 1 | P37: 1640335.454 | S37: =IF(Q37="",'Unit Rates - Land'!landcst,IF($E$8="Landuse",VLOOKUP(Q37,LAndcost3,2,FALSE),IF($E$8="Location",VLOOKUP(Q37,Landcost2,2,FALSE),"Error"))) -> 0 | T37: 0 | U37: 2015 | V37: =IFERROR(('General Input Sheet'!$G$38/(VLOOKUP(U37,'General Input Sheet'!$E$38:$G$44,3,FALSE))),1) -> 1 | W37: 1640335.454 | X37: =IF(VLOOKUP($C37,ExistingSewer!$A$2:$Q$125,12,FALSE)="Y","Y","") ->  | Y37: =IF(VLOOKUP($C37,ExistingSewer!$A$2:$Q$125,13,FALSE)="Y","Y","") ->  | Z37: =IF(VLOOKUP($C37,ExistingSewer!$A$2:$Q$125,14,FALSE)="Y","Y","") ->  | AA37: =IF(VLOOKUP($C37,ExistingSewer!$A$2:$Q$125,15,FALSE)="Y","Y","") ->  | AB37: =IF(VLOOKUP($C37,ExistingSewer!$A$2:$Q$125,16,FALSE)="Y","Y","") ->  | AC37: =IF(VLOOKUP($C37,ExistingSewer!$A$2:$Q$125,17,FALSE)="Y","Y","") -> Y | BH37: 31134 | CG37: 31134 | CN37: 1640335.454
B38: =ExistingSewer!A16 -> SPS03 Kehlet St | C38: =ExistingSewer!A16 -> SPS03 Kehlet St | D38: Active | E38: Pump Station Network | F38: SPS03 Kehlet St | L38: 0 | M38: =VLOOKUP(B38,ExistingSewer!$A$2:$H$122,8,FALSE) -> 686372.156 | O38: 1 | P38: 686372.156 | S38: =IF(Q38="",'Unit Rates - Land'!landcst,IF($E$8="Landuse",VLOOKUP(Q38,LAndcost3,2,FALSE),IF($E$8="Location",VLOOKUP(Q38,Landcost2,2,FALSE),"Error"))) -> 0 | T38: 0 | U38: 2015 | V38: =IFERROR(('General Input Sheet'!$G$38/(VLOOKUP(U38,'General Input Sheet'!$E$38:$G$44,3,FALSE))),1) -> 1 | W38: 686372.156 | X38: =IF(VLOOKUP($C38,ExistingSewer!$A$2:$Q$125,12,FALSE)="Y","Y","") ->  | Y38: =IF(VLOOKUP($C38,ExistingSewer!$A$2:$Q$125,13,FALSE)="Y","Y","") ->  | Z38: =IF(VLOOKUP($C38,ExistingSewer!$A$2:$Q$125,14,FALSE)="Y","Y","") ->  | AA38: =IF(VLOOKUP($C38,ExistingSewer!$A$2:$Q$125,15,FALSE)="Y","Y","") ->  | AB38: =IF(VLOOKUP($C38,ExistingSewer!$A$2:$Q$125,16,FALSE)="Y","Y","") -> Y | AC38: =IF(VLOOKUP($C38,ExistingSewer!$A$2:$Q$125,17,FALSE)="Y","Y","") ->  | BG38: 86180 | BR38: =IF(AM38="y",BR$14,IF(AND(AM38>0,AM38<=1),AM38*BR$14,"")) ->  | CG38: 86180 | CM38: 686372.156 | CX38: =IF(BR38="","",(BR38/$CG38)*$W38) -> 
B39: =ExistingSewer!A17 -> SPS04 Beach Rd | C39: =ExistingSewer!A17 -> SPS04 Beach Rd | D39: Active | E39: Pump Station Network | F39: SPS04 Beach Rd | L39: 0 | M39: =VLOOKUP(B39,ExistingSewer!$A$2:$H$122,8,FALSE) -> 1581982.356 | O39: 1 | P39: 1581982.356 | S39: =IF(Q39="",'Unit Rates - Land'!landcst,IF($E$8="Landuse",VLOOKUP(Q39,LAndcost3,2,FALSE),IF($E$8="Location",VLOOKUP(Q39,Landcost2,2,FALSE),"Error"))) -> 0 | T39: 0 | U39: 2015 | V39: =IFERROR(('General Input Sheet'!$G$38/(VLOOKUP(U39,'General Input Sheet'!$E$38:$G$44,3,FALSE))),1) -> 1 | W39: 1581982.356 | X39: =IF(VLOOKUP($C39,ExistingSewer!$A$2:$Q$125,12,FALSE)="Y","Y","") ->  | Y39: =IF(VLOOKUP($C39,ExistingSewer!$A$2:$Q$125,13,FALSE)="Y","Y","") ->  | Z39: =IF(VLOOKUP($C39,ExistingSewer!$A$2:$Q$125,14,FALSE)="Y","Y","") ->  | AA39: =IF(VLOOKUP($C39,ExistingSewer!$A$2:$Q$125,15,FALSE)="Y","Y","") ->  | AB39: =IF(VLOOKUP($C39,ExistingSewer!$A$2:$Q$125,16,FALSE)="Y","Y","") -> Y | AC39: =IF(VLOOKUP($C39,ExistingSewer!$A$2:$Q$125,17,FALSE)="Y","Y","") ->  | BC39: =IF(X39="y",BC$14,IF(AND(X39>0,X39<=1),X39*BC$14,"")) ->  | BG39: 86180 | CG39: 86180 | CM39: 1581982.356
B40: =ExistingSewer!A18 -> SPS04 Lennox St | C40: =ExistingSewer!A18 -> SPS04 Lennox St | D40: Active | E40: Pump Station Network | F40: =C40 -> SPS04 Lennox St | L40: 0 | M40: =VLOOKUP(B40,ExistingSewer!$A$2:$H$122,8,FALSE) -> 277297.789 | O40: 1 | P40: 277297.789 | S40: =IF(Q40="",'Unit Rates - Land'!landcst,IF($E$8="Landuse",VLOOKUP(Q40,LAndcost3,2,FALSE),IF($E$8="Location",VLOOKUP(Q40,Landcost2,2,FALSE),"Error"))) -> 0 | T40: 0 | U40: 2015 | V40: =IFERROR(('General Input Sheet'!$G$38/(VLOOKUP(U40,'General Input Sheet'!$E$38:$G$44,3,FALSE))),1) -> 1 | W40: 277297.789 | X40: =IF(VLOOKUP($C40,ExistingSewer!$A$2:$Q$125,12,FALSE)="Y","Y","") ->  | Y40: =IF(VLOOKUP($C40,ExistingSewer!$A$2:$Q$125,13,FALSE)="Y","Y","") ->  | Z40: =IF(VLOOKUP($C40,ExistingSewer!$A$2:$Q$125,14,FALSE)="Y","Y","") ->  | AA40: =IF(VLOOKUP($C40,ExistingSewer!$A$2:$Q$125,15,FALSE)="Y","Y","") ->  | AB40: =IF(VLOOKUP($C40,ExistingSewer!$A$2:$Q$125,16,FALSE)="Y","Y","") ->  | AC40: =IF(VLOOKUP($C40,ExistingSewer!$A$2:$Q$125,17,FALSE)="Y","Y","") -> Y | BH40: 31134 | CG40: 31134 | CN40: 277297.789
B41: =ExistingSewer!A19 -> SPS05 Guava St | C41: =ExistingSewer!A19 -> SPS05 Guava St | D41: Active | E41: Pump Station Network | F41: SPS05 Guava St | L41: 0 | M41: =VLOOKUP(B41,ExistingSewer!$A$2:$H$122,8,FALSE) -> 958644.656 | O41: 1 | P41: 958644.656 | S41: =IF(Q41="",'Unit Rates - Land'!landcst,IF($E$8="Landuse",VLOOKUP(Q41,LAndcost3,2,FALSE),IF($E$8="Location",VLOOKUP(Q41,Landcost2,2,FALSE),"Error"))) -> 0 | T41: 0 | U41: 2015 | V41: =IFERROR(('General Input Sheet'!$G$38/(VLOOKUP(U41,'General Input Sheet'!$E$38:$G$44,3,FALSE))),1) -> 1 | W41: 958644.656 | X41: =IF(VLOOKUP($C41,ExistingSewer!$A$2:$Q$125,12,FALSE)="Y","Y","") ->  | Y41: =IF(VLOOKUP($C41,ExistingSewer!$A$2:$Q$125,13,FALSE)="Y","Y","") ->  | Z41: =IF(VLOOKUP($C41,ExistingSewer!$A$2:$Q$125,14,FALSE)="Y","Y","") ->  | AA41: =IF(VLOOKUP($C41,ExistingSewer!$A$2:$Q$125,15,FALSE)="Y","Y","") ->  | AB41: =IF(VLOOKUP($C41,ExistingSewer!$A$2:$Q$125,16,FALSE)="Y","Y","") ->  | AC41: =IF(VLOOKUP($C41,ExistingSewer!$A$2:$Q$125,17,FALSE)="Y","Y","") -> Y | BH41: 31134 | CG41: 31134 | CN41: 958644.656
B42: =ExistingSewer!A20 -> SPS05 Zephyr St | C42: =ExistingSewer!A20 -> SPS05 Zephyr St | D42: Active | E42: Pump Station Network | F42: SPS05 Zephyr St | L42: 0 | M42: =VLOOKUP(B42,ExistingSewer!$A$2:$H$122,8,FALSE) -> 1929396.716 | O42: 1 | P42: 1929396.716 | S42: =IF(Q42="",'Unit Rates - Land'!landcst,IF($E$8="Landuse",VLOOKUP(Q42,LAndcost3,2,FALSE),IF($E$8="Location",VLOOKUP(Q42,Landcost2,2,FALSE),"Error"))) -> 0 | T42: 0 | U42: 2015 | V42: =IFERROR(('General Input Sheet'!$G$38/(VLOOKUP(U42,'General Input Sheet'!$E$38:$G$44,3,FALSE))),1) -> 1 | W42: 1929396.716 | X42: =IF(VLOOKUP($C42,ExistingSewer!$A$2:$Q$125,12,FALSE)="Y","Y","") ->  | Y42: =IF(VLOOKUP($C42,ExistingSewer!$A$2:$Q$125,13,FALSE)="Y","Y","") ->  | Z42: =IF(VLOOKUP($C42,ExistingSewer!$A$2:$Q$125,14,FALSE)="Y","Y","") ->  | AA42: =IF(VLOOKUP($C42,ExistingSewer!$A$2:$Q$125,15,FALSE)="Y","Y","") ->  | AB42: =IF(VLOOKUP($C42,ExistingSewer!$A$2:$Q$125,16,FALSE)="Y","Y","") -> Y | AC42: =IF(VLOOKUP($C42,ExistingSewer!$A$2:$Q$125,17,FALSE)="Y","Y","") ->  | BG42: 86180 | CG42: 86180 | CM42: 1929396.716
B43: =ExistingSewer!A21 -> SPS06 Booker St | C43: =ExistingSewer!A21 -> SPS06 Booker St | D43: Active | E43: Pump Station Network | F43: =C43 -> SPS06 Booker St | L43: 0 | M43: =VLOOKUP(B43,ExistingSewer!$A$2:$H$122,8,FALSE) -> 503649.47 | O43: 1 | P43: 503649.47 | S43: =IF(Q43="",'Unit Rates - Land'!landcst,IF($E$8="Landuse",VLOOKUP(Q43,LAndcost3,2,FALSE),IF($E$8="Location",VLOOKUP(Q43,Landcost2,2,FALSE),"Error"))) -> 0 | T43: 0 | U43: 2015 | V43: =IFERROR(('General Input Sheet'!$G$38/(VLOOKUP(U43,'General Input Sheet'!$E$38:$G$44,3,FALSE))),1) -> 1 | W43: 503649.47 | X43: =IF(VLOOKUP($C43,ExistingSewer!$A$2:$Q$125,12,FALSE)="Y","Y","") ->  | Y43: =IF(VLOOKUP($C43,ExistingSewer!$A$2:$Q$125,13,FALSE)="Y","Y","") ->  | Z43: =IF(VLOOKUP($C43,ExistingSewer!$A$2:$Q$125,14,FALSE)="Y","Y","") ->  | AA43: =IF(VLOOKUP($C43,ExistingSewer!$A$2:$Q$125,15,FALSE)="Y","Y","") ->  | AB43: =IF(VLOOKUP($C43,ExistingSewer!$A$2:$Q$125,16,FALSE)="Y","Y","") ->  | AC43: =IF(VLOOKUP($C43,ExistingSewer!$A$2:$Q$125,17,FALSE)="Y","Y","") -> Y | BH43: 31134 | CG43: 31134 | CN43: 503649.47
B44: =ExistingSewer!A22 -> SPS06 Truro St | C44: =ExistingSewer!A22 -> SPS06 Truro St | D44: Active | E44: Pump Station Network | F44: SPS06 Truro St | L44: 0 | M44: =VLOOKUP(B44,ExistingSewer!$A$2:$H$122,8,FALSE) -> 2063816.874 | O44: 1 | P44: 2063816.874 | S44: =IF(Q44="",'Unit Rates - Land'!landcst,IF($E$8="Landuse",VLOOKUP(Q44,LAndcost3,2,FALSE),IF($E$8="Location",VLOOKUP(Q44,Landcost2,2,FALSE),"Error"))) -> 0 | T44: 0 | U44: 2015 | V44: =IFERROR(('General Input Sheet'!$G$38/(VLOOKUP(U44,'General Input Sheet'!$E$38:$G$44,3,FALSE))),1) -> 1 | W44: 2063816.874 | X44: =IF(VLOOKUP($C44,ExistingSewer!$A$2:$Q$125,12,FALSE)="Y","Y","") ->  | Y44: =IF(VLOOKUP($C44,ExistingSewer!$A$2:$Q$125,13,FALSE)="Y","Y","") ->  | Z44: =IF(VLOOKUP($C44,ExistingSewer!$A$2:$Q$125,14,FALSE)="Y","Y","") ->  | AA44: =IF(VLOOKUP($C44,ExistingSewer!$A$2:$Q$125,15,FALSE)="Y","Y","") ->  | AB44: =IF(VLOOKUP($C44,ExistingSewer!$A$2:$Q$125,16,FALSE)="Y","Y","") -> Y | AC44: =IF(VLOOKUP($C44,ExistingSewer!$A$2:$Q$125,17,FALSE)="Y","Y","") ->  | BG44: 86180 | CG44: 86180 | CM44: 2063816.874
B45: =ExistingSewer!A23 -> SPS07 Cunningham St | C45: =ExistingSewer!A23 -> SPS07 Cunningham St | D45: Active | E45: Pump Station Network | F45: SPS07 Cunningham St | L45: 0 | M45: =VLOOKUP(B45,ExistingSewer!$A$2:$H$122,8,FALSE) -> 1551561.727 | O45: 1 | P45: 1551561.727 | S45: =IF(Q45="",'Unit Rates - Land'!landcst,IF($E$8="Landuse",VLOOKUP(Q45,LAndcost3,2,FALSE),IF($E$8="Location",VLOOKUP(Q45,Landcost2,2,FALSE),"Error"))) -> 0 | T45: 0 | U45: 2015 | V45: =IFERROR(('General Input Sheet'!$G$38/(VLOOKUP(U45,'General Input Sheet'!$E$38:$G$44,3,FALSE))),1) -> 1 | W45: 1551561.727 | X45: =IF(VLOOKUP($C45,ExistingSewer!$A$2:$Q$125,12,FALSE)="Y","Y","") ->  | Y45: =IF(VLOOKUP($C45,ExistingSewer!$A$2:$Q$125,13,FALSE)="Y","Y","") ->  | Z45: =IF(VLOOKUP($C45,ExistingSewer!$A$2:$Q$125,14,FALSE)="Y","Y","") ->  | AA45: =IF(VLOOKUP($C45,ExistingSewer!$A$2:$Q$125,15,FALSE)="Y","Y","") ->  | AB45: =IF(VLOOKUP($C45,ExistingSewer!$A$2:$Q$125,16,FALSE)="Y","Y","") -> Y | AC45: =IF(VLOOKUP($C45,ExistingSewer!$A$2:$Q$125,17,FALSE)="Y","Y","") ->  | BG45: 86180 | CG45: 86180 | CM45: 1551561.727
B46: =ExistingSewer!A24 -> SPS07 Neptune St | C46: =ExistingSewer!A24 -> SPS07 Neptune St | D46: Active | E46: Pump Station Network | F46: =C46 -> SPS07 Neptune St | L46: 0 | M46: =VLOOKUP(B46,ExistingSewer!$A$2:$H$122,8,FALSE) -> 1224693.986 | O46: 1 | P46: 1224693.986 | S46: =IF(Q46="",'Unit Rates - Land'!landcst,IF($E$8="Landuse",VLOOKUP(Q46,LAndcost3,2,FALSE),IF($E$8="Location",VLOOKUP(Q46,Landcost2,2,FALSE),"Error"))) -> 0 | T46: 0 | U46: 2015 | V46: =IFERROR(('General Input Sheet'!$G$38/(VLOOKUP(U46,'General Input Sheet'!$E$38:$G$44,3,FALSE))),1) -> 1 | W46: 1224693.986 | X46: =IF(VLOOKUP($C46,ExistingSewer!$A$2:$Q$125,12,FALSE)="Y","Y","") ->  | Y46: =IF(VLOOKUP($C46,ExistingSewer!$A$2:$Q$125,13,FALSE)="Y","Y","") ->  | Z46: =IF(VLOOKUP($C46,ExistingSewer!$A$2:$Q$125,14,FALSE)="Y","Y","") ->  | AA46: =IF(VLOOKUP($C46,ExistingSewer!$A$2:$Q$125,15,FALSE)="Y","Y","") ->  | AB46: =IF(VLOOKUP($C46,ExistingSewer!$A$2:$Q$125,16,FALSE)="Y","Y","") ->  | AC46: =IF(VLOOKUP($C46,ExistingSewer!$A$2:$Q$125,17,FALSE)="Y","Y","") -> Y | BH46: 31134 | CG46: 31134 | CN46: 1224693.986
B47: =ExistingSewer!A25 -> SPS08 Hibiscus St | C47: =ExistingSewer!A25 -> SPS08 Hibiscus St | D47: Active | E47: Pump Station Network | F47: SPS08 Hibiscus St | L47: 0 | M47: =VLOOKUP(B47,ExistingSewer!$A$2:$H$122,8,FALSE) -> 473025.748 | O47: 1 | P47: 473025.748 | S47: =IF(Q47="",'Unit Rates - Land'!landcst,IF($E$8="Landuse",VLOOKUP(Q47,LAndcost3,2,FALSE),IF($E$8="Location",VLOOKUP(Q47,Landcost2,2,FALSE),"Error"))) -> 0 | T47: 0 | U47: 2015 | V47: =IFERROR(('General Input Sheet'!$G$38/(VLOOKUP(U47,'General Input Sheet'!$E$38:$G$44,3,FALSE))),1) -> 1 | W47: 473025.748 | X47: =IF(VLOOKUP($C47,ExistingSewer!$A$2:$Q$125,12,FALSE)="Y","Y","") ->  | Y47: =IF(VLOOKUP($C47,ExistingSewer!$A$2:$Q$125,13,FALSE)="Y","Y","") ->  | Z47: =IF(VLOOKUP($C47,ExistingSewer!$A$2:$Q$125,14,FALSE)="Y","Y","") ->  | AA47: =IF(VLOOKUP($C47,ExistingSewer!$A$2:$Q$125,15,FALSE)="Y","Y","") ->  | AB47: =IF(VLOOKUP($C47,ExistingSewer!$A$2:$Q$125,16,FALSE)="Y","Y","") -> Y | AC47: =IF(VLOOKUP($C47,ExistingSewer!$A$2:$Q$125,17,FALSE)="Y","Y","") ->  | BG47: 86180 | CG47: 86180 | CM47: 473025.748
B48: =ExistingSewer!A26 -> SPS08 Russell St | C48: =ExistingSewer!A26 -> SPS08 Russell St | D48: Active | E48: Pump Station Network | F48: SPS08 Russell St | L48: 0 | M48: =VLOOKUP(B48,ExistingSewer!$A$2:$H$122,8,FALSE) -> 1278458.09 | O48: 1 | P48: 1278458.09 | S48: =IF(Q48="",'Unit Rates - Land'!landcst,IF($E$8="Landuse",VLOOKUP(Q48,LAndcost3,2,FALSE),IF($E$8="Location",VLOOKUP(Q48,Landcost2,2,FALSE),"Error"))) -> 0 | T48: 0 | U48: 2015 | V48: =IFERROR(('General Input Sheet'!$G$38/(VLOOKUP(U48,'General Input Sheet'!$E$38:$G$44,3,FALSE))),1) -> 1 | W48: 1278458.09 | X48: =IF(VLOOKUP($C48,ExistingSewer!$A$2:$Q$125,12,FALSE)="Y","Y","") ->  | Y48: =IF(VLOOKUP($C48,ExistingSewer!$A$2:$Q$125,13,FALSE)="Y","Y","") ->  | Z48: =IF(VLOOKUP($C48,ExistingSewer!$A$2:$Q$125,14,FALSE)="Y","Y","") ->  | AA48: =IF(VLOOKUP($C48,ExistingSewer!$A$2:$Q$125,15,FALSE)="Y","Y","") ->  | AB48: =IF(VLOOKUP($C48,ExistingSewer!$A$2:$Q$125,16,FALSE)="Y","Y","") ->  | AC48: =IF(VLOOKUP($C48,ExistingSewer!$A$2:$Q$125,17,FALSE)="Y","Y","") -> Y | BH48: 31134 | CG48: 31134 | CN48: 1278458.09
B49: =ExistingSewer!A27 -> SPS09 Guard St | C49: =ExistingSewer!A27 -> SPS09 Guard St | D49: Active | E49: Pump Station Network | F49: =C49 -> SPS09 Guard St | L49: 0 | M49: =VLOOKUP(B49,ExistingSewer!$A$2:$H$122,8,FALSE) -> 1191702.138 | O49: 1 | P49: 1191702.138 | S49: =IF(Q49="",'Unit Rates - Land'!landcst,IF($E$8="Landuse",VLOOKUP(Q49,LAndcost3,2,FALSE),IF($E$8="Location",VLOOKUP(Q49,Landcost2,2,FALSE),"Error"))) -> 0 | T49: 0 | U49: 2015 | V49: =IFERROR(('General Input Sheet'!$G$38/(VLOOKUP(U49,'General Input Sheet'!$E$38:$G$44,3,FALSE))),1) -> 1 | W49: 1191702.138 | X49: =IF(VLOOKUP($C49,ExistingSewer!$A$2:$Q$125,12,FALSE)="Y","Y","") ->  | Y49: =IF(VLOOKUP($C49,ExistingSewer!$A$2:$Q$125,13,FALSE)="Y","Y","") ->  | Z49: =IF(VLOOKUP($C49,ExistingSewer!$A$2:$Q$125,14,FALSE)="Y","Y","") ->  | AA49: =IF(VLOOKUP($C49,ExistingSewer!$A$2:$Q$125,15,FALSE)="Y","Y","") ->  | AB49: =IF(VLOOKUP($C49,ExistingSewer!$A$2:$Q$125,16,FALSE)="Y","Y","") -> Y | AC49: =IF(VLOOKUP($C49,ExistingSewer!$A$2:$Q$125,17,FALSE)="Y","Y","") ->  | BG49: 86180 | CG49: 86180 | CM49: 1191702.138
B50: =ExistingSewer!A28 -> SPS09 Queen St | C50: =ExistingSewer!A28 -> SPS09 Queen St | D50: Active | E50: Pump Station Network | F50: SPS09 Queen St | L50: 0 | M50: =VLOOKUP(B50,ExistingSewer!$A$2:$H$122,8,FALSE) -> 607600.508 | O50: 1 | P50: 607600.508 | S50: =IF(Q50="",'Unit Rates - Land'!landcst,IF($E$8="Landuse",VLOOKUP(Q50,LAndcost3,2,FALSE),IF($E$8="Location",VLOOKUP(Q50,Landcost2,2,FALSE),"Error"))) -> 0 | T50: 0 | U50: 2015 | V50: =IFERROR(('General Input Sheet'!$G$38/(VLOOKUP(U50,'General Input Sheet'!$E$38:$G$44,3,FALSE))),1) -> 1 | W50: 607600.508 | X50: =IF(VLOOKUP($C50,ExistingSewer!$A$2:$Q$125,12,FALSE)="Y","Y","") ->  | Y50: =IF(VLOOKUP($C50,ExistingSewer!$A$2:$Q$125,13,FALSE)="Y","Y","") ->  | Z50: =IF(VLOOKUP($C50,ExistingSewer!$A$2:$Q$125,14,FALSE)="Y","Y","") ->  | AA50: =IF(VLOOKUP($C50,ExistingSewer!$A$2:$Q$125,15,FALSE)="Y","Y","") ->  | AB50: =IF(VLOOKUP($C50,ExistingSewer!$A$2:$Q$125,16,FALSE)="Y","Y","") ->  | AC50: =IF(VLOOKUP($C50,ExistingSewer!$A$2:$Q$125,17,FALSE)="Y","Y","") -> Y | BH50: 31134 | CG50: 31134 | CN50: 607600.508
B51: =ExistingSewer!A29 -> SPS10 Banana St | C51: =ExistingSewer!A29 -> SPS10 Banana St | D51: Active | E51: Pump Station Network | F51: SPS10 Banana St | L51: 0 | M51: =VLOOKUP(B51,ExistingSewer!$A$2:$H$122,8,FALSE) -> 1714712.335 | O51: 1 | P51: 1714712.335 | S51: =IF(Q51="",'Unit Rates - Land'!landcst,IF($E$8="Landuse",VLOOKUP(Q51,LAndcost3,2,FALSE),IF($E$8="Location",VLOOKUP(Q51,Landcost2,2,FALSE),"Error"))) -> 0 | T51: 0 | U51: 2015 | V51: =IFERROR(('General Input Sheet'!$G$38/(VLOOKUP(U51,'General Input Sheet'!$E$38:$G$44,3,FALSE))),1) -> 1 | W51: 1714712.335 | X51: =IF(VLOOKUP($C51,ExistingSewer!$A$2:$Q$125,12,FALSE)="Y","Y","") ->  | Y51: =IF(VLOOKUP($C51,ExistingSewer!$A$2:$Q$125,13,FALSE)="Y","Y","") ->  | Z51: =IF(VLOOKUP($C51,ExistingSewer!$A$2:$Q$125,14,FALSE)="Y","Y","") ->  | AA51: =IF(VLOOKUP($C51,ExistingSewer!$A$2:$Q$125,15,FALSE)="Y","Y","") ->  | AB51: =IF(VLOOKUP($C51,ExistingSewer!$A$2:$Q$125,16,FALSE)="Y","Y","") ->  | AC51: =IF(VLOOKUP($C51,ExistingSewer!$A$2:$Q$125,17,FALSE)="Y","Y","") -> Y | BH51: 31134 | CG51: 31134 | CN51: 1714712.335
B52: =ExistingSewer!A30 -> SPS10 Boundary Rd | C52: =ExistingSewer!A30 -> SPS10 Boundary Rd | D52: Active | E52: Pump Station Network | F52: =C52 -> SPS10 Boundary Rd | L52: 0 | M52: =VLOOKUP(B52,ExistingSewer!$A$2:$H$122,8,FALSE) -> 313002.108 | O52: 1 | P52: 313002.108 | S52: =IF(Q52="",'Unit Rates - Land'!landcst,IF($E$8="Landuse",VLOOKUP(Q52,LAndcost3,2,FALSE),IF($E$8="Location",VLOOKUP(Q52,Landcost2,2,FALSE),"Error"))) -> 0 | T52: 0 | U52: 2015 | V52: =IFERROR(('General Input Sheet'!$G$38/(VLOOKUP(U52,'General Input Sheet'!$E$38:$G$44,3,FALSE))),1) -> 1 | W52: 313002.108 | X52: =IF(VLOOKUP($C52,ExistingSewer!$A$2:$Q$125,12,FALSE)="Y","Y","") ->  | Y52: =IF(VLOOKUP($C52,ExistingSewer!$A$2:$Q$125,13,FALSE)="Y","Y","") ->  | Z52: =IF(VLOOKUP($C52,ExistingSewer!$A$2:$Q$125,14,FALSE)="Y","Y","") ->  | AA52: =IF(VLOOKUP($C52,ExistingSewer!$A$2:$Q$125,15,FALSE)="Y","Y","") ->  | AB52: =IF(VLOOKUP($C52,ExistingSewer!$A$2:$Q$125,16,FALSE)="Y","Y","") -> Y | AC52: =IF(VLOOKUP($C52,ExistingSewer!$A$2:$Q$125,17,FALSE)="Y","Y","") ->  | BG52: 86180 | CG52: 86180 | CM52: 313002.108
B53: =ExistingSewer!A31 -> SPS11 Miller St | C53: =ExistingSewer!A31 -> SPS11 Miller St | D53: Active | E53: Pump Station Network | F53: SPS11 Miller St | L53: 0 | M53: =VLOOKUP(B53,ExistingSewer!$A$2:$H$122,8,FALSE) -> 266020.52 | O53: 1 | P53: 266020.52 | S53: =IF(Q53="",'Unit Rates - Land'!landcst,IF($E$8="Landuse",VLOOKUP(Q53,LAndcost3,2,FALSE),IF($E$8="Location",VLOOKUP(Q53,Landcost2,2,FALSE),"Error"))) -> 0 | T53: 0 | U53: 2015 | V53: =IFERROR(('General Input Sheet'!$G$38/(VLOOKUP(U53,'General Input Sheet'!$E$38:$G$44,3,FALSE))),1) -> 1 | W53: 266020.52 | X53: =IF(VLOOKUP($C53,ExistingSewer!$A$2:$Q$125,12,FALSE)="Y","Y","") ->  | Y53: =IF(VLOOKUP($C53,ExistingSewer!$A$2:$Q$125,13,FALSE)="Y","Y","") ->  | Z53: =IF(VLOOKUP($C53,ExistingSewer!$A$2:$Q$125,14,FALSE)="Y","Y","") ->  | AA53: =IF(VLOOKUP($C53,ExistingSewer!$A$2:$Q$125,15,FALSE)="Y","Y","") ->  | AB53: =IF(VLOOKUP($C53,ExistingSewer!$A$2:$Q$125,16,FALSE)="Y","Y","") -> Y | AC53: =IF(VLOOKUP($C53,ExistingSewer!$A$2:$Q$125,17,FALSE)="Y","Y","") ->  | BG53: 86180 | CG53: 86180 | CM53: 266020.52
B54: =ExistingSewer!A32 -> SPS11 Puller St | C54: =ExistingSewer!A32 -> SPS11 Puller St | D54: Active | E54: Pump Station Network | F54: SPS11 Puller St | L54: 0 | M54: =VLOOKUP(B54,ExistingSewer!$A$2:$H$122,8,FALSE) -> 218424.574 | O54: 1 | P54: 218424.574 | S54: =IF(Q54="",'Unit Rates - Land'!landcst,IF($E$8="Landuse",VLOOKUP(Q54,LAndcost3,2,FALSE),IF($E$8="Location",VLOOKUP(Q54,Landcost2,2,FALSE),"Error"))) -> 0 | T54: 0 | U54: 2015 | V54: =IFERROR(('General Input Sheet'!$G$38/(VLOOKUP(U54,'General Input Sheet'!$E$38:$G$44,3,FALSE))),1) -> 1 | W54: 218424.574 | X54: =IF(VLOOKUP($C54,ExistingSewer!$A$2:$Q$125,12,FALSE)="Y","Y","") ->  | Y54: =IF(VLOOKUP($C54,ExistingSewer!$A$2:$Q$125,13,FALSE)="Y","Y","") ->  | Z54: =IF(VLOOKUP($C54,ExistingSewer!$A$2:$Q$125,14,FALSE)="Y","Y","") ->  | AA54: =IF(VLOOKUP($C54,ExistingSewer!$A$2:$Q$125,15,FALSE)="Y","Y","") ->  | AB54: =IF(VLOOKUP($C54,ExistingSewer!$A$2:$Q$125,16,FALSE)="Y","Y","") ->  | AC54: =IF(VLOOKUP($C54,ExistingSewer!$A$2:$Q$125,17,FALSE)="Y","Y","") -> Y | BH54: 31134 | BR54: =IF(AM54="y",BR$14,IF(AND(AM54>0,AM54<=1),AM54*BR$14,"")) ->  | CG54: 31134 | CN54: 218424.574 | CW54: =IF(BQ54="","",(BQ54/$CG54)*$W54) -> 
B55: =ExistingSewer!A33 -> SPS12 Banana St | C55: =ExistingSewer!A33 -> SPS12 Banana St | D55: Active | E55: Pump Station Network | F55: =C55 -> SPS12 Banana St | L55: 0 | M55: =VLOOKUP(B55,ExistingSewer!$A$2:$H$122,8,FALSE) -> 213857.011 | O55: 1 | P55: 213857.011 | S55: =IF(Q55="",'Unit Rates - Land'!landcst,IF($E$8="Landuse",VLOOKUP(Q55,LAndcost3,2,FALSE),IF($E$8="Location",VLOOKUP(Q55,Landcost2,2,FALSE),"Error"))) -> 0 | T55: 0 | U55: 2015 | V55: =IFERROR(('General Input Sheet'!$G$38/(VLOOKUP(U55,'General Input Sheet'!$E$38:$G$44,3,FALSE))),1) -> 1 | W55: 213857.011 | X55: =IF(VLOOKUP($C55,ExistingSewer!$A$2:$Q$125,12,FALSE)="Y","Y","") ->  | Y55: =IF(VLOOKUP($C55,ExistingSewer!$A$2:$Q$125,13,FALSE)="Y","Y","") ->  | Z55: =IF(VLOOKUP($C55,ExistingSewer!$A$2:$Q$125,14,FALSE)="Y","Y","") ->  | AA55: =IF(VLOOKUP($C55,ExistingSewer!$A$2:$Q$125,15,FALSE)="Y","Y","") ->  | AB55: =IF(VLOOKUP($C55,ExistingSewer!$A$2:$Q$125,16,FALSE)="Y","Y","") ->  | AC55: =IF(VLOOKUP($C55,ExistingSewer!$A$2:$Q$125,17,FALSE)="Y","Y","") -> Y | BC55: =IF(X55="y",BC$14,IF(AND(X55>0,X55<=1),X55*BC$14,"")) ->  | BH55: 31134 | CG55: 31134 | CN55: 213857.011
B56: =ExistingSewer!A34 -> SPS12 Boat Harbour Dr | C56: =ExistingSewer!A34 -> SPS12 Boat Harbour Dr | D56: Active | E56: Pump Station Network | F56: SPS12 Boat Harbour Dr | L56: 0 | M56: =VLOOKUP(B56,ExistingSewer!$A$2:$H$122,8,FALSE) -> 332199.547 | O56: 1 | P56: 332199.547 | S56: =IF(Q56="",'Unit Rates - Land'!landcst,IF($E$8="Landuse",VLOOKUP(Q56,LAndcost3,2,FALSE),IF($E$8="Location",VLOOKUP(Q56,Landcost2,2,FALSE),"Error"))) -> 0 | T56: 0 | U56: 2015 | V56: =IFERROR(('General Input Sheet'!$G$38/(VLOOKUP(U56,'General Input Sheet'!$E$38:$G$44,3,FALSE))),1) -> 1 | W56: 332199.547 | X56: =IF(VLOOKUP($C56,ExistingSewer!$A$2:$Q$125,12,FALSE)="Y","Y","") ->  | Y56: =IF(VLOOKUP($C56,ExistingSewer!$A$2:$Q$125,13,FALSE)="Y","Y","") ->  | Z56: =IF(VLOOKUP($C56,ExistingSewer!$A$2:$Q$125,14,FALSE)="Y","Y","") ->  | AA56: =IF(VLOOKUP($C56,ExistingSewer!$A$2:$Q$125,15,FALSE)="Y","Y","") ->  | AB56: =IF(VLOOKUP($C56,ExistingSewer!$A$2:$Q$125,16,FALSE)="Y","Y","") -> Y | AC56: =IF(VLOOKUP($C56,ExistingSewer!$A$2:$Q$125,17,FALSE)="Y","Y","") ->  | BG56: 86180 | CG56: 86180 | CM56: 332199.547
B57: =ExistingSewer!A35 -> SPS13 Esplanade | C57: =ExistingSewer!A35 -> SPS13 Esplanade | D57: Active | E57: Pump Station Network | F57: SPS13 Esplanade | L57: 0 | M57: =VLOOKUP(B57,ExistingSewer!$A$2:$H$122,8,FALSE) -> 135066.856 | O57: 1 | P57: 135066.856 | S57: =IF(Q57="",'Unit Rates - Land'!landcst,IF($E$8="Landuse",VLOOKUP(Q57,LAndcost3,2,FALSE),IF($E$8="Location",VLOOKUP(Q57,Landcost2,2,FALSE),"Error"))) -> 0 | T57: 0 | U57: 2015 | V57: =IFERROR(('General Input Sheet'!$G$38/(VLOOKUP(U57,'General Input Sheet'!$E$38:$G$44,3,FALSE))),1) -> 1 | W57: 135066.856 | X57: =IF(VLOOKUP($C57,ExistingSewer!$A$2:$Q$125,12,FALSE)="Y","Y","") ->  | Y57: =IF(VLOOKUP($C57,ExistingSewer!$A$2:$Q$125,13,FALSE)="Y","Y","") ->  | Z57: =IF(VLOOKUP($C57,ExistingSewer!$A$2:$Q$125,14,FALSE)="Y","Y","") ->  | AA57: =IF(VLOOKUP($C57,ExistingSewer!$A$2:$Q$125,15,FALSE)="Y","Y","") ->  | AB57: =IF(VLOOKUP($C57,ExistingSewer!$A$2:$Q$125,16,FALSE)="Y","Y","") -> Y | AC57: =IF(VLOOKUP($C57,ExistingSewer!$A$2:$Q$125,17,FALSE)="Y","Y","") ->  | BG57: 86180 | CG57: 86180 | CM57: 135066.856
B58: =ExistingSewer!A36 -> SPS13 McGregor St | C58: =ExistingSewer!A36 -> SPS13 McGregor St | D58: Active | E58: Pump Station Network | F58: =C58 -> SPS13 McGregor St | L58: 0 | M58: =VLOOKUP(B58,ExistingSewer!$A$2:$H$122,8,FALSE) -> 646660.877 | O58: 1 | P58: 646660.877 | S58: =IF(Q58="",'Unit Rates - Land'!landcst,IF($E$8="Landuse",VLOOKUP(Q58,LAndcost3,2,FALSE),IF($E$8="Location",VLOOKUP(Q58,Landcost2,2,FALSE),"Error"))) -> 0 | T58: 0 | U58: 2015 | V58: =IFERROR(('General Input Sheet'!$G$38/(VLOOKUP(U58,'General Input Sheet'!$E$38:$G$44,3,FALSE))),1) -> 1 | W58: 646660.877 | X58: =IF(VLOOKUP($C58,ExistingSewer!$A$2:$Q$125,12,FALSE)="Y","Y","") ->  | Y58: =IF(VLOOKUP($C58,ExistingSewer!$A$2:$Q$125,13,FALSE)="Y","Y","") ->  | Z58: =IF(VLOOKUP($C58,ExistingSewer!$A$2:$Q$125,14,FALSE)="Y","Y","") ->  | AA58: =IF(VLOOKUP($C58,ExistingSewer!$A$2:$Q$125,15,FALSE)="Y","Y","") ->  | AB58: =IF(VLOOKUP($C58,ExistingSewer!$A$2:$Q$125,16,FALSE)="Y","Y","") ->  | AC58: =IF(VLOOKUP($C58,ExistingSewer!$A$2:$Q$125,17,FALSE)="Y","Y","") -> Y | BH58: 31134 | CG58: 31134 | CN58: 646660.877
B59: =ExistingSewer!A37 -> SPS14 Denmans Camp Rd | C59: =ExistingSewer!A37 -> SPS14 Denmans Camp Rd | D59: Active | E59: Pump Station Network | F59: SPS14 Denmans Camp Rd | L59: 0 | M59: =VLOOKUP(B59,ExistingSewer!$A$2:$H$122,8,FALSE) -> 1197247.096 | O59: 1 | P59: 1197247.096 | S59: =IF(Q59="",'Unit Rates - Land'!landcst,IF($E$8="Landuse",VLOOKUP(Q59,LAndcost3,2,FALSE),IF($E$8="Location",VLOOKUP(Q59,Landcost2,2,FALSE),"Error"))) -> 0 | T59: 0 | U59: 2015 | V59: =IFERROR(('General Input Sheet'!$G$38/(VLOOKUP(U59,'General Input Sheet'!$E$38:$G$44,3,FALSE))),1) -> 1 | W59: 1197247.096 | X59: =IF(VLOOKUP($C59,ExistingSewer!$A$2:$Q$125,12,FALSE)="Y","Y","") ->  | Y59: =IF(VLOOKUP($C59,ExistingSewer!$A$2:$Q$125,13,FALSE)="Y","Y","") ->  | Z59: =IF(VLOOKUP($C59,ExistingSewer!$A$2:$Q$125,14,FALSE)="Y","Y","") ->  | AA59: =IF(VLOOKUP($C59,ExistingSewer!$A$2:$Q$125,15,FALSE)="Y","Y","") ->  | AB59: =IF(VLOOKUP($C59,ExistingSewer!$A$2:$Q$125,16,FALSE)="Y","Y","") -> Y | AC59: =IF(VLOOKUP($C59,ExistingSewer!$A$2:$Q$125,17,FALSE)="Y","Y","") ->  | BG59: 86180 | CG59: 86180 | CM59: 1197247.096
B60: =ExistingSewer!A38 -> SPS14 Kent St Flood PS | C60: =ExistingSewer!A38 -> SPS14 Kent St Flood PS | D60: Active | E60: Pump Station Network | F60: SPS14 Kent St Flood PS | L60: 0 | M60: =VLOOKUP(B60,ExistingSewer!$A$2:$H$122,8,FALSE) -> 165019.69 | O60: 1 | P60: 165019.69 | S60: =IF(Q60="",'Unit Rates - Land'!landcst,IF($E$8="Landuse",VLOOKUP(Q60,LAndcost3,2,FALSE),IF($E$8="Location",VLOOKUP(Q60,Landcost2,2,FALSE),"Error"))) -> 0 | T60: 0 | U60: 2015 | V60: =IFERROR(('General Input Sheet'!$G$38/(VLOOKUP(U60,'General Input Sheet'!$E$38:$G$44,3,FALSE))),1) -> 1 | W60: 165019.69 | X60: =IF(VLOOKUP($C60,ExistingSewer!$A$2:$Q$125,12,FALSE)="Y","Y","") ->  | Y60: =IF(VLOOKUP($C60,ExistingSewer!$A$2:$Q$125,13,FALSE)="Y","Y","") ->  | Z60: =IF(VLOOKUP($C60,ExistingSewer!$A$2:$Q$125,14,FALSE)="Y","Y","") ->  | AA60: =IF(VLOOKUP($C60,ExistingSewer!$A$2:$Q$125,15,FALSE)="Y","Y","") ->  | AB60: =IF(VLOOKUP($C60,ExistingSewer!$A$2:$Q$125,16,FALSE)="Y","Y","") ->  | AC60: =IF(VLOOKUP($C60,ExistingSewer!$A$2:$Q$125,17,FALSE)="Y","Y","") -> Y | BH60: 31134 | CG60: 31134 | CN60: 165019.69
B61: =ExistingSewer!A39 -> SPS15 Neptune St | C61: =ExistingSewer!A39 -> SPS15 Neptune St | D61: Active | E61: Pump Station Network | F61: =C61 -> SPS15 Neptune St | L61: 0 | M61: =VLOOKUP(B61,ExistingSewer!$A$2:$H$122,8,FALSE) -> 333120.44 | O61: 1 | P61: 333120.44 | S61: =IF(Q61="",'Unit Rates - Land'!landcst,IF($E$8="Landuse",VLOOKUP(Q61,LAndcost3,2,FALSE),IF($E$8="Location",VLOOKUP(Q61,Landcost2,2,FALSE),"Error"))) -> 0 | T61: 0 | U61: 2015 | V61: =IFERROR(('General Input Sheet'!$G$38/(VLOOKUP(U61,'General Input Sheet'!$E$38:$G$44,3,FALSE))),1) -> 1 | W61: 333120.44 | X61: =IF(VLOOKUP($C61,ExistingSewer!$A$2:$Q$125,12,FALSE)="Y","Y","") ->  | Y61: =IF(VLOOKUP($C61,ExistingSewer!$A$2:$Q$125,13,FALSE)="Y","Y","") ->  | Z61: =IF(VLOOKUP($C61,ExistingSewer!$A$2:$Q$125,14,FALSE)="Y","Y","") ->  | AA61: =IF(VLOOKUP($C61,ExistingSewer!$A$2:$Q$125,15,FALSE)="Y","Y","") ->  | AB61: =IF(VLOOKUP($C61,ExistingSewer!$A$2:$Q$125,16,FALSE)="Y","Y","") ->  | AC61: =IF(VLOOKUP($C61,ExistingSewer!$A$2:$Q$125,17,FALSE)="Y","Y","") -> Y | BH61: 31134 | CG61: 31134 | CN61: 333120.44
B62: =ExistingSewer!A40 -> SPS16 Neptune St | C62: =ExistingSewer!A40 -> SPS16 Neptune St | D62: Active | E62: Pump Station Network | F62: SPS16 Neptune St | L62: 0 | M62: =VLOOKUP(B62,ExistingSewer!$A$2:$H$122,8,FALSE) -> 343593.001 | O62: 1 | P62: 343593.001 | S62: =IF(Q62="",'Unit Rates - Land'!landcst,IF($E$8="Landuse",VLOOKUP(Q62,LAndcost3,2,FALSE),IF($E$8="Location",VLOOKUP(Q62,Landcost2,2,FALSE),"Error"))) -> 0 | T62: 0 | U62: 2015 | V62: =IFERROR(('General Input Sheet'!$G$38/(VLOOKUP(U62,'General Input Sheet'!$E$38:$G$44,3,FALSE))),1) -> 1 | W62: 343593.001 | X62: =IF(VLOOKUP($C62,ExistingSewer!$A$2:$Q$125,12,FALSE)="Y","Y","") ->  | Y62: =IF(VLOOKUP($C62,ExistingSewer!$A$2:$Q$125,13,FALSE)="Y","Y","") ->  | Z62: =IF(VLOOKUP($C62,ExistingSewer!$A$2:$Q$125,14,FALSE)="Y","Y","") ->  | AA62: =IF(VLOOKUP($C62,ExistingSewer!$A$2:$Q$125,15,FALSE)="Y","Y","") ->  | AB62: =IF(VLOOKUP($C62,ExistingSewer!$A$2:$Q$125,16,FALSE)="Y","Y","") ->  | AC62: =IF(VLOOKUP($C62,ExistingSewer!$A$2:$Q$125,17,FALSE)="Y","Y","") -> Y | BH62: 31134 | CG62: 31134 | CN62: 343593.001
B63: =ExistingSewer!A41 -> SPS17 Jeppesen Rd | C63: =ExistingSewer!A41 -> SPS17 Jeppesen Rd | D63: Active | E63: Pump Station Network | F63: SPS17 Jeppesen Rd | L63: 0 | M63: =VLOOKUP(B63,ExistingSewer!$A$2:$H$122,8,FALSE) -> 300749.124 | O63: 1 | P63: 300749.124 | S63: =IF(Q63="",'Unit Rates - Land'!landcst,IF($E$8="Landuse",VLOOKUP(Q63,LAndcost3,2,FALSE),IF($E$8="Location",VLOOKUP(Q63,Landcost2,2,FALSE),"Error"))) -> 0 | T63: 0 | U63: 2015 | V63: =IFERROR(('General Input Sheet'!$G$38/(VLOOKUP(U63,'General Input Sheet'!$E$38:$G$44,3,FALSE))),1) -> 1 | W63: 300749.124 | X63: =IF(VLOOKUP($C63,ExistingSewer!$A$2:$Q$125,12,FALSE)="Y","Y","") ->  | Y63: =IF(VLOOKUP($C63,ExistingSewer!$A$2:$Q$125,13,FALSE)="Y","Y","") ->  | Z63: =IF(VLOOKUP($C63,ExistingSewer!$A$2:$Q$125,14,FALSE)="Y","Y","") ->  | AA63: =IF(VLOOKUP($C63,ExistingSewer!$A$2:$Q$125,15,FALSE)="Y","Y","") -> Y | AB63: =IF(VLOOKUP($C63,ExistingSewer!$A$2:$Q$125,16,FALSE)="Y","Y","") ->  | AC63: =IF(VLOOKUP($C63,ExistingSewer!$A$2:$Q$125,17,FALSE)="Y","Y","") ->  | BF63: 2286 | CG63: 2286 | CL63: 300749.124
B64: =ExistingSewer!A42 -> SPS17 Quarry Rd | C64: =ExistingSewer!A42 -> SPS17 Quarry Rd | D64: Active | E64: Pump Station Network | F64: =C64 -> SPS17 Quarry Rd | L64: 0 | M64: =VLOOKUP(B64,ExistingSewer!$A$2:$H$122,8,FALSE) -> 1085459.993 | O64: 1 | P64: 1085459.993 | S64: =IF(Q64="",'Unit Rates - Land'!landcst,IF($E$8="Landuse",VLOOKUP(Q64,LAndcost3,2,FALSE),IF($E$8="Location",VLOOKUP(Q64,Landcost2,2,FALSE),"Error"))) -> 0 | T64: 0 | U64: 2015 | V64: =IFERROR(('General Input Sheet'!$G$38/(VLOOKUP(U64,'General Input Sheet'!$E$38:$G$44,3,FALSE))),1) -> 1 | W64: 1085459.993 | X64: =IF(VLOOKUP($C64,ExistingSewer!$A$2:$Q$125,12,FALSE)="Y","Y","") ->  | Y64: =IF(VLOOKUP($C64,ExistingSewer!$A$2:$Q$125,13,FALSE)="Y","Y","") ->  | Z64: =IF(VLOOKUP($C64,ExistingSewer!$A$2:$Q$125,14,FALSE)="Y","Y","") ->  | AA64: =IF(VLOOKUP($C64,ExistingSewer!$A$2:$Q$125,15,FALSE)="Y","Y","") ->  | AB64: =IF(VLOOKUP($C64,ExistingSewer!$A$2:$Q$125,16,FALSE)="Y","Y","") ->  | AC64: =IF(VLOOKUP($C64,ExistingSewer!$A$2:$Q$125,17,FALSE)="Y","Y","") -> Y | BH64: 31134 | CG64: 31134 | CN64: 1085459.993
B65: =ExistingSewer!A43 -> SPS18 Showground | C65: =ExistingSewer!A43 -> SPS18 Showground | D65: Active | E65: Pump Station Network | F65: SPS18 Showground | L65: 0 | M65: =VLOOKUP(B65,ExistingSewer!$A$2:$H$122,8,FALSE) -> 1279280.332 | O65: 1 | P65: 1279280.332 | S65: =IF(Q65="",'Unit Rates - Land'!landcst,IF($E$8="Landuse",VLOOKUP(Q65,LAndcost3,2,FALSE),IF($E$8="Location",VLOOKUP(Q65,Landcost2,2,FALSE),"Error"))) -> 0 | T65: 0 | U65: 2015 | V65: =IFERROR(('General Input Sheet'!$G$38/(VLOOKUP(U65,'General Input Sheet'!$E$38:$G$44,3,FALSE))),1) -> 1 | W65: 1279280.332 | X65: =IF(VLOOKUP($C65,ExistingSewer!$A$2:$Q$125,12,FALSE)="Y","Y","") ->  | Y65: =IF(VLOOKUP($C65,ExistingSewer!$A$2:$Q$125,13,FALSE)="Y","Y","") ->  | Z65: =IF(VLOOKUP($C65,ExistingSewer!$A$2:$Q$125,14,FALSE)="Y","Y","") ->  | AA65: =IF(VLOOKUP($C65,ExistingSewer!$A$2:$Q$125,15,FALSE)="Y","Y","") ->  | AB65: =IF(VLOOKUP($C65,ExistingSewer!$A$2:$Q$125,16,FALSE)="Y","Y","") ->  | AC65: =IF(VLOOKUP($C65,ExistingSewer!$A$2:$Q$125,17,FALSE)="Y","Y","") -> Y | BH65: 31134 | CG65: 31134 | CN65: 1279280.332
B66: =ExistingSewer!A44 -> SPS19 FCRC Amenities Gatakers Bay | C66: =ExistingSewer!A44 -> SPS19 FCRC Amenities Gatakers Bay | D66: Active | E66: Pump Station Network | F66: SPS19 FCRC Amenities Gatakers Bay | L66: 0 | M66: =VLOOKUP(B66,ExistingSewer!$A$2:$H$122,8,FALSE) -> 263612.724 | O66: 1 | P66: 263612.724 | S66: =IF(Q66="",'Unit Rates - Land'!landcst,IF($E$8="Landuse",VLOOKUP(Q66,LAndcost3,2,FALSE),IF($E$8="Location",VLOOKUP(Q66,Landcost2,2,FALSE),"Error"))) -> 0 | T66: 0 | U66: 2015 | V66: =IFERROR(('General Input Sheet'!$G$38/(VLOOKUP(U66,'General Input Sheet'!$E$38:$G$44,3,FALSE))),1) -> 1 | W66: 263612.724 | X66: =IF(VLOOKUP($C66,ExistingSewer!$A$2:$Q$125,12,FALSE)="Y","Y","") ->  | Y66: =IF(VLOOKUP($C66,ExistingSewer!$A$2:$Q$125,13,FALSE)="Y","Y","") ->  | Z66: =IF(VLOOKUP($C66,ExistingSewer!$A$2:$Q$125,14,FALSE)="Y","Y","") ->  | AA66: =IF(VLOOKUP($C66,ExistingSewer!$A$2:$Q$125,15,FALSE)="Y","Y","") ->  | AB66: =IF(VLOOKUP($C66,ExistingSewer!$A$2:$Q$125,16,FALSE)="Y","Y","") -> Y | AC66: =IF(VLOOKUP($C66,ExistingSewer!$A$2:$Q$125,17,FALSE)="Y","Y","") ->  | BG66: 86180 | CG66: 86180 | CM66: 263612.724
B67: =ExistingSewer!A45 -> SPS20 Arnaud St | C67: =ExistingSewer!A45 -> SPS20 Arnaud St | D67: Active | E67: Pump Station Network | F67: =C67 -> SPS20 Arnaud St | L67: 0 | M67: =VLOOKUP(B67,ExistingSewer!$A$2:$H$122,8,FALSE) -> 134927.453 | O67: 1 | P67: 134927.453 | S67: =IF(Q67="",'Unit Rates - Land'!landcst,IF($E$8="Landuse",VLOOKUP(Q67,LAndcost3,2,FALSE),IF($E$8="Location",VLOOKUP(Q67,Landcost2,2,FALSE),"Error"))) -> 0 | T67: 0 | U67: 2015 | V67: =IFERROR(('General Input Sheet'!$G$38/(VLOOKUP(U67,'General Input Sheet'!$E$38:$G$44,3,FALSE))),1) -> 1 | W67: 134927.453 | X67: =IF(VLOOKUP($C67,ExistingSewer!$A$2:$Q$125,12,FALSE)="Y","Y","") ->  | Y67: =IF(VLOOKUP($C67,ExistingSewer!$A$2:$Q$125,13,FALSE)="Y","Y","") ->  | Z67: =IF(VLOOKUP($C67,ExistingSewer!$A$2:$Q$125,14,FALSE)="Y","Y","") ->  | AA67: =IF(VLOOKUP($C67,ExistingSewer!$A$2:$Q$125,15,FALSE)="Y","Y","") ->  | AB67: =IF(VLOOKUP($C67,ExistingSewer!$A$2:$Q$125,16,FALSE)="Y","Y","") ->  | AC67: =IF(VLOOKUP($C67,ExistingSewer!$A$2:$Q$125,17,FALSE)="Y","Y","") -> Y | BH67: 31134 | CG67: 31134 | CN67: 134927.453
B68: =ExistingSewer!A46 -> SPS21 Grevillia Dr | C68: =ExistingSewer!A46 -> SPS21 Grevillia Dr | D68: Active | E68: Pump Station Network | F68: SPS21 Grevillia Dr | L68: 0 | M68: =VLOOKUP(B68,ExistingSewer!$A$2:$H$122,8,FALSE) -> 156520.919 | O68: 1 | P68: 156520.919 | S68: =IF(Q68="",'Unit Rates - Land'!landcst,IF($E$8="Landuse",VLOOKUP(Q68,LAndcost3,2,FALSE),IF($E$8="Location",VLOOKUP(Q68,Landcost2,2,FALSE),"Error"))) -> 0 | T68: 0 | U68: 2015 | V68: =IFERROR(('General Input Sheet'!$G$38/(VLOOKUP(U68,'General Input Sheet'!$E$38:$G$44,3,FALSE))),1) -> 1 | W68: 156520.919 | X68: =IF(VLOOKUP($C68,ExistingSewer!$A$2:$Q$125,12,FALSE)="Y","Y","") ->  | Y68: =IF(VLOOKUP($C68,ExistingSewer!$A$2:$Q$125,13,FALSE)="Y","Y","") ->  | Z68: =IF(VLOOKUP($C68,ExistingSewer!$A$2:$Q$125,14,FALSE)="Y","Y","") ->  | AA68: =IF(VLOOKUP($C68,ExistingSewer!$A$2:$Q$125,15,FALSE)="Y","Y","") ->  | AB68: =IF(VLOOKUP($C68,ExistingSewer!$A$2:$Q$125,16,FALSE)="Y","Y","") ->  | AC68: =IF(VLOOKUP($C68,ExistingSewer!$A$2:$Q$125,17,FALSE)="Y","Y","") -> Y | BH68: 31134 | CG68: 31134 | CN68: 156520.919
B69: =ExistingSewer!A47 -> SPS21 Talasea Dr | C69: =ExistingSewer!A47 -> SPS21 Talasea Dr | D69: Active | E69: Pump Station Network | F69: SPS21 Talasea Dr | L69: 0 | M69: =VLOOKUP(B69,ExistingSewer!$A$2:$H$122,8,FALSE) -> 174123.922 | O69: 1 | P69: 174123.922 | S69: =IF(Q69="",'Unit Rates - Land'!landcst,IF($E$8="Landuse",VLOOKUP(Q69,LAndcost3,2,FALSE),IF($E$8="Location",VLOOKUP(Q69,Landcost2,2,FALSE),"Error"))) -> 0 | T69: 0 | U69: 2015 | V69: =IFERROR(('General Input Sheet'!$G$38/(VLOOKUP(U69,'General Input Sheet'!$E$38:$G$44,3,FALSE))),1) -> 1 | W69: 174123.922 | X69: =IF(VLOOKUP($C69,ExistingSewer!$A$2:$Q$125,12,FALSE)="Y","Y","") ->  | Y69: =IF(VLOOKUP($C69,ExistingSewer!$A$2:$Q$125,13,FALSE)="Y","Y","") ->  | Z69: =IF(VLOOKUP($C69,ExistingSewer!$A$2:$Q$125,14,FALSE)="Y","Y","") ->  | AA69: =IF(VLOOKUP($C69,ExistingSewer!$A$2:$Q$125,15,FALSE)="Y","Y","") ->  | AB69: =IF(VLOOKUP($C69,ExistingSewer!$A$2:$Q$125,16,FALSE)="Y","Y","") -> Y | AC69: =IF(VLOOKUP($C69,ExistingSewer!$A$2:$Q$125,17,FALSE)="Y","Y","") ->  | BG69: 86180 | CG69: 86180 | CM69: 174123.922
B70: =ExistingSewer!A48 -> SPS22 Alice St | C70: =ExistingSewer!A48 -> SPS22 Alice St | D70: Active | E70: Pump Station Network | F70: =C70 -> SPS22 Alice St | L70: 0 | M70: =VLOOKUP(B70,ExistingSewer!$A$2:$H$122,8,FALSE) -> 193344.98 | O70: 1 | P70: 193344.98 | S70: =IF(Q70="",'Unit Rates - Land'!landcst,IF($E$8="Landuse",VLOOKUP(Q70,LAndcost3,2,FALSE),IF($E$8="Location",VLOOKUP(Q70,Landcost2,2,FALSE),"Error"))) -> 0 | T70: 0 | U70: 2015 | V70: =IFERROR(('General Input Sheet'!$G$38/(VLOOKUP(U70,'General Input Sheet'!$E$38:$G$44,3,FALSE))),1) -> 1 | W70: 193344.98 | X70: =IF(VLOOKUP($C70,ExistingSewer!$A$2:$Q$125,12,FALSE)="Y","Y","") ->  | Y70: =IF(VLOOKUP($C70,ExistingSewer!$A$2:$Q$125,13,FALSE)="Y","Y","") ->  | Z70: =IF(VLOOKUP($C70,ExistingSewer!$A$2:$Q$125,14,FALSE)="Y","Y","") ->  | AA70: =IF(VLOOKUP($C70,ExistingSewer!$A$2:$Q$125,15,FALSE)="Y","Y","") ->  | AB70: =IF(VLOOKUP($C70,ExistingSewer!$A$2:$Q$125,16,FALSE)="Y","Y","") ->  | AC70: =IF(VLOOKUP($C70,ExistingSewer!$A$2:$Q$125,17,FALSE)="Y","Y","") -> Y | BH70: 31134 | BR70: =IF(AM70="y",BR$14,IF(AND(AM70>0,AM70<=1),AM70*BR$14,"")) ->  | CG70: 31134 | CN70: 193344.98 | CV70: =IF(BP70="","",(BP70/$CG70)*$W70) -> 
B71: =ExistingSewer!A49 -> SPS22 Waigani St | C71: =ExistingSewer!A49 -> SPS22 Waigani St | D71: Active | E71: Pump Station Network | F71: SPS22 Waigani St | L71: 0 | M71: =VLOOKUP(B71,ExistingSewer!$A$2:$H$122,8,FALSE) -> 413251.604 | O71: 1 | P71: 413251.604 | S71: =IF(Q71="",'Unit Rates - Land'!landcst,IF($E$8="Landuse",VLOOKUP(Q71,LAndcost3,2,FALSE),IF($E$8="Location",VLOOKUP(Q71,Landcost2,2,FALSE),"Error"))) -> 0 | T71: 0 | U71: 2015 | V71: =IFERROR(('General Input Sheet'!$G$38/(VLOOKUP(U71,'General Input Sheet'!$E$38:$G$44,3,FALSE))),1) -> 1 | W71: 413251.604 | X71: =IF(VLOOKUP($C71,ExistingSewer!$A$2:$Q$125,12,FALSE)="Y","Y","") ->  | Y71: =IF(VLOOKUP($C71,ExistingSewer!$A$2:$Q$125,13,FALSE)="Y","Y","") ->  | Z71: =IF(VLOOKUP($C71,ExistingSewer!$A$2:$Q$125,14,FALSE)="Y","Y","") ->  | AA71: =IF(VLOOKUP($C71,ExistingSewer!$A$2:$Q$125,15,FALSE)="Y","Y","") ->  | AB71: =IF(VLOOKUP($C71,ExistingSewer!$A$2:$Q$125,16,FALSE)="Y","Y","") -> Y | AC71: =IF(VLOOKUP($C71,ExistingSewer!$A$2:$Q$125,17,FALSE)="Y","Y","") ->  | BC71: =IF(X71="y",BC$14,IF(AND(X71>0,X71<=1),X71*BC$14,"")) ->  | BG71: 86180 | CG71: 86180 | CM71: 413251.604
B72: =ExistingSewer!A50 -> SPS23 Jupiter St | C72: =ExistingSewer!A50 -> SPS23 Jupiter St | D72: Active | E72: Pump Station Network | F72: SPS23 Jupiter St | L72: 0 | M72: =VLOOKUP(B72,ExistingSewer!$A$2:$H$122,8,FALSE) -> 471293.945 | O72: 1 | P72: 471293.945 | S72: =IF(Q72="",'Unit Rates - Land'!landcst,IF($E$8="Landuse",VLOOKUP(Q72,LAndcost3,2,FALSE),IF($E$8="Location",VLOOKUP(Q72,Landcost2,2,FALSE),"Error"))) -> 0 | T72: 0 | U72: 2015 | V72: =IFERROR(('General Input Sheet'!$G$38/(VLOOKUP(U72,'General Input Sheet'!$E$38:$G$44,3,FALSE))),1) -> 1 | W72: 471293.945 | X72: =IF(VLOOKUP($C72,ExistingSewer!$A$2:$Q$125,12,FALSE)="Y","Y","") ->  | Y72: =IF(VLOOKUP($C72,ExistingSewer!$A$2:$Q$125,13,FALSE)="Y","Y","") ->  | Z72: =IF(VLOOKUP($C72,ExistingSewer!$A$2:$Q$125,14,FALSE)="Y","Y","") ->  | AA72: =IF(VLOOKUP($C72,ExistingSewer!$A$2:$Q$125,15,FALSE)="Y","Y","") ->  | AB72: =IF(VLOOKUP($C72,ExistingSewer!$A$2:$Q$125,16,FALSE)="Y","Y","") ->  | AC72: =IF(VLOOKUP($C72,ExistingSewer!$A$2:$Q$125,17,FALSE)="Y","Y","") -> Y | BH72: 31134 | CG72: 31134 | CN72: 471293.945
B73: =ExistingSewer!A51 -> SPS23 Main St | C73: =ExistingSewer!A51 -> SPS23 Main St | D73: Active | E73: Pump Station Network | F73: =C73 -> SPS23 Main St | L73: 0 | M73: =VLOOKUP(B73,ExistingSewer!$A$2:$H$122,8,FALSE) -> 368098.657 | O73: 1 | P73: 368098.657 | S73: =IF(Q73="",'Unit Rates - Land'!landcst,IF($E$8="Landuse",VLOOKUP(Q73,LAndcost3,2,FALSE),IF($E$8="Location",VLOOKUP(Q73,Landcost2,2,FALSE),"Error"))) -> 0 | T73: 0 | U73: 2015 | V73: =IFERROR(('General Input Sheet'!$G$38/(VLOOKUP(U73,'General Input Sheet'!$E$38:$G$44,3,FALSE))),1) -> 1 | W73: 368098.657 | X73: =IF(VLOOKUP($C73,ExistingSewer!$A$2:$Q$125,12,FALSE)="Y","Y","") ->  | Y73: =IF(VLOOKUP($C73,ExistingSewer!$A$2:$Q$125,13,FALSE)="Y","Y","") ->  | Z73: =IF(VLOOKUP($C73,ExistingSewer!$A$2:$Q$125,14,FALSE)="Y","Y","") ->  | AA73: =IF(VLOOKUP($C73,ExistingSewer!$A$2:$Q$125,15,FALSE)="Y","Y","") ->  | AB73: =IF(VLOOKUP($C73,ExistingSewer!$A$2:$Q$125,16,FALSE)="Y","Y","") -> Y | AC73: =IF(VLOOKUP($C73,ExistingSewer!$A$2:$Q$125,17,FALSE)="Y","Y","") ->  | BG73: 86180 | CG73: 86180 | CM73: 368098.657
B74: =ExistingSewer!A52 -> SPS24 Gregory Ct | C74: =ExistingSewer!A52 -> SPS24 Gregory Ct | D74: Active | E74: Pump Station Network | F74: SPS24 Gregory Ct | L74: 0 | M74: =VLOOKUP(B74,ExistingSewer!$A$2:$H$122,8,FALSE) -> 247022.988 | O74: 1 | P74: 247022.988 | S74: =IF(Q74="",'Unit Rates - Land'!landcst,IF($E$8="Landuse",VLOOKUP(Q74,LAndcost3,2,FALSE),IF($E$8="Location",VLOOKUP(Q74,Landcost2,2,FALSE),"Error"))) -> 0 | T74: 0 | U74: 2015 | V74: =IFERROR(('General Input Sheet'!$G$38/(VLOOKUP(U74,'General Input Sheet'!$E$38:$G$44,3,FALSE))),1) -> 1 | W74: 247022.988 | X74: =IF(VLOOKUP($C74,ExistingSewer!$A$2:$Q$125,12,FALSE)="Y","Y","") ->  | Y74: =IF(VLOOKUP($C74,ExistingSewer!$A$2:$Q$125,13,FALSE)="Y","Y","") ->  | Z74: =IF(VLOOKUP($C74,ExistingSewer!$A$2:$Q$125,14,FALSE)="Y","Y","") ->  | AA74: =IF(VLOOKUP($C74,ExistingSewer!$A$2:$Q$125,15,FALSE)="Y","Y","") ->  | AB74: =IF(VLOOKUP($C74,ExistingSewer!$A$2:$Q$125,16,FALSE)="Y","Y","") ->  | AC74: =IF(VLOOKUP($C74,ExistingSewer!$A$2:$Q$125,17,FALSE)="Y","Y","") -> Y | BH74: 31134 | CG74: 31134 | CN74: 247022.988
B75: =ExistingSewer!A53 -> SPS24 Truro St | C75: =ExistingSewer!A53 -> SPS24 Truro St | D75: Active | E75: Pump Station Network | F75: SPS24 Truro St | L75: 0 | M75: =VLOOKUP(B75,ExistingSewer!$A$2:$H$122,8,FALSE) -> 223754.844 | O75: 1 | P75: 223754.844 | S75: =IF(Q75="",'Unit Rates - Land'!landcst,IF($E$8="Landuse",VLOOKUP(Q75,LAndcost3,2,FALSE),IF($E$8="Location",VLOOKUP(Q75,Landcost2,2,FALSE),"Error"))) -> 0 | T75: 0 | U75: 2015 | V75: =IFERROR(('General Input Sheet'!$G$38/(VLOOKUP(U75,'General Input Sheet'!$E$38:$G$44,3,FALSE))),1) -> 1 | W75: 223754.844 | X75: =IF(VLOOKUP($C75,ExistingSewer!$A$2:$Q$125,12,FALSE)="Y","Y","") ->  | Y75: =IF(VLOOKUP($C75,ExistingSewer!$A$2:$Q$125,13,FALSE)="Y","Y","") ->  | Z75: =IF(VLOOKUP($C75,ExistingSewer!$A$2:$Q$125,14,FALSE)="Y","Y","") ->  | AA75: =IF(VLOOKUP($C75,ExistingSewer!$A$2:$Q$125,15,FALSE)="Y","Y","") ->  | AB75: =IF(VLOOKUP($C75,ExistingSewer!$A$2:$Q$125,16,FALSE)="Y","Y","") -> Y | AC75: =IF(VLOOKUP($C75,ExistingSewer!$A$2:$Q$125,17,FALSE)="Y","Y","") ->  | BG75: 86180 | CG75: 86180 | CM75: 223754.844
B76: =ExistingSewer!A54 -> SPS25 Ferguson Rd | C76: =ExistingSewer!A54 -> SPS25 Ferguson Rd | D76: Active | E76: Pump Station Network | F76: =C76 -> SPS25 Ferguson Rd | L76: 0 | M76: =VLOOKUP(B76,ExistingSewer!$A$2:$H$122,8,FALSE) -> 1070234.32 | O76: 1 | P76: 1070234.32 | S76: =IF(Q76="",'Unit Rates - Land'!landcst,IF($E$8="Landuse",VLOOKUP(Q76,LAndcost3,2,FALSE),IF($E$8="Location",VLOOKUP(Q76,Landcost2,2,FALSE),"Error"))) -> 0 | T76: 0 | U76: 2015 | V76: =IFERROR(('General Input Sheet'!$G$38/(VLOOKUP(U76,'General Input Sheet'!$E$38:$G$44,3,FALSE))),1) -> 1 | W76: 1070234.32 | X76: =IF(VLOOKUP($C76,ExistingSewer!$A$2:$Q$125,12,FALSE)="Y","Y","") ->  | Y76: =IF(VLOOKUP($C76,ExistingSewer!$A$2:$Q$125,13,FALSE)="Y","Y","") ->  | Z76: =IF(VLOOKUP($C76,ExistingSewer!$A$2:$Q$125,14,FALSE)="Y","Y","") ->  | AA76: =IF(VLOOKUP($C76,ExistingSewer!$A$2:$Q$125,15,FALSE)="Y","Y","") ->  | AB76: =IF(VLOOKUP($C76,ExistingSewer!$A$2:$Q$125,16,FALSE)="Y","Y","") ->  | AC76: =IF(VLOOKUP($C76,ExistingSewer!$A$2:$Q$125,17,FALSE)="Y","Y","") -> Y | BH76: 31134 | CG76: 31134 | CN76: 1070234.32
B77: =ExistingSewer!A55 -> SPS26 Gateway Ct | C77: =ExistingSewer!A55 -> SPS26 Gateway Ct | D77: Active | E77: Pump Station Network | F77: SPS26 Gateway Ct | L77: 0 | M77: =VLOOKUP(B77,ExistingSewer!$A$2:$H$122,8,FALSE) -> 267436.772 | O77: 1 | P77: 267436.772 | S77: =IF(Q77="",'Unit Rates - Land'!landcst,IF($E$8="Landuse",VLOOKUP(Q77,LAndcost3,2,FALSE),IF($E$8="Location",VLOOKUP(Q77,Landcost2,2,FALSE),"Error"))) -> 0 | T77: 0 | U77: 2015 | V77: =IFERROR(('General Input Sheet'!$G$38/(VLOOKUP(U77,'General Input Sheet'!$E$38:$G$44,3,FALSE))),1) -> 1 | W77: 267436.772 | X77: =IF(VLOOKUP($C77,ExistingSewer!$A$2:$Q$125,12,FALSE)="Y","Y","") ->  | Y77: =IF(VLOOKUP($C77,ExistingSewer!$A$2:$Q$125,13,FALSE)="Y","Y","") ->  | Z77: =IF(VLOOKUP($C77,ExistingSewer!$A$2:$Q$125,14,FALSE)="Y","Y","") ->  | AA77: =IF(VLOOKUP($C77,ExistingSewer!$A$2:$Q$125,15,FALSE)="Y","Y","") ->  | AB77: =IF(VLOOKUP($C77,ExistingSewer!$A$2:$Q$125,16,FALSE)="Y","Y","") ->  | AC77: =IF(VLOOKUP($C77,ExistingSewer!$A$2:$Q$125,17,FALSE)="Y","Y","") -> Y | BH77: 31134 | CG77: 31134 | CN77: 267436.772
B78: =ExistingSewer!A56 -> SPS26 Margaret St | C78: =ExistingSewer!A56 -> SPS26 Margaret St | D78: Active | E78: Pump Station Network | F78: SPS26 Margaret St | L78: 0 | M78: =VLOOKUP(B78,ExistingSewer!$A$2:$H$122,8,FALSE) -> 205265.844 | O78: 1 | P78: 205265.844 | S78: =IF(Q78="",'Unit Rates - Land'!landcst,IF($E$8="Landuse",VLOOKUP(Q78,LAndcost3,2,FALSE),IF($E$8="Location",VLOOKUP(Q78,Landcost2,2,FALSE),"Error"))) -> 0 | T78: 0 | U78: 2015 | V78: =IFERROR(('General Input Sheet'!$G$38/(VLOOKUP(U78,'General Input Sheet'!$E$38:$G$44,3,FALSE))),1) -> 1 | W78: 205265.844 | X78: =IF(VLOOKUP($C78,ExistingSewer!$A$2:$Q$125,12,FALSE)="Y","Y","") ->  | Y78: =IF(VLOOKUP($C78,ExistingSewer!$A$2:$Q$125,13,FALSE)="Y","Y","") ->  | Z78: =IF(VLOOKUP($C78,ExistingSewer!$A$2:$Q$125,14,FALSE)="Y","Y","") ->  | AA78: =IF(VLOOKUP($C78,ExistingSewer!$A$2:$Q$125,15,FALSE)="Y","Y","") ->  | AB78: =IF(VLOOKUP($C78,ExistingSewer!$A$2:$Q$125,16,FALSE)="Y","Y","") -> Y | AC78: =IF(VLOOKUP($C78,ExistingSewer!$A$2:$Q$125,17,FALSE)="Y","Y","") ->  | BG78: 86180 | CG78: 86180 | CM78: 205265.844
B79: =ExistingSewer!A57 -> SPS27 Ormond St | C79: =ExistingSewer!A57 -> SPS27 Ormond St | D79: Active | E79: Pump Station Network | F79: =C79 -> SPS27 Ormond St | L79: =IF(H79=SewerTYPE1,VLOOKUP(J79,SewerUnitrates1,2,FALSE),IF(H79=SEWERTYPE2,VLOOKUP((J79&"_"&K79),Sewerrates2,2,FALSE),0)) -> 0 | M79: =VLOOKUP(B79,ExistingSewer!$A$2:$H$122,8,FALSE) -> 195389.478 | O79: =IF(N79="",1,VLOOKUP(N79,Sewersitecond,2,FALSE)) -> 1 | P79: 195389.478 | S79: =IF(Q79="",'Unit Rates - Land'!landcst,IF($E$8="Landuse",VLOOKUP(Q79,LAndcost3,2,FALSE),IF($E$8="Location",VLOOKUP(Q79,Landcost2,2,FALSE),"Error"))) -> 0 | T79: 0 | U79: 2015 | V79: =IFERROR(('General Input Sheet'!$G$38/(VLOOKUP(U79,'General Input Sheet'!$E$38:$G$44,3,FALSE))),1) -> 1 | W79: 195389.478 | X79: =IF(VLOOKUP($C79,ExistingSewer!$A$2:$Q$125,12,FALSE)="Y","Y","") ->  | Y79: =IF(VLOOKUP($C79,ExistingSewer!$A$2:$Q$125,13,FALSE)="Y","Y","") ->  | Z79: =IF(VLOOKUP($C79,ExistingSewer!$A$2:$Q$125,14,FALSE)="Y","Y","") ->  | AA79: =IF(VLOOKUP($C79,ExistingSewer!$A$2:$Q$125,15,FALSE)="Y","Y","") ->  | AB79: =IF(VLOOKUP($C79,ExistingSewer!$A$2:$Q$125,16,FALSE)="Y","Y","") ->  | AC79: =IF(VLOOKUP($C79,ExistingSewer!$A$2:$Q$125,17,FALSE)="Y","Y","") -> Y | BH79: 31134 | CG79: 31134 | CN79: 195389.478
B80: =ExistingSewer!A58 -> SPS27 Tooth St | C80: =ExistingSewer!A58 -> SPS27 Tooth St | D80: Active | E80: Pump Station Network | F80: SPS27 Tooth St | L80: 0 | M80: =VLOOKUP(B80,ExistingSewer!$A$2:$H$122,8,FALSE) -> 510422.728 | O80: 1 | P80: =IF(M80="","",M80*O80) -> 510422.728 | S80: =IF(Q80="",'Unit Rates - Land'!landcst,IF($E$8="Landuse",VLOOKUP(Q80,LAndcost3,2,FALSE),IF($E$8="Location",VLOOKUP(Q80,Landcost2,2,FALSE),"Error"))) -> 0 | T80: =IF(S80="",0,S80*10000*R80) -> 0 | U80: 2015 | V80: =IFERROR(('General Input Sheet'!$G$38/(VLOOKUP(U80,'General Input Sheet'!$E$38:$G$44,3,FALSE))),1) -> 1 | W80: =IFERROR((P80+T80)*V80,0) -> 510422.728 | X80: =IF(VLOOKUP($C80,ExistingSewer!$A$2:$Q$125,12,FALSE)="Y","Y","") ->  | Y80: =IF(VLOOKUP($C80,ExistingSewer!$A$2:$Q$125,13,FALSE)="Y","Y","") ->  | Z80: =IF(VLOOKUP($C80,ExistingSewer!$A$2:$Q$125,14,FALSE)="Y","Y","") ->  | AA80: =IF(VLOOKUP($C80,ExistingSewer!$A$2:$Q$125,15,FALSE)="Y","Y","") ->  | AB80: =IF(VLOOKUP($C80,ExistingSewer!$A$2:$Q$125,16,FALSE)="Y","Y","") -> Y | AC80: =IF(VLOOKUP($C80,ExistingSewer!$A$2:$Q$125,17,FALSE)="Y","Y","") ->  | BG80: 86180 | CG80: 86180 | CM80: 510422.728
B81: =ExistingSewer!A59 -> SPS28 Central Rd | C81: =ExistingSewer!A59 -> SPS28 Central Rd | D81: Active | E81: Pump Station Network | F81: SPS28 Central Rd | L81: 0 | M81: =VLOOKUP(B81,ExistingSewer!$A$2:$H$122,8,FALSE) -> 316984.8 | O81: 1 | P81: 316984.8 | S81: =IF(Q81="",'Unit Rates - Land'!landcst,IF($E$8="Landuse",VLOOKUP(Q81,LAndcost3,2,FALSE),IF($E$8="Location",VLOOKUP(Q81,Landcost2,2,FALSE),"Error"))) -> 0 | T81: 0 | U81: 2015 | V81: =IFERROR(('General Input Sheet'!$G$38/(VLOOKUP(U81,'General Input Sheet'!$E$38:$G$44,3,FALSE))),1) -> 1 | W81: 316984.8 | X81: =IF(VLOOKUP($C81,ExistingSewer!$A$2:$Q$125,12,FALSE)="Y","Y","") ->  | Y81: =IF(VLOOKUP($C81,ExistingSewer!$A$2:$Q$125,13,FALSE)="Y","Y","") ->  | Z81: =IF(VLOOKUP($C81,ExistingSewer!$A$2:$Q$125,14,FALSE)="Y","Y","") ->  | AA81: =IF(VLOOKUP($C81,ExistingSewer!$A$2:$Q$125,15,FALSE)="Y","Y","") ->  | AB81: =IF(VLOOKUP($C81,ExistingSewer!$A$2:$Q$125,16,FALSE)="Y","Y","") ->  | AC81: =IF(VLOOKUP($C81,ExistingSewer!$A$2:$Q$125,17,FALSE)="Y","Y","") -> Y | BH81: 31134 | CG81: 31134 | CN81: 316984.8
B82: =ExistingSewer!A60 -> SPS28 Ocean View St | C82: =ExistingSewer!A60 -> SPS28 Ocean View St | D82: Active | E82: Pump Station Network | F82: =C82 -> SPS28 Ocean View St | L82: 0 | M82: =VLOOKUP(B82,ExistingSewer!$A$2:$H$122,8,FALSE) -> 252962.6 | O82: 1 | P82: 252962.6 | S82: =IF(Q82="",'Unit Rates - Land'!landcst,IF($E$8="Landuse",VLOOKUP(Q82,LAndcost3,2,FALSE),IF($E$8="Location",VLOOKUP(Q82,Landcost2,2,FALSE),"Error"))) -> 0 | T82: 0 | U82: 2015 | V82: =IFERROR(('General Input Sheet'!$G$38/(VLOOKUP(U82,'General Input Sheet'!$E$38:$G$44,3,FALSE))),1) -> 1 | W82: 252962.6 | X82: =IF(VLOOKUP($C82,ExistingSewer!$A$2:$Q$125,12,FALSE)="Y","Y","") ->  | Y82: =IF(VLOOKUP($C82,ExistingSewer!$A$2:$Q$125,13,FALSE)="Y","Y","") ->  | Z82: =IF(VLOOKUP($C82,ExistingSewer!$A$2:$Q$125,14,FALSE)="Y","Y","") ->  | AA82: =IF(VLOOKUP($C82,ExistingSewer!$A$2:$Q$125,15,FALSE)="Y","Y","") ->  | AB82: =IF(VLOOKUP($C82,ExistingSewer!$A$2:$Q$125,16,FALSE)="Y","Y","") -> Y | AC82: =IF(VLOOKUP($C82,ExistingSewer!$A$2:$Q$125,17,FALSE)="Y","Y","") ->  | BG82: 86180 | CG82: 86180 | CM82: 252962.6
B83: =ExistingSewer!A61 -> SPS29 Coongul Ct | C83: =ExistingSewer!A61 -> SPS29 Coongul Ct | D83: Active | E83: Pump Station Network | F83: SPS29 Coongul Ct | L83: 0 | M83: =VLOOKUP(B83,ExistingSewer!$A$2:$H$122,8,FALSE) -> 215471.889 | O83: 1 | P83: 215471.889 | S83: =IF(Q83="",'Unit Rates - Land'!landcst,IF($E$8="Landuse",VLOOKUP(Q83,LAndcost3,2,FALSE),IF($E$8="Location",VLOOKUP(Q83,Landcost2,2,FALSE),"Error"))) -> 0 | T83: 0 | U83: 2015 | V83: =IFERROR(('General Input Sheet'!$G$38/(VLOOKUP(U83,'General Input Sheet'!$E$38:$G$44,3,FALSE))),1) -> 1 | W83: 215471.889 | X83: =IF(VLOOKUP($C83,ExistingSewer!$A$2:$Q$125,12,FALSE)="Y","Y","") ->  | Y83: =IF(VLOOKUP($C83,ExistingSewer!$A$2:$Q$125,13,FALSE)="Y","Y","") ->  | Z83: =IF(VLOOKUP($C83,ExistingSewer!$A$2:$Q$125,14,FALSE)="Y","Y","") ->  | AA83: =IF(VLOOKUP($C83,ExistingSewer!$A$2:$Q$125,15,FALSE)="Y","Y","") ->  | AB83: =IF(VLOOKUP($C83,ExistingSewer!$A$2:$Q$125,16,FALSE)="Y","Y","") -> Y | AC83: =IF(VLOOKUP($C83,ExistingSewer!$A$2:$Q$125,17,FALSE)="Y","Y","") ->  | BG83: 86180 | CG83: 86180 | CM83: 215471.889
B84: =ExistingSewer!A62 -> SPS29 Enterprise Cct | C84: =ExistingSewer!A62 -> SPS29 Enterprise Cct | D84: Active | E84: Pump Station Network | F84: SPS29 Enterprise Cct | L84: 0 | M84: =VLOOKUP(B84,ExistingSewer!$A$2:$H$122,8,FALSE) -> 341105.844 | O84: 1 | P84: 341105.844 | S84: =IF(Q84="",'Unit Rates - Land'!landcst,IF($E$8="Landuse",VLOOKUP(Q84,LAndcost3,2,FALSE),IF($E$8="Location",VLOOKUP(Q84,Landcost2,2,FALSE),"Error"))) -> 0 | T84: 0 | U84: 2015 | V84: =IFERROR(('General Input Sheet'!$G$38/(VLOOKUP(U84,'General Input Sheet'!$E$38:$G$44,3,FALSE))),1) -> 1 | W84: 341105.844 | X84: =IF(VLOOKUP($C84,ExistingSewer!$A$2:$Q$125,12,FALSE)="Y","Y","") ->  | Y84: =IF(VLOOKUP($C84,ExistingSewer!$A$2:$Q$125,13,FALSE)="Y","Y","") ->  | Z84: =IF(VLOOKUP($C84,ExistingSewer!$A$2:$Q$125,14,FALSE)="Y","Y","") ->  | AA84: =IF(VLOOKUP($C84,ExistingSewer!$A$2:$Q$125,15,FALSE)="Y","Y","") ->  | AB84: =IF(VLOOKUP($C84,ExistingSewer!$A$2:$Q$125,16,FALSE)="Y","Y","") ->  | AC84: =IF(VLOOKUP($C84,ExistingSewer!$A$2:$Q$125,17,FALSE)="Y","Y","") -> Y | BH84: 31134 | CG84: 31134 | CN84: 341105.844
B85: =ExistingSewer!A63 -> SPS30 Nagal St | C85: =ExistingSewer!A63 -> SPS30 Nagal St | D85: Active | E85: Pump Station Network | F85: =C85 -> SPS30 Nagal St | L85: 0 | M85: =VLOOKUP(B85,ExistingSewer!$A$2:$H$122,8,FALSE) -> 174928.8 | O85: 1 | P85: 174928.8 | S85: =IF(Q85="",'Unit Rates - Land'!landcst,IF($E$8="Landuse",VLOOKUP(Q85,LAndcost3,2,FALSE),IF($E$8="Location",VLOOKUP(Q85,Landcost2,2,FALSE),"Error"))) -> 0 | T85: 0 | U85: 2015 | V85: =IFERROR(('General Input Sheet'!$G$38/(VLOOKUP(U85,'General Input Sheet'!$E$38:$G$44,3,FALSE))),1) -> 1 | W85: 174928.8 | X85: =IF(VLOOKUP($C85,ExistingSewer!$A$2:$Q$125,12,FALSE)="Y","Y","") ->  | Y85: =IF(VLOOKUP($C85,ExistingSewer!$A$2:$Q$125,13,FALSE)="Y","Y","") ->  | Z85: =IF(VLOOKUP($C85,ExistingSewer!$A$2:$Q$125,14,FALSE)="Y","Y","") ->  | AA85: =IF(VLOOKUP($C85,ExistingSewer!$A$2:$Q$125,15,FALSE)="Y","Y","") ->  | AB85: =IF(VLOOKUP($C85,ExistingSewer!$A$2:$Q$125,16,FALSE)="Y","Y","") ->  | AC85: =IF(VLOOKUP($C85,ExistingSewer!$A$2:$Q$125,17,FALSE)="Y","Y","") -> Y | BH85: 31134 | CG85: 31134 | CN85: 174928.8
B86: =ExistingSewer!A64 -> SPS30 North St | C86: =ExistingSewer!A64 -> SPS30 North St | D86: Active | E86: Pump Station Network | F86: SPS30 North St | L86: 0 | M86: =VLOOKUP(B86,ExistingSewer!$A$2:$H$122,8,FALSE) -> 749948.64 | O86: 1 | P86: 749948.64 | S86: =IF(Q86="",'Unit Rates - Land'!landcst,IF($E$8="Landuse",VLOOKUP(Q86,LAndcost3,2,FALSE),IF($E$8="Location",VLOOKUP(Q86,Landcost2,2,FALSE),"Error"))) -> 0 | T86: 0 | U86: 2015 | V86: =IFERROR(('General Input Sheet'!$G$38/(VLOOKUP(U86,'General Input Sheet'!$E$38:$G$44,3,FALSE))),1) -> 1 | W86: 749948.64 | X86: =IF(VLOOKUP($C86,ExistingSewer!$A$2:$Q$125,12,FALSE)="Y","Y","") ->  | Y86: =IF(VLOOKUP($C86,ExistingSewer!$A$2:$Q$125,13,FALSE)="Y","Y","") ->  | Z86: =IF(VLOOKUP($C86,ExistingSewer!$A$2:$Q$125,14,FALSE)="Y","Y","") ->  | AA86: =IF(VLOOKUP($C86,ExistingSewer!$A$2:$Q$125,15,FALSE)="Y","Y","") ->  | AB86: =IF(VLOOKUP($C86,ExistingSewer!$A$2:$Q$125,16,FALSE)="Y","Y","") -> Y | AC86: =IF(VLOOKUP($C86,ExistingSewer!$A$2:$Q$125,17,FALSE)="Y","Y","") ->  | BG86: 86180 | BR86: =IF(AM86="y",BR$14,IF(AND(AM86>0,AM86<=1),AM86*BR$14,"")) ->  | CG86: 86180 | CM86: 749948.64 | CU86: =IF(BO86="","",(BO86/$CG86)*$W86) -> 
B87: =ExistingSewer!A65 -> SPS31 Cheyne Ct | C87: =ExistingSewer!A65 -> SPS31 Cheyne Ct | D87: Active | E87: Pump Station Network | F87: SPS31 Cheyne Ct | L87: 0 | M87: =VLOOKUP(B87,ExistingSewer!$A$2:$H$122,8,FALSE) -> 301445.25 | O87: 1 | P87: 301445.25 | S87: =IF(Q87="",'Unit Rates - Land'!landcst,IF($E$8="Landuse",VLOOKUP(Q87,LAndcost3,2,FALSE),IF($E$8="Location",VLOOKUP(Q87,Landcost2,2,FALSE),"Error"))) -> 0 | T87: 0 | U87: 2015 | V87: =IFERROR(('General Input Sheet'!$G$38/(VLOOKUP(U87,'General Input Sheet'!$E$38:$G$44,3,FALSE))),1) -> 1 | W87: 301445.25 | X87: =IF(VLOOKUP($C87,ExistingSewer!$A$2:$Q$125,12,FALSE)="Y","Y","") ->  | Y87: =IF(VLOOKUP($C87,ExistingSewer!$A$2:$Q$125,13,FALSE)="Y","Y","") ->  | Z87: =IF(VLOOKUP($C87,ExistingSewer!$A$2:$Q$125,14,FALSE)="Y","Y","") ->  | AA87: =IF(VLOOKUP($C87,ExistingSewer!$A$2:$Q$125,15,FALSE)="Y","Y","") ->  | AB87: =IF(VLOOKUP($C87,ExistingSewer!$A$2:$Q$125,16,FALSE)="Y","Y","") ->  | AC87: =IF(VLOOKUP($C87,ExistingSewer!$A$2:$Q$125,17,FALSE)="Y","Y","") -> Y | BC87: =IF(X87="y",BC$14,IF(AND(X87>0,X87<=1),X87*BC$14,"")) ->  | BH87: 31134 | CG87: =SUM(BC87:CF87) -> 31134 | CN87: 301445.25 | CY87: =IF(BS87="","",(BS87/$CG87)*$W87) ->  | CZ87: =IF(BT87="","",(BT87/$CG87)*$W87) ->  | DA87: =IF(BU87="","",(BU87/$CG87)*$W87) ->  | DB87: =IF(BV87="","",(BV87/$CG87)*$W87) ->  | DC87: =IF(BW87="","",(BW87/$CG87)*$W87) ->  | DD87: =IF(BX87="","",(BX87/$CG87)*$W87) ->  | DE87: =IF(BY87="","",(BY87/$CG87)*$W87) ->  | DF87: =IF(BZ87="","",(BZ87/$CG87)*$W87) ->  | DG87: =IF(CA87="","",(CA87/$CG87)*$W87) ->  | DH87: =IF(CB87="","",(CB87/$CG87)*$W87) ->  | DI87: =IF(CC87="","",(CC87/$CG87)*$W87) ->  | DJ87: =IF(CD87="","",(CD87/$CG87)*$W87) ->  | DK87: =IF(CE87="","",(CE87/$CG87)*$W87) ->  | DL87: =IF(CF87="","",(CF87/$CG87)*$W87) ->  | DM87: =IF(SUM(CI87:DL87)=W87,"","ERROR") -> 
B88: =ExistingSewer!A66 -> SPS32 Iindah Rd | C88: =ExistingSewer!A66 -> SPS32 Iindah Rd | D88: Active | E88: Pump Station Network | F88: SPS32 Iindah Rd | L88: 0 | M88: =VLOOKUP(B88,ExistingSewer!$A$2:$H$122,8,FALSE) -> 329134.59 | O88: 1 | P88: 329134.59 | S88: =IF(Q88="",'Unit Rates - Land'!landcst,IF($E$8="Landuse",VLOOKUP(Q88,LAndcost3,2,FALSE),IF($E$8="Location",VLOOKUP(Q88,Landcost2,2,FALSE),"Error"))) -> 0 | T88: 0 | U88: 2015 | V88: =IFERROR(('General Input Sheet'!$G$38/(VLOOKUP(U88,'General Input Sheet'!$E$38:$G$44,3,FALSE))),1) -> 1 | W88: 329134.59 | X88: =IF(VLOOKUP($C88,ExistingSewer!$A$2:$Q$125,12,FALSE)="Y","Y","") ->  | Y88: =IF(VLOOKUP($C88,ExistingSewer!$A$2:$Q$125,13,FALSE)="Y","Y","") ->  | Z88: =IF(VLOOKUP($C88,ExistingSewer!$A$2:$Q$125,14,FALSE)="Y","Y","") ->  | AA88: =IF(VLOOKUP($C88,ExistingSewer!$A$2:$Q$125,15,FALSE)="Y","Y","") ->  | AB88: =IF(VLOOKUP($C88,ExistingSewer!$A$2:$Q$125,16,FALSE)="Y","Y","") ->  | AC88: =IF(VLOOKUP($C88,ExistingSewer!$A$2:$Q$125,17,FALSE)="Y","Y","") -> Y | BH88: 31134 | CG88: 31134 | CN88: 329134.59
B89: =ExistingSewer!A67 -> SPS32 Morris Ct | C89: =ExistingSewer!A67 -> SPS32 Morris Ct | D89: Active | E89: Pump Station Network | F89: SPS32 Morris Ct | L89: 0 | M89: =VLOOKUP(B89,ExistingSewer!$A$2:$H$122,8,FALSE) -> 243464.474 | O89: 1 | P89: 243464.474 | S89: =IF(Q89="",'Unit Rates - Land'!landcst,IF($E$8="Landuse",VLOOKUP(Q89,LAndcost3,2,FALSE),IF($E$8="Location",VLOOKUP(Q89,Landcost2,2,FALSE),"Error"))) -> 0 | T89: 0 | U89: 2015 | V89: =IFERROR(('General Input Sheet'!$G$38/(VLOOKUP(U89,'General Input Sheet'!$E$38:$G$44,3,FALSE))),1) -> 1 | W89: 243464.474 | X89: =IF(VLOOKUP($C89,ExistingSewer!$A$2:$Q$125,12,FALSE)="Y","Y","") ->  | Y89: =IF(VLOOKUP($C89,ExistingSewer!$A$2:$Q$125,13,FALSE)="Y","Y","") ->  | Z89: =IF(VLOOKUP($C89,ExistingSewer!$A$2:$Q$125,14,FALSE)="Y","Y","") ->  | AA89: =IF(VLOOKUP($C89,ExistingSewer!$A$2:$Q$125,15,FALSE)="Y","Y","") -> Y | AB89: =IF(VLOOKUP($C89,ExistingSewer!$A$2:$Q$125,16,FALSE)="Y","Y","") ->  | AC89: =IF(VLOOKUP($C89,ExistingSewer!$A$2:$Q$125,17,FALSE)="Y","Y","") ->  | BF89: 2286 | CG89: 2286 | CL89: 243464.474
B90: =ExistingSewer!A68 -> SPS34 Moolyyir St | C90: =ExistingSewer!A68 -> SPS34 Moolyyir St | D90: Active | E90: Pump Station Network | F90: SPS34 Moolyyir St | L90: 0 | M90: =VLOOKUP(B90,ExistingSewer!$A$2:$H$122,8,FALSE) -> 1818600.759 | O90: 1 | P90: 1818600.759 | S90: =IF(Q90="",'Unit Rates - Land'!landcst,IF($E$8="Landuse",VLOOKUP(Q90,LAndcost3,2,FALSE),IF($E$8="Location",VLOOKUP(Q90,Landcost2,2,FALSE),"Error"))) -> 0 | T90: 0 | U90: 2015 | V90: =IFERROR(('General Input Sheet'!$G$38/(VLOOKUP(U90,'General Input Sheet'!$E$38:$G$44,3,FALSE))),1) -> 1 | W90: 1818600.759 | X90: =IF(VLOOKUP($C90,ExistingSewer!$A$2:$Q$125,12,FALSE)="Y","Y","") ->  | Y90: =IF(VLOOKUP($C90,ExistingSewer!$A$2:$Q$125,13,FALSE)="Y","Y","") ->  | Z90: =IF(VLOOKUP($C90,ExistingSewer!$A$2:$Q$125,14,FALSE)="Y","Y","") ->  | AA90: =IF(VLOOKUP($C90,ExistingSewer!$A$2:$Q$125,15,FALSE)="Y","Y","") ->  | AB90: =IF(VLOOKUP($C90,ExistingSewer!$A$2:$Q$125,16,FALSE)="Y","Y","") -> Y | AC90: =IF(VLOOKUP($C90,ExistingSewer!$A$2:$Q$125,17,FALSE)="Y","Y","") ->  | BG90: 86180 | CG90: 86180 | CM90: 1818600.759
B91: =ExistingSewer!A69 -> SPS34 Showground | C91: =ExistingSewer!A69 -> SPS34 Showground | D91: Active | E91: Pump Station Network | F91: SPS34 Showground | L91: 0 | M91: =VLOOKUP(B91,ExistingSewer!$A$2:$H$122,8,FALSE) -> 86386.459 | O91: 1 | P91: 86386.459 | S91: =IF(Q91="",'Unit Rates - Land'!landcst,IF($E$8="Landuse",VLOOKUP(Q91,LAndcost3,2,FALSE),IF($E$8="Location",VLOOKUP(Q91,Landcost2,2,FALSE),"Error"))) -> 0 | T91: 0 | U91: 2015 | V91: =IFERROR(('General Input Sheet'!$G$38/(VLOOKUP(U91,'General Input Sheet'!$E$38:$G$44,3,FALSE))),1) -> 1 | W91: 86386.459 | X91: =IF(VLOOKUP($C91,ExistingSewer!$A$2:$Q$125,12,FALSE)="Y","Y","") ->  | Y91: =IF(VLOOKUP($C91,ExistingSewer!$A$2:$Q$125,13,FALSE)="Y","Y","") ->  | Z91: =IF(VLOOKUP($C91,ExistingSewer!$A$2:$Q$125,14,FALSE)="Y","Y","") ->  | AA91: =IF(VLOOKUP($C91,ExistingSewer!$A$2:$Q$125,15,FALSE)="Y","Y","") ->  | AB91: =IF(VLOOKUP($C91,ExistingSewer!$A$2:$Q$125,16,FALSE)="Y","Y","") ->  | AC91: =IF(VLOOKUP($C91,ExistingSewer!$A$2:$Q$125,17,FALSE)="Y","Y","") -> Y | BH91: 31134 | CG91: 31134 | CN91: 86386.459
B92: =ExistingSewer!A70 -> SPS35 Pulgul St | C92: =ExistingSewer!A70 -> SPS35 Pulgul St | D92: Active | E92: Pump Station Network | F92: =C92 -> SPS35 Pulgul St | L92: 0 | M92: =VLOOKUP(B92,ExistingSewer!$A$2:$H$122,8,FALSE) -> 2765997.439 | O92: 1 | P92: 2765997.439 | S92: =IF(Q92="",'Unit Rates - Land'!landcst,IF($E$8="Landuse",VLOOKUP(Q92,LAndcost3,2,FALSE),IF($E$8="Location",VLOOKUP(Q92,Landcost2,2,FALSE),"Error"))) -> 0 | T92: 0 | U92: 2015 | V92: =IFERROR(('General Input Sheet'!$G$38/(VLOOKUP(U92,'General Input Sheet'!$E$38:$G$44,3,FALSE))),1) -> 1 | W92: 2765997.439 | X92: =IF(VLOOKUP($C92,ExistingSewer!$A$2:$Q$125,12,FALSE)="Y","Y","") ->  | Y92: =IF(VLOOKUP($C92,ExistingSewer!$A$2:$Q$125,13,FALSE)="Y","Y","") ->  | Z92: =IF(VLOOKUP($C92,ExistingSewer!$A$2:$Q$125,14,FALSE)="Y","Y","") ->  | AA92: =IF(VLOOKUP($C92,ExistingSewer!$A$2:$Q$125,15,FALSE)="Y","Y","") ->  | AB92: =IF(VLOOKUP($C92,ExistingSewer!$A$2:$Q$125,16,FALSE)="Y","Y","") -> Y | AC92: =IF(VLOOKUP($C92,ExistingSewer!$A$2:$Q$125,17,FALSE)="Y","Y","") ->  | BG92: 86180 | CG92: 86180 | CM92: 2765997.439
B93: =ExistingSewer!A71 -> SPS36 Alexander St | C93: =ExistingSewer!A71 -> SPS36 Alexander St | D93: Active | E93: Pump Station Network | F93: SPS36 Alexander St | L93: 0 | M93: =VLOOKUP(B93,ExistingSewer!$A$2:$H$122,8,FALSE) -> 228729.876 | O93: 1 | P93: 228729.876 | S93: =IF(Q93="",'Unit Rates - Land'!landcst,IF($E$8="Landuse",VLOOKUP(Q93,LAndcost3,2,FALSE),IF($E$8="Location",VLOOKUP(Q93,Landcost2,2,FALSE),"Error"))) -> 0 | T93: 0 | U93: 2015 | V93: =IFERROR(('General Input Sheet'!$G$38/(VLOOKUP(U93,'General Input Sheet'!$E$38:$G$44,3,FALSE))),1) -> 1 | W93: 228729.876 | X93: =IF(VLOOKUP($C93,ExistingSewer!$A$2:$Q$125,12,FALSE)="Y","Y","") ->  | Y93: =IF(VLOOKUP($C93,ExistingSewer!$A$2:$Q$125,13,FALSE)="Y","Y","") ->  | Z93: =IF(VLOOKUP($C93,ExistingSewer!$A$2:$Q$125,14,FALSE)="Y","Y","") ->  | AA93: =IF(VLOOKUP($C93,ExistingSewer!$A$2:$Q$125,15,FALSE)="Y","Y","") ->  | AB93: =IF(VLOOKUP($C93,ExistingSewer!$A$2:$Q$125,16,FALSE)="Y","Y","") -> Y | AC93: =IF(VLOOKUP($C93,ExistingSewer!$A$2:$Q$125,17,FALSE)="Y","Y","") ->  | BG93: 86180 | CG93: 86180 | CM93: 228729.876
B94: =ExistingSewer!A72 -> SPS37 Elizabeth St | C94: =ExistingSewer!A72 -> SPS37 Elizabeth St | D94: Active | E94: Pump Station Network | F94: SPS37 Elizabeth St | L94: 0 | M94: =VLOOKUP(B94,ExistingSewer!$A$2:$H$122,8,FALSE) -> 195822.886 | O94: 1 | P94: 195822.886 | S94: =IF(Q94="",'Unit Rates - Land'!landcst,IF($E$8="Landuse",VLOOKUP(Q94,LAndcost3,2,FALSE),IF($E$8="Location",VLOOKUP(Q94,Landcost2,2,FALSE),"Error"))) -> 0 | T94: 0 | U94: 2015 | V94: =IFERROR(('General Input Sheet'!$G$38/(VLOOKUP(U94,'General Input Sheet'!$E$38:$G$44,3,FALSE))),1) -> 1 | W94: 195822.886 | X94: =IF(VLOOKUP($C94,ExistingSewer!$A$2:$Q$125,12,FALSE)="Y","Y","") ->  | Y94: =IF(VLOOKUP($C94,ExistingSewer!$A$2:$Q$125,13,FALSE)="Y","Y","") ->  | Z94: =IF(VLOOKUP($C94,ExistingSewer!$A$2:$Q$125,14,FALSE)="Y","Y","") ->  | AA94: =IF(VLOOKUP($C94,ExistingSewer!$A$2:$Q$125,15,FALSE)="Y","Y","") ->  | AB94: =IF(VLOOKUP($C94,ExistingSewer!$A$2:$Q$125,16,FALSE)="Y","Y","") -> Y | AC94: =IF(VLOOKUP($C94,ExistingSewer!$A$2:$Q$125,17,FALSE)="Y","Y","") ->  | BG94: 86180 | CG94: 86180 | CM94: 195822.886
B95: =ExistingSewer!A73 -> SPS40 FCRC Pialba Caravan Park | C95: =ExistingSewer!A73 -> SPS40 FCRC Pialba Caravan Park | D95: Active | E95: Pump Station Network | F95: SPS40 FCRC Pialba Caravan Park | L95: 0 | M95: =VLOOKUP(B95,ExistingSewer!$A$2:$H$122,8,FALSE) -> 171330.368 | O95: 1 | P95: 171330.368 | S95: =IF(Q95="",'Unit Rates - Land'!landcst,IF($E$8="Landuse",VLOOKUP(Q95,LAndcost3,2,FALSE),IF($E$8="Location",VLOOKUP(Q95,Landcost2,2,FALSE),"Error"))) -> 0 | T95: 0 | U95: 2015 | V95: =IFERROR(('General Input Sheet'!$G$38/(VLOOKUP(U95,'General Input Sheet'!$E$38:$G$44,3,FALSE))),1) -> 1 | W95: 171330.368 | X95: =IF(VLOOKUP($C95,ExistingSewer!$A$2:$Q$125,12,FALSE)="Y","Y","") ->  | Y95: =IF(VLOOKUP($C95,ExistingSewer!$A$2:$Q$125,13,FALSE)="Y","Y","") ->  | Z95: =IF(VLOOKUP($C95,ExistingSewer!$A$2:$Q$125,14,FALSE)="Y","Y","") ->  | AA95: =IF(VLOOKUP($C95,ExistingSewer!$A$2:$Q$125,15,FALSE)="Y","Y","") ->  | AB95: =IF(VLOOKUP($C95,ExistingSewer!$A$2:$Q$125,16,FALSE)="Y","Y","") -> Y | AC95: =IF(VLOOKUP($C95,ExistingSewer!$A$2:$Q$125,17,FALSE)="Y","Y","") ->  | BG95: 86180 | CG95: 86180 | CM95: 171330.368
B96: =ExistingSewer!A74 -> SPS41 Raward Rd | C96: =ExistingSewer!A74 -> SPS41 Raward Rd | D96: Active | E96: Pump Station Network | F96: SPS41 Raward Rd | L96: 0 | M96: =VLOOKUP(B96,ExistingSewer!$A$2:$H$122,8,FALSE) -> 200981.304 | O96: 1 | P96: 200981.304 | S96: =IF(Q96="",'Unit Rates - Land'!landcst,IF($E$8="Landuse",VLOOKUP(Q96,LAndcost3,2,FALSE),IF($E$8="Location",VLOOKUP(Q96,Landcost2,2,FALSE),"Error"))) -> 0 | T96: 0 | U96: 2015 | V96: =IFERROR(('General Input Sheet'!$G$38/(VLOOKUP(U96,'General Input Sheet'!$E$38:$G$44,3,FALSE))),1) -> 1 | W96: 200981.304 | X96: =IF(VLOOKUP($C96,ExistingSewer!$A$2:$Q$125,12,FALSE)="Y","Y","") ->  | Y96: =IF(VLOOKUP($C96,ExistingSewer!$A$2:$Q$125,13,FALSE)="Y","Y","") ->  | Z96: =IF(VLOOKUP($C96,ExistingSewer!$A$2:$Q$125,14,FALSE)="Y","Y","") ->  | AA96: =IF(VLOOKUP($C96,ExistingSewer!$A$2:$Q$125,15,FALSE)="Y","Y","") ->  | AB96: =IF(VLOOKUP($C96,ExistingSewer!$A$2:$Q$125,16,FALSE)="Y","Y","") -> Y | AC96: =IF(VLOOKUP($C96,ExistingSewer!$A$2:$Q$125,17,FALSE)="Y","Y","") ->  | BG96: 86180 | CG96: 86180 | CM96: 200981.304
B97: =ExistingSewer!A75 -> SPS44 O'Regan Creek Rd | C97: =ExistingSewer!A75 -> SPS44 O'Regan Creek Rd | D97: Active | E97: Pump Station Network | F97: SPS44 O'Regan Creek Rd | L97: 0 | M97: =VLOOKUP(B97,ExistingSewer!$A$2:$H$122,8,FALSE) -> 541336.575 | O97: 1 | P97: 541336.575 | S97: =IF(Q97="",'Unit Rates - Land'!landcst,IF($E$8="Landuse",VLOOKUP(Q97,LAndcost3,2,FALSE),IF($E$8="Location",VLOOKUP(Q97,Landcost2,2,FALSE),"Error"))) -> 0 | T97: 0 | U97: 2015 | V97: =IFERROR(('General Input Sheet'!$G$38/(VLOOKUP(U97,'General Input Sheet'!$E$38:$G$44,3,FALSE))),1) -> 1 | W97: 541336.575 | X97: =IF(VLOOKUP($C97,ExistingSewer!$A$2:$Q$125,12,FALSE)="Y","Y","") ->  | Y97: =IF(VLOOKUP($C97,ExistingSewer!$A$2:$Q$125,13,FALSE)="Y","Y","") ->  | Z97: =IF(VLOOKUP($C97,ExistingSewer!$A$2:$Q$125,14,FALSE)="Y","Y","") ->  | AA97: =IF(VLOOKUP($C97,ExistingSewer!$A$2:$Q$125,15,FALSE)="Y","Y","") -> Y | AB97: =IF(VLOOKUP($C97,ExistingSewer!$A$2:$Q$125,16,FALSE)="Y","Y","") ->  | AC97: =IF(VLOOKUP($C97,ExistingSewer!$A$2:$Q$125,17,FALSE)="Y","Y","") ->  | BF97: 2286 | CG97: 2286 | CL97: 541336.575
B98: =ExistingSewer!A76 -> SPS45 Jeppesen Rd | C98: =ExistingSewer!A76 -> SPS45 Jeppesen Rd | D98: Active | E98: Pump Station Network | F98: SPS45 Jeppesen Rd | L98: 0 | M98: =VLOOKUP(B98,ExistingSewer!$A$2:$H$122,8,FALSE) -> 332049.724 | O98: 1 | P98: 332049.724 | S98: =IF(Q98="",'Unit Rates - Land'!landcst,IF($E$8="Landuse",VLOOKUP(Q98,LAndcost3,2,FALSE),IF($E$8="Location",VLOOKUP(Q98,Landcost2,2,FALSE),"Error"))) -> 0 | T98: 0 | U98: 2015 | V98: =IFERROR(('General Input Sheet'!$G$38/(VLOOKUP(U98,'General Input Sheet'!$E$38:$G$44,3,FALSE))),1) -> 1 | W98: 332049.724 | X98: =IF(VLOOKUP($C98,ExistingSewer!$A$2:$Q$125,12,FALSE)="Y","Y","") ->  | Y98: =IF(VLOOKUP($C98,ExistingSewer!$A$2:$Q$125,13,FALSE)="Y","Y","") ->  | Z98: =IF(VLOOKUP($C98,ExistingSewer!$A$2:$Q$125,14,FALSE)="Y","Y","") ->  | AA98: =IF(VLOOKUP($C98,ExistingSewer!$A$2:$Q$125,15,FALSE)="Y","Y","") -> Y | AB98: =IF(VLOOKUP($C98,ExistingSewer!$A$2:$Q$125,16,FALSE)="Y","Y","") ->  | AC98: =IF(VLOOKUP($C98,ExistingSewer!$A$2:$Q$125,17,FALSE)="Y","Y","") ->  | BF98: 2286 | CG98: 2286 | CL98: 332049.724
B99: =ExistingSewer!A77 -> SPS46 Brolga Ct | C99: =ExistingSewer!A77 -> SPS46 Brolga Ct | D99: Active | E99: Pump Station Network | F99: =C99 -> SPS46 Brolga Ct | L99: 0 | M99: =VLOOKUP(B99,ExistingSewer!$A$2:$H$122,8,FALSE) -> 305547.988 | O99: 1 | P99: 305547.988 | S99: =IF(Q99="",'Unit Rates - Land'!landcst,IF($E$8="Landuse",VLOOKUP(Q99,LAndcost3,2,FALSE),IF($E$8="Location",VLOOKUP(Q99,Landcost2,2,FALSE),"Error"))) -> 0 | T99: 0 | U99: 2015 | V99: =IFERROR(('General Input Sheet'!$G$38/(VLOOKUP(U99,'General Input Sheet'!$E$38:$G$44,3,FALSE))),1) -> 1 | W99: 305547.988 | X99: =IF(VLOOKUP($C99,ExistingSewer!$A$2:$Q$125,12,FALSE)="Y","Y","") ->  | Y99: =IF(VLOOKUP($C99,ExistingSewer!$A$2:$Q$125,13,FALSE)="Y","Y","") ->  | Z99: =IF(VLOOKUP($C99,ExistingSewer!$A$2:$Q$125,14,FALSE)="Y","Y","") ->  | AA99: =IF(VLOOKUP($C99,ExistingSewer!$A$2:$Q$125,15,FALSE)="Y","Y","") ->  | AB99: =IF(VLOOKUP($C99,ExistingSewer!$A$2:$Q$125,16,FALSE)="Y","Y","") -> Y | AC99: =IF(VLOOKUP($C99,ExistingSewer!$A$2:$Q$125,17,FALSE)="Y","Y","") ->  | BG99: 86180 | CG99: 86180 | CM99: 305547.988
B100: =ExistingSewer!A78 -> SPS47 Colyton St | C100: =ExistingSewer!A78 -> SPS47 Colyton St | D100: Active | E100: Pump Station Network | F100: SPS47 Colyton St | L100: 0 | M100: =VLOOKUP(B100,ExistingSewer!$A$2:$H$122,8,FALSE) -> 254939.976 | O100: 1 | P100: 254939.976 | S100: =IF(Q100="",'Unit Rates - Land'!landcst,IF($E$8="Landuse",VLOOKUP(Q100,LAndcost3,2,FALSE),IF($E$8="Location",VLOOKUP(Q100,Landcost2,2,FALSE),"Error"))) -> 0 | T100: 0 | U100: 2015 | V100: =IFERROR(('General Input Sheet'!$G$38/(VLOOKUP(U100,'General Input Sheet'!$E$38:$G$44,3,FALSE))),1) -> 1 | W100: 254939.976 | X100: =IF(VLOOKUP($C100,ExistingSewer!$A$2:$Q$125,12,FALSE)="Y","Y","") ->  | Y100: =IF(VLOOKUP($C100,ExistingSewer!$A$2:$Q$125,13,FALSE)="Y","Y","") ->  | Z100: =IF(VLOOKUP($C100,ExistingSewer!$A$2:$Q$125,14,FALSE)="Y","Y","") ->  | AA100: =IF(VLOOKUP($C100,ExistingSewer!$A$2:$Q$125,15,FALSE)="Y","Y","") ->  | AB100: =IF(VLOOKUP($C100,ExistingSewer!$A$2:$Q$125,16,FALSE)="Y","Y","") -> Y | AC100: =IF(VLOOKUP($C100,ExistingSewer!$A$2:$Q$125,17,FALSE)="Y","Y","") ->  | BG100: 86180 | CG100: 86180 | CM100: 254939.976
B101: =ExistingSewer!A79 -> SPS48 Seafront Oval | C101: =ExistingSewer!A79 -> SPS48 Seafront Oval | D101: Active | E101: Pump Station Network | F101: SPS48 Seafront Oval | L101: 0 | M101: =VLOOKUP(B101,ExistingSewer!$A$2:$H$122,8,FALSE) -> 218389.832 | O101: 1 | P101: 218389.832 | S101: =IF(Q101="",'Unit Rates - Land'!landcst,IF($E$8="Landuse",VLOOKUP(Q101,LAndcost3,2,FALSE),IF($E$8="Location",VLOOKUP(Q101,Landcost2,2,FALSE),"Error"))) -> 0 | T101: 0 | U101: 2015 | V101: =IFERROR(('General Input Sheet'!$G$38/(VLOOKUP(U101,'General Input Sheet'!$E$38:$G$44,3,FALSE))),1) -> 1 | W101: 218389.832 | X101: =IF(VLOOKUP($C101,ExistingSewer!$A$2:$Q$125,12,FALSE)="Y","Y","") ->  | Y101: =IF(VLOOKUP($C101,ExistingSewer!$A$2:$Q$125,13,FALSE)="Y","Y","") ->  | Z101: =IF(VLOOKUP($C101,ExistingSewer!$A$2:$Q$125,14,FALSE)="Y","Y","") ->  | AA101: =IF(VLOOKUP($C101,ExistingSewer!$A$2:$Q$125,15,FALSE)="Y","Y","") ->  | AB101: =IF(VLOOKUP($C101,ExistingSewer!$A$2:$Q$125,16,FALSE)="Y","Y","") -> Y | AC101: =IF(VLOOKUP($C101,ExistingSewer!$A$2:$Q$125,17,FALSE)="Y","Y","") ->  | BG101: 86180 | CG101: 86180 | CM101: 218389.832
B102: =ExistingSewer!A80 -> SPS49 Silkwood Dr | C102: =ExistingSewer!A80 -> SPS49 Silkwood Dr | D102: Active | E102: Pump Station Network | F102: SPS49 Silkwood Dr | L102: 0 | M102: =VLOOKUP(B102,ExistingSewer!$A$2:$H$122,8,FALSE) -> 260232.206 | O102: 1 | P102: 260232.206 | S102: =IF(Q102="",'Unit Rates - Land'!landcst,IF($E$8="Landuse",VLOOKUP(Q102,LAndcost3,2,FALSE),IF($E$8="Location",VLOOKUP(Q102,Landcost2,2,FALSE),"Error"))) -> 0 | T102: 0 | U102: 2015 | V102: =IFERROR(('General Input Sheet'!$G$38/(VLOOKUP(U102,'General Input Sheet'!$E$38:$G$44,3,FALSE))),1) -> 1 | W102: 260232.206 | X102: =IF(VLOOKUP($C102,ExistingSewer!$A$2:$Q$125,12,FALSE)="Y","Y","") ->  | Y102: =IF(VLOOKUP($C102,ExistingSewer!$A$2:$Q$125,13,FALSE)="Y","Y","") ->  | Z102: =IF(VLOOKUP($C102,ExistingSewer!$A$2:$Q$125,14,FALSE)="Y","Y","") ->  | AA102: =IF(VLOOKUP($C102,ExistingSewer!$A$2:$Q$125,15,FALSE)="Y","Y","") ->  | AB102: =IF(VLOOKUP($C102,ExistingSewer!$A$2:$Q$125,16,FALSE)="Y","Y","") -> Y | AC102: =IF(VLOOKUP($C102,ExistingSewer!$A$2:$Q$125,17,FALSE)="Y","Y","") ->  | BG102: 86180 | BR102: =IF(AM102="y",BR$14,IF(AND(AM102>0,AM102<=1),AM102*BR$14,"")) ->  | CG102: 86180 | CM102: 260232.206 | CT102: =IF(BN102="","",(BN102/$CG102)*$W102) -> 
B103: =ExistingSewer!A81 -> SPS50 Orchid Dr | C103: =ExistingSewer!A81 -> SPS50 Orchid Dr | D103: Active | E103: Pump Station Network | F103: SPS50 Orchid Dr | L103: 0 | M103: =VLOOKUP(B103,ExistingSewer!$A$2:$H$122,8,FALSE) -> 535971.199 | O103: 1 | P103: 535971.199 | S103: =IF(Q103="",'Unit Rates - Land'!landcst,IF($E$8="Landuse",VLOOKUP(Q103,LAndcost3,2,FALSE),IF($E$8="Location",VLOOKUP(Q103,Landcost2,2,FALSE),"Error"))) -> 0 | T103: 0 | U103: 2015 | V103: =IFERROR(('General Input Sheet'!$G$38/(VLOOKUP(U103,'General Input Sheet'!$E$38:$G$44,3,FALSE))),1) -> 1 | W103: 535971.199 | X103: =IF(VLOOKUP($C103,ExistingSewer!$A$2:$Q$125,12,FALSE)="Y","Y","") -> Y | Y103: =IF(VLOOKUP($C103,ExistingSewer!$A$2:$Q$125,13,FALSE)="Y","Y","") ->  | Z103: =IF(VLOOKUP($C103,ExistingSewer!$A$2:$Q$125,14,FALSE)="Y","Y","") ->  | AA103: =IF(VLOOKUP($C103,ExistingSewer!$A$2:$Q$125,15,FALSE)="Y","Y","") ->  | AB103: =IF(VLOOKUP($C103,ExistingSewer!$A$2:$Q$125,16,FALSE)="Y","Y","") ->  | AC103: =IF(VLOOKUP($C103,ExistingSewer!$A$2:$Q$125,17,FALSE)="Y","Y","") ->  | BC103: =IF(X103="y",BC$14,IF(AND(X103>0,X103<=1),X103*BC$14,"")) -> 3633 | CG103: 3633 | CI103: 535971.199
B104: =ExistingSewer!A82 -> SPS51 Beach Dr | C104: =ExistingSewer!A82 -> SPS51 Beach Dr | D104: Active | E104: Pump Station Network | F104: SPS51 Beach Dr | L104: 0 | M104: =VLOOKUP(B104,ExistingSewer!$A$2:$H$122,8,FALSE) -> 261078.124 | O104: 1 | P104: 261078.124 | S104: =IF(Q104="",'Unit Rates - Land'!landcst,IF($E$8="Landuse",VLOOKUP(Q104,LAndcost3,2,FALSE),IF($E$8="Location",VLOOKUP(Q104,Landcost2,2,FALSE),"Error"))) -> 0 | T104: 0 | U104: 2015 | V104: =IFERROR(('General Input Sheet'!$G$38/(VLOOKUP(U104,'General Input Sheet'!$E$38:$G$44,3,FALSE))),1) -> 1 | W104: 261078.124 | X104: =IF(VLOOKUP($C104,ExistingSewer!$A$2:$Q$125,12,FALSE)="Y","Y","") -> Y | Y104: =IF(VLOOKUP($C104,ExistingSewer!$A$2:$Q$125,13,FALSE)="Y","Y","") ->  | Z104: =IF(VLOOKUP($C104,ExistingSewer!$A$2:$Q$125,14,FALSE)="Y","Y","") ->  | AA104: =IF(VLOOKUP($C104,ExistingSewer!$A$2:$Q$125,15,FALSE)="Y","Y","") ->  | AB104: =IF(VLOOKUP($C104,ExistingSewer!$A$2:$Q$125,16,FALSE)="Y","Y","") ->  | AC104: =IF(VLOOKUP($C104,ExistingSewer!$A$2:$Q$125,17,FALSE)="Y","Y","") ->  | BC104: 3633 | CG104: 3633 | CI104: 261078.124
B105: =ExistingSewer!A83 -> SPS52 Bushnell Rd | C105: =ExistingSewer!A83 -> SPS52 Bushnell Rd | D105: Active | E105: Pump Station Network | F105: SPS52 Bushnell Rd | L105: 0 | M105: =VLOOKUP(B105,ExistingSewer!$A$2:$H$122,8,FALSE) -> 828700.595 | O105: 1 | P105: 828700.595 | S105: =IF(Q105="",'Unit Rates - Land'!landcst,IF($E$8="Landuse",VLOOKUP(Q105,LAndcost3,2,FALSE),IF($E$8="Location",VLOOKUP(Q105,Landcost2,2,FALSE),"Error"))) -> 0 | T105: 0 | U105: 2015 | V105: =IFERROR(('General Input Sheet'!$G$38/(VLOOKUP(U105,'General Input Sheet'!$E$38:$G$44,3,FALSE))),1) -> 1 | W105: 828700.595 | X105: =IF(VLOOKUP($C105,ExistingSewer!$A$2:$Q$125,12,FALSE)="Y","Y","") -> Y | Y105: =IF(VLOOKUP($C105,ExistingSewer!$A$2:$Q$125,13,FALSE)="Y","Y","") ->  | Z105: =IF(VLOOKUP($C105,ExistingSewer!$A$2:$Q$125,14,FALSE)="Y","Y","") ->  | AA105: =IF(VLOOKUP($C105,ExistingSewer!$A$2:$Q$125,15,FALSE)="Y","Y","") ->  | AB105: =IF(VLOOKUP($C105,ExistingSewer!$A$2:$Q$125,16,FALSE)="Y","Y","") ->  | AC105: =IF(VLOOKUP($C105,ExistingSewer!$A$2:$Q$125,17,FALSE)="Y","Y","") ->  | BC105: 3633 | CG105: 3633 | CI105: 828700.595
B106: =ExistingSewer!A84 -> SPS53 Burrum St | C106: =ExistingSewer!A84 -> SPS53 Burrum St | D106: Active | E106: Pump Station Network | F106: =C106 -> SPS53 Burrum St | L106: 0 | M106: =VLOOKUP(B106,ExistingSewer!$A$2:$H$122,8,FALSE) -> 261242.364 | O106: 1 | P106: 261242.364 | S106: =IF(Q106="",'Unit Rates - Land'!landcst,IF($E$8="Landuse",VLOOKUP(Q106,LAndcost3,2,FALSE),IF($E$8="Location",VLOOKUP(Q106,Landcost2,2,FALSE),"Error"))) -> 0 | T106: 0 | U106: 2015 | V106: =IFERROR(('General Input Sheet'!$G$38/(VLOOKUP(U106,'General Input Sheet'!$E$38:$G$44,3,FALSE))),1) -> 1 | W106: 261242.364 | X106: =IF(VLOOKUP($C106,ExistingSewer!$A$2:$Q$125,12,FALSE)="Y","Y","") -> Y | Y106: =IF(VLOOKUP($C106,ExistingSewer!$A$2:$Q$125,13,FALSE)="Y","Y","") ->  | Z106: =IF(VLOOKUP($C106,ExistingSewer!$A$2:$Q$125,14,FALSE)="Y","Y","") ->  | AA106: =IF(VLOOKUP($C106,ExistingSewer!$A$2:$Q$125,15,FALSE)="Y","Y","") ->  | AB106: =IF(VLOOKUP($C106,ExistingSewer!$A$2:$Q$125,16,FALSE)="Y","Y","") ->  | AC106: =IF(VLOOKUP($C106,ExistingSewer!$A$2:$Q$125,17,FALSE)="Y","Y","") ->  | BC106: 3633 | CG106: 3633 | CI106: 261242.364
B107: =ExistingSewer!A85 -> SPS54 Torbanlea St | C107: =ExistingSewer!A85 -> SPS54 Torbanlea St | D107: Active | E107: Pump Station Network | F107: SPS54 Torbanlea St | L107: 0 | M107: =VLOOKUP(B107,ExistingSewer!$A$2:$H$122,8,FALSE) -> 477842.308 | O107: 1 | P107: 477842.308 | S107: =IF(Q107="",'Unit Rates - Land'!landcst,IF($E$8="Landuse",VLOOKUP(Q107,LAndcost3,2,FALSE),IF($E$8="Location",VLOOKUP(Q107,Landcost2,2,FALSE),"Error"))) -> 0 | T107: 0 | U107: 2015 | V107: =IFERROR(('General Input Sheet'!$G$38/(VLOOKUP(U107,'General Input Sheet'!$E$38:$G$44,3,FALSE))),1) -> 1 | W107: 477842.308 | X107: =IF(VLOOKUP($C107,ExistingSewer!$A$2:$Q$125,12,FALSE)="Y","Y","") -> Y | Y107: =IF(VLOOKUP($C107,ExistingSewer!$A$2:$Q$125,13,FALSE)="Y","Y","") ->  | Z107: =IF(VLOOKUP($C107,ExistingSewer!$A$2:$Q$125,14,FALSE)="Y","Y","") ->  | AA107: =IF(VLOOKUP($C107,ExistingSewer!$A$2:$Q$125,15,FALSE)="Y","Y","") ->  | AB107: =IF(VLOOKUP($C107,ExistingSewer!$A$2:$Q$125,16,FALSE)="Y","Y","") ->  | AC107: =IF(VLOOKUP($C107,ExistingSewer!$A$2:$Q$125,17,FALSE)="Y","Y","") ->  | BC107: 3633 | CG107: 3633 | CI107: 477842.308
B108: =ExistingSewer!A86 -> SPS55 Burrum St | C108: =ExistingSewer!A86 -> SPS55 Burrum St | D108: Active | E108: Pump Station Network | F108: SPS55 Burrum St | L108: 0 | M108: =VLOOKUP(B108,ExistingSewer!$A$2:$H$122,8,FALSE) -> 475040.292 | O108: 1 | P108: 475040.292 | S108: =IF(Q108="",'Unit Rates - Land'!landcst,IF($E$8="Landuse",VLOOKUP(Q108,LAndcost3,2,FALSE),IF($E$8="Location",VLOOKUP(Q108,Landcost2,2,FALSE),"Error"))) -> 0 | T108: 0 | U108: 2015 | V108: =IFERROR(('General Input Sheet'!$G$38/(VLOOKUP(U108,'General Input Sheet'!$E$38:$G$44,3,FALSE))),1) -> 1 | W108: 475040.292 | X108: =IF(VLOOKUP($C108,ExistingSewer!$A$2:$Q$125,12,FALSE)="Y","Y","") -> Y | Y108: =IF(VLOOKUP($C108,ExistingSewer!$A$2:$Q$125,13,FALSE)="Y","Y","") ->  | Z108: =IF(VLOOKUP($C108,ExistingSewer!$A$2:$Q$125,14,FALSE)="Y","Y","") ->  | AA108: =IF(VLOOKUP($C108,ExistingSewer!$A$2:$Q$125,15,FALSE)="Y","Y","") ->  | AB108: =IF(VLOOKUP($C108,ExistingSewer!$A$2:$Q$125,16,FALSE)="Y","Y","") ->  | AC108: =IF(VLOOKUP($C108,ExistingSewer!$A$2:$Q$125,17,FALSE)="Y","Y","") ->  | BC108: 3633 | CG108: 3633 | CI108: 475040.292
B109: =ExistingSewer!A87 -> SPS56 Ann St | C109: =ExistingSewer!A87 -> SPS56 Ann St | D109: Active | E109: Pump Station Network | F109: SPS56 Ann St | L109: 0 | M109: =VLOOKUP(B109,ExistingSewer!$A$2:$H$122,8,FALSE) -> 332470.684 | O109: 1 | P109: 332470.684 | S109: =IF(Q109="",'Unit Rates - Land'!landcst,IF($E$8="Landuse",VLOOKUP(Q109,LAndcost3,2,FALSE),IF($E$8="Location",VLOOKUP(Q109,Landcost2,2,FALSE),"Error"))) -> 0 | T109: 0 | U109: 2015 | V109: =IFERROR(('General Input Sheet'!$G$38/(VLOOKUP(U109,'General Input Sheet'!$E$38:$G$44,3,FALSE))),1) -> 1 | W109: 332470.684 | X109: =IF(VLOOKUP($C109,ExistingSewer!$A$2:$Q$125,12,FALSE)="Y","Y","") ->  | Y109: =IF(VLOOKUP($C109,ExistingSewer!$A$2:$Q$125,13,FALSE)="Y","Y","") ->  | Z109: =IF(VLOOKUP($C109,ExistingSewer!$A$2:$Q$125,14,FALSE)="Y","Y","") ->  | AA109: =IF(VLOOKUP($C109,ExistingSewer!$A$2:$Q$125,15,FALSE)="Y","Y","") ->  | AB109: =IF(VLOOKUP($C109,ExistingSewer!$A$2:$Q$125,16,FALSE)="Y","Y","") -> Y | AC109: =IF(VLOOKUP($C109,ExistingSewer!$A$2:$Q$125,17,FALSE)="Y","Y","") ->  | BG109: 86180 | CG109: 86180 | CM109: 332470.684
B110: =ExistingSewer!A88 -> SPS57 Hood St | C110: =ExistingSewer!A88 -> SPS57 Hood St | D110: Active | E110: Pump Station Network | F110: SPS57 Hood St | L110: 0 | M110: =VLOOKUP(B110,ExistingSewer!$A$2:$H$122,8,FALSE) -> 225250.024 | O110: 1 | P110: 225250.024 | S110: =IF(Q110="",'Unit Rates - Land'!landcst,IF($E$8="Landuse",VLOOKUP(Q110,LAndcost3,2,FALSE),IF($E$8="Location",VLOOKUP(Q110,Landcost2,2,FALSE),"Error"))) -> 0 | T110: 0 | U110: 2015 | V110: =IFERROR(('General Input Sheet'!$G$38/(VLOOKUP(U110,'General Input Sheet'!$E$38:$G$44,3,FALSE))),1) -> 1 | W110: 225250.024 | X110: =IF(VLOOKUP($C110,ExistingSewer!$A$2:$Q$125,12,FALSE)="Y","Y","") ->  | Y110: =IF(VLOOKUP($C110,ExistingSewer!$A$2:$Q$125,13,FALSE)="Y","Y","") ->  | Z110: =IF(VLOOKUP($C110,ExistingSewer!$A$2:$Q$125,14,FALSE)="Y","Y","") ->  | AA110: =IF(VLOOKUP($C110,ExistingSewer!$A$2:$Q$125,15,FALSE)="Y","Y","") ->  | AB110: =IF(VLOOKUP($C110,ExistingSewer!$A$2:$Q$125,16,FALSE)="Y","Y","") -> Y | AC110: =IF(VLOOKUP($C110,ExistingSewer!$A$2:$Q$125,17,FALSE)="Y","Y","") ->  | BG110: 86180 | CG110: 86180 | CM110: 225250.024
B111: =ExistingSewer!A89 -> SPS58 Butcherbird Cl | C111: =ExistingSewer!A89 -> SPS58 Butcherbird Cl | D111: Active | E111: Pump Station Network | F111: SPS58 Butcherbird Cl | L111: 0 | M111: =VLOOKUP(B111,ExistingSewer!$A$2:$H$122,8,FALSE) -> 475350.1 | O111: 1 | P111: 475350.1 | S111: =IF(Q111="",'Unit Rates - Land'!landcst,IF($E$8="Landuse",VLOOKUP(Q111,LAndcost3,2,FALSE),IF($E$8="Location",VLOOKUP(Q111,Landcost2,2,FALSE),"Error"))) -> 0 | T111: 0 | U111: 2015 | V111: =IFERROR(('General Input Sheet'!$G$38/(VLOOKUP(U111,'General Input Sheet'!$E$38:$G$44,3,FALSE))),1) -> 1 | W111: 475350.1 | X111: =IF(VLOOKUP($C111,ExistingSewer!$A$2:$Q$125,12,FALSE)="Y","Y","") ->  | Y111: =IF(VLOOKUP($C111,ExistingSewer!$A$2:$Q$125,13,FALSE)="Y","Y","") ->  | Z111: =IF(VLOOKUP($C111,ExistingSewer!$A$2:$Q$125,14,FALSE)="Y","Y","") ->  | AA111: =IF(VLOOKUP($C111,ExistingSewer!$A$2:$Q$125,15,FALSE)="Y","Y","") ->  | AB111: =IF(VLOOKUP($C111,ExistingSewer!$A$2:$Q$125,16,FALSE)="Y","Y","") -> Y | AC111: =IF(VLOOKUP($C111,ExistingSewer!$A$2:$Q$125,17,FALSE)="Y","Y","") ->  | BG111: 86180 | CG111: 86180 | CM111: 475350.1
B112: =ExistingSewer!A90 -> SPS59 Ellengowan St | C112: =ExistingSewer!A90 -> SPS59 Ellengowan St | D112: Active | E112: Pump Station Network | F112: SPS59 Ellengowan St | L112: 0 | M112: =VLOOKUP(B112,ExistingSewer!$A$2:$H$122,8,FALSE) -> 304154.392 | O112: 1 | P112: 304154.392 | S112: =IF(Q112="",'Unit Rates - Land'!landcst,IF($E$8="Landuse",VLOOKUP(Q112,LAndcost3,2,FALSE),IF($E$8="Location",VLOOKUP(Q112,Landcost2,2,FALSE),"Error"))) -> 0 | T112: 0 | U112: 2015 | V112: =IFERROR(('General Input Sheet'!$G$38/(VLOOKUP(U112,'General Input Sheet'!$E$38:$G$44,3,FALSE))),1) -> 1 | W112: 304154.392 | X112: =IF(VLOOKUP($C112,ExistingSewer!$A$2:$Q$125,12,FALSE)="Y","Y","") ->  | Y112: =IF(VLOOKUP($C112,ExistingSewer!$A$2:$Q$125,13,FALSE)="Y","Y","") ->  | Z112: =IF(VLOOKUP($C112,ExistingSewer!$A$2:$Q$125,14,FALSE)="Y","Y","") ->  | AA112: =IF(VLOOKUP($C112,ExistingSewer!$A$2:$Q$125,15,FALSE)="Y","Y","") ->  | AB112: =IF(VLOOKUP($C112,ExistingSewer!$A$2:$Q$125,16,FALSE)="Y","Y","") -> Y | AC112: =IF(VLOOKUP($C112,ExistingSewer!$A$2:$Q$125,17,FALSE)="Y","Y","") ->  | BG112: 86180 | CG112: 86180 | CM112: 304154.392
B113: =ExistingSewer!A91 -> SPS60 Union S | C113: =ExistingSewer!A91 -> SPS60 Union S | D113: Active | E113: Pump Station Network | F113: =C113 -> SPS60 Union S | L113: 0 | M113: =VLOOKUP(B113,ExistingSewer!$A$2:$H$122,8,FALSE) -> 356946.6 | O113: 1 | P113: 356946.6 | S113: =IF(Q113="",'Unit Rates - Land'!landcst,IF($E$8="Landuse",VLOOKUP(Q113,LAndcost3,2,FALSE),IF($E$8="Location",VLOOKUP(Q113,Landcost2,2,FALSE),"Error"))) -> 0 | T113: 0 | U113: 2015 | V113: =IFERROR(('General Input Sheet'!$G$38/(VLOOKUP(U113,'General Input Sheet'!$E$38:$G$44,3,FALSE))),1) -> 1 | W113: 356946.6 | X113: =IF(VLOOKUP($C113,ExistingSewer!$A$2:$Q$125,12,FALSE)="Y","Y","") ->  | Y113: =IF(VLOOKUP($C113,ExistingSewer!$A$2:$Q$125,13,FALSE)="Y","Y","") ->  | Z113: =IF(VLOOKUP($C113,ExistingSewer!$A$2:$Q$125,14,FALSE)="Y","Y","") -> Y | AA113: =IF(VLOOKUP($C113,ExistingSewer!$A$2:$Q$125,15,FALSE)="Y","Y","") ->  | AB113: =IF(VLOOKUP($C113,ExistingSewer!$A$2:$Q$125,16,FALSE)="Y","Y","") ->  | AC113: =IF(VLOOKUP($C113,ExistingSewer!$A$2:$Q$125,17,FALSE)="Y","Y","") ->  | BE113: 336 | CG113: 336 | CK113: 356946.6
B114: =ExistingSewer!A92 -> SPS61 Kingfisher Pd | C114: =ExistingSewer!A92 -> SPS61 Kingfisher Pd | D114: Active | E114: Pump Station Network | F114: SPS61 Kingfisher Pd | L114: 0 | M114: =VLOOKUP(B114,ExistingSewer!$A$2:$H$122,8,FALSE) -> 315795.882 | O114: 1 | P114: 315795.882 | S114: =IF(Q114="",'Unit Rates - Land'!landcst,IF($E$8="Landuse",VLOOKUP(Q114,LAndcost3,2,FALSE),IF($E$8="Location",VLOOKUP(Q114,Landcost2,2,FALSE),"Error"))) -> 0 | T114: 0 | U114: 2015 | V114: =IFERROR(('General Input Sheet'!$G$38/(VLOOKUP(U114,'General Input Sheet'!$E$38:$G$44,3,FALSE))),1) -> 1 | W114: 315795.882 | X114: =IF(VLOOKUP($C114,ExistingSewer!$A$2:$Q$125,12,FALSE)="Y","Y","") ->  | Y114: =IF(VLOOKUP($C114,ExistingSewer!$A$2:$Q$125,13,FALSE)="Y","Y","") ->  | Z114: =IF(VLOOKUP($C114,ExistingSewer!$A$2:$Q$125,14,FALSE)="Y","Y","") ->  | AA114: =IF(VLOOKUP($C114,ExistingSewer!$A$2:$Q$125,15,FALSE)="Y","Y","") -> Y | AB114: =IF(VLOOKUP($C114,ExistingSewer!$A$2:$Q$125,16,FALSE)="Y","Y","") ->  | AC114: =IF(VLOOKUP($C114,ExistingSewer!$A$2:$Q$125,17,FALSE)="Y","Y","") ->  | BF114: 2286 | CG114: 2286 | CL114: 315795.882
B115: =ExistingSewer!A93 -> SPS62 Pialba Downs Dr | C115: =ExistingSewer!A93 -> SPS62 Pialba Downs Dr | D115: Active | E115: Pump Station Network | F115: SPS62 Pialba Downs Dr | L115: 0 | M115: =VLOOKUP(B115,ExistingSewer!$A$2:$H$122,8,FALSE) -> 398357.502 | O115: 1 | P115: 398357.502 | S115: =IF(Q115="",'Unit Rates - Land'!landcst,IF($E$8="Landuse",VLOOKUP(Q115,LAndcost3,2,FALSE),IF($E$8="Location",VLOOKUP(Q115,Landcost2,2,FALSE),"Error"))) -> 0 | T115: 0 | U115: 2015 | V115: =IFERROR(('General Input Sheet'!$G$38/(VLOOKUP(U115,'General Input Sheet'!$E$38:$G$44,3,FALSE))),1) -> 1 | W115: 398357.502 | X115: =IF(VLOOKUP($C115,ExistingSewer!$A$2:$Q$125,12,FALSE)="Y","Y","") ->  | Y115: =IF(VLOOKUP($C115,ExistingSewer!$A$2:$Q$125,13,FALSE)="Y","Y","") ->  | Z115: =IF(VLOOKUP($C115,ExistingSewer!$A$2:$Q$125,14,FALSE)="Y","Y","") ->  | AA115: =IF(VLOOKUP($C115,ExistingSewer!$A$2:$Q$125,15,FALSE)="Y","Y","") ->  | AB115: =IF(VLOOKUP($C115,ExistingSewer!$A$2:$Q$125,16,FALSE)="Y","Y","") -> Y | AC115: =IF(VLOOKUP($C115,ExistingSewer!$A$2:$Q$125,17,FALSE)="Y","Y","") ->  | BG115: 86180 | CG115: 86180 | CM115: 398357.502
B116: =ExistingSewer!A94 -> SPS65 FCRC Torbanlea Rec Reserve | C116: =ExistingSewer!A94 -> SPS65 FCRC Torbanlea Rec Reserve | D116: Active | E116: Pump Station Network | F116: SPS65 FCRC Torbanlea Rec Reserve | L116: 0 | M116: =VLOOKUP(B116,ExistingSewer!$A$2:$H$122,8,FALSE) -> 241881.288 | O116: 1 | P116: 241881.288 | S116: =IF(Q116="",'Unit Rates - Land'!landcst,IF($E$8="Landuse",VLOOKUP(Q116,LAndcost3,2,FALSE),IF($E$8="Location",VLOOKUP(Q116,Landcost2,2,FALSE),"Error"))) -> 0 | T116: 0 | U116: 2015 | V116: =IFERROR(('General Input Sheet'!$G$38/(VLOOKUP(U116,'General Input Sheet'!$E$38:$G$44,3,FALSE))),1) -> 1 | W116: 241881.288 | X116: =IF(VLOOKUP($C116,ExistingSewer!$A$2:$Q$125,12,FALSE)="Y","Y","") ->  | Y116: =IF(VLOOKUP($C116,ExistingSewer!$A$2:$Q$125,13,FALSE)="Y","Y","") ->  | Z116: =IF(VLOOKUP($C116,ExistingSewer!$A$2:$Q$125,14,FALSE)="Y","Y","") -> Y | AA116: =IF(VLOOKUP($C116,ExistingSewer!$A$2:$Q$125,15,FALSE)="Y","Y","") ->  | AB116: =IF(VLOOKUP($C116,ExistingSewer!$A$2:$Q$125,16,FALSE)="Y","Y","") ->  | AC116: =IF(VLOOKUP($C116,ExistingSewer!$A$2:$Q$125,17,FALSE)="Y","Y","") ->  | BE116: 336 | CG116: 336 | CK116: 241881.288
B117: =ExistingSewer!A95 -> SPS66 Pialba Downs Dr | C117: =ExistingSewer!A95 -> SPS66 Pialba Downs Dr | D117: Active | E117: Pump Station Network | F117: SPS66 Pialba Downs Dr | L117: 0 | M117: =VLOOKUP(B117,ExistingSewer!$A$2:$H$122,8,FALSE) -> 228856.783 | O117: 1 | P117: 228856.783 | S117: =IF(Q117="",'Unit Rates - Land'!landcst,IF($E$8="Landuse",VLOOKUP(Q117,LAndcost3,2,FALSE),IF($E$8="Location",VLOOKUP(Q117,Landcost2,2,FALSE),"Error"))) -> 0 | T117: 0 | U117: 2015 | V117: =IFERROR(('General Input Sheet'!$G$38/(VLOOKUP(U117,'General Input Sheet'!$E$38:$G$44,3,FALSE))),1) -> 1 | W117: 228856.783 | X117: =IF(VLOOKUP($C117,ExistingSewer!$A$2:$Q$125,12,FALSE)="Y","Y","") ->  | Y117: =IF(VLOOKUP($C117,ExistingSewer!$A$2:$Q$125,13,FALSE)="Y","Y","") ->  | Z117: =IF(VLOOKUP($C117,ExistingSewer!$A$2:$Q$125,14,FALSE)="Y","Y","") ->  | AA117: =IF(VLOOKUP($C117,ExistingSewer!$A$2:$Q$125,15,FALSE)="Y","Y","") ->  | AB117: =IF(VLOOKUP($C117,ExistingSewer!$A$2:$Q$125,16,FALSE)="Y","Y","") -> Y | AC117: =IF(VLOOKUP($C117,ExistingSewer!$A$2:$Q$125,17,FALSE)="Y","Y","") ->  | BG117: 86180 | CG117: 86180 | CM117: 228856.783
B118: =ExistingSewer!A96 -> SPS67 Sunrise Cr | C118: =ExistingSewer!A96 -> SPS67 Sunrise Cr | D118: Active | E118: Pump Station Network | F118: SPS67 Sunrise Cr | L118: 0 | M118: =VLOOKUP(B118,ExistingSewer!$A$2:$H$122,8,FALSE) -> 359314.662 | O118: 1 | P118: 359314.662 | S118: =IF(Q118="",'Unit Rates - Land'!landcst,IF($E$8="Landuse",VLOOKUP(Q118,LAndcost3,2,FALSE),IF($E$8="Location",VLOOKUP(Q118,Landcost2,2,FALSE),"Error"))) -> 0 | T118: 0 | U118: 2015 | V118: =IFERROR(('General Input Sheet'!$G$38/(VLOOKUP(U118,'General Input Sheet'!$E$38:$G$44,3,FALSE))),1) -> 1 | W118: 359314.662 | X118: =IF(VLOOKUP($C118,ExistingSewer!$A$2:$Q$125,12,FALSE)="Y","Y","") -> Y | Y118: =IF(VLOOKUP($C118,ExistingSewer!$A$2:$Q$125,13,FALSE)="Y","Y","") ->  | Z118: =IF(VLOOKUP($C118,ExistingSewer!$A$2:$Q$125,14,FALSE)="Y","Y","") ->  | AA118: =IF(VLOOKUP($C118,ExistingSewer!$A$2:$Q$125,15,FALSE)="Y","Y","") ->  | AB118: =IF(VLOOKUP($C118,ExistingSewer!$A$2:$Q$125,16,FALSE)="Y","Y","") ->  | AC118: =IF(VLOOKUP($C118,ExistingSewer!$A$2:$Q$125,17,FALSE)="Y","Y","") ->  | BC118: 3633 | BR118: =IF(AM118="y",BR$14,IF(AND(AM118>0,AM118<=1),AM118*BR$14,"")) ->  | CG118: 3633 | CI118: 359314.662 | CS118: =IF(BM118="","",(BM118/$CG118)*$W118) -> 
B119: =ExistingSewer!A97 -> SPS68 Islander Rd | C119: =ExistingSewer!A97 -> SPS68 Islander Rd | D119: Active | E119: Pump Station Network | F119: SPS68 Islander Rd | L119: 0 | M119: =VLOOKUP(B119,ExistingSewer!$A$2:$H$122,8,FALSE) -> 378636.658 | O119: 1 | P119: 378636.658 | S119: =IF(Q119="",'Unit Rates - Land'!landcst,IF($E$8="Landuse",VLOOKUP(Q119,LAndcost3,2,FALSE),IF($E$8="Location",VLOOKUP(Q119,Landcost2,2,FALSE),"Error"))) -> 0 | T119: 0 | U119: 2015 | V119: =IFERROR(('General Input Sheet'!$G$38/(VLOOKUP(U119,'General Input Sheet'!$E$38:$G$44,3,FALSE))),1) -> 1 | W119: 378636.658 | X119: =IF(VLOOKUP($C119,ExistingSewer!$A$2:$Q$125,12,FALSE)="Y","Y","") ->  | Y119: =IF(VLOOKUP($C119,ExistingSewer!$A$2:$Q$125,13,FALSE)="Y","Y","") ->  | Z119: =IF(VLOOKUP($C119,ExistingSewer!$A$2:$Q$125,14,FALSE)="Y","Y","") ->  | AA119: =IF(VLOOKUP($C119,ExistingSewer!$A$2:$Q$125,15,FALSE)="Y","Y","") ->  | AB119: =IF(VLOOKUP($C119,ExistingSewer!$A$2:$Q$125,16,FALSE)="Y","Y","") -> Y | AC119: =IF(VLOOKUP($C119,ExistingSewer!$A$2:$Q$125,17,FALSE)="Y","Y","") ->  | BC119: =IF(X119="y",BC$14,IF(AND(X119>0,X119<=1),X119*BC$14,"")) ->  | BG119: 86180 | CG119: 86180 | CM119: 378636.658
B120: =ExistingSewer!A98 -> SPS69 Bushlark Av | C120: =ExistingSewer!A98 -> SPS69 Bushlark Av | D120: Active | E120: Pump Station Network | F120: =C120 -> SPS69 Bushlark Av | L120: 0 | M120: =VLOOKUP(B120,ExistingSewer!$A$2:$H$122,8,FALSE) -> 311192.343 | O120: 1 | P120: 311192.343 | S120: =IF(Q120="",'Unit Rates - Land'!landcst,IF($E$8="Landuse",VLOOKUP(Q120,LAndcost3,2,FALSE),IF($E$8="Location",VLOOKUP(Q120,Landcost2,2,FALSE),"Error"))) -> 0 | T120: 0 | U120: 2015 | V120: =IFERROR(('General Input Sheet'!$G$38/(VLOOKUP(U120,'General Input Sheet'!$E$38:$G$44,3,FALSE))),1) -> 1 | W120: 311192.343 | X120: =IF(VLOOKUP($C120,ExistingSewer!$A$2:$Q$125,12,FALSE)="Y","Y","") ->  | Y120: =IF(VLOOKUP($C120,ExistingSewer!$A$2:$Q$125,13,FALSE)="Y","Y","") ->  | Z120: =IF(VLOOKUP($C120,ExistingSewer!$A$2:$Q$125,14,FALSE)="Y","Y","") ->  | AA120: =IF(VLOOKUP($C120,ExistingSewer!$A$2:$Q$125,15,FALSE)="Y","Y","") ->  | AB120: =IF(VLOOKUP($C120,ExistingSewer!$A$2:$Q$125,16,FALSE)="Y","Y","") -> Y | AC120: =IF(VLOOKUP($C120,ExistingSewer!$A$2:$Q$125,17,FALSE)="Y","Y","") ->  | BG120: 86180 | CG120: 86180 | CM120: 311192.343
B121: =ExistingSewer!A99 -> SPS70 Alexander St | C121: =ExistingSewer!A99 -> SPS70 Alexander St | D121: Active | E121: Pump Station Network | F121: SPS70 Alexander St | L121: 0 | M121: =VLOOKUP(B121,ExistingSewer!$A$2:$H$122,8,FALSE) -> 255409.725 | O121: 1 | P121: 255409.725 | S121: =IF(Q121="",'Unit Rates - Land'!landcst,IF($E$8="Landuse",VLOOKUP(Q121,LAndcost3,2,FALSE),IF($E$8="Location",VLOOKUP(Q121,Landcost2,2,FALSE),"Error"))) -> 0 | T121: 0 | U121: 2015 | V121: =IFERROR(('General Input Sheet'!$G$38/(VLOOKUP(U121,'General Input Sheet'!$E$38:$G$44,3,FALSE))),1) -> 1 | W121: 255409.725 | X121: =IF(VLOOKUP($C121,ExistingSewer!$A$2:$Q$125,12,FALSE)="Y","Y","") ->  | Y121: =IF(VLOOKUP($C121,ExistingSewer!$A$2:$Q$125,13,FALSE)="Y","Y","") ->  | Z121: =IF(VLOOKUP($C121,ExistingSewer!$A$2:$Q$125,14,FALSE)="Y","Y","") ->  | AA121: =IF(VLOOKUP($C121,ExistingSewer!$A$2:$Q$125,15,FALSE)="Y","Y","") ->  | AB121: =IF(VLOOKUP($C121,ExistingSewer!$A$2:$Q$125,16,FALSE)="Y","Y","") -> Y | AC121: =IF(VLOOKUP($C121,ExistingSewer!$A$2:$Q$125,17,FALSE)="Y","Y","") ->  | BG121: 86180 | CG121: 86180 | CM121: 255409.725
B122: =ExistingSewer!A100 -> SPS71 Rosewood Av | C122: =ExistingSewer!A100 -> SPS71 Rosewood Av | D122: Active | E122: Pump Station Network | F122: SPS71 Rosewood Av | L122: 0 | M122: =VLOOKUP(B122,ExistingSewer!$A$2:$H$122,8,FALSE) -> 255301.248 | O122: 1 | P122: 255301.248 | S122: =IF(Q122="",'Unit Rates - Land'!landcst,IF($E$8="Landuse",VLOOKUP(Q122,LAndcost3,2,FALSE),IF($E$8="Location",VLOOKUP(Q122,Landcost2,2,FALSE),"Error"))) -> 0 | T122: 0 | U122: 2015 | V122: =IFERROR(('General Input Sheet'!$G$38/(VLOOKUP(U122,'General Input Sheet'!$E$38:$G$44,3,FALSE))),1) -> 1 | W122: 255301.248 | X122: =IF(VLOOKUP($C122,ExistingSewer!$A$2:$Q$125,12,FALSE)="Y","Y","") ->  | Y122: =IF(VLOOKUP($C122,ExistingSewer!$A$2:$Q$125,13,FALSE)="Y","Y","") ->  | Z122: =IF(VLOOKUP($C122,ExistingSewer!$A$2:$Q$125,14,FALSE)="Y","Y","") ->  | AA122: =IF(VLOOKUP($C122,ExistingSewer!$A$2:$Q$125,15,FALSE)="Y","Y","") ->  | AB122: =IF(VLOOKUP($C122,ExistingSewer!$A$2:$Q$125,16,FALSE)="Y","Y","") -> Y | AC122: =IF(VLOOKUP($C122,ExistingSewer!$A$2:$Q$125,17,FALSE)="Y","Y","") ->  | BG122: 86180 | CG122: 86180 | CM122: 255301.248
B123: =ExistingSewer!A101 -> SPS72 Yarrilee Cct | C123: =ExistingSewer!A101 -> SPS72 Yarrilee Cct | D123: Active | E123: Pump Station Network | F123: SPS72 Yarrilee Cct | L123: 0 | M123: =VLOOKUP(B123,ExistingSewer!$A$2:$H$122,8,FALSE) -> 421101.822 | O123: 1 | P123: 421101.822 | S123: =IF(Q123="",'Unit Rates - Land'!landcst,IF($E$8="Landuse",VLOOKUP(Q123,LAndcost3,2,FALSE),IF($E$8="Location",VLOOKUP(Q123,Landcost2,2,FALSE),"Error"))) -> 0 | T123: 0 | U123: 2015 | V123: =IFERROR(('General Input Sheet'!$G$38/(VLOOKUP(U123,'General Input Sheet'!$E$38:$G$44,3,FALSE))),1) -> 1 | W123: 421101.822 | X123: =IF(VLOOKUP($C123,ExistingSewer!$A$2:$Q$125,12,FALSE)="Y","Y","") ->  | Y123: =IF(VLOOKUP($C123,ExistingSewer!$A$2:$Q$125,13,FALSE)="Y","Y","") ->  | Z123: =IF(VLOOKUP($C123,ExistingSewer!$A$2:$Q$125,14,FALSE)="Y","Y","") ->  | AA123: =IF(VLOOKUP($C123,ExistingSewer!$A$2:$Q$125,15,FALSE)="Y","Y","") ->  | AB123: =IF(VLOOKUP($C123,ExistingSewer!$A$2:$Q$125,16,FALSE)="Y","Y","") -> Y | AC123: =IF(VLOOKUP($C123,ExistingSewer!$A$2:$Q$125,17,FALSE)="Y","Y","") ->  | BG123: 86180 | CG123: 86180 | CM123: 421101.822
B124: =ExistingSewer!A102 -> SPS73 Endeavour Wy | C124: =ExistingSewer!A102 -> SPS73 Endeavour Wy | D124: Active | E124: Pump Station Network | F124: SPS73 Endeavour Wy | L124: 0 | M124: =VLOOKUP(B124,ExistingSewer!$A$2:$H$122,8,FALSE) -> 455140.966 | O124: 1 | P124: 455140.966 | S124: =IF(Q124="",'Unit Rates - Land'!landcst,IF($E$8="Landuse",VLOOKUP(Q124,LAndcost3,2,FALSE),IF($E$8="Location",VLOOKUP(Q124,Landcost2,2,FALSE),"Error"))) -> 0 | T124: 0 | U124: 2015 | V124: =IFERROR(('General Input Sheet'!$G$38/(VLOOKUP(U124,'General Input Sheet'!$E$38:$G$44,3,FALSE))),1) -> 1 | W124: 455140.966 | X124: =IF(VLOOKUP($C124,ExistingSewer!$A$2:$Q$125,12,FALSE)="Y","Y","") ->  | Y124: =IF(VLOOKUP($C124,ExistingSewer!$A$2:$Q$125,13,FALSE)="Y","Y","") ->  | Z124: =IF(VLOOKUP($C124,ExistingSewer!$A$2:$Q$125,14,FALSE)="Y","Y","") ->  | AA124: =IF(VLOOKUP($C124,ExistingSewer!$A$2:$Q$125,15,FALSE)="Y","Y","") ->  | AB124: =IF(VLOOKUP($C124,ExistingSewer!$A$2:$Q$125,16,FALSE)="Y","Y","") -> Y | AC124: =IF(VLOOKUP($C124,ExistingSewer!$A$2:$Q$125,17,FALSE)="Y","Y","") ->  | BG124: 86180 | CG124: 86180 | CM124: 455140.966
B125: =ExistingSewer!A103 -> SPS74 Northshore Av | C125: =ExistingSewer!A103 -> SPS74 Northshore Av | D125: Active | E125: Pump Station Network | F125: SPS74 Northshore Av | L125: 0 | M125: =VLOOKUP(B125,ExistingSewer!$A$2:$H$122,8,FALSE) -> 687891.792 | O125: 1 | P125: 687891.792 | S125: =IF(Q125="",'Unit Rates - Land'!landcst,IF($E$8="Landuse",VLOOKUP(Q125,LAndcost3,2,FALSE),IF($E$8="Location",VLOOKUP(Q125,Landcost2,2,FALSE),"Error"))) -> 0 | T125: 0 | U125: 2015 | V125: =IFERROR(('General Input Sheet'!$G$38/(VLOOKUP(U125,'General Input Sheet'!$E$38:$G$44,3,FALSE))),1) -> 1 | W125: 687891.792 | X125: =IF(VLOOKUP($C125,ExistingSewer!$A$2:$Q$125,12,FALSE)="Y","Y","") ->  | Y125: =IF(VLOOKUP($C125,ExistingSewer!$A$2:$Q$125,13,FALSE)="Y","Y","") ->  | Z125: =IF(VLOOKUP($C125,ExistingSewer!$A$2:$Q$125,14,FALSE)="Y","Y","") ->  | AA125: =IF(VLOOKUP($C125,ExistingSewer!$A$2:$Q$125,15,FALSE)="Y","Y","") -> Y | AB125: =IF(VLOOKUP($C125,ExistingSewer!$A$2:$Q$125,16,FALSE)="Y","Y","") ->  | AC125: =IF(VLOOKUP($C125,ExistingSewer!$A$2:$Q$125,17,FALSE)="Y","Y","") ->  | BF125: 2286 | CG125: 2286 | CL125: 687891.792
B126: =ExistingSewer!A104 -> SPS75 Northshore Av | C126: =ExistingSewer!A104 -> SPS75 Northshore Av | D126: Active | E126: Pump Station Network | F126: SPS75 Northshore Av | L126: 0 | M126: =VLOOKUP(B126,ExistingSewer!$A$2:$H$122,8,FALSE) -> 171971.904 | O126: 1 | P126: 171971.904 | S126: =IF(Q126="",'Unit Rates - Land'!landcst,IF($E$8="Landuse",VLOOKUP(Q126,LAndcost3,2,FALSE),IF($E$8="Location",VLOOKUP(Q126,Landcost2,2,FALSE),"Error"))) -> 0 | T126: 0 | U126: 2015 | V126: =IFERROR(('General Input Sheet'!$G$38/(VLOOKUP(U126,'General Input Sheet'!$E$38:$G$44,3,FALSE))),1) -> 1 | W126: 171971.904 | X126: =IF(VLOOKUP($C126,ExistingSewer!$A$2:$Q$125,12,FALSE)="Y","Y","") ->  | Y126: =IF(VLOOKUP($C126,ExistingSewer!$A$2:$Q$125,13,FALSE)="Y","Y","") ->  | Z126: =IF(VLOOKUP($C126,ExistingSewer!$A$2:$Q$125,14,FALSE)="Y","Y","") ->  | AA126: =IF(VLOOKUP($C126,ExistingSewer!$A$2:$Q$125,15,FALSE)="Y","Y","") -> Y | AB126: =IF(VLOOKUP($C126,ExistingSewer!$A$2:$Q$125,16,FALSE)="Y","Y","") ->  | AC126: =IF(VLOOKUP($C126,ExistingSewer!$A$2:$Q$125,17,FALSE)="Y","Y","") ->  | BF126: 2286 | CG126: 2286 | CL126: 171971.904
B127: =ExistingSewer!A105 -> SPS76 Northshore Av | C127: =ExistingSewer!A105 -> SPS76 Northshore Av | D127: Active | E127: Pump Station Network | F127: =C127 -> SPS76 Northshore Av | L127: 0 | M127: =VLOOKUP(B127,ExistingSewer!$A$2:$H$122,8,FALSE) -> 173267.024 | O127: 1 | P127: 173267.024 | S127: =IF(Q127="",'Unit Rates - Land'!landcst,IF($E$8="Landuse",VLOOKUP(Q127,LAndcost3,2,FALSE),IF($E$8="Location",VLOOKUP(Q127,Landcost2,2,FALSE),"Error"))) -> 0 | T127: 0 | U127: 2015 | V127: =IFERROR(('General Input Sheet'!$G$38/(VLOOKUP(U127,'General Input Sheet'!$E$38:$G$44,3,FALSE))),1) -> 1 | W127: 173267.024 | X127: =IF(VLOOKUP($C127,ExistingSewer!$A$2:$Q$125,12,FALSE)="Y","Y","") ->  | Y127: =IF(VLOOKUP($C127,ExistingSewer!$A$2:$Q$125,13,FALSE)="Y","Y","") ->  | Z127: =IF(VLOOKUP($C127,ExistingSewer!$A$2:$Q$125,14,FALSE)="Y","Y","") ->  | AA127: =IF(VLOOKUP($C127,ExistingSewer!$A$2:$Q$125,15,FALSE)="Y","Y","") -> Y | AB127: =IF(VLOOKUP($C127,ExistingSewer!$A$2:$Q$125,16,FALSE)="Y","Y","") ->  | AC127: =IF(VLOOKUP($C127,ExistingSewer!$A$2:$Q$125,17,FALSE)="Y","Y","") ->  | BF127: 2286 | CG127: 2286 | CL127: 173267.024
B128: =ExistingSewer!A106 -> SPS77 Corser St | C128: =ExistingSewer!A106 -> SPS77 Corser St | D128: Active | E128: Pump Station Network | F128: SPS77 Corser St | L128: 0 | M128: =VLOOKUP(B128,ExistingSewer!$A$2:$H$122,8,FALSE) -> 277753.226 | O128: 1 | P128: 277753.226 | S128: =IF(Q128="",'Unit Rates - Land'!landcst,IF($E$8="Landuse",VLOOKUP(Q128,LAndcost3,2,FALSE),IF($E$8="Location",VLOOKUP(Q128,Landcost2,2,FALSE),"Error"))) -> 0 | T128: 0 | U128: 2015 | V128: =IFERROR(('General Input Sheet'!$G$38/(VLOOKUP(U128,'General Input Sheet'!$E$38:$G$44,3,FALSE))),1) -> 1 | W128: 277753.226 | X128: =IF(VLOOKUP($C128,ExistingSewer!$A$2:$Q$125,12,FALSE)="Y","Y","") ->  | Y128: =IF(VLOOKUP($C128,ExistingSewer!$A$2:$Q$125,13,FALSE)="Y","Y","") ->  | Z128: =IF(VLOOKUP($C128,ExistingSewer!$A$2:$Q$125,14,FALSE)="Y","Y","") ->  | AA128: =IF(VLOOKUP($C128,ExistingSewer!$A$2:$Q$125,15,FALSE)="Y","Y","") ->  | AB128: =IF(VLOOKUP($C128,ExistingSewer!$A$2:$Q$125,16,FALSE)="Y","Y","") -> Y | AC128: =IF(VLOOKUP($C128,ExistingSewer!$A$2:$Q$125,17,FALSE)="Y","Y","") ->  | BG128: 86180 | CG128: 86180 | CM128: 277753.226
B129: =ExistingSewer!A107 -> SPS78 Coles Ct | C129: =ExistingSewer!A107 -> SPS78 Coles Ct | D129: Active | E129: Pump Station Network | F129: SPS78 Coles Ct | L129: 0 | M129: =VLOOKUP(B129,ExistingSewer!$A$2:$H$122,8,FALSE) -> 187510.904 | O129: 1 | P129: 187510.904 | S129: =IF(Q129="",'Unit Rates - Land'!landcst,IF($E$8="Landuse",VLOOKUP(Q129,LAndcost3,2,FALSE),IF($E$8="Location",VLOOKUP(Q129,Landcost2,2,FALSE),"Error"))) -> 0 | T129: 0 | U129: 2015 | V129: =IFERROR(('General Input Sheet'!$G$38/(VLOOKUP(U129,'General Input Sheet'!$E$38:$G$44,3,FALSE))),1) -> 1 | W129: 187510.904 | X129: =IF(VLOOKUP($C129,ExistingSewer!$A$2:$Q$125,12,FALSE)="Y","Y","") ->  | Y129: =IF(VLOOKUP($C129,ExistingSewer!$A$2:$Q$125,13,FALSE)="Y","Y","") ->  | Z129: =IF(VLOOKUP($C129,ExistingSewer!$A$2:$Q$125,14,FALSE)="Y","Y","") ->  | AA129: =IF(VLOOKUP($C129,ExistingSewer!$A$2:$Q$125,15,FALSE)="Y","Y","") -> Y | AB129: =IF(VLOOKUP($C129,ExistingSewer!$A$2:$Q$125,16,FALSE)="Y","Y","") ->  | AC129: =IF(VLOOKUP($C129,ExistingSewer!$A$2:$Q$125,17,FALSE)="Y","Y","") ->  | BF129: 2286 | CG129: 2286 | CL129: 187510.904
B130: =ExistingSewer!A108 -> SPS79 Doolong Sth Rd | C130: =ExistingSewer!A108 -> SPS79 Doolong Sth Rd | D130: Active | E130: Pump Station Network | F130: SPS79 Doolong Sth Rd | L130: 0 | M130: =VLOOKUP(B130,ExistingSewer!$A$2:$H$122,8,FALSE) -> 1641435.957 | O130: 1 | P130: 1641435.957 | S130: =IF(Q130="",'Unit Rates - Land'!landcst,IF($E$8="Landuse",VLOOKUP(Q130,LAndcost3,2,FALSE),IF($E$8="Location",VLOOKUP(Q130,Landcost2,2,FALSE),"Error"))) -> 0 | T130: 0 | U130: 2015 | V130: =IFERROR(('General Input Sheet'!$G$38/(VLOOKUP(U130,'General Input Sheet'!$E$38:$G$44,3,FALSE))),1) -> 1 | W130: 1641435.957 | X130: =IF(VLOOKUP($C130,ExistingSewer!$A$2:$Q$125,12,FALSE)="Y","Y","") ->  | Y130: =IF(VLOOKUP($C130,ExistingSewer!$A$2:$Q$125,13,FALSE)="Y","Y","") ->  | Z130: =IF(VLOOKUP($C130,ExistingSewer!$A$2:$Q$125,14,FALSE)="Y","Y","") ->  | AA130: =IF(VLOOKUP($C130,ExistingSewer!$A$2:$Q$125,15,FALSE)="Y","Y","") ->  | AB130: =IF(VLOOKUP($C130,ExistingSewer!$A$2:$Q$125,16,FALSE)="Y","Y","") -> Y | AC130: =IF(VLOOKUP($C130,ExistingSewer!$A$2:$Q$125,17,FALSE)="Y","Y","") ->  | BG130: 86180 | CG130: 86180 | CM130: 1641435.957
B131: =ExistingSewer!A109 -> SPS80 Victory East St | C131: =ExistingSewer!A109 -> SPS80 Victory East St | D131: Active | E131: Pump Station Network | F131: SPS80 Victory East St | L131: 0 | M131: =VLOOKUP(B131,ExistingSewer!$A$2:$H$122,8,FALSE) -> 262686.78 | O131: 1 | P131: 262686.78 | S131: =IF(Q131="",'Unit Rates - Land'!landcst,IF($E$8="Landuse",VLOOKUP(Q131,LAndcost3,2,FALSE),IF($E$8="Location",VLOOKUP(Q131,Landcost2,2,FALSE),"Error"))) -> 0 | T131: 0 | U131: 2015 | V131: =IFERROR(('General Input Sheet'!$G$38/(VLOOKUP(U131,'General Input Sheet'!$E$38:$G$44,3,FALSE))),1) -> 1 | W131: 262686.78 | X131: =IF(VLOOKUP($C131,ExistingSewer!$A$2:$Q$125,12,FALSE)="Y","Y","") ->  | Y131: =IF(VLOOKUP($C131,ExistingSewer!$A$2:$Q$125,13,FALSE)="Y","Y","") ->  | Z131: =IF(VLOOKUP($C131,ExistingSewer!$A$2:$Q$125,14,FALSE)="Y","Y","") ->  | AA131: =IF(VLOOKUP($C131,ExistingSewer!$A$2:$Q$125,15,FALSE)="Y","Y","") ->  | AB131: =IF(VLOOKUP($C131,ExistingSewer!$A$2:$Q$125,16,FALSE)="Y","Y","") -> Y | AC131: =IF(VLOOKUP($C131,ExistingSewer!$A$2:$Q$125,17,FALSE)="Y","Y","") ->  | BG131: 86180 | CG131: 86180 | CM131: 262686.78
B132: =ExistingSewer!A110 -> SPS81 Barramundi Dr | C132: =ExistingSewer!A110 -> SPS81 Barramundi Dr | D132: Active | E132: Pump Station Network | F132: SPS81 Barramundi Dr | L132: 0 | M132: =VLOOKUP(B132,ExistingSewer!$A$2:$H$122,8,FALSE) -> 654250.123 | O132: 1 | P132: 654250.123 | S132: =IF(Q132="",'Unit Rates - Land'!landcst,IF($E$8="Landuse",VLOOKUP(Q132,LAndcost3,2,FALSE),IF($E$8="Location",VLOOKUP(Q132,Landcost2,2,FALSE),"Error"))) -> 0 | T132: 0 | U132: 2015 | V132: =IFERROR(('General Input Sheet'!$G$38/(VLOOKUP(U132,'General Input Sheet'!$E$38:$G$44,3,FALSE))),1) -> 1 | W132: 654250.123 | X132: =IF(VLOOKUP($C132,ExistingSewer!$A$2:$Q$125,12,FALSE)="Y","Y","") -> Y | Y132: =IF(VLOOKUP($C132,ExistingSewer!$A$2:$Q$125,13,FALSE)="Y","Y","") ->  | Z132: =IF(VLOOKUP($C132,ExistingSewer!$A$2:$Q$125,14,FALSE)="Y","Y","") ->  | AA132: =IF(VLOOKUP($C132,ExistingSewer!$A$2:$Q$125,15,FALSE)="Y","Y","") ->  | AB132: =IF(VLOOKUP($C132,ExistingSewer!$A$2:$Q$125,16,FALSE)="Y","Y","") ->  | AC132: =IF(VLOOKUP($C132,ExistingSewer!$A$2:$Q$125,17,FALSE)="Y","Y","") ->  | BC132: 3633 | CG132: 3633 | CI132: 654250.123
B133: =ExistingSewer!A111 -> SPS82 Dougan St | C133: =ExistingSewer!A111 -> SPS82 Dougan St | D133: Active | E133: Pump Station Network | F133: SPS82 Dougan St | L133: 0 | M133: =VLOOKUP(B133,ExistingSewer!$A$2:$H$122,8,FALSE) -> 277232.596 | O133: 1 | P133: 277232.596 | S133: =IF(Q133="",'Unit Rates - Land'!landcst,IF($E$8="Landuse",VLOOKUP(Q133,LAndcost3,2,FALSE),IF($E$8="Location",VLOOKUP(Q133,Landcost2,2,FALSE),"Error"))) -> 0 | T133: 0 | U133: 2015 | V133: =IFERROR(('General Input Sheet'!$G$38/(VLOOKUP(U133,'General Input Sheet'!$E$38:$G$44,3,FALSE))),1) -> 1 | W133: 277232.596 | X133: =IF(VLOOKUP($C133,ExistingSewer!$A$2:$Q$125,12,FALSE)="Y","Y","") ->  | Y133: =IF(VLOOKUP($C133,ExistingSewer!$A$2:$Q$125,13,FALSE)="Y","Y","") ->  | Z133: =IF(VLOOKUP($C133,ExistingSewer!$A$2:$Q$125,14,FALSE)="Y","Y","") ->  | AA133: =IF(VLOOKUP($C133,ExistingSewer!$A$2:$Q$125,15,FALSE)="Y","Y","") ->  | AB133: =IF(VLOOKUP($C133,ExistingSewer!$A$2:$Q$125,16,FALSE)="Y","Y","") -> Y | AC133: =IF(VLOOKUP($C133,ExistingSewer!$A$2:$Q$125,17,FALSE)="Y","Y","") ->  | BG133: 86180 | CG133: 86180 | CM133: 277232.596
B134: =ExistingSewer!A112 -> SPS83 Augustus | C134: =ExistingSewer!A112 -> SPS83 Augustus | D134: Active | E134: Pump Station Network | F134: =C134 -> SPS83 Augustus | L134: 0 | M134: =VLOOKUP(B134,ExistingSewer!$A$2:$H$122,8,FALSE) -> 3052749.434 | O134: 1 | P134: 3052749.434 | S134: =IF(Q134="",'Unit Rates - Land'!landcst,IF($E$8="Landuse",VLOOKUP(Q134,LAndcost3,2,FALSE),IF($E$8="Location",VLOOKUP(Q134,Landcost2,2,FALSE),"Error"))) -> 0 | T134: 0 | U134: 2015 | V134: =IFERROR(('General Input Sheet'!$G$38/(VLOOKUP(U134,'General Input Sheet'!$E$38:$G$44,3,FALSE))),1) -> 1 | W134: 3052749.434 | X134: =IF(VLOOKUP($C134,ExistingSewer!$A$2:$Q$125,12,FALSE)="Y","Y","") ->  | Y134: =IF(VLOOKUP($C134,ExistingSewer!$A$2:$Q$125,13,FALSE)="Y","Y","") ->  | Z134: =IF(VLOOKUP($C134,ExistingSewer!$A$2:$Q$125,14,FALSE)="Y","Y","") ->  | AA134: =IF(VLOOKUP($C134,ExistingSewer!$A$2:$Q$125,15,FALSE)="Y","Y","") ->  | AB134: =IF(VLOOKUP($C134,ExistingSewer!$A$2:$Q$125,16,FALSE)="Y","Y","") -> Y | AC134: =IF(VLOOKUP($C134,ExistingSewer!$A$2:$Q$125,17,FALSE)="Y","Y","") ->  | BG134: 86180 | BR134: =IF(AM134="y",BR$14,IF(AND(AM134>0,AM134<=1),AM134*BR$14,"")) ->  | CG134: 86180 | CM134: 3052749.434 | CR134: =IF(BL134="","",(BL134/$CG134)*$W134) -> 
B135: =ExistingSewer!A113 -> SPS84 Samarai Dr | C135: =ExistingSewer!A113 -> SPS84 Samarai Dr | D135: Active | E135: Pump Station Network | F135: SPS84 Samarai Dr | L135: 0 | M135: =VLOOKUP(B135,ExistingSewer!$A$2:$H$122,8,FALSE) -> 271472.582 | O135: 1 | P135: 271472.582 | S135: =IF(Q135="",'Unit Rates - Land'!landcst,IF($E$8="Landuse",VLOOKUP(Q135,LAndcost3,2,FALSE),IF($E$8="Location",VLOOKUP(Q135,Landcost2,2,FALSE),"Error"))) -> 0 | T135: 0 | U135: 2015 | V135: =IFERROR(('General Input Sheet'!$G$38/(VLOOKUP(U135,'General Input Sheet'!$E$38:$G$44,3,FALSE))),1) -> 1 | W135: 271472.582 | X135: =IF(VLOOKUP($C135,ExistingSewer!$A$2:$Q$125,12,FALSE)="Y","Y","") ->  | Y135: =IF(VLOOKUP($C135,ExistingSewer!$A$2:$Q$125,13,FALSE)="Y","Y","") ->  | Z135: =IF(VLOOKUP($C135,ExistingSewer!$A$2:$Q$125,14,FALSE)="Y","Y","") ->  | AA135: =IF(VLOOKUP($C135,ExistingSewer!$A$2:$Q$125,15,FALSE)="Y","Y","") ->  | AB135: =IF(VLOOKUP($C135,ExistingSewer!$A$2:$Q$125,16,FALSE)="Y","Y","") -> Y | AC135: =IF(VLOOKUP($C135,ExistingSewer!$A$2:$Q$125,17,FALSE)="Y","Y","") ->  | BC135: =IF(X135="y",BC$14,IF(AND(X135>0,X135<=1),X135*BC$14,"")) ->  | BG135: 86180 | CG135: 86180 | CM135: 271472.582
B136: =ExistingSewer!A114 -> SPS85 Tulipwood Dr | C136: =ExistingSewer!A114 -> SPS85 Tulipwood Dr | D136: Active | E136: Pump Station Network | F136: SPS85 Tulipwood Dr | L136: 0 | M136: =VLOOKUP(B136,ExistingSewer!$A$2:$H$122,8,FALSE) -> 363917.625 | O136: 1 | P136: 363917.625 | S136: =IF(Q136="",'Unit Rates - Land'!landcst,IF($E$8="Landuse",VLOOKUP(Q136,LAndcost3,2,FALSE),IF($E$8="Location",VLOOKUP(Q136,Landcost2,2,FALSE),"Error"))) -> 0 | T136: 0 | U136: 2015 | V136: =IFERROR(('General Input Sheet'!$G$38/(VLOOKUP(U136,'General Input Sheet'!$E$38:$G$44,3,FALSE))),1) -> 1 | W136: 363917.625 | X136: =IF(VLOOKUP($C136,ExistingSewer!$A$2:$Q$125,12,FALSE)="Y","Y","") -> Y | Y136: =IF(VLOOKUP($C136,ExistingSewer!$A$2:$Q$125,13,FALSE)="Y","Y","") ->  | Z136: =IF(VLOOKUP($C136,ExistingSewer!$A$2:$Q$125,14,FALSE)="Y","Y","") ->  | AA136: =IF(VLOOKUP($C136,ExistingSewer!$A$2:$Q$125,15,FALSE)="Y","Y","") ->  | AB136: =IF(VLOOKUP($C136,ExistingSewer!$A$2:$Q$125,16,FALSE)="Y","Y","") ->  | AC136: =IF(VLOOKUP($C136,ExistingSewer!$A$2:$Q$125,17,FALSE)="Y","Y","") ->  | BC136: 3633 | CG136: 3633 | CI136: 363917.625
B137: =ExistingSewer!A115 -> SPS86 Lady Penrhyn Dr | C137: =ExistingSewer!A115 -> SPS86 Lady Penrhyn Dr | D137: Active | E137: Pump Station Network | F137: SPS86 Lady Penrhyn Dr | L137: 0 | M137: =VLOOKUP(B137,ExistingSewer!$A$2:$H$122,8,FALSE) -> 345844.258 | O137: 1 | P137: 345844.258 | S137: =IF(Q137="",'Unit Rates - Land'!landcst,IF($E$8="Landuse",VLOOKUP(Q137,LAndcost3,2,FALSE),IF($E$8="Location",VLOOKUP(Q137,Landcost2,2,FALSE),"Error"))) -> 0 | T137: 0 | U137: 2015 | V137: =IFERROR(('General Input Sheet'!$G$38/(VLOOKUP(U137,'General Input Sheet'!$E$38:$G$44,3,FALSE))),1) -> 1 | W137: 345844.258 | X137: =IF(VLOOKUP($C137,ExistingSewer!$A$2:$Q$125,12,FALSE)="Y","Y","") ->  | Y137: =IF(VLOOKUP($C137,ExistingSewer!$A$2:$Q$125,13,FALSE)="Y","Y","") ->  | Z137: =IF(VLOOKUP($C137,ExistingSewer!$A$2:$Q$125,14,FALSE)="Y","Y","") ->  | AA137: =IF(VLOOKUP($C137,ExistingSewer!$A$2:$Q$125,15,FALSE)="Y","Y","") ->  | AB137: =IF(VLOOKUP($C137,ExistingSewer!$A$2:$Q$125,16,FALSE)="Y","Y","") -> Y | AC137: =IF(VLOOKUP($C137,ExistingSewer!$A$2:$Q$125,17,FALSE)="Y","Y","") ->  | BG137: 86180 | CG137: 86180 | CM137: 345844.258
B138: =ExistingSewer!A116 -> SPS87 Conservation Dr | C138: =ExistingSewer!A116 -> SPS87 Conservation Dr | D138: Active | E138: Pump Station Network | F138: SPS87 Conservation Dr | L138: 0 | M138: =VLOOKUP(B138,ExistingSewer!$A$2:$H$122,8,FALSE) -> 241733.41 | O138: 1 | P138: 241733.41 | S138: =IF(Q138="",'Unit Rates - Land'!landcst,IF($E$8="Landuse",VLOOKUP(Q138,LAndcost3,2,FALSE),IF($E$8="Location",VLOOKUP(Q138,Landcost2,2,FALSE),"Error"))) -> 0 | T138: 0 | U138: 2015 | V138: =IFERROR(('General Input Sheet'!$G$38/(VLOOKUP(U138,'General Input Sheet'!$E$38:$G$44,3,FALSE))),1) -> 1 | W138: 241733.41 | X138: =IF(VLOOKUP($C138,ExistingSewer!$A$2:$Q$125,12,FALSE)="Y","Y","") ->  | Y138: =IF(VLOOKUP($C138,ExistingSewer!$A$2:$Q$125,13,FALSE)="Y","Y","") ->  | Z138: =IF(VLOOKUP($C138,ExistingSewer!$A$2:$Q$125,14,FALSE)="Y","Y","") ->  | AA138: =IF(VLOOKUP($C138,ExistingSewer!$A$2:$Q$125,15,FALSE)="Y","Y","") ->  | AB138: =IF(VLOOKUP($C138,ExistingSewer!$A$2:$Q$125,16,FALSE)="Y","Y","") -> Y | AC138: =IF(VLOOKUP($C138,ExistingSewer!$A$2:$Q$125,17,FALSE)="Y","Y","") ->  | BG138: 86180 | CG138: 86180 | CM138: 241733.41
